Workbook

Sheet Apresentação
I50: AVISO LEGAL ESTA FERRAMENTA PARA AVALIAÇÃO DA VIABILIDADE ECONÔMICA DA PRODUÇÃO DE SAF NO BRASIL, DESENVOLVIDA PELA EPE, TEM COMO OBJETIVOS SUBSIDIAR O PLANEJAMENTO ENERGÉTICO NACIONAL E APOIAR AGENTES PRIVADOS E PÚBLICOS COM ESTUDOS PROSPECTIVOS. QUAISQUER RESULTADOS GERADOS POR ESTA FERRAMENTA DEVEM SER ENTENDIDOS COMO VALORES PRELIMINARES. LOGO, QUAISQUER DECISÕES DE ENCAMINHAMENTO (COMO FORMULAÇÕES DE POLÍTICAS PÚBLICAS, DEFINIÇÕES DE DIRETRIZES ESTRATÉGICAS, DECISÕES DE INVESTIMENTO OU DE ESTRATÉGICAS DE NEGÓCIO ETC.) SÃO DE RESPONSABILIDADE DE OUTRAS INSTITUIÇÕES PÚBLICAS E PRIVADAS. A EPE SE EXIME DE QUALQUER RESPONSABILIDADE POR QUAISQUER AÇÕES E TOMADAS DE DECISÃO QUE POSSAM SER REALIZADAS POR AGENTES ECONÔMICOS OU QUALQUER PESSOA COM BASE NOS RESULTADOS DESTA FERRAMENTA. A EPE DEVE SER CITADA COMO FONTE PARA A PUBLICAÇÃO DE QUAISQUER RESULTADOS DERIVADOS DO USO DESTA FERRAMENTA.

Sheet Interface Básica
N2: Erro no cálculo
C4: Capacidade nominal (mihões de litros de líquido* / ano): | N4: Última simulação: 26/06 09:58
C5: Tecnologia: | M5: Progresso: 0%
C6: Matéria-prima:
C7: Preencha a porcentagem de sebo (máx 30%) | E7: 0
C8: * Inclui produção conjunta de SAF, Diesel Verde e bioNafta
D9: CORSIA default
D10: Sim
C13: Mercado | D13: Volume de SAF vendido ao mercado | E13: Prêmio ao Produtor no mercado*
C14: CORSIA | D14: 0 | E14: 0
C15: ProBioQAV | D15: 1 | E15: 0
C16: Outros Mercados - SAF | D16: 0 | E16: 0
AC19: Preço mínimo de viabilidade do SAF (R$ / l) | AD19: Valor presente líquido do projeto (milhões R$) * | AE19: Taxa interna de retorno do projeto | AF19: Razão MSP / QAV
D20: SAF - CORSIA | E20: SAF - ProBioQAV | F20: SAF - Outros Mercados | G20: Diesel Verde | H20: bioNafta | I20: bioGL | AC20: ='Fluxo de Caixa Descontado'!B4 -> 11.00230888 | AD20: ='Resultados Detalhados'!U23 ->  | AE20: ='Resultados Detalhados'!U27 ->  | AF20: =aux_n1_preco/n2_QAV -> 2.821104841
C21: Método de Cálculo ACV | D21: CORSIA default | E21: Valores Médios Brasil | F21: Valor próprio | G21: Valores Médios Brasil | H21: Valores Médios Brasil | I21: Valores Médios Brasil
C22: Incluir iLUC? | D22: Sim | E22: Não | F22: Não | G22: Não | H22: Não | I22: Não
C23: Valor Próprio de IC (g CO2 eq / MJ) | AC23: Mercado | AD23: Preço de Venda do Produto (R$/l ou R$/kg para bioGL) | AE23: Intensidade de Carbono (g CO₂eq / MJ) : | AF23: Custo de redução de emissões para o consumidor (R$ / kg CO₂eq) | AG23: Esta no modelo de negocio
AC24: CORSIA - SAF | AD24: =$AC$20*(1+E14) -> 11.00230888 | AE24: ='Mercados de Carbono'!$D$4 -> 52 | AF24: =IF(D14>0,(AD24-'Par. econômicos e finaceiros'!$G$13)/'Mercados de Carbono'!E4,0) -> 0 | AG24: =IF(n1_mc_corsia_vol>0,"Sim","Não") -> Não
AC25: ProBioQAV - SAF | AD25: =$AC$20*(1+E15) -> 11.00230888 | AE25: ='Mercados de Carbono'!D5 -> 34.21392783 | AF25: =IF(D15>0,(AD25-'Par. econômicos e finaceiros'!$G$13)/'Mercados de Carbono'!E5,0) -> 3.728689833 | AG25: =IF(n1_mc_probio_vol>0,"Sim","Não") -> Sim
AC26: Outros Mercados - SAF | AD26: =$AC$20*(1+E16) -> 11.00230888 | AE26: ='Mercados de Carbono'!D6 -> 0 | AF26: =IF(D16>0,(AD26-'Par. econômicos e finaceiros'!$G$13)/'Mercados de Carbono'!E6,0) -> 0 | AG26: =IF(n1_mc_outros_vol>0,"Sim","Não") -> Não
AC27: Diesel Verde | AD27: =n2_diesel_verde -> 3.84 | AE27: ='Mercados de Carbono'!D10 -> 34.21392783 | AF27: =(AD27-'Par. econômicos e finaceiros'!$G$14)/'Mercados de Carbono'!E10 -> 0 | AG27: =IF(n1_tec="HEFA",IF(n3_diesel_hefa>0,"Sim","Não"),IF(n3_diesel_atj>0,"Sim","Não")) -> Sim
AC28: bioNafta | AD28: =n2_bionafta -> 2.9 | AE28: ='Mercados de Carbono'!D11 -> 34.21392783 | AF28: =(AD28-'Par. econômicos e finaceiros'!$G$15)/'Mercados de Carbono'!E11 -> 0 | AG28: =IF(n1_tec="HEFA",IF(n3_nafta_hefa>0,"Sim","Não"),IF(n3_nafta_atj>0,"Sim","Não")) -> Sim
C29: Preço mínimo de viabilidade do SAF (R$ / l) | E29: Valor presente líquido do projeto (milhões R$) | F29: Taxa interna de retorno do projeto | G29: Razão preço mínimo de viabilidade SAF / preço de venda QAV fóssil | AC29: bioGL | AD29: =n2_bioglp -> 2.79 | AE29: ='Mercados de Carbono'!D12 -> 34.21392783 | AF29: =(AD29-'Par. econômicos e finaceiros'!$G$16)/'Mercados de Carbono'!$E$12 -> 0 | AG29: =IF(n1_tec="HEFA",IF(n3_glp_hefa>0,"Sim","Não"),IF(n3_glp_atj>0,"Sim","Não")) -> Não
C34: Mercado | D34: Preço de Venda do Produto (R$/l ou R$/kg para bioGL) | E34: Intensidade de Carbono (g CO₂eq / MJ) : | F34: Custo de redução de emissões para o consumidor do mercado (R$ / kg CO₂eq)
C35: SAF- CORSIA
C36: SAF - ProBioQAV
C37: SAF- Outros Mercados | AD37: CORSIA default
C38: Diesel Verde | AD38: Sim
C39: bioNafta | AD39: CORSIA default
C40: bioGL | AD40: Sim
AD51: Bloqueadas
AD52: Pode ser alterado
AD53: Detalhes
AD54: Outputs
AC59: =IF($E$5="HEFA","HEFA", IF(ISNUMBER(FIND("Cana",$E$6)),"ATJ Cana de açúcar","ATJ Milho de 2a safra 1G")) -> ATJ Milho de 2a safra 1G
Y63: Bloqueadas
Y64: Preencher/Alterar
Y65: Resultados
V76: Células Bloqueadas
V77: Células para preencher/alterar
V78: Resultados

Sheet Par. econômicos e finaceiros
AB1: OCULTO
C5: Preço de compra de insumos | F5: Preço de Venda dos Coprodutos
C6: Óleo de soja (R$/L) | D6: 4.86 | F6: Diesel Verde (R$/L) | G6: 3.84
C7: Sebo bovino (R$/L) | D7: 5.16 | F7: bioNafta (R$/L) | G7: 2.9
C8: Hidrogênio (R$/kg) | D8: 10.57 | F8: bioGL (R$/kg) | G8: 2.79
C9: Eletricidade (R$/kWh) | D9: 0.13
C10: Cavaco de madeira (R$/Kg) | D10: 0.47
C11: Gás natural (R$/kg) | D11: 5.03
C12: Catalisadores para HEFA - média (R$/g) | D12: 1.37
C13: Catalisadores para ATJ - média (R$/g) | D13: 0.12 | F13: QAV (R$/l) | G13: 3.9
C14: Etanol (R$/L) | D14: 2.47 | F14: Diesel (R$/l) | G14: 3.84
F15: Nafta (R$/l) | G15: 2.9
F16: GLP (R$/kg) | G16: 2.79 | M16: O produto gera créditos de carbono?
M17: SAF | N17: Sim
C18: Tempo de operação da planta (anos) | D18: 20 | I18: Valores iniciais restaurados | M18: Diesel Verde | N18: Sim
C19: Porcentagem do CAPEX financiado | D19: 0.6 | I19: Último cenário: 26/06 11:00 | M19: bioNafta | N19: Não
C20: Taxa de juros financiamento | D20: 0.1236 | F20: Caso Base | I20: Progresso: 100% | M20: bio-GL | N20: Não
C21: Taxa de desconto equity | D21: 0.15 | M21: Preço Créditos de Carbono Evitado (R$ / t CO2eq)
C28: Tempo de construção da planta | D28: 3
C29: Tempo de atraso na construção (meses) | D29: 0
C30: Tempo de start-up da planta (meses) | D30: 6
C31: Receita durante o start-up | D31: 0.75
C32: Custo variável durante start-up | D32: 0.75
C33: Custo fixo durante start-up | D33: 1
C38: Cronograma de gastos durante a construção
C39: Dispêndio anual (% CAPEX total) | D39: Ano
C40: 0.08 | D40: Ano 1
C41: 0.6 | D41: Ano 2
C42: 0.32 | D42: Ano 3
D43: Ano 4
D44: Ano 5

Sheet Parâmetros técnicos
C5: Fator de utilização | D5: 0.9
C8: Tecnologia: | D8: HEFA | E8: ATJ | H8: Tecnologia: | I8: HEFA | J8: ATJ
C9: Óleos e gorduras (l/l comb. Liquido) | D9: 1.062198744 | E9: 0 | H9: SAF (% liquido) | I9: 0.6485904983 | J9: 0.7547467922
C10: Etanol (l / l comb. Liquido) | D10: 0 | E10: 1.805009851 | H10: Diesel Verde (% liquido) | I10: 0.04973977386 | J10: 0.05829331838
C11: Hidrogênio (kg/l comb. Liquido) | D11: 0.03313724792 | E11: 0.01570191788 | H11: Nafta (% liquido) | I11: 0.3016697279 | J11: 0.1869598895
C12: Catalisadores HEFA (g/l comb liquido) | D12: 0.1182803816 | E12: 0 | H12: GLP (l/l SAF) | I12: 0.03751203865 | J12: 0
C13: Catalisadores ATJ (g/l comb liquido) | D13: 0 | E13: 1.764330405
C16: Tecnologia: | D16: HEFA | E16: ATJ
C17: Calor (MJ/l comb. Liquido) | D17: 2.510603968 | E17: 2.035589556
C18: Combustível usado | D18: Gás Natural | E18: Gás Natural
C19: Eletricidade (kWh/l comb. Liquido) | D19: 0.05802203631 | E19: 0.1855020107
C20: Agua de resfriamento (l/l comb liquido) | D20: 3.2 | E20: 6.02199466
H24: Parâmetros técnicos restaurados
H25: Último cenário: 26/06 11:00

Sheet Resultados Detalhados
B4: Fluxo de Caixa
B5: Ano Projeto | C5: =IF(n1_tec="HEFA",'Fluxo de Caixa Desc._premio'!B24,IF(n1_tec="ATJ",'Fluxo de Caixa Desc._premio'!B66,"")) ->  | D5: =IF(n1_tec="HEFA",'Fluxo de Caixa Desc._premio'!C24,IF(n1_tec="ATJ",'Fluxo de Caixa Desc._premio'!C66,"")) ->  | E5: =IF(n1_tec="HEFA",'Fluxo de Caixa Desc._premio'!D24,IF(n1_tec="ATJ",'Fluxo de Caixa Desc._premio'!D66,"")) ->  | F5: =IF(n1_tec="HEFA",'Fluxo de Caixa Desc._premio'!E24,IF(n1_tec="ATJ",'Fluxo de Caixa Desc._premio'!E66,"")) ->  | G5: =IF(n1_tec="HEFA",'Fluxo de Caixa Desc._premio'!F24,IF(n1_tec="ATJ",'Fluxo de Caixa Desc._premio'!F66,"")) ->  | H5: =IF(n1_tec="HEFA",'Fluxo de Caixa Desc._premio'!G24,IF(n1_tec="ATJ",'Fluxo de Caixa Desc._premio'!G66,"")) ->  | I5: =IF(n1_tec="HEFA",'Fluxo de Caixa Desc._premio'!H24,IF(n1_tec="ATJ",'Fluxo de Caixa Desc._premio'!H66,"")) ->  | J5: =IF(n1_tec="HEFA",'Fluxo de Caixa Desc._premio'!I24,IF(n1_tec="ATJ",'Fluxo de Caixa Desc._premio'!I66,"")) ->  | K5: =IF(n1_tec="HEFA",'Fluxo de Caixa Desc._premio'!J24,IF(n1_tec="ATJ",'Fluxo de Caixa Desc._premio'!J66,"")) ->  | L5: =IF(n1_tec="HEFA",'Fluxo de Caixa Desc._premio'!K24,IF(n1_tec="ATJ",'Fluxo de Caixa Desc._premio'!K66,"")) ->  | M5: =IF(n1_tec="HEFA",'Fluxo de Caixa Desc._premio'!L24,IF(n1_tec="ATJ",'Fluxo de Caixa Desc._premio'!L66,"")) ->  | N5: =IF(n1_tec="HEFA",'Fluxo de Caixa Desc._premio'!M24,IF(n1_tec="ATJ",'Fluxo de Caixa Desc._premio'!M66,"")) ->  | O5: =IF(n1_tec="HEFA",'Fluxo de Caixa Desc._premio'!N24,IF(n1_tec="ATJ",'Fluxo de Caixa Desc._premio'!N66,"")) ->  | P5: =IF(n1_tec="HEFA",'Fluxo de Caixa Desc._premio'!O24,IF(n1_tec="ATJ",'Fluxo de Caixa Desc._premio'!O66,"")) ->  | Q5: =IF(n1_tec="HEFA",'Fluxo de Caixa Desc._premio'!P24,IF(n1_tec="ATJ",'Fluxo de Caixa Desc._premio'!P66,"")) ->  | R5: =IF(n1_tec="HEFA",'Fluxo de Caixa Desc._premio'!Q24,IF(n1_tec="ATJ",'Fluxo de Caixa Desc._premio'!Q66,"")) ->  | S5: =IF(n1_tec="HEFA",'Fluxo de Caixa Desc._premio'!R24,IF(n1_tec="ATJ",'Fluxo de Caixa Desc._premio'!R66,"")) ->  | T5: =IF(n1_tec="HEFA",'Fluxo de Caixa Desc._premio'!S24,IF(n1_tec="ATJ",'Fluxo de Caixa Desc._premio'!S66,"")) ->  | U5: =IF(n1_tec="HEFA",'Fluxo de Caixa Desc._premio'!T24,IF(n1_tec="ATJ",'Fluxo de Caixa Desc._premio'!T66,"")) ->  | V5: =IF(n1_tec="HEFA",'Fluxo de Caixa Desc._premio'!U24,IF(n1_tec="ATJ",'Fluxo de Caixa Desc._premio'!U66,"")) ->  | W5: =IF(n1_tec="HEFA",'Fluxo de Caixa Desc._premio'!V24,IF(n1_tec="ATJ",'Fluxo de Caixa Desc._premio'!V66,"")) ->  | X5: =IF(n1_tec="HEFA",'Fluxo de Caixa Desc._premio'!W24,IF(n1_tec="ATJ",'Fluxo de Caixa Desc._premio'!W66,"")) ->  | Y5: =IF(n1_tec="HEFA",'Fluxo de Caixa Desc._premio'!X24,IF(n1_tec="ATJ",'Fluxo de Caixa Desc._premio'!X66,"")) ->  | Z5: =IF(n1_tec="HEFA",'Fluxo de Caixa Desc._premio'!Y24,IF(n1_tec="ATJ",'Fluxo de Caixa Desc._premio'!Y66,"")) ->  | AA5: =IF(n1_tec="HEFA",'Fluxo de Caixa Desc._premio'!Z24,IF(n1_tec="ATJ",'Fluxo de Caixa Desc._premio'!Z66,"")) ->  | AB5: =IF(n1_tec="HEFA",'Fluxo de Caixa Desc._premio'!AA24,IF(n1_tec="ATJ",'Fluxo de Caixa Desc._premio'!AA66,"")) ->  | AC5: =IF(n1_tec="HEFA",'Fluxo de Caixa Desc._premio'!AB24,IF(n1_tec="ATJ",'Fluxo de Caixa Desc._premio'!AB66,"")) ->  | AD5: =IF(n1_tec="HEFA",'Fluxo de Caixa Desc._premio'!AC24,IF(n1_tec="ATJ",'Fluxo de Caixa Desc._premio'!AC66,"")) ->  | AE5: =IF(n1_tec="HEFA",'Fluxo de Caixa Desc._premio'!AD24,IF(n1_tec="ATJ",'Fluxo de Caixa Desc._premio'!AD66,"")) ->  | AF5: =IF(n1_tec="HEFA",'Fluxo de Caixa Desc._premio'!AE24,IF(n1_tec="ATJ",'Fluxo de Caixa Desc._premio'!AE66,"")) ->  | AG5: =IF(n1_tec="HEFA",'Fluxo de Caixa Desc._premio'!AF24,IF(n1_tec="ATJ",'Fluxo de Caixa Desc._premio'!AF66,"")) ->  | AH5: =IF(n1_tec="HEFA",'Fluxo de Caixa Desc._premio'!AG24,IF(n1_tec="ATJ",'Fluxo de Caixa Desc._premio'!AG66,"")) ->  | AI5: =IF(n1_tec="HEFA",'Fluxo de Caixa Desc._premio'!AH24,IF(n1_tec="ATJ",'Fluxo de Caixa Desc._premio'!AH66,"")) ->  | AJ5: =IF(n1_tec="HEFA",'Fluxo de Caixa Desc._premio'!AI24,IF(n1_tec="ATJ",'Fluxo de Caixa Desc._premio'!AI66,"")) ->  | AK5: =IF(n1_tec="HEFA",'Fluxo de Caixa Desc._premio'!AJ24,IF(n1_tec="ATJ",'Fluxo de Caixa Desc._premio'!AJ66,"")) ->  | AL5: =IF(n1_tec="HEFA",'Fluxo de Caixa Desc._premio'!AK24,IF(n1_tec="ATJ",'Fluxo de Caixa Desc._premio'!AK66,"")) ->  | AM5: =IF(n1_tec="HEFA",'Fluxo de Caixa Desc._premio'!AL24,IF(n1_tec="ATJ",'Fluxo de Caixa Desc._premio'!AL66,"")) ->  | AN5: =IF(n1_tec="HEFA",'Fluxo de Caixa Desc._premio'!AM24,IF(n1_tec="ATJ",'Fluxo de Caixa Desc._premio'!AM66,"")) ->  | AO5: =IF(n1_tec="HEFA",'Fluxo de Caixa Desc._premio'!AN24,IF(n1_tec="ATJ",'Fluxo de Caixa Desc._premio'!AN66,"")) ->  | AP5: =IF(n1_tec="HEFA",'Fluxo de Caixa Desc._premio'!AO24,IF(n1_tec="ATJ",'Fluxo de Caixa Desc._premio'!AO66,"")) ->  | AQ5: =IF(n1_tec="HEFA",'Fluxo de Caixa Desc._premio'!AP24,IF(n1_tec="ATJ",'Fluxo de Caixa Desc._premio'!AP66,"")) ->  | AR5: =IF(n1_tec="HEFA",'Fluxo de Caixa Desc._premio'!AQ24,IF(n1_tec="ATJ",'Fluxo de Caixa Desc._premio'!AQ66,"")) ->  | AS5: =IF(n1_tec="HEFA",'Fluxo de Caixa Desc._premio'!AR24,IF(n1_tec="ATJ",'Fluxo de Caixa Desc._premio'!AR66,"")) ->  | AT5: =IF(n1_tec="HEFA",'Fluxo de Caixa Desc._premio'!AS24,IF(n1_tec="ATJ",'Fluxo de Caixa Desc._premio'!AS66,"")) ->  | AU5: =IF(n1_tec="HEFA",'Fluxo de Caixa Desc._premio'!AT24,IF(n1_tec="ATJ",'Fluxo de Caixa Desc._premio'!AT66,"")) ->  | AV5: =IF(n1_tec="HEFA",'Fluxo de Caixa Desc._premio'!AU24,IF(n1_tec="ATJ",'Fluxo de Caixa Desc._premio'!AU66,"")) ->  | AW5: =IF(n1_tec="HEFA",'Fluxo de Caixa Desc._premio'!AV24,IF(n1_tec="ATJ",'Fluxo de Caixa Desc._premio'!AV66,"")) -> 
B6: Cronograma | C6: =IF(n1_tec="HEFA",'Fluxo de Caixa Desc._premio'!B25,IF(n1_tec="ATJ",'Fluxo de Caixa Desc._premio'!B67,"")) ->  | D6: =IF(n1_tec="HEFA",'Fluxo de Caixa Desc._premio'!C25,IF(n1_tec="ATJ",'Fluxo de Caixa Desc._premio'!C67,"")) ->  | E6: =IF(n1_tec="HEFA",'Fluxo de Caixa Desc._premio'!D25,IF(n1_tec="ATJ",'Fluxo de Caixa Desc._premio'!D67,"")) ->  | F6: =IF(n1_tec="HEFA",'Fluxo de Caixa Desc._premio'!E25,IF(n1_tec="ATJ",'Fluxo de Caixa Desc._premio'!E67,"")) ->  | G6: =IF(n1_tec="HEFA",'Fluxo de Caixa Desc._premio'!F25,IF(n1_tec="ATJ",'Fluxo de Caixa Desc._premio'!F67,"")) ->  | H6: =IF(n1_tec="HEFA",'Fluxo de Caixa Desc._premio'!G25,IF(n1_tec="ATJ",'Fluxo de Caixa Desc._premio'!G67,"")) ->  | I6: =IF(n1_tec="HEFA",'Fluxo de Caixa Desc._premio'!H25,IF(n1_tec="ATJ",'Fluxo de Caixa Desc._premio'!H67,"")) ->  | J6: =IF(n1_tec="HEFA",'Fluxo de Caixa Desc._premio'!I25,IF(n1_tec="ATJ",'Fluxo de Caixa Desc._premio'!I67,"")) ->  | K6: =IF(n1_tec="HEFA",'Fluxo de Caixa Desc._premio'!J25,IF(n1_tec="ATJ",'Fluxo de Caixa Desc._premio'!J67,"")) ->  | L6: =IF(n1_tec="HEFA",'Fluxo de Caixa Desc._premio'!K25,IF(n1_tec="ATJ",'Fluxo de Caixa Desc._premio'!K67,"")) ->  | M6: =IF(n1_tec="HEFA",'Fluxo de Caixa Desc._premio'!L25,IF(n1_tec="ATJ",'Fluxo de Caixa Desc._premio'!L67,"")) ->  | N6: =IF(n1_tec="HEFA",'Fluxo de Caixa Desc._premio'!M25,IF(n1_tec="ATJ",'Fluxo de Caixa Desc._premio'!M67,"")) ->  | O6: =IF(n1_tec="HEFA",'Fluxo de Caixa Desc._premio'!N25,IF(n1_tec="ATJ",'Fluxo de Caixa Desc._premio'!N67,"")) ->  | P6: =IF(n1_tec="HEFA",'Fluxo de Caixa Desc._premio'!O25,IF(n1_tec="ATJ",'Fluxo de Caixa Desc._premio'!O67,"")) ->  | Q6: =IF(n1_tec="HEFA",'Fluxo de Caixa Desc._premio'!P25,IF(n1_tec="ATJ",'Fluxo de Caixa Desc._premio'!P67,"")) ->  | R6: =IF(n1_tec="HEFA",'Fluxo de Caixa Desc._premio'!Q25,IF(n1_tec="ATJ",'Fluxo de Caixa Desc._premio'!Q67,"")) ->  | S6: =IF(n1_tec="HEFA",'Fluxo de Caixa Desc._premio'!R25,IF(n1_tec="ATJ",'Fluxo de Caixa Desc._premio'!R67,"")) ->  | T6: =IF(n1_tec="HEFA",'Fluxo de Caixa Desc._premio'!S25,IF(n1_tec="ATJ",'Fluxo de Caixa Desc._premio'!S67,"")) ->  | U6: =IF(n1_tec="HEFA",'Fluxo de Caixa Desc._premio'!T25,IF(n1_tec="ATJ",'Fluxo de Caixa Desc._premio'!T67,"")) ->  | V6: =IF(n1_tec="HEFA",'Fluxo de Caixa Desc._premio'!U25,IF(n1_tec="ATJ",'Fluxo de Caixa Desc._premio'!U67,"")) ->  | W6: =IF(n1_tec="HEFA",'Fluxo de Caixa Desc._premio'!V25,IF(n1_tec="ATJ",'Fluxo de Caixa Desc._premio'!V67,"")) ->  | X6: =IF(n1_tec="HEFA",'Fluxo de Caixa Desc._premio'!W25,IF(n1_tec="ATJ",'Fluxo de Caixa Desc._premio'!W67,"")) ->  | Y6: =IF(n1_tec="HEFA",'Fluxo de Caixa Desc._premio'!X25,IF(n1_tec="ATJ",'Fluxo de Caixa Desc._premio'!X67,"")) ->  | Z6: =IF(n1_tec="HEFA",'Fluxo de Caixa Desc._premio'!Y25,IF(n1_tec="ATJ",'Fluxo de Caixa Desc._premio'!Y67,"")) ->  | AA6: =IF(n1_tec="HEFA",'Fluxo de Caixa Desc._premio'!Z25,IF(n1_tec="ATJ",'Fluxo de Caixa Desc._premio'!Z67,"")) ->  | AB6: =IF(n1_tec="HEFA",'Fluxo de Caixa Desc._premio'!AA25,IF(n1_tec="ATJ",'Fluxo de Caixa Desc._premio'!AA67,"")) ->  | AC6: =IF(n1_tec="HEFA",'Fluxo de Caixa Desc._premio'!AB25,IF(n1_tec="ATJ",'Fluxo de Caixa Desc._premio'!AB67,"")) ->  | AD6: =IF(n1_tec="HEFA",'Fluxo de Caixa Desc._premio'!AC25,IF(n1_tec="ATJ",'Fluxo de Caixa Desc._premio'!AC67,"")) ->  | AE6: =IF(n1_tec="HEFA",'Fluxo de Caixa Desc._premio'!AD25,IF(n1_tec="ATJ",'Fluxo de Caixa Desc._premio'!AD67,"")) ->  | AF6: =IF(n1_tec="HEFA",'Fluxo de Caixa Desc._premio'!AE25,IF(n1_tec="ATJ",'Fluxo de Caixa Desc._premio'!AE67,"")) ->  | AG6: =IF(n1_tec="HEFA",'Fluxo de Caixa Desc._premio'!AF25,IF(n1_tec="ATJ",'Fluxo de Caixa Desc._premio'!AF67,"")) ->  | AH6: =IF(n1_tec="HEFA",'Fluxo de Caixa Desc._premio'!AG25,IF(n1_tec="ATJ",'Fluxo de Caixa Desc._premio'!AG67,"")) ->  | AI6: =IF(n1_tec="HEFA",'Fluxo de Caixa Desc._premio'!AH25,IF(n1_tec="ATJ",'Fluxo de Caixa Desc._premio'!AH67,"")) ->  | AJ6: =IF(n1_tec="HEFA",'Fluxo de Caixa Desc._premio'!AI25,IF(n1_tec="ATJ",'Fluxo de Caixa Desc._premio'!AI67,"")) ->  | AK6: =IF(n1_tec="HEFA",'Fluxo de Caixa Desc._premio'!AJ25,IF(n1_tec="ATJ",'Fluxo de Caixa Desc._premio'!AJ67,"")) ->  | AL6: =IF(n1_tec="HEFA",'Fluxo de Caixa Desc._premio'!AK25,IF(n1_tec="ATJ",'Fluxo de Caixa Desc._premio'!AK67,"")) ->  | AM6: =IF(n1_tec="HEFA",'Fluxo de Caixa Desc._premio'!AL25,IF(n1_tec="ATJ",'Fluxo de Caixa Desc._premio'!AL67,"")) ->  | AN6: =IF(n1_tec="HEFA",'Fluxo de Caixa Desc._premio'!AM25,IF(n1_tec="ATJ",'Fluxo de Caixa Desc._premio'!AM67,"")) ->  | AO6: =IF(n1_tec="HEFA",'Fluxo de Caixa Desc._premio'!AN25,IF(n1_tec="ATJ",'Fluxo de Caixa Desc._premio'!AN67,"")) ->  | AP6: =IF(n1_tec="HEFA",'Fluxo de Caixa Desc._premio'!AO25,IF(n1_tec="ATJ",'Fluxo de Caixa Desc._premio'!AO67,"")) ->  | AQ6: =IF(n1_tec="HEFA",'Fluxo de Caixa Desc._premio'!AP25,IF(n1_tec="ATJ",'Fluxo de Caixa Desc._premio'!AP67,"")) ->  | AR6: =IF(n1_tec="HEFA",'Fluxo de Caixa Desc._premio'!AQ25,IF(n1_tec="ATJ",'Fluxo de Caixa Desc._premio'!AQ67,"")) ->  | AS6: =IF(n1_tec="HEFA",'Fluxo de Caixa Desc._premio'!AR25,IF(n1_tec="ATJ",'Fluxo de Caixa Desc._premio'!AR67,"")) ->  | AT6: =IF(n1_tec="HEFA",'Fluxo de Caixa Desc._premio'!AS25,IF(n1_tec="ATJ",'Fluxo de Caixa Desc._premio'!AS67,"")) ->  | AU6: =IF(n1_tec="HEFA",'Fluxo de Caixa Desc._premio'!AT25,IF(n1_tec="ATJ",'Fluxo de Caixa Desc._premio'!AT67,"")) ->  | AV6: =IF(n1_tec="HEFA",'Fluxo de Caixa Desc._premio'!AU25,IF(n1_tec="ATJ",'Fluxo de Caixa Desc._premio'!AU67,"")) ->  | AW6: =IF(n1_tec="HEFA",'Fluxo de Caixa Desc._premio'!AV25,IF(n1_tec="ATJ",'Fluxo de Caixa Desc._premio'!AV67,"")) -> 
B7: Receitas (milhões R$ / ano) | C7: =IF(n1_tec="HEFA",'Fluxo de Caixa Desc._premio'!B27,IF(n1_tec="ATJ",'Fluxo de Caixa Desc._premio'!B69,"")) ->  | D7: =IF(n1_tec="HEFA",'Fluxo de Caixa Desc._premio'!C27,IF(n1_tec="ATJ",'Fluxo de Caixa Desc._premio'!C69,"")) ->  | E7: =IF(n1_tec="HEFA",'Fluxo de Caixa Desc._premio'!D27,IF(n1_tec="ATJ",'Fluxo de Caixa Desc._premio'!D69,"")) ->  | F7: =IF(n1_tec="HEFA",'Fluxo de Caixa Desc._premio'!E27,IF(n1_tec="ATJ",'Fluxo de Caixa Desc._premio'!E69,"")) ->  | G7: =IF(n1_tec="HEFA",'Fluxo de Caixa Desc._premio'!F27,IF(n1_tec="ATJ",'Fluxo de Caixa Desc._premio'!F69,"")) ->  | H7: =IF(n1_tec="HEFA",'Fluxo de Caixa Desc._premio'!G27,IF(n1_tec="ATJ",'Fluxo de Caixa Desc._premio'!G69,"")) ->  | I7: =IF(n1_tec="HEFA",'Fluxo de Caixa Desc._premio'!H27,IF(n1_tec="ATJ",'Fluxo de Caixa Desc._premio'!H69,"")) ->  | J7: =IF(n1_tec="HEFA",'Fluxo de Caixa Desc._premio'!I27,IF(n1_tec="ATJ",'Fluxo de Caixa Desc._premio'!I69,"")) ->  | K7: =IF(n1_tec="HEFA",'Fluxo de Caixa Desc._premio'!J27,IF(n1_tec="ATJ",'Fluxo de Caixa Desc._premio'!J69,"")) ->  | L7: =IF(n1_tec="HEFA",'Fluxo de Caixa Desc._premio'!K27,IF(n1_tec="ATJ",'Fluxo de Caixa Desc._premio'!K69,"")) ->  | M7: =IF(n1_tec="HEFA",'Fluxo de Caixa Desc._premio'!L27,IF(n1_tec="ATJ",'Fluxo de Caixa Desc._premio'!L69,"")) ->  | N7: =IF(n1_tec="HEFA",'Fluxo de Caixa Desc._premio'!M27,IF(n1_tec="ATJ",'Fluxo de Caixa Desc._premio'!M69,"")) ->  | O7: =IF(n1_tec="HEFA",'Fluxo de Caixa Desc._premio'!N27,IF(n1_tec="ATJ",'Fluxo de Caixa Desc._premio'!N69,"")) ->  | P7: =IF(n1_tec="HEFA",'Fluxo de Caixa Desc._premio'!O27,IF(n1_tec="ATJ",'Fluxo de Caixa Desc._premio'!O69,"")) ->  | Q7: =IF(n1_tec="HEFA",'Fluxo de Caixa Desc._premio'!P27,IF(n1_tec="ATJ",'Fluxo de Caixa Desc._premio'!P69,"")) ->  | R7: =IF(n1_tec="HEFA",'Fluxo de Caixa Desc._premio'!Q27,IF(n1_tec="ATJ",'Fluxo de Caixa Desc._premio'!Q69,"")) ->  | S7: =IF(n1_tec="HEFA",'Fluxo de Caixa Desc._premio'!R27,IF(n1_tec="ATJ",'Fluxo de Caixa Desc._premio'!R69,"")) ->  | T7: =IF(n1_tec="HEFA",'Fluxo de Caixa Desc._premio'!S27,IF(n1_tec="ATJ",'Fluxo de Caixa Desc._premio'!S69,"")) ->  | U7: =IF(n1_tec="HEFA",'Fluxo de Caixa Desc._premio'!T27,IF(n1_tec="ATJ",'Fluxo de Caixa Desc._premio'!T69,"")) ->  | V7: =IF(n1_tec="HEFA",'Fluxo de Caixa Desc._premio'!U27,IF(n1_tec="ATJ",'Fluxo de Caixa Desc._premio'!U69,"")) ->  | W7: =IF(n1_tec="HEFA",'Fluxo de Caixa Desc._premio'!V27,IF(n1_tec="ATJ",'Fluxo de Caixa Desc._premio'!V69,"")) ->  | X7: =IF(n1_tec="HEFA",'Fluxo de Caixa Desc._premio'!W27,IF(n1_tec="ATJ",'Fluxo de Caixa Desc._premio'!W69,"")) ->  | Y7: =IF(n1_tec="HEFA",'Fluxo de Caixa Desc._premio'!X27,IF(n1_tec="ATJ",'Fluxo de Caixa Desc._premio'!X69,"")) ->  | Z7: =IF(n1_tec="HEFA",'Fluxo de Caixa Desc._premio'!Y27,IF(n1_tec="ATJ",'Fluxo de Caixa Desc._premio'!Y69,"")) ->  | AA7: =IF(n1_tec="HEFA",'Fluxo de Caixa Desc._premio'!Z27,IF(n1_tec="ATJ",'Fluxo de Caixa Desc._premio'!Z69,"")) ->  | AB7: =IF(n1_tec="HEFA",'Fluxo de Caixa Desc._premio'!AA27,IF(n1_tec="ATJ",'Fluxo de Caixa Desc._premio'!AA69,"")) ->  | AC7: =IF(n1_tec="HEFA",'Fluxo de Caixa Desc._premio'!AB27,IF(n1_tec="ATJ",'Fluxo de Caixa Desc._premio'!AB69,"")) ->  | AD7: =IF(n1_tec="HEFA",'Fluxo de Caixa Desc._premio'!AC27,IF(n1_tec="ATJ",'Fluxo de Caixa Desc._premio'!AC69,"")) ->  | AE7: =IF(n1_tec="HEFA",'Fluxo de Caixa Desc._premio'!AD27,IF(n1_tec="ATJ",'Fluxo de Caixa Desc._premio'!AD69,"")) ->  | AF7: =IF(n1_tec="HEFA",'Fluxo de Caixa Desc._premio'!AE27,IF(n1_tec="ATJ",'Fluxo de Caixa Desc._premio'!AE69,"")) ->  | AG7: =IF(n1_tec="HEFA",'Fluxo de Caixa Desc._premio'!AF27,IF(n1_tec="ATJ",'Fluxo de Caixa Desc._premio'!AF69,"")) ->  | AH7: =IF(n1_tec="HEFA",'Fluxo de Caixa Desc._premio'!AG27,IF(n1_tec="ATJ",'Fluxo de Caixa Desc._premio'!AG69,"")) ->  | AI7: =IF(n1_tec="HEFA",'Fluxo de Caixa Desc._premio'!AH27,IF(n1_tec="ATJ",'Fluxo de Caixa Desc._premio'!AH69,"")) ->  | AJ7: =IF(n1_tec="HEFA",'Fluxo de Caixa Desc._premio'!AI27,IF(n1_tec="ATJ",'Fluxo de Caixa Desc._premio'!AI69,"")) ->  | AK7: =IF(n1_tec="HEFA",'Fluxo de Caixa Desc._premio'!AJ27,IF(n1_tec="ATJ",'Fluxo de Caixa Desc._premio'!AJ69,"")) ->  | AL7: =IF(n1_tec="HEFA",'Fluxo de Caixa Desc._premio'!AK27,IF(n1_tec="ATJ",'Fluxo de Caixa Desc._premio'!AK69,"")) ->  | AM7: =IF(n1_tec="HEFA",'Fluxo de Caixa Desc._premio'!AL27,IF(n1_tec="ATJ",'Fluxo de Caixa Desc._premio'!AL69,"")) ->  | AN7: =IF(n1_tec="HEFA",'Fluxo de Caixa Desc._premio'!AM27,IF(n1_tec="ATJ",'Fluxo de Caixa Desc._premio'!AM69,"")) ->  | AO7: =IF(n1_tec="HEFA",'Fluxo de Caixa Desc._premio'!AN27,IF(n1_tec="ATJ",'Fluxo de Caixa Desc._premio'!AN69,"")) ->  | AP7: =IF(n1_tec="HEFA",'Fluxo de Caixa Desc._premio'!AO27,IF(n1_tec="ATJ",'Fluxo de Caixa Desc._premio'!AO69,"")) ->  | AQ7: =IF(n1_tec="HEFA",'Fluxo de Caixa Desc._premio'!AP27,IF(n1_tec="ATJ",'Fluxo de Caixa Desc._premio'!AP69,"")) ->  | AR7: =IF(n1_tec="HEFA",'Fluxo de Caixa Desc._premio'!AQ27,IF(n1_tec="ATJ",'Fluxo de Caixa Desc._premio'!AQ69,"")) ->  | AS7: =IF(n1_tec="HEFA",'Fluxo de Caixa Desc._premio'!AR27,IF(n1_tec="ATJ",'Fluxo de Caixa Desc._premio'!AR69,"")) ->  | AT7: =IF(n1_tec="HEFA",'Fluxo de Caixa Desc._premio'!AS27,IF(n1_tec="ATJ",'Fluxo de Caixa Desc._premio'!AS69,"")) ->  | AU7: =IF(n1_tec="HEFA",'Fluxo de Caixa Desc._premio'!AT27,IF(n1_tec="ATJ",'Fluxo de Caixa Desc._premio'!AT69,"")) ->  | AV7: =IF(n1_tec="HEFA",'Fluxo de Caixa Desc._premio'!AU27,IF(n1_tec="ATJ",'Fluxo de Caixa Desc._premio'!AU69,"")) ->  | AW7: =IF(n1_tec="HEFA",'Fluxo de Caixa Desc._premio'!AV27,IF(n1_tec="ATJ",'Fluxo de Caixa Desc._premio'!AV69,"")) -> 
B8: OPEX variável (milhões R$ / ano) | C8: =IF(n1_tec="HEFA",'Fluxo de Caixa Desc._premio'!B28,IF(n1_tec="ATJ",'Fluxo de Caixa Desc._premio'!B70,"")) ->  | D8: =IF(n1_tec="HEFA",'Fluxo de Caixa Desc._premio'!C28,IF(n1_tec="ATJ",'Fluxo de Caixa Desc._premio'!C70,"")) ->  | E8: =IF(n1_tec="HEFA",'Fluxo de Caixa Desc._premio'!D28,IF(n1_tec="ATJ",'Fluxo de Caixa Desc._premio'!D70,"")) ->  | F8: =IF(n1_tec="HEFA",'Fluxo de Caixa Desc._premio'!E28,IF(n1_tec="ATJ",'Fluxo de Caixa Desc._premio'!E70,"")) ->  | G8: =IF(n1_tec="HEFA",'Fluxo de Caixa Desc._premio'!F28,IF(n1_tec="ATJ",'Fluxo de Caixa Desc._premio'!F70,"")) ->  | H8: =IF(n1_tec="HEFA",'Fluxo de Caixa Desc._premio'!G28,IF(n1_tec="ATJ",'Fluxo de Caixa Desc._premio'!G70,"")) ->  | I8: =IF(n1_tec="HEFA",'Fluxo de Caixa Desc._premio'!H28,IF(n1_tec="ATJ",'Fluxo de Caixa Desc._premio'!H70,"")) ->  | J8: =IF(n1_tec="HEFA",'Fluxo de Caixa Desc._premio'!I28,IF(n1_tec="ATJ",'Fluxo de Caixa Desc._premio'!I70,"")) ->  | K8: =IF(n1_tec="HEFA",'Fluxo de Caixa Desc._premio'!J28,IF(n1_tec="ATJ",'Fluxo de Caixa Desc._premio'!J70,"")) ->  | L8: =IF(n1_tec="HEFA",'Fluxo de Caixa Desc._premio'!K28,IF(n1_tec="ATJ",'Fluxo de Caixa Desc._premio'!K70,"")) ->  | M8: =IF(n1_tec="HEFA",'Fluxo de Caixa Desc._premio'!L28,IF(n1_tec="ATJ",'Fluxo de Caixa Desc._premio'!L70,"")) ->  | N8: =IF(n1_tec="HEFA",'Fluxo de Caixa Desc._premio'!M28,IF(n1_tec="ATJ",'Fluxo de Caixa Desc._premio'!M70,"")) ->  | O8: =IF(n1_tec="HEFA",'Fluxo de Caixa Desc._premio'!N28,IF(n1_tec="ATJ",'Fluxo de Caixa Desc._premio'!N70,"")) ->  | P8: =IF(n1_tec="HEFA",'Fluxo de Caixa Desc._premio'!O28,IF(n1_tec="ATJ",'Fluxo de Caixa Desc._premio'!O70,"")) ->  | Q8: =IF(n1_tec="HEFA",'Fluxo de Caixa Desc._premio'!P28,IF(n1_tec="ATJ",'Fluxo de Caixa Desc._premio'!P70,"")) ->  | R8: =IF(n1_tec="HEFA",'Fluxo de Caixa Desc._premio'!Q28,IF(n1_tec="ATJ",'Fluxo de Caixa Desc._premio'!Q70,"")) ->  | S8: =IF(n1_tec="HEFA",'Fluxo de Caixa Desc._premio'!R28,IF(n1_tec="ATJ",'Fluxo de Caixa Desc._premio'!R70,"")) ->  | T8: =IF(n1_tec="HEFA",'Fluxo de Caixa Desc._premio'!S28,IF(n1_tec="ATJ",'Fluxo de Caixa Desc._premio'!S70,"")) ->  | U8: =IF(n1_tec="HEFA",'Fluxo de Caixa Desc._premio'!T28,IF(n1_tec="ATJ",'Fluxo de Caixa Desc._premio'!T70,"")) ->  | V8: =IF(n1_tec="HEFA",'Fluxo de Caixa Desc._premio'!U28,IF(n1_tec="ATJ",'Fluxo de Caixa Desc._premio'!U70,"")) ->  | W8: =IF(n1_tec="HEFA",'Fluxo de Caixa Desc._premio'!V28,IF(n1_tec="ATJ",'Fluxo de Caixa Desc._premio'!V70,"")) ->  | X8: =IF(n1_tec="HEFA",'Fluxo de Caixa Desc._premio'!W28,IF(n1_tec="ATJ",'Fluxo de Caixa Desc._premio'!W70,"")) ->  | Y8: =IF(n1_tec="HEFA",'Fluxo de Caixa Desc._premio'!X28,IF(n1_tec="ATJ",'Fluxo de Caixa Desc._premio'!X70,"")) ->  | Z8: =IF(n1_tec="HEFA",'Fluxo de Caixa Desc._premio'!Y28,IF(n1_tec="ATJ",'Fluxo de Caixa Desc._premio'!Y70,"")) ->  | AA8: =IF(n1_tec="HEFA",'Fluxo de Caixa Desc._premio'!Z28,IF(n1_tec="ATJ",'Fluxo de Caixa Desc._premio'!Z70,"")) ->  | AB8: =IF(n1_tec="HEFA",'Fluxo de Caixa Desc._premio'!AA28,IF(n1_tec="ATJ",'Fluxo de Caixa Desc._premio'!AA70,"")) ->  | AC8: =IF(n1_tec="HEFA",'Fluxo de Caixa Desc._premio'!AB28,IF(n1_tec="ATJ",'Fluxo de Caixa Desc._premio'!AB70,"")) ->  | AD8: =IF(n1_tec="HEFA",'Fluxo de Caixa Desc._premio'!AC28,IF(n1_tec="ATJ",'Fluxo de Caixa Desc._premio'!AC70,"")) ->  | AE8: =IF(n1_tec="HEFA",'Fluxo de Caixa Desc._premio'!AD28,IF(n1_tec="ATJ",'Fluxo de Caixa Desc._premio'!AD70,"")) ->  | AF8: =IF(n1_tec="HEFA",'Fluxo de Caixa Desc._premio'!AE28,IF(n1_tec="ATJ",'Fluxo de Caixa Desc._premio'!AE70,"")) ->  | AG8: =IF(n1_tec="HEFA",'Fluxo de Caixa Desc._premio'!AF28,IF(n1_tec="ATJ",'Fluxo de Caixa Desc._premio'!AF70,"")) ->  | AH8: =IF(n1_tec="HEFA",'Fluxo de Caixa Desc._premio'!AG28,IF(n1_tec="ATJ",'Fluxo de Caixa Desc._premio'!AG70,"")) ->  | AI8: =IF(n1_tec="HEFA",'Fluxo de Caixa Desc._premio'!AH28,IF(n1_tec="ATJ",'Fluxo de Caixa Desc._premio'!AH70,"")) ->  | AJ8: =IF(n1_tec="HEFA",'Fluxo de Caixa Desc._premio'!AI28,IF(n1_tec="ATJ",'Fluxo de Caixa Desc._premio'!AI70,"")) ->  | AK8: =IF(n1_tec="HEFA",'Fluxo de Caixa Desc._premio'!AJ28,IF(n1_tec="ATJ",'Fluxo de Caixa Desc._premio'!AJ70,"")) ->  | AL8: =IF(n1_tec="HEFA",'Fluxo de Caixa Desc._premio'!AK28,IF(n1_tec="ATJ",'Fluxo de Caixa Desc._premio'!AK70,"")) ->  | AM8: =IF(n1_tec="HEFA",'Fluxo de Caixa Desc._premio'!AL28,IF(n1_tec="ATJ",'Fluxo de Caixa Desc._premio'!AL70,"")) ->  | AN8: =IF(n1_tec="HEFA",'Fluxo de Caixa Desc._premio'!AM28,IF(n1_tec="ATJ",'Fluxo de Caixa Desc._premio'!AM70,"")) ->  | AO8: =IF(n1_tec="HEFA",'Fluxo de Caixa Desc._premio'!AN28,IF(n1_tec="ATJ",'Fluxo de Caixa Desc._premio'!AN70,"")) ->  | AP8: =IF(n1_tec="HEFA",'Fluxo de Caixa Desc._premio'!AO28,IF(n1_tec="ATJ",'Fluxo de Caixa Desc._premio'!AO70,"")) ->  | AQ8: =IF(n1_tec="HEFA",'Fluxo de Caixa Desc._premio'!AP28,IF(n1_tec="ATJ",'Fluxo de Caixa Desc._premio'!AP70,"")) ->  | AR8: =IF(n1_tec="HEFA",'Fluxo de Caixa Desc._premio'!AQ28,IF(n1_tec="ATJ",'Fluxo de Caixa Desc._premio'!AQ70,"")) ->  | AS8: =IF(n1_tec="HEFA",'Fluxo de Caixa Desc._premio'!AR28,IF(n1_tec="ATJ",'Fluxo de Caixa Desc._premio'!AR70,"")) ->  | AT8: =IF(n1_tec="HEFA",'Fluxo de Caixa Desc._premio'!AS28,IF(n1_tec="ATJ",'Fluxo de Caixa Desc._premio'!AS70,"")) ->  | AU8: =IF(n1_tec="HEFA",'Fluxo de Caixa Desc._premio'!AT28,IF(n1_tec="ATJ",'Fluxo de Caixa Desc._premio'!AT70,"")) ->  | AV8: =IF(n1_tec="HEFA",'Fluxo de Caixa Desc._premio'!AU28,IF(n1_tec="ATJ",'Fluxo de Caixa Desc._premio'!AU70,"")) ->  | AW8: =IF(n1_tec="HEFA",'Fluxo de Caixa Desc._premio'!AV28,IF(n1_tec="ATJ",'Fluxo de Caixa Desc._premio'!AV70,"")) -> 
B9: OPEX fixo (milhões R$ / ano) | C9: =IF(n1_tec="HEFA",'Fluxo de Caixa Desc._premio'!B29,IF(n1_tec="ATJ",'Fluxo de Caixa Desc._premio'!B71,"")) ->  | D9: =IF(n1_tec="HEFA",'Fluxo de Caixa Desc._premio'!C29,IF(n1_tec="ATJ",'Fluxo de Caixa Desc._premio'!C71,"")) ->  | E9: =IF(n1_tec="HEFA",'Fluxo de Caixa Desc._premio'!D29,IF(n1_tec="ATJ",'Fluxo de Caixa Desc._premio'!D71,"")) ->  | F9: =IF(n1_tec="HEFA",'Fluxo de Caixa Desc._premio'!E29,IF(n1_tec="ATJ",'Fluxo de Caixa Desc._premio'!E71,"")) ->  | G9: =IF(n1_tec="HEFA",'Fluxo de Caixa Desc._premio'!F29,IF(n1_tec="ATJ",'Fluxo de Caixa Desc._premio'!F71,"")) ->  | H9: =IF(n1_tec="HEFA",'Fluxo de Caixa Desc._premio'!G29,IF(n1_tec="ATJ",'Fluxo de Caixa Desc._premio'!G71,"")) ->  | I9: =IF(n1_tec="HEFA",'Fluxo de Caixa Desc._premio'!H29,IF(n1_tec="ATJ",'Fluxo de Caixa Desc._premio'!H71,"")) ->  | J9: =IF(n1_tec="HEFA",'Fluxo de Caixa Desc._premio'!I29,IF(n1_tec="ATJ",'Fluxo de Caixa Desc._premio'!I71,"")) ->  | K9: =IF(n1_tec="HEFA",'Fluxo de Caixa Desc._premio'!J29,IF(n1_tec="ATJ",'Fluxo de Caixa Desc._premio'!J71,"")) ->  | L9: =IF(n1_tec="HEFA",'Fluxo de Caixa Desc._premio'!K29,IF(n1_tec="ATJ",'Fluxo de Caixa Desc._premio'!K71,"")) ->  | M9: =IF(n1_tec="HEFA",'Fluxo de Caixa Desc._premio'!L29,IF(n1_tec="ATJ",'Fluxo de Caixa Desc._premio'!L71,"")) ->  | N9: =IF(n1_tec="HEFA",'Fluxo de Caixa Desc._premio'!M29,IF(n1_tec="ATJ",'Fluxo de Caixa Desc._premio'!M71,"")) ->  | O9: =IF(n1_tec="HEFA",'Fluxo de Caixa Desc._premio'!N29,IF(n1_tec="ATJ",'Fluxo de Caixa Desc._premio'!N71,"")) ->  | P9: =IF(n1_tec="HEFA",'Fluxo de Caixa Desc._premio'!O29,IF(n1_tec="ATJ",'Fluxo de Caixa Desc._premio'!O71,"")) ->  | Q9: =IF(n1_tec="HEFA",'Fluxo de Caixa Desc._premio'!P29,IF(n1_tec="ATJ",'Fluxo de Caixa Desc._premio'!P71,"")) ->  | R9: =IF(n1_tec="HEFA",'Fluxo de Caixa Desc._premio'!Q29,IF(n1_tec="ATJ",'Fluxo de Caixa Desc._premio'!Q71,"")) ->  | S9: =IF(n1_tec="HEFA",'Fluxo de Caixa Desc._premio'!R29,IF(n1_tec="ATJ",'Fluxo de Caixa Desc._premio'!R71,"")) ->  | T9: =IF(n1_tec="HEFA",'Fluxo de Caixa Desc._premio'!S29,IF(n1_tec="ATJ",'Fluxo de Caixa Desc._premio'!S71,"")) ->  | U9: =IF(n1_tec="HEFA",'Fluxo de Caixa Desc._premio'!T29,IF(n1_tec="ATJ",'Fluxo de Caixa Desc._premio'!T71,"")) ->  | V9: =IF(n1_tec="HEFA",'Fluxo de Caixa Desc._premio'!U29,IF(n1_tec="ATJ",'Fluxo de Caixa Desc._premio'!U71,"")) ->  | W9: =IF(n1_tec="HEFA",'Fluxo de Caixa Desc._premio'!V29,IF(n1_tec="ATJ",'Fluxo de Caixa Desc._premio'!V71,"")) ->  | X9: =IF(n1_tec="HEFA",'Fluxo de Caixa Desc._premio'!W29,IF(n1_tec="ATJ",'Fluxo de Caixa Desc._premio'!W71,"")) ->  | Y9: =IF(n1_tec="HEFA",'Fluxo de Caixa Desc._premio'!X29,IF(n1_tec="ATJ",'Fluxo de Caixa Desc._premio'!X71,"")) ->  | Z9: =IF(n1_tec="HEFA",'Fluxo de Caixa Desc._premio'!Y29,IF(n1_tec="ATJ",'Fluxo de Caixa Desc._premio'!Y71,"")) ->  | AA9: =IF(n1_tec="HEFA",'Fluxo de Caixa Desc._premio'!Z29,IF(n1_tec="ATJ",'Fluxo de Caixa Desc._premio'!Z71,"")) ->  | AB9: =IF(n1_tec="HEFA",'Fluxo de Caixa Desc._premio'!AA29,IF(n1_tec="ATJ",'Fluxo de Caixa Desc._premio'!AA71,"")) ->  | AC9: =IF(n1_tec="HEFA",'Fluxo de Caixa Desc._premio'!AB29,IF(n1_tec="ATJ",'Fluxo de Caixa Desc._premio'!AB71,"")) ->  | AD9: =IF(n1_tec="HEFA",'Fluxo de Caixa Desc._premio'!AC29,IF(n1_tec="ATJ",'Fluxo de Caixa Desc._premio'!AC71,"")) ->  | AE9: =IF(n1_tec="HEFA",'Fluxo de Caixa Desc._premio'!AD29,IF(n1_tec="ATJ",'Fluxo de Caixa Desc._premio'!AD71,"")) ->  | AF9: =IF(n1_tec="HEFA",'Fluxo de Caixa Desc._premio'!AE29,IF(n1_tec="ATJ",'Fluxo de Caixa Desc._premio'!AE71,"")) ->  | AG9: =IF(n1_tec="HEFA",'Fluxo de Caixa Desc._premio'!AF29,IF(n1_tec="ATJ",'Fluxo de Caixa Desc._premio'!AF71,"")) ->  | AH9: =IF(n1_tec="HEFA",'Fluxo de Caixa Desc._premio'!AG29,IF(n1_tec="ATJ",'Fluxo de Caixa Desc._premio'!AG71,"")) ->  | AI9: =IF(n1_tec="HEFA",'Fluxo de Caixa Desc._premio'!AH29,IF(n1_tec="ATJ",'Fluxo de Caixa Desc._premio'!AH71,"")) ->  | AJ9: =IF(n1_tec="HEFA",'Fluxo de Caixa Desc._premio'!AI29,IF(n1_tec="ATJ",'Fluxo de Caixa Desc._premio'!AI71,"")) ->  | AK9: =IF(n1_tec="HEFA",'Fluxo de Caixa Desc._premio'!AJ29,IF(n1_tec="ATJ",'Fluxo de Caixa Desc._premio'!AJ71,"")) ->  | AL9: =IF(n1_tec="HEFA",'Fluxo de Caixa Desc._premio'!AK29,IF(n1_tec="ATJ",'Fluxo de Caixa Desc._premio'!AK71,"")) ->  | AM9: =IF(n1_tec="HEFA",'Fluxo de Caixa Desc._premio'!AL29,IF(n1_tec="ATJ",'Fluxo de Caixa Desc._premio'!AL71,"")) ->  | AN9: =IF(n1_tec="HEFA",'Fluxo de Caixa Desc._premio'!AM29,IF(n1_tec="ATJ",'Fluxo de Caixa Desc._premio'!AM71,"")) ->  | AO9: =IF(n1_tec="HEFA",'Fluxo de Caixa Desc._premio'!AN29,IF(n1_tec="ATJ",'Fluxo de Caixa Desc._premio'!AN71,"")) ->  | AP9: =IF(n1_tec="HEFA",'Fluxo de Caixa Desc._premio'!AO29,IF(n1_tec="ATJ",'Fluxo de Caixa Desc._premio'!AO71,"")) ->  | AQ9: =IF(n1_tec="HEFA",'Fluxo de Caixa Desc._premio'!AP29,IF(n1_tec="ATJ",'Fluxo de Caixa Desc._premio'!AP71,"")) ->  | AR9: =IF(n1_tec="HEFA",'Fluxo de Caixa Desc._premio'!AQ29,IF(n1_tec="ATJ",'Fluxo de Caixa Desc._premio'!AQ71,"")) ->  | AS9: =IF(n1_tec="HEFA",'Fluxo de Caixa Desc._premio'!AR29,IF(n1_tec="ATJ",'Fluxo de Caixa Desc._premio'!AR71,"")) ->  | AT9: =IF(n1_tec="HEFA",'Fluxo de Caixa Desc._premio'!AS29,IF(n1_tec="ATJ",'Fluxo de Caixa Desc._premio'!AS71,"")) ->  | AU9: =IF(n1_tec="HEFA",'Fluxo de Caixa Desc._premio'!AT29,IF(n1_tec="ATJ",'Fluxo de Caixa Desc._premio'!AT71,"")) ->  | AV9: =IF(n1_tec="HEFA",'Fluxo de Caixa Desc._premio'!AU29,IF(n1_tec="ATJ",'Fluxo de Caixa Desc._premio'!AU71,"")) ->  | AW9: =IF(n1_tec="HEFA",'Fluxo de Caixa Desc._premio'!AV29,IF(n1_tec="ATJ",'Fluxo de Caixa Desc._premio'!AV71,"")) -> 
B10: Custo de Capital Equity (milhões R$ / ano) | C10: =IF(n1_tec="HEFA",'Fluxo de Caixa Desc._premio'!B30,IF(n1_tec="ATJ",'Fluxo de Caixa Desc._premio'!B72,"")) ->  | D10: =IF(n1_tec="HEFA",'Fluxo de Caixa Desc._premio'!C30,IF(n1_tec="ATJ",'Fluxo de Caixa Desc._premio'!C72,"")) ->  | E10: =IF(n1_tec="HEFA",'Fluxo de Caixa Desc._premio'!D30,IF(n1_tec="ATJ",'Fluxo de Caixa Desc._premio'!D72,"")) ->  | F10: =IF(n1_tec="HEFA",'Fluxo de Caixa Desc._premio'!E30,IF(n1_tec="ATJ",'Fluxo de Caixa Desc._premio'!E72,"")) ->  | G10: =IF(n1_tec="HEFA",'Fluxo de Caixa Desc._premio'!F30,IF(n1_tec="ATJ",'Fluxo de Caixa Desc._premio'!F72,"")) ->  | H10: =IF(n1_tec="HEFA",'Fluxo de Caixa Desc._premio'!G30,IF(n1_tec="ATJ",'Fluxo de Caixa Desc._premio'!G72,"")) ->  | I10: =IF(n1_tec="HEFA",'Fluxo de Caixa Desc._premio'!H30,IF(n1_tec="ATJ",'Fluxo de Caixa Desc._premio'!H72,"")) ->  | J10: =IF(n1_tec="HEFA",'Fluxo de Caixa Desc._premio'!I30,IF(n1_tec="ATJ",'Fluxo de Caixa Desc._premio'!I72,"")) ->  | K10: =IF(n1_tec="HEFA",'Fluxo de Caixa Desc._premio'!J30,IF(n1_tec="ATJ",'Fluxo de Caixa Desc._premio'!J72,"")) ->  | L10: =IF(n1_tec="HEFA",'Fluxo de Caixa Desc._premio'!K30,IF(n1_tec="ATJ",'Fluxo de Caixa Desc._premio'!K72,"")) ->  | M10: =IF(n1_tec="HEFA",'Fluxo de Caixa Desc._premio'!L30,IF(n1_tec="ATJ",'Fluxo de Caixa Desc._premio'!L72,"")) ->  | N10: =IF(n1_tec="HEFA",'Fluxo de Caixa Desc._premio'!M30,IF(n1_tec="ATJ",'Fluxo de Caixa Desc._premio'!M72,"")) ->  | O10: =IF(n1_tec="HEFA",'Fluxo de Caixa Desc._premio'!N30,IF(n1_tec="ATJ",'Fluxo de Caixa Desc._premio'!N72,"")) ->  | P10: =IF(n1_tec="HEFA",'Fluxo de Caixa Desc._premio'!O30,IF(n1_tec="ATJ",'Fluxo de Caixa Desc._premio'!O72,"")) ->  | Q10: =IF(n1_tec="HEFA",'Fluxo de Caixa Desc._premio'!P30,IF(n1_tec="ATJ",'Fluxo de Caixa Desc._premio'!P72,"")) ->  | R10: =IF(n1_tec="HEFA",'Fluxo de Caixa Desc._premio'!Q30,IF(n1_tec="ATJ",'Fluxo de Caixa Desc._premio'!Q72,"")) ->  | S10: =IF(n1_tec="HEFA",'Fluxo de Caixa Desc._premio'!R30,IF(n1_tec="ATJ",'Fluxo de Caixa Desc._premio'!R72,"")) ->  | T10: =IF(n1_tec="HEFA",'Fluxo de Caixa Desc._premio'!S30,IF(n1_tec="ATJ",'Fluxo de Caixa Desc._premio'!S72,"")) ->  | U10: =IF(n1_tec="HEFA",'Fluxo de Caixa Desc._premio'!T30,IF(n1_tec="ATJ",'Fluxo de Caixa Desc._premio'!T72,"")) ->  | V10: =IF(n1_tec="HEFA",'Fluxo de Caixa Desc._premio'!U30,IF(n1_tec="ATJ",'Fluxo de Caixa Desc._premio'!U72,"")) ->  | W10: =IF(n1_tec="HEFA",'Fluxo de Caixa Desc._premio'!V30,IF(n1_tec="ATJ",'Fluxo de Caixa Desc._premio'!V72,"")) ->  | X10: =IF(n1_tec="HEFA",'Fluxo de Caixa Desc._premio'!W30,IF(n1_tec="ATJ",'Fluxo de Caixa Desc._premio'!W72,"")) ->  | Y10: =IF(n1_tec="HEFA",'Fluxo de Caixa Desc._premio'!X30,IF(n1_tec="ATJ",'Fluxo de Caixa Desc._premio'!X72,"")) ->  | Z10: =IF(n1_tec="HEFA",'Fluxo de Caixa Desc._premio'!Y30,IF(n1_tec="ATJ",'Fluxo de Caixa Desc._premio'!Y72,"")) ->  | AA10: =IF(n1_tec="HEFA",'Fluxo de Caixa Desc._premio'!Z30,IF(n1_tec="ATJ",'Fluxo de Caixa Desc._premio'!Z72,"")) ->  | AB10: =IF(n1_tec="HEFA",'Fluxo de Caixa Desc._premio'!AA30,IF(n1_tec="ATJ",'Fluxo de Caixa Desc._premio'!AA72,"")) ->  | AC10: =IF(n1_tec="HEFA",'Fluxo de Caixa Desc._premio'!AB30,IF(n1_tec="ATJ",'Fluxo de Caixa Desc._premio'!AB72,"")) ->  | AD10: =IF(n1_tec="HEFA",'Fluxo de Caixa Desc._premio'!AC30,IF(n1_tec="ATJ",'Fluxo de Caixa Desc._premio'!AC72,"")) ->  | AE10: =IF(n1_tec="HEFA",'Fluxo de Caixa Desc._premio'!AD30,IF(n1_tec="ATJ",'Fluxo de Caixa Desc._premio'!AD72,"")) ->  | AF10: =IF(n1_tec="HEFA",'Fluxo de Caixa Desc._premio'!AE30,IF(n1_tec="ATJ",'Fluxo de Caixa Desc._premio'!AE72,"")) ->  | AG10: =IF(n1_tec="HEFA",'Fluxo de Caixa Desc._premio'!AF30,IF(n1_tec="ATJ",'Fluxo de Caixa Desc._premio'!AF72,"")) ->  | AH10: =IF(n1_tec="HEFA",'Fluxo de Caixa Desc._premio'!AG30,IF(n1_tec="ATJ",'Fluxo de Caixa Desc._premio'!AG72,"")) ->  | AI10: =IF(n1_tec="HEFA",'Fluxo de Caixa Desc._premio'!AH30,IF(n1_tec="ATJ",'Fluxo de Caixa Desc._premio'!AH72,"")) ->  | AJ10: =IF(n1_tec="HEFA",'Fluxo de Caixa Desc._premio'!AI30,IF(n1_tec="ATJ",'Fluxo de Caixa Desc._premio'!AI72,"")) ->  | AK10: =IF(n1_tec="HEFA",'Fluxo de Caixa Desc._premio'!AJ30,IF(n1_tec="ATJ",'Fluxo de Caixa Desc._premio'!AJ72,"")) ->  | AL10: =IF(n1_tec="HEFA",'Fluxo de Caixa Desc._premio'!AK30,IF(n1_tec="ATJ",'Fluxo de Caixa Desc._premio'!AK72,"")) ->  | AM10: =IF(n1_tec="HEFA",'Fluxo de Caixa Desc._premio'!AL30,IF(n1_tec="ATJ",'Fluxo de Caixa Desc._premio'!AL72,"")) ->  | AN10: =IF(n1_tec="HEFA",'Fluxo de Caixa Desc._premio'!AM30,IF(n1_tec="ATJ",'Fluxo de Caixa Desc._premio'!AM72,"")) ->  | AO10: =IF(n1_tec="HEFA",'Fluxo de Caixa Desc._premio'!AN30,IF(n1_tec="ATJ",'Fluxo de Caixa Desc._premio'!AN72,"")) ->  | AP10: =IF(n1_tec="HEFA",'Fluxo de Caixa Desc._premio'!AO30,IF(n1_tec="ATJ",'Fluxo de Caixa Desc._premio'!AO72,"")) ->  | AQ10: =IF(n1_tec="HEFA",'Fluxo de Caixa Desc._premio'!AP30,IF(n1_tec="ATJ",'Fluxo de Caixa Desc._premio'!AP72,"")) ->  | AR10: =IF(n1_tec="HEFA",'Fluxo de Caixa Desc._premio'!AQ30,IF(n1_tec="ATJ",'Fluxo de Caixa Desc._premio'!AQ72,"")) ->  | AS10: =IF(n1_tec="HEFA",'Fluxo de Caixa Desc._premio'!AR30,IF(n1_tec="ATJ",'Fluxo de Caixa Desc._premio'!AR72,"")) ->  | AT10: =IF(n1_tec="HEFA",'Fluxo de Caixa Desc._premio'!AS30,IF(n1_tec="ATJ",'Fluxo de Caixa Desc._premio'!AS72,"")) ->  | AU10: =IF(n1_tec="HEFA",'Fluxo de Caixa Desc._premio'!AT30,IF(n1_tec="ATJ",'Fluxo de Caixa Desc._premio'!AT72,"")) ->  | AV10: =IF(n1_tec="HEFA",'Fluxo de Caixa Desc._premio'!AU30,IF(n1_tec="ATJ",'Fluxo de Caixa Desc._premio'!AU72,"")) ->  | AW10: =IF(n1_tec="HEFA",'Fluxo de Caixa Desc._premio'!AV30,IF(n1_tec="ATJ",'Fluxo de Caixa Desc._premio'!AV72,"")) -> 
B11: Custo de Capital Financiado (milhões R$ / ano) | C11: =IF(n1_tec="HEFA",'Fluxo de Caixa Desc._premio'!B31,IF(n1_tec="ATJ",'Fluxo de Caixa Desc._premio'!B73,"")) ->  | D11: =IF(n1_tec="HEFA",'Fluxo de Caixa Desc._premio'!C31,IF(n1_tec="ATJ",'Fluxo de Caixa Desc._premio'!C73,"")) ->  | E11: =IF(n1_tec="HEFA",'Fluxo de Caixa Desc._premio'!D31,IF(n1_tec="ATJ",'Fluxo de Caixa Desc._premio'!D73,"")) ->  | F11: =IF(n1_tec="HEFA",'Fluxo de Caixa Desc._premio'!E31,IF(n1_tec="ATJ",'Fluxo de Caixa Desc._premio'!E73,"")) ->  | G11: =IF(n1_tec="HEFA",'Fluxo de Caixa Desc._premio'!F31,IF(n1_tec="ATJ",'Fluxo de Caixa Desc._premio'!F73,"")) ->  | H11: =IF(n1_tec="HEFA",'Fluxo de Caixa Desc._premio'!G31,IF(n1_tec="ATJ",'Fluxo de Caixa Desc._premio'!G73,"")) ->  | I11: =IF(n1_tec="HEFA",'Fluxo de Caixa Desc._premio'!H31,IF(n1_tec="ATJ",'Fluxo de Caixa Desc._premio'!H73,"")) ->  | J11: =IF(n1_tec="HEFA",'Fluxo de Caixa Desc._premio'!I31,IF(n1_tec="ATJ",'Fluxo de Caixa Desc._premio'!I73,"")) ->  | K11: =IF(n1_tec="HEFA",'Fluxo de Caixa Desc._premio'!J31,IF(n1_tec="ATJ",'Fluxo de Caixa Desc._premio'!J73,"")) ->  | L11: =IF(n1_tec="HEFA",'Fluxo de Caixa Desc._premio'!K31,IF(n1_tec="ATJ",'Fluxo de Caixa Desc._premio'!K73,"")) ->  | M11: =IF(n1_tec="HEFA",'Fluxo de Caixa Desc._premio'!L31,IF(n1_tec="ATJ",'Fluxo de Caixa Desc._premio'!L73,"")) ->  | N11: =IF(n1_tec="HEFA",'Fluxo de Caixa Desc._premio'!M31,IF(n1_tec="ATJ",'Fluxo de Caixa Desc._premio'!M73,"")) ->  | O11: =IF(n1_tec="HEFA",'Fluxo de Caixa Desc._premio'!N31,IF(n1_tec="ATJ",'Fluxo de Caixa Desc._premio'!N73,"")) ->  | P11: =IF(n1_tec="HEFA",'Fluxo de Caixa Desc._premio'!O31,IF(n1_tec="ATJ",'Fluxo de Caixa Desc._premio'!O73,"")) ->  | Q11: =IF(n1_tec="HEFA",'Fluxo de Caixa Desc._premio'!P31,IF(n1_tec="ATJ",'Fluxo de Caixa Desc._premio'!P73,"")) ->  | R11: =IF(n1_tec="HEFA",'Fluxo de Caixa Desc._premio'!Q31,IF(n1_tec="ATJ",'Fluxo de Caixa Desc._premio'!Q73,"")) ->  | S11: =IF(n1_tec="HEFA",'Fluxo de Caixa Desc._premio'!R31,IF(n1_tec="ATJ",'Fluxo de Caixa Desc._premio'!R73,"")) ->  | T11: =IF(n1_tec="HEFA",'Fluxo de Caixa Desc._premio'!S31,IF(n1_tec="ATJ",'Fluxo de Caixa Desc._premio'!S73,"")) ->  | U11: =IF(n1_tec="HEFA",'Fluxo de Caixa Desc._premio'!T31,IF(n1_tec="ATJ",'Fluxo de Caixa Desc._premio'!T73,"")) ->  | V11: =IF(n1_tec="HEFA",'Fluxo de Caixa Desc._premio'!U31,IF(n1_tec="ATJ",'Fluxo de Caixa Desc._premio'!U73,"")) ->  | W11: =IF(n1_tec="HEFA",'Fluxo de Caixa Desc._premio'!V31,IF(n1_tec="ATJ",'Fluxo de Caixa Desc._premio'!V73,"")) ->  | X11: =IF(n1_tec="HEFA",'Fluxo de Caixa Desc._premio'!W31,IF(n1_tec="ATJ",'Fluxo de Caixa Desc._premio'!W73,"")) ->  | Y11: =IF(n1_tec="HEFA",'Fluxo de Caixa Desc._premio'!X31,IF(n1_tec="ATJ",'Fluxo de Caixa Desc._premio'!X73,"")) ->  | Z11: =IF(n1_tec="HEFA",'Fluxo de Caixa Desc._premio'!Y31,IF(n1_tec="ATJ",'Fluxo de Caixa Desc._premio'!Y73,"")) ->  | AA11: =IF(n1_tec="HEFA",'Fluxo de Caixa Desc._premio'!Z31,IF(n1_tec="ATJ",'Fluxo de Caixa Desc._premio'!Z73,"")) ->  | AB11: =IF(n1_tec="HEFA",'Fluxo de Caixa Desc._premio'!AA31,IF(n1_tec="ATJ",'Fluxo de Caixa Desc._premio'!AA73,"")) ->  | AC11: =IF(n1_tec="HEFA",'Fluxo de Caixa Desc._premio'!AB31,IF(n1_tec="ATJ",'Fluxo de Caixa Desc._premio'!AB73,"")) ->  | AD11: =IF(n1_tec="HEFA",'Fluxo de Caixa Desc._premio'!AC31,IF(n1_tec="ATJ",'Fluxo de Caixa Desc._premio'!AC73,"")) ->  | AE11: =IF(n1_tec="HEFA",'Fluxo de Caixa Desc._premio'!AD31,IF(n1_tec="ATJ",'Fluxo de Caixa Desc._premio'!AD73,"")) ->  | AF11: =IF(n1_tec="HEFA",'Fluxo de Caixa Desc._premio'!AE31,IF(n1_tec="ATJ",'Fluxo de Caixa Desc._premio'!AE73,"")) ->  | AG11: =IF(n1_tec="HEFA",'Fluxo de Caixa Desc._premio'!AF31,IF(n1_tec="ATJ",'Fluxo de Caixa Desc._premio'!AF73,"")) ->  | AH11: =IF(n1_tec="HEFA",'Fluxo de Caixa Desc._premio'!AG31,IF(n1_tec="ATJ",'Fluxo de Caixa Desc._premio'!AG73,"")) ->  | AI11: =IF(n1_tec="HEFA",'Fluxo de Caixa Desc._premio'!AH31,IF(n1_tec="ATJ",'Fluxo de Caixa Desc._premio'!AH73,"")) ->  | AJ11: =IF(n1_tec="HEFA",'Fluxo de Caixa Desc._premio'!AI31,IF(n1_tec="ATJ",'Fluxo de Caixa Desc._premio'!AI73,"")) ->  | AK11: =IF(n1_tec="HEFA",'Fluxo de Caixa Desc._premio'!AJ31,IF(n1_tec="ATJ",'Fluxo de Caixa Desc._premio'!AJ73,"")) ->  | AL11: =IF(n1_tec="HEFA",'Fluxo de Caixa Desc._premio'!AK31,IF(n1_tec="ATJ",'Fluxo de Caixa Desc._premio'!AK73,"")) ->  | AM11: =IF(n1_tec="HEFA",'Fluxo de Caixa Desc._premio'!AL31,IF(n1_tec="ATJ",'Fluxo de Caixa Desc._premio'!AL73,"")) ->  | AN11: =IF(n1_tec="HEFA",'Fluxo de Caixa Desc._premio'!AM31,IF(n1_tec="ATJ",'Fluxo de Caixa Desc._premio'!AM73,"")) ->  | AO11: =IF(n1_tec="HEFA",'Fluxo de Caixa Desc._premio'!AN31,IF(n1_tec="ATJ",'Fluxo de Caixa Desc._premio'!AN73,"")) ->  | AP11: =IF(n1_tec="HEFA",'Fluxo de Caixa Desc._premio'!AO31,IF(n1_tec="ATJ",'Fluxo de Caixa Desc._premio'!AO73,"")) ->  | AQ11: =IF(n1_tec="HEFA",'Fluxo de Caixa Desc._premio'!AP31,IF(n1_tec="ATJ",'Fluxo de Caixa Desc._premio'!AP73,"")) ->  | AR11: =IF(n1_tec="HEFA",'Fluxo de Caixa Desc._premio'!AQ31,IF(n1_tec="ATJ",'Fluxo de Caixa Desc._premio'!AQ73,"")) ->  | AS11: =IF(n1_tec="HEFA",'Fluxo de Caixa Desc._premio'!AR31,IF(n1_tec="ATJ",'Fluxo de Caixa Desc._premio'!AR73,"")) ->  | AT11: =IF(n1_tec="HEFA",'Fluxo de Caixa Desc._premio'!AS31,IF(n1_tec="ATJ",'Fluxo de Caixa Desc._premio'!AS73,"")) ->  | AU11: =IF(n1_tec="HEFA",'Fluxo de Caixa Desc._premio'!AT31,IF(n1_tec="ATJ",'Fluxo de Caixa Desc._premio'!AT73,"")) ->  | AV11: =IF(n1_tec="HEFA",'Fluxo de Caixa Desc._premio'!AU31,IF(n1_tec="ATJ",'Fluxo de Caixa Desc._premio'!AU73,"")) ->  | AW11: =IF(n1_tec="HEFA",'Fluxo de Caixa Desc._premio'!AV31,IF(n1_tec="ATJ",'Fluxo de Caixa Desc._premio'!AV73,"")) -> 
B12: PIS e COFINS | C12: =IF(n1_tec="HEFA",'Fluxo de Caixa Desc._premio'!B33,IF(n1_tec="ATJ",'Fluxo de Caixa Desc._premio'!B75,"")) ->  | D12: =IF(n1_tec="HEFA",'Fluxo de Caixa Desc._premio'!C33,IF(n1_tec="ATJ",'Fluxo de Caixa Desc._premio'!C75,"")) ->  | E12: =IF(n1_tec="HEFA",'Fluxo de Caixa Desc._premio'!D33,IF(n1_tec="ATJ",'Fluxo de Caixa Desc._premio'!D75,"")) ->  | F12: =IF(n1_tec="HEFA",'Fluxo de Caixa Desc._premio'!E33,IF(n1_tec="ATJ",'Fluxo de Caixa Desc._premio'!E75,"")) ->  | G12: =IF(n1_tec="HEFA",'Fluxo de Caixa Desc._premio'!F33,IF(n1_tec="ATJ",'Fluxo de Caixa Desc._premio'!F75,"")) ->  | H12: =IF(n1_tec="HEFA",'Fluxo de Caixa Desc._premio'!G33,IF(n1_tec="ATJ",'Fluxo de Caixa Desc._premio'!G75,"")) ->  | I12: =IF(n1_tec="HEFA",'Fluxo de Caixa Desc._premio'!H33,IF(n1_tec="ATJ",'Fluxo de Caixa Desc._premio'!H75,"")) ->  | J12: =IF(n1_tec="HEFA",'Fluxo de Caixa Desc._premio'!I33,IF(n1_tec="ATJ",'Fluxo de Caixa Desc._premio'!I75,"")) ->  | K12: =IF(n1_tec="HEFA",'Fluxo de Caixa Desc._premio'!J33,IF(n1_tec="ATJ",'Fluxo de Caixa Desc._premio'!J75,"")) ->  | L12: =IF(n1_tec="HEFA",'Fluxo de Caixa Desc._premio'!K33,IF(n1_tec="ATJ",'Fluxo de Caixa Desc._premio'!K75,"")) ->  | M12: =IF(n1_tec="HEFA",'Fluxo de Caixa Desc._premio'!L33,IF(n1_tec="ATJ",'Fluxo de Caixa Desc._premio'!L75,"")) ->  | N12: =IF(n1_tec="HEFA",'Fluxo de Caixa Desc._premio'!M33,IF(n1_tec="ATJ",'Fluxo de Caixa Desc._premio'!M75,"")) ->  | O12: =IF(n1_tec="HEFA",'Fluxo de Caixa Desc._premio'!N33,IF(n1_tec="ATJ",'Fluxo de Caixa Desc._premio'!N75,"")) ->  | P12: =IF(n1_tec="HEFA",'Fluxo de Caixa Desc._premio'!O33,IF(n1_tec="ATJ",'Fluxo de Caixa Desc._premio'!O75,"")) ->  | Q12: =IF(n1_tec="HEFA",'Fluxo de Caixa Desc._premio'!P33,IF(n1_tec="ATJ",'Fluxo de Caixa Desc._premio'!P75,"")) ->  | R12: =IF(n1_tec="HEFA",'Fluxo de Caixa Desc._premio'!Q33,IF(n1_tec="ATJ",'Fluxo de Caixa Desc._premio'!Q75,"")) ->  | S12: =IF(n1_tec="HEFA",'Fluxo de Caixa Desc._premio'!R33,IF(n1_tec="ATJ",'Fluxo de Caixa Desc._premio'!R75,"")) ->  | T12: =IF(n1_tec="HEFA",'Fluxo de Caixa Desc._premio'!S33,IF(n1_tec="ATJ",'Fluxo de Caixa Desc._premio'!S75,"")) ->  | U12: =IF(n1_tec="HEFA",'Fluxo de Caixa Desc._premio'!T33,IF(n1_tec="ATJ",'Fluxo de Caixa Desc._premio'!T75,"")) ->  | V12: =IF(n1_tec="HEFA",'Fluxo de Caixa Desc._premio'!U33,IF(n1_tec="ATJ",'Fluxo de Caixa Desc._premio'!U75,"")) ->  | W12: =IF(n1_tec="HEFA",'Fluxo de Caixa Desc._premio'!V33,IF(n1_tec="ATJ",'Fluxo de Caixa Desc._premio'!V75,"")) ->  | X12: =IF(n1_tec="HEFA",'Fluxo de Caixa Desc._premio'!W33,IF(n1_tec="ATJ",'Fluxo de Caixa Desc._premio'!W75,"")) ->  | Y12: =IF(n1_tec="HEFA",'Fluxo de Caixa Desc._premio'!X33,IF(n1_tec="ATJ",'Fluxo de Caixa Desc._premio'!X75,"")) ->  | Z12: =IF(n1_tec="HEFA",'Fluxo de Caixa Desc._premio'!Y33,IF(n1_tec="ATJ",'Fluxo de Caixa Desc._premio'!Y75,"")) ->  | AA12: =IF(n1_tec="HEFA",'Fluxo de Caixa Desc._premio'!Z33,IF(n1_tec="ATJ",'Fluxo de Caixa Desc._premio'!Z75,"")) ->  | AB12: =IF(n1_tec="HEFA",'Fluxo de Caixa Desc._premio'!AA33,IF(n1_tec="ATJ",'Fluxo de Caixa Desc._premio'!AA75,"")) ->  | AC12: =IF(n1_tec="HEFA",'Fluxo de Caixa Desc._premio'!AB33,IF(n1_tec="ATJ",'Fluxo de Caixa Desc._premio'!AB75,"")) ->  | AD12: =IF(n1_tec="HEFA",'Fluxo de Caixa Desc._premio'!AC33,IF(n1_tec="ATJ",'Fluxo de Caixa Desc._premio'!AC75,"")) ->  | AE12: =IF(n1_tec="HEFA",'Fluxo de Caixa Desc._premio'!AD33,IF(n1_tec="ATJ",'Fluxo de Caixa Desc._premio'!AD75,"")) ->  | AF12: =IF(n1_tec="HEFA",'Fluxo de Caixa Desc._premio'!AE33,IF(n1_tec="ATJ",'Fluxo de Caixa Desc._premio'!AE75,"")) ->  | AG12: =IF(n1_tec="HEFA",'Fluxo de Caixa Desc._premio'!AF33,IF(n1_tec="ATJ",'Fluxo de Caixa Desc._premio'!AF75,"")) ->  | AH12: =IF(n1_tec="HEFA",'Fluxo de Caixa Desc._premio'!AG33,IF(n1_tec="ATJ",'Fluxo de Caixa Desc._premio'!AG75,"")) ->  | AI12: =IF(n1_tec="HEFA",'Fluxo de Caixa Desc._premio'!AH33,IF(n1_tec="ATJ",'Fluxo de Caixa Desc._premio'!AH75,"")) ->  | AJ12: =IF(n1_tec="HEFA",'Fluxo de Caixa Desc._premio'!AI33,IF(n1_tec="ATJ",'Fluxo de Caixa Desc._premio'!AI75,"")) ->  | AK12: =IF(n1_tec="HEFA",'Fluxo de Caixa Desc._premio'!AJ33,IF(n1_tec="ATJ",'Fluxo de Caixa Desc._premio'!AJ75,"")) ->  | AL12: =IF(n1_tec="HEFA",'Fluxo de Caixa Desc._premio'!AK33,IF(n1_tec="ATJ",'Fluxo de Caixa Desc._premio'!AK75,"")) ->  | AM12: =IF(n1_tec="HEFA",'Fluxo de Caixa Desc._premio'!AL33,IF(n1_tec="ATJ",'Fluxo de Caixa Desc._premio'!AL75,"")) ->  | AN12: =IF(n1_tec="HEFA",'Fluxo de Caixa Desc._premio'!AM33,IF(n1_tec="ATJ",'Fluxo de Caixa Desc._premio'!AM75,"")) ->  | AO12: =IF(n1_tec="HEFA",'Fluxo de Caixa Desc._premio'!AN33,IF(n1_tec="ATJ",'Fluxo de Caixa Desc._premio'!AN75,"")) ->  | AP12: =IF(n1_tec="HEFA",'Fluxo de Caixa Desc._premio'!AO33,IF(n1_tec="ATJ",'Fluxo de Caixa Desc._premio'!AO75,"")) ->  | AQ12: =IF(n1_tec="HEFA",'Fluxo de Caixa Desc._premio'!AP33,IF(n1_tec="ATJ",'Fluxo de Caixa Desc._premio'!AP75,"")) ->  | AR12: =IF(n1_tec="HEFA",'Fluxo de Caixa Desc._premio'!AQ33,IF(n1_tec="ATJ",'Fluxo de Caixa Desc._premio'!AQ75,"")) ->  | AS12: =IF(n1_tec="HEFA",'Fluxo de Caixa Desc._premio'!AR33,IF(n1_tec="ATJ",'Fluxo de Caixa Desc._premio'!AR75,"")) ->  | AT12: =IF(n1_tec="HEFA",'Fluxo de Caixa Desc._premio'!AS33,IF(n1_tec="ATJ",'Fluxo de Caixa Desc._premio'!AS75,"")) ->  | AU12: =IF(n1_tec="HEFA",'Fluxo de Caixa Desc._premio'!AT33,IF(n1_tec="ATJ",'Fluxo de Caixa Desc._premio'!AT75,"")) ->  | AV12: =IF(n1_tec="HEFA",'Fluxo de Caixa Desc._premio'!AU33,IF(n1_tec="ATJ",'Fluxo de Caixa Desc._premio'!AU75,"")) ->  | AW12: =IF(n1_tec="HEFA",'Fluxo de Caixa Desc._premio'!AV33,IF(n1_tec="ATJ",'Fluxo de Caixa Desc._premio'!AV75,"")) -> 
B13: IRPJ e CSLL | C13: =IF(n1_tec="HEFA",'Fluxo de Caixa Desc._premio'!B35,IF(n1_tec="ATJ",'Fluxo de Caixa Desc._premio'!B77,"")) ->  | D13: =IF(n1_tec="HEFA",'Fluxo de Caixa Desc._premio'!C35,IF(n1_tec="ATJ",'Fluxo de Caixa Desc._premio'!C77,"")) ->  | E13: =IF(n1_tec="HEFA",'Fluxo de Caixa Desc._premio'!D35,IF(n1_tec="ATJ",'Fluxo de Caixa Desc._premio'!D77,"")) ->  | F13: =IF(n1_tec="HEFA",'Fluxo de Caixa Desc._premio'!E35,IF(n1_tec="ATJ",'Fluxo de Caixa Desc._premio'!E77,"")) ->  | G13: =IF(n1_tec="HEFA",'Fluxo de Caixa Desc._premio'!F35,IF(n1_tec="ATJ",'Fluxo de Caixa Desc._premio'!F77,"")) ->  | H13: =IF(n1_tec="HEFA",'Fluxo de Caixa Desc._premio'!G35,IF(n1_tec="ATJ",'Fluxo de Caixa Desc._premio'!G77,"")) ->  | I13: =IF(n1_tec="HEFA",'Fluxo de Caixa Desc._premio'!H35,IF(n1_tec="ATJ",'Fluxo de Caixa Desc._premio'!H77,"")) ->  | J13: =IF(n1_tec="HEFA",'Fluxo de Caixa Desc._premio'!I35,IF(n1_tec="ATJ",'Fluxo de Caixa Desc._premio'!I77,"")) ->  | K13: =IF(n1_tec="HEFA",'Fluxo de Caixa Desc._premio'!J35,IF(n1_tec="ATJ",'Fluxo de Caixa Desc._premio'!J77,"")) ->  | L13: =IF(n1_tec="HEFA",'Fluxo de Caixa Desc._premio'!K35,IF(n1_tec="ATJ",'Fluxo de Caixa Desc._premio'!K77,"")) ->  | M13: =IF(n1_tec="HEFA",'Fluxo de Caixa Desc._premio'!L35,IF(n1_tec="ATJ",'Fluxo de Caixa Desc._premio'!L77,"")) ->  | N13: =IF(n1_tec="HEFA",'Fluxo de Caixa Desc._premio'!M35,IF(n1_tec="ATJ",'Fluxo de Caixa Desc._premio'!M77,"")) ->  | O13: =IF(n1_tec="HEFA",'Fluxo de Caixa Desc._premio'!N35,IF(n1_tec="ATJ",'Fluxo de Caixa Desc._premio'!N77,"")) ->  | P13: =IF(n1_tec="HEFA",'Fluxo de Caixa Desc._premio'!O35,IF(n1_tec="ATJ",'Fluxo de Caixa Desc._premio'!O77,"")) ->  | Q13: =IF(n1_tec="HEFA",'Fluxo de Caixa Desc._premio'!P35,IF(n1_tec="ATJ",'Fluxo de Caixa Desc._premio'!P77,"")) ->  | R13: =IF(n1_tec="HEFA",'Fluxo de Caixa Desc._premio'!Q35,IF(n1_tec="ATJ",'Fluxo de Caixa Desc._premio'!Q77,"")) ->  | S13: =IF(n1_tec="HEFA",'Fluxo de Caixa Desc._premio'!R35,IF(n1_tec="ATJ",'Fluxo de Caixa Desc._premio'!R77,"")) ->  | T13: =IF(n1_tec="HEFA",'Fluxo de Caixa Desc._premio'!S35,IF(n1_tec="ATJ",'Fluxo de Caixa Desc._premio'!S77,"")) ->  | U13: =IF(n1_tec="HEFA",'Fluxo de Caixa Desc._premio'!T35,IF(n1_tec="ATJ",'Fluxo de Caixa Desc._premio'!T77,"")) ->  | V13: =IF(n1_tec="HEFA",'Fluxo de Caixa Desc._premio'!U35,IF(n1_tec="ATJ",'Fluxo de Caixa Desc._premio'!U77,"")) ->  | W13: =IF(n1_tec="HEFA",'Fluxo de Caixa Desc._premio'!V35,IF(n1_tec="ATJ",'Fluxo de Caixa Desc._premio'!V77,"")) ->  | X13: =IF(n1_tec="HEFA",'Fluxo de Caixa Desc._premio'!W35,IF(n1_tec="ATJ",'Fluxo de Caixa Desc._premio'!W77,"")) ->  | Y13: =IF(n1_tec="HEFA",'Fluxo de Caixa Desc._premio'!X35,IF(n1_tec="ATJ",'Fluxo de Caixa Desc._premio'!X77,"")) ->  | Z13: =IF(n1_tec="HEFA",'Fluxo de Caixa Desc._premio'!Y35,IF(n1_tec="ATJ",'Fluxo de Caixa Desc._premio'!Y77,"")) ->  | AA13: =IF(n1_tec="HEFA",'Fluxo de Caixa Desc._premio'!Z35,IF(n1_tec="ATJ",'Fluxo de Caixa Desc._premio'!Z77,"")) ->  | AB13: =IF(n1_tec="HEFA",'Fluxo de Caixa Desc._premio'!AA35,IF(n1_tec="ATJ",'Fluxo de Caixa Desc._premio'!AA77,"")) ->  | AC13: =IF(n1_tec="HEFA",'Fluxo de Caixa Desc._premio'!AB35,IF(n1_tec="ATJ",'Fluxo de Caixa Desc._premio'!AB77,"")) ->  | AD13: =IF(n1_tec="HEFA",'Fluxo de Caixa Desc._premio'!AC35,IF(n1_tec="ATJ",'Fluxo de Caixa Desc._premio'!AC77,"")) ->  | AE13: =IF(n1_tec="HEFA",'Fluxo de Caixa Desc._premio'!AD35,IF(n1_tec="ATJ",'Fluxo de Caixa Desc._premio'!AD77,"")) ->  | AF13: =IF(n1_tec="HEFA",'Fluxo de Caixa Desc._premio'!AE35,IF(n1_tec="ATJ",'Fluxo de Caixa Desc._premio'!AE77,"")) ->  | AG13: =IF(n1_tec="HEFA",'Fluxo de Caixa Desc._premio'!AF35,IF(n1_tec="ATJ",'Fluxo de Caixa Desc._premio'!AF77,"")) ->  | AH13: =IF(n1_tec="HEFA",'Fluxo de Caixa Desc._premio'!AG35,IF(n1_tec="ATJ",'Fluxo de Caixa Desc._premio'!AG77,"")) ->  | AI13: =IF(n1_tec="HEFA",'Fluxo de Caixa Desc._premio'!AH35,IF(n1_tec="ATJ",'Fluxo de Caixa Desc._premio'!AH77,"")) ->  | AJ13: =IF(n1_tec="HEFA",'Fluxo de Caixa Desc._premio'!AI35,IF(n1_tec="ATJ",'Fluxo de Caixa Desc._premio'!AI77,"")) ->  | AK13: =IF(n1_tec="HEFA",'Fluxo de Caixa Desc._premio'!AJ35,IF(n1_tec="ATJ",'Fluxo de Caixa Desc._premio'!AJ77,"")) ->  | AL13: =IF(n1_tec="HEFA",'Fluxo de Caixa Desc._premio'!AK35,IF(n1_tec="ATJ",'Fluxo de Caixa Desc._premio'!AK77,"")) ->  | AM13: =IF(n1_tec="HEFA",'Fluxo de Caixa Desc._premio'!AL35,IF(n1_tec="ATJ",'Fluxo de Caixa Desc._premio'!AL77,"")) ->  | AN13: =IF(n1_tec="HEFA",'Fluxo de Caixa Desc._premio'!AM35,IF(n1_tec="ATJ",'Fluxo de Caixa Desc._premio'!AM77,"")) ->  | AO13: =IF(n1_tec="HEFA",'Fluxo de Caixa Desc._premio'!AN35,IF(n1_tec="ATJ",'Fluxo de Caixa Desc._premio'!AN77,"")) ->  | AP13: =IF(n1_tec="HEFA",'Fluxo de Caixa Desc._premio'!AO35,IF(n1_tec="ATJ",'Fluxo de Caixa Desc._premio'!AO77,"")) ->  | AQ13: =IF(n1_tec="HEFA",'Fluxo de Caixa Desc._premio'!AP35,IF(n1_tec="ATJ",'Fluxo de Caixa Desc._premio'!AP77,"")) ->  | AR13: =IF(n1_tec="HEFA",'Fluxo de Caixa Desc._premio'!AQ35,IF(n1_tec="ATJ",'Fluxo de Caixa Desc._premio'!AQ77,"")) ->  | AS13: =IF(n1_tec="HEFA",'Fluxo de Caixa Desc._premio'!AR35,IF(n1_tec="ATJ",'Fluxo de Caixa Desc._premio'!AR77,"")) ->  | AT13: =IF(n1_tec="HEFA",'Fluxo de Caixa Desc._premio'!AS35,IF(n1_tec="ATJ",'Fluxo de Caixa Desc._premio'!AS77,"")) ->  | AU13: =IF(n1_tec="HEFA",'Fluxo de Caixa Desc._premio'!AT35,IF(n1_tec="ATJ",'Fluxo de Caixa Desc._premio'!AT77,"")) ->  | AV13: =IF(n1_tec="HEFA",'Fluxo de Caixa Desc._premio'!AU35,IF(n1_tec="ATJ",'Fluxo de Caixa Desc._premio'!AU77,"")) ->  | AW13: =IF(n1_tec="HEFA",'Fluxo de Caixa Desc._premio'!AV35,IF(n1_tec="ATJ",'Fluxo de Caixa Desc._premio'!AV77,"")) -> 
B14: Fluxo de Caixa Livre | C14: =IF(n1_tec="HEFA",'Fluxo de Caixa Desc._premio'!B37,IF(n1_tec="ATJ",'Fluxo de Caixa Desc._premio'!B79,"")) ->  | D14: =IF(n1_tec="HEFA",'Fluxo de Caixa Desc._premio'!C37,IF(n1_tec="ATJ",'Fluxo de Caixa Desc._premio'!C79,"")) ->  | E14: =IF(n1_tec="HEFA",'Fluxo de Caixa Desc._premio'!D37,IF(n1_tec="ATJ",'Fluxo de Caixa Desc._premio'!D79,"")) ->  | F14: =IF(n1_tec="HEFA",'Fluxo de Caixa Desc._premio'!E37,IF(n1_tec="ATJ",'Fluxo de Caixa Desc._premio'!E79,"")) ->  | G14: =IF(n1_tec="HEFA",'Fluxo de Caixa Desc._premio'!F37,IF(n1_tec="ATJ",'Fluxo de Caixa Desc._premio'!F79,"")) ->  | H14: =IF(n1_tec="HEFA",'Fluxo de Caixa Desc._premio'!G37,IF(n1_tec="ATJ",'Fluxo de Caixa Desc._premio'!G79,"")) ->  | I14: =IF(n1_tec="HEFA",'Fluxo de Caixa Desc._premio'!H37,IF(n1_tec="ATJ",'Fluxo de Caixa Desc._premio'!H79,"")) ->  | J14: =IF(n1_tec="HEFA",'Fluxo de Caixa Desc._premio'!I37,IF(n1_tec="ATJ",'Fluxo de Caixa Desc._premio'!I79,"")) ->  | K14: =IF(n1_tec="HEFA",'Fluxo de Caixa Desc._premio'!J37,IF(n1_tec="ATJ",'Fluxo de Caixa Desc._premio'!J79,"")) ->  | L14: =IF(n1_tec="HEFA",'Fluxo de Caixa Desc._premio'!K37,IF(n1_tec="ATJ",'Fluxo de Caixa Desc._premio'!K79,"")) ->  | M14: =IF(n1_tec="HEFA",'Fluxo de Caixa Desc._premio'!L37,IF(n1_tec="ATJ",'Fluxo de Caixa Desc._premio'!L79,"")) ->  | N14: =IF(n1_tec="HEFA",'Fluxo de Caixa Desc._premio'!M37,IF(n1_tec="ATJ",'Fluxo de Caixa Desc._premio'!M79,"")) ->  | O14: =IF(n1_tec="HEFA",'Fluxo de Caixa Desc._premio'!N37,IF(n1_tec="ATJ",'Fluxo de Caixa Desc._premio'!N79,"")) ->  | P14: =IF(n1_tec="HEFA",'Fluxo de Caixa Desc._premio'!O37,IF(n1_tec="ATJ",'Fluxo de Caixa Desc._premio'!O79,"")) ->  | Q14: =IF(n1_tec="HEFA",'Fluxo de Caixa Desc._premio'!P37,IF(n1_tec="ATJ",'Fluxo de Caixa Desc._premio'!P79,"")) ->  | R14: =IF(n1_tec="HEFA",'Fluxo de Caixa Desc._premio'!Q37,IF(n1_tec="ATJ",'Fluxo de Caixa Desc._premio'!Q79,"")) ->  | S14: =IF(n1_tec="HEFA",'Fluxo de Caixa Desc._premio'!R37,IF(n1_tec="ATJ",'Fluxo de Caixa Desc._premio'!R79,"")) ->  | T14: =IF(n1_tec="HEFA",'Fluxo de Caixa Desc._premio'!S37,IF(n1_tec="ATJ",'Fluxo de Caixa Desc._premio'!S79,"")) ->  | U14: =IF(n1_tec="HEFA",'Fluxo de Caixa Desc._premio'!T37,IF(n1_tec="ATJ",'Fluxo de Caixa Desc._premio'!T79,"")) ->  | V14: =IF(n1_tec="HEFA",'Fluxo de Caixa Desc._premio'!U37,IF(n1_tec="ATJ",'Fluxo de Caixa Desc._premio'!U79,"")) ->  | W14: =IF(n1_tec="HEFA",'Fluxo de Caixa Desc._premio'!V37,IF(n1_tec="ATJ",'Fluxo de Caixa Desc._premio'!V79,"")) ->  | X14: =IF(n1_tec="HEFA",'Fluxo de Caixa Desc._premio'!W37,IF(n1_tec="ATJ",'Fluxo de Caixa Desc._premio'!W79,"")) ->  | Y14: =IF(n1_tec="HEFA",'Fluxo de Caixa Desc._premio'!X37,IF(n1_tec="ATJ",'Fluxo de Caixa Desc._premio'!X79,"")) ->  | Z14: =IF(n1_tec="HEFA",'Fluxo de Caixa Desc._premio'!Y37,IF(n1_tec="ATJ",'Fluxo de Caixa Desc._premio'!Y79,"")) ->  | AA14: =IF(n1_tec="HEFA",'Fluxo de Caixa Desc._premio'!Z37,IF(n1_tec="ATJ",'Fluxo de Caixa Desc._premio'!Z79,"")) ->  | AB14: =IF(n1_tec="HEFA",'Fluxo de Caixa Desc._premio'!AA37,IF(n1_tec="ATJ",'Fluxo de Caixa Desc._premio'!AA79,"")) ->  | AC14: =IF(n1_tec="HEFA",'Fluxo de Caixa Desc._premio'!AB37,IF(n1_tec="ATJ",'Fluxo de Caixa Desc._premio'!AB79,"")) ->  | AD14: =IF(n1_tec="HEFA",'Fluxo de Caixa Desc._premio'!AC37,IF(n1_tec="ATJ",'Fluxo de Caixa Desc._premio'!AC79,"")) ->  | AE14: =IF(n1_tec="HEFA",'Fluxo de Caixa Desc._premio'!AD37,IF(n1_tec="ATJ",'Fluxo de Caixa Desc._premio'!AD79,"")) ->  | AF14: =IF(n1_tec="HEFA",'Fluxo de Caixa Desc._premio'!AE37,IF(n1_tec="ATJ",'Fluxo de Caixa Desc._premio'!AE79,"")) ->  | AG14: =IF(n1_tec="HEFA",'Fluxo de Caixa Desc._premio'!AF37,IF(n1_tec="ATJ",'Fluxo de Caixa Desc._premio'!AF79,"")) ->  | AH14: =IF(n1_tec="HEFA",'Fluxo de Caixa Desc._premio'!AG37,IF(n1_tec="ATJ",'Fluxo de Caixa Desc._premio'!AG79,"")) ->  | AI14: =IF(n1_tec="HEFA",'Fluxo de Caixa Desc._premio'!AH37,IF(n1_tec="ATJ",'Fluxo de Caixa Desc._premio'!AH79,"")) ->  | AJ14: =IF(n1_tec="HEFA",'Fluxo de Caixa Desc._premio'!AI37,IF(n1_tec="ATJ",'Fluxo de Caixa Desc._premio'!AI79,"")) ->  | AK14: =IF(n1_tec="HEFA",'Fluxo de Caixa Desc._premio'!AJ37,IF(n1_tec="ATJ",'Fluxo de Caixa Desc._premio'!AJ79,"")) ->  | AL14: =IF(n1_tec="HEFA",'Fluxo de Caixa Desc._premio'!AK37,IF(n1_tec="ATJ",'Fluxo de Caixa Desc._premio'!AK79,"")) ->  | AM14: =IF(n1_tec="HEFA",'Fluxo de Caixa Desc._premio'!AL37,IF(n1_tec="ATJ",'Fluxo de Caixa Desc._premio'!AL79,"")) ->  | AN14: =IF(n1_tec="HEFA",'Fluxo de Caixa Desc._premio'!AM37,IF(n1_tec="ATJ",'Fluxo de Caixa Desc._premio'!AM79,"")) ->  | AO14: =IF(n1_tec="HEFA",'Fluxo de Caixa Desc._premio'!AN37,IF(n1_tec="ATJ",'Fluxo de Caixa Desc._premio'!AN79,"")) ->  | AP14: =IF(n1_tec="HEFA",'Fluxo de Caixa Desc._premio'!AO37,IF(n1_tec="ATJ",'Fluxo de Caixa Desc._premio'!AO79,"")) ->  | AQ14: =IF(n1_tec="HEFA",'Fluxo de Caixa Desc._premio'!AP37,IF(n1_tec="ATJ",'Fluxo de Caixa Desc._premio'!AP79,"")) ->  | AR14: =IF(n1_tec="HEFA",'Fluxo de Caixa Desc._premio'!AQ37,IF(n1_tec="ATJ",'Fluxo de Caixa Desc._premio'!AQ79,"")) ->  | AS14: =IF(n1_tec="HEFA",'Fluxo de Caixa Desc._premio'!AR37,IF(n1_tec="ATJ",'Fluxo de Caixa Desc._premio'!AR79,"")) ->  | AT14: =IF(n1_tec="HEFA",'Fluxo de Caixa Desc._premio'!AS37,IF(n1_tec="ATJ",'Fluxo de Caixa Desc._premio'!AS79,"")) ->  | AU14: =IF(n1_tec="HEFA",'Fluxo de Caixa Desc._premio'!AT37,IF(n1_tec="ATJ",'Fluxo de Caixa Desc._premio'!AT79,"")) ->  | AV14: =IF(n1_tec="HEFA",'Fluxo de Caixa Desc._premio'!AU37,IF(n1_tec="ATJ",'Fluxo de Caixa Desc._premio'!AU79,"")) ->  | AW14: =IF(n1_tec="HEFA",'Fluxo de Caixa Desc._premio'!AV37,IF(n1_tec="ATJ",'Fluxo de Caixa Desc._premio'!AV79,"")) -> 
B15: Fluxo de Caixa Livre Acumulado | C15: =IF(n1_tec="HEFA",'Fluxo de Caixa Desc._premio'!B38,IF(n1_tec="ATJ",'Fluxo de Caixa Desc._premio'!B80,"")) ->  | D15: =IF(n1_tec="HEFA",'Fluxo de Caixa Desc._premio'!C38,IF(n1_tec="ATJ",'Fluxo de Caixa Desc._premio'!C80,"")) ->  | E15: =IF(n1_tec="HEFA",'Fluxo de Caixa Desc._premio'!D38,IF(n1_tec="ATJ",'Fluxo de Caixa Desc._premio'!D80,"")) ->  | F15: =IF(n1_tec="HEFA",'Fluxo de Caixa Desc._premio'!E38,IF(n1_tec="ATJ",'Fluxo de Caixa Desc._premio'!E80,"")) ->  | G15: =IF(n1_tec="HEFA",'Fluxo de Caixa Desc._premio'!F38,IF(n1_tec="ATJ",'Fluxo de Caixa Desc._premio'!F80,"")) ->  | H15: =IF(n1_tec="HEFA",'Fluxo de Caixa Desc._premio'!G38,IF(n1_tec="ATJ",'Fluxo de Caixa Desc._premio'!G80,"")) ->  | I15: =IF(n1_tec="HEFA",'Fluxo de Caixa Desc._premio'!H38,IF(n1_tec="ATJ",'Fluxo de Caixa Desc._premio'!H80,"")) ->  | J15: =IF(n1_tec="HEFA",'Fluxo de Caixa Desc._premio'!I38,IF(n1_tec="ATJ",'Fluxo de Caixa Desc._premio'!I80,"")) ->  | K15: =IF(n1_tec="HEFA",'Fluxo de Caixa Desc._premio'!J38,IF(n1_tec="ATJ",'Fluxo de Caixa Desc._premio'!J80,"")) ->  | L15: =IF(n1_tec="HEFA",'Fluxo de Caixa Desc._premio'!K38,IF(n1_tec="ATJ",'Fluxo de Caixa Desc._premio'!K80,"")) ->  | M15: =IF(n1_tec="HEFA",'Fluxo de Caixa Desc._premio'!L38,IF(n1_tec="ATJ",'Fluxo de Caixa Desc._premio'!L80,"")) ->  | N15: =IF(n1_tec="HEFA",'Fluxo de Caixa Desc._premio'!M38,IF(n1_tec="ATJ",'Fluxo de Caixa Desc._premio'!M80,"")) ->  | O15: =IF(n1_tec="HEFA",'Fluxo de Caixa Desc._premio'!N38,IF(n1_tec="ATJ",'Fluxo de Caixa Desc._premio'!N80,"")) ->  | P15: =IF(n1_tec="HEFA",'Fluxo de Caixa Desc._premio'!O38,IF(n1_tec="ATJ",'Fluxo de Caixa Desc._premio'!O80,"")) ->  | Q15: =IF(n1_tec="HEFA",'Fluxo de Caixa Desc._premio'!P38,IF(n1_tec="ATJ",'Fluxo de Caixa Desc._premio'!P80,"")) ->  | R15: =IF(n1_tec="HEFA",'Fluxo de Caixa Desc._premio'!Q38,IF(n1_tec="ATJ",'Fluxo de Caixa Desc._premio'!Q80,"")) ->  | S15: =IF(n1_tec="HEFA",'Fluxo de Caixa Desc._premio'!R38,IF(n1_tec="ATJ",'Fluxo de Caixa Desc._premio'!R80,"")) ->  | T15: =IF(n1_tec="HEFA",'Fluxo de Caixa Desc._premio'!S38,IF(n1_tec="ATJ",'Fluxo de Caixa Desc._premio'!S80,"")) ->  | U15: =IF(n1_tec="HEFA",'Fluxo de Caixa Desc._premio'!T38,IF(n1_tec="ATJ",'Fluxo de Caixa Desc._premio'!T80,"")) ->  | V15: =IF(n1_tec="HEFA",'Fluxo de Caixa Desc._premio'!U38,IF(n1_tec="ATJ",'Fluxo de Caixa Desc._premio'!U80,"")) ->  | W15: =IF(n1_tec="HEFA",'Fluxo de Caixa Desc._premio'!V38,IF(n1_tec="ATJ",'Fluxo de Caixa Desc._premio'!V80,"")) ->  | X15: =IF(n1_tec="HEFA",'Fluxo de Caixa Desc._premio'!W38,IF(n1_tec="ATJ",'Fluxo de Caixa Desc._premio'!W80,"")) ->  | Y15: =IF(n1_tec="HEFA",'Fluxo de Caixa Desc._premio'!X38,IF(n1_tec="ATJ",'Fluxo de Caixa Desc._premio'!X80,"")) ->  | Z15: =IF(n1_tec="HEFA",'Fluxo de Caixa Desc._premio'!Y38,IF(n1_tec="ATJ",'Fluxo de Caixa Desc._premio'!Y80,"")) ->  | AA15: =IF(n1_tec="HEFA",'Fluxo de Caixa Desc._premio'!Z38,IF(n1_tec="ATJ",'Fluxo de Caixa Desc._premio'!Z80,"")) ->  | AB15: =IF(n1_tec="HEFA",'Fluxo de Caixa Desc._premio'!AA38,IF(n1_tec="ATJ",'Fluxo de Caixa Desc._premio'!AA80,"")) ->  | AC15: =IF(n1_tec="HEFA",'Fluxo de Caixa Desc._premio'!AB38,IF(n1_tec="ATJ",'Fluxo de Caixa Desc._premio'!AB80,"")) ->  | AD15: =IF(n1_tec="HEFA",'Fluxo de Caixa Desc._premio'!AC38,IF(n1_tec="ATJ",'Fluxo de Caixa Desc._premio'!AC80,"")) ->  | AE15: =IF(n1_tec="HEFA",'Fluxo de Caixa Desc._premio'!AD38,IF(n1_tec="ATJ",'Fluxo de Caixa Desc._premio'!AD80,"")) ->  | AF15: =IF(n1_tec="HEFA",'Fluxo de Caixa Desc._premio'!AE38,IF(n1_tec="ATJ",'Fluxo de Caixa Desc._premio'!AE80,"")) ->  | AG15: =IF(n1_tec="HEFA",'Fluxo de Caixa Desc._premio'!AF38,IF(n1_tec="ATJ",'Fluxo de Caixa Desc._premio'!AF80,"")) ->  | AH15: =IF(n1_tec="HEFA",'Fluxo de Caixa Desc._premio'!AG38,IF(n1_tec="ATJ",'Fluxo de Caixa Desc._premio'!AG80,"")) ->  | AI15: =IF(n1_tec="HEFA",'Fluxo de Caixa Desc._premio'!AH38,IF(n1_tec="ATJ",'Fluxo de Caixa Desc._premio'!AH80,"")) ->  | AJ15: =IF(n1_tec="HEFA",'Fluxo de Caixa Desc._premio'!AI38,IF(n1_tec="ATJ",'Fluxo de Caixa Desc._premio'!AI80,"")) ->  | AK15: =IF(n1_tec="HEFA",'Fluxo de Caixa Desc._premio'!AJ38,IF(n1_tec="ATJ",'Fluxo de Caixa Desc._premio'!AJ80,"")) ->  | AL15: =IF(n1_tec="HEFA",'Fluxo de Caixa Desc._premio'!AK38,IF(n1_tec="ATJ",'Fluxo de Caixa Desc._premio'!AK80,"")) ->  | AM15: =IF(n1_tec="HEFA",'Fluxo de Caixa Desc._premio'!AL38,IF(n1_tec="ATJ",'Fluxo de Caixa Desc._premio'!AL80,"")) ->  | AN15: =IF(n1_tec="HEFA",'Fluxo de Caixa Desc._premio'!AM38,IF(n1_tec="ATJ",'Fluxo de Caixa Desc._premio'!AM80,"")) ->  | AO15: =IF(n1_tec="HEFA",'Fluxo de Caixa Desc._premio'!AN38,IF(n1_tec="ATJ",'Fluxo de Caixa Desc._premio'!AN80,"")) ->  | AP15: =IF(n1_tec="HEFA",'Fluxo de Caixa Desc._premio'!AO38,IF(n1_tec="ATJ",'Fluxo de Caixa Desc._premio'!AO80,"")) ->  | AQ15: =IF(n1_tec="HEFA",'Fluxo de Caixa Desc._premio'!AP38,IF(n1_tec="ATJ",'Fluxo de Caixa Desc._premio'!AP80,"")) ->  | AR15: =IF(n1_tec="HEFA",'Fluxo de Caixa Desc._premio'!AQ38,IF(n1_tec="ATJ",'Fluxo de Caixa Desc._premio'!AQ80,"")) ->  | AS15: =IF(n1_tec="HEFA",'Fluxo de Caixa Desc._premio'!AR38,IF(n1_tec="ATJ",'Fluxo de Caixa Desc._premio'!AR80,"")) ->  | AT15: =IF(n1_tec="HEFA",'Fluxo de Caixa Desc._premio'!AS38,IF(n1_tec="ATJ",'Fluxo de Caixa Desc._premio'!AS80,"")) ->  | AU15: =IF(n1_tec="HEFA",'Fluxo de Caixa Desc._premio'!AT38,IF(n1_tec="ATJ",'Fluxo de Caixa Desc._premio'!AT80,"")) ->  | AV15: =IF(n1_tec="HEFA",'Fluxo de Caixa Desc._premio'!AU38,IF(n1_tec="ATJ",'Fluxo de Caixa Desc._premio'!AU80,"")) ->  | AW15: =IF(n1_tec="HEFA",'Fluxo de Caixa Desc._premio'!AV38,IF(n1_tec="ATJ",'Fluxo de Caixa Desc._premio'!AV80,"")) -> 
B16: Fluxo de Caixa Descontado | C16: =IF(n1_tec="HEFA",'Fluxo de Caixa Desc._premio'!B39,IF(n1_tec="ATJ",'Fluxo de Caixa Desc._premio'!B81,"")) ->  | D16: =IF(n1_tec="HEFA",'Fluxo de Caixa Desc._premio'!C39,IF(n1_tec="ATJ",'Fluxo de Caixa Desc._premio'!C81,"")) ->  | E16: =IF(n1_tec="HEFA",'Fluxo de Caixa Desc._premio'!D39,IF(n1_tec="ATJ",'Fluxo de Caixa Desc._premio'!D81,"")) ->  | F16: =IF(n1_tec="HEFA",'Fluxo de Caixa Desc._premio'!E39,IF(n1_tec="ATJ",'Fluxo de Caixa Desc._premio'!E81,"")) ->  | G16: =IF(n1_tec="HEFA",'Fluxo de Caixa Desc._premio'!F39,IF(n1_tec="ATJ",'Fluxo de Caixa Desc._premio'!F81,"")) ->  | H16: =IF(n1_tec="HEFA",'Fluxo de Caixa Desc._premio'!G39,IF(n1_tec="ATJ",'Fluxo de Caixa Desc._premio'!G81,"")) ->  | I16: =IF(n1_tec="HEFA",'Fluxo de Caixa Desc._premio'!H39,IF(n1_tec="ATJ",'Fluxo de Caixa Desc._premio'!H81,"")) ->  | J16: =IF(n1_tec="HEFA",'Fluxo de Caixa Desc._premio'!I39,IF(n1_tec="ATJ",'Fluxo de Caixa Desc._premio'!I81,"")) ->  | K16: =IF(n1_tec="HEFA",'Fluxo de Caixa Desc._premio'!J39,IF(n1_tec="ATJ",'Fluxo de Caixa Desc._premio'!J81,"")) ->  | L16: =IF(n1_tec="HEFA",'Fluxo de Caixa Desc._premio'!K39,IF(n1_tec="ATJ",'Fluxo de Caixa Desc._premio'!K81,"")) ->  | M16: =IF(n1_tec="HEFA",'Fluxo de Caixa Desc._premio'!L39,IF(n1_tec="ATJ",'Fluxo de Caixa Desc._premio'!L81,"")) ->  | N16: =IF(n1_tec="HEFA",'Fluxo de Caixa Desc._premio'!M39,IF(n1_tec="ATJ",'Fluxo de Caixa Desc._premio'!M81,"")) ->  | O16: =IF(n1_tec="HEFA",'Fluxo de Caixa Desc._premio'!N39,IF(n1_tec="ATJ",'Fluxo de Caixa Desc._premio'!N81,"")) ->  | P16: =IF(n1_tec="HEFA",'Fluxo de Caixa Desc._premio'!O39,IF(n1_tec="ATJ",'Fluxo de Caixa Desc._premio'!O81,"")) ->  | Q16: =IF(n1_tec="HEFA",'Fluxo de Caixa Desc._premio'!P39,IF(n1_tec="ATJ",'Fluxo de Caixa Desc._premio'!P81,"")) ->  | R16: =IF(n1_tec="HEFA",'Fluxo de Caixa Desc._premio'!Q39,IF(n1_tec="ATJ",'Fluxo de Caixa Desc._premio'!Q81,"")) ->  | S16: =IF(n1_tec="HEFA",'Fluxo de Caixa Desc._premio'!R39,IF(n1_tec="ATJ",'Fluxo de Caixa Desc._premio'!R81,"")) ->  | T16: =IF(n1_tec="HEFA",'Fluxo de Caixa Desc._premio'!S39,IF(n1_tec="ATJ",'Fluxo de Caixa Desc._premio'!S81,"")) ->  | U16: =IF(n1_tec="HEFA",'Fluxo de Caixa Desc._premio'!T39,IF(n1_tec="ATJ",'Fluxo de Caixa Desc._premio'!T81,"")) ->  | V16: =IF(n1_tec="HEFA",'Fluxo de Caixa Desc._premio'!U39,IF(n1_tec="ATJ",'Fluxo de Caixa Desc._premio'!U81,"")) ->  | W16: =IF(n1_tec="HEFA",'Fluxo de Caixa Desc._premio'!V39,IF(n1_tec="ATJ",'Fluxo de Caixa Desc._premio'!V81,"")) ->  | X16: =IF(n1_tec="HEFA",'Fluxo de Caixa Desc._premio'!W39,IF(n1_tec="ATJ",'Fluxo de Caixa Desc._premio'!W81,"")) ->  | Y16: =IF(n1_tec="HEFA",'Fluxo de Caixa Desc._premio'!X39,IF(n1_tec="ATJ",'Fluxo de Caixa Desc._premio'!X81,"")) ->  | Z16: =IF(n1_tec="HEFA",'Fluxo de Caixa Desc._premio'!Y39,IF(n1_tec="ATJ",'Fluxo de Caixa Desc._premio'!Y81,"")) ->  | AA16: =IF(n1_tec="HEFA",'Fluxo de Caixa Desc._premio'!Z39,IF(n1_tec="ATJ",'Fluxo de Caixa Desc._premio'!Z81,"")) ->  | AB16: =IF(n1_tec="HEFA",'Fluxo de Caixa Desc._premio'!AA39,IF(n1_tec="ATJ",'Fluxo de Caixa Desc._premio'!AA81,"")) ->  | AC16: =IF(n1_tec="HEFA",'Fluxo de Caixa Desc._premio'!AB39,IF(n1_tec="ATJ",'Fluxo de Caixa Desc._premio'!AB81,"")) ->  | AD16: =IF(n1_tec="HEFA",'Fluxo de Caixa Desc._premio'!AC39,IF(n1_tec="ATJ",'Fluxo de Caixa Desc._premio'!AC81,"")) ->  | AE16: =IF(n1_tec="HEFA",'Fluxo de Caixa Desc._premio'!AD39,IF(n1_tec="ATJ",'Fluxo de Caixa Desc._premio'!AD81,"")) ->  | AF16: =IF(n1_tec="HEFA",'Fluxo de Caixa Desc._premio'!AE39,IF(n1_tec="ATJ",'Fluxo de Caixa Desc._premio'!AE81,"")) ->  | AG16: =IF(n1_tec="HEFA",'Fluxo de Caixa Desc._premio'!AF39,IF(n1_tec="ATJ",'Fluxo de Caixa Desc._premio'!AF81,"")) ->  | AH16: =IF(n1_tec="HEFA",'Fluxo de Caixa Desc._premio'!AG39,IF(n1_tec="ATJ",'Fluxo de Caixa Desc._premio'!AG81,"")) ->  | AI16: =IF(n1_tec="HEFA",'Fluxo de Caixa Desc._premio'!AH39,IF(n1_tec="ATJ",'Fluxo de Caixa Desc._premio'!AH81,"")) ->  | AJ16: =IF(n1_tec="HEFA",'Fluxo de Caixa Desc._premio'!AI39,IF(n1_tec="ATJ",'Fluxo de Caixa Desc._premio'!AI81,"")) ->  | AK16: =IF(n1_tec="HEFA",'Fluxo de Caixa Desc._premio'!AJ39,IF(n1_tec="ATJ",'Fluxo de Caixa Desc._premio'!AJ81,"")) ->  | AL16: =IF(n1_tec="HEFA",'Fluxo de Caixa Desc._premio'!AK39,IF(n1_tec="ATJ",'Fluxo de Caixa Desc._premio'!AK81,"")) ->  | AM16: =IF(n1_tec="HEFA",'Fluxo de Caixa Desc._premio'!AL39,IF(n1_tec="ATJ",'Fluxo de Caixa Desc._premio'!AL81,"")) ->  | AN16: =IF(n1_tec="HEFA",'Fluxo de Caixa Desc._premio'!AM39,IF(n1_tec="ATJ",'Fluxo de Caixa Desc._premio'!AM81,"")) ->  | AO16: =IF(n1_tec="HEFA",'Fluxo de Caixa Desc._premio'!AN39,IF(n1_tec="ATJ",'Fluxo de Caixa Desc._premio'!AN81,"")) ->  | AP16: =IF(n1_tec="HEFA",'Fluxo de Caixa Desc._premio'!AO39,IF(n1_tec="ATJ",'Fluxo de Caixa Desc._premio'!AO81,"")) ->  | AQ16: =IF(n1_tec="HEFA",'Fluxo de Caixa Desc._premio'!AP39,IF(n1_tec="ATJ",'Fluxo de Caixa Desc._premio'!AP81,"")) ->  | AR16: =IF(n1_tec="HEFA",'Fluxo de Caixa Desc._premio'!AQ39,IF(n1_tec="ATJ",'Fluxo de Caixa Desc._premio'!AQ81,"")) ->  | AS16: =IF(n1_tec="HEFA",'Fluxo de Caixa Desc._premio'!AR39,IF(n1_tec="ATJ",'Fluxo de Caixa Desc._premio'!AR81,"")) ->  | AT16: =IF(n1_tec="HEFA",'Fluxo de Caixa Desc._premio'!AS39,IF(n1_tec="ATJ",'Fluxo de Caixa Desc._premio'!AS81,"")) ->  | AU16: =IF(n1_tec="HEFA",'Fluxo de Caixa Desc._premio'!AT39,IF(n1_tec="ATJ",'Fluxo de Caixa Desc._premio'!AT81,"")) ->  | AV16: =IF(n1_tec="HEFA",'Fluxo de Caixa Desc._premio'!AU39,IF(n1_tec="ATJ",'Fluxo de Caixa Desc._premio'!AU81,"")) ->  | AW16: =IF(n1_tec="HEFA",'Fluxo de Caixa Desc._premio'!AV39,IF(n1_tec="ATJ",'Fluxo de Caixa Desc._premio'!AV81,"")) -> 
B17: Fluxo de Caixa Descontado Acumulado | C17: =IF(n1_tec="HEFA",'Fluxo de Caixa Desc._premio'!B40,IF(n1_tec="ATJ",'Fluxo de Caixa Desc._premio'!B82,"")) ->  | D17: =IF(n1_tec="HEFA",'Fluxo de Caixa Desc._premio'!C40,IF(n1_tec="ATJ",'Fluxo de Caixa Desc._premio'!C82,"")) ->  | E17: =IF(n1_tec="HEFA",'Fluxo de Caixa Desc._premio'!D40,IF(n1_tec="ATJ",'Fluxo de Caixa Desc._premio'!D82,"")) ->  | F17: =IF(n1_tec="HEFA",'Fluxo de Caixa Desc._premio'!E40,IF(n1_tec="ATJ",'Fluxo de Caixa Desc._premio'!E82,"")) ->  | G17: =IF(n1_tec="HEFA",'Fluxo de Caixa Desc._premio'!F40,IF(n1_tec="ATJ",'Fluxo de Caixa Desc._premio'!F82,"")) ->  | H17: =IF(n1_tec="HEFA",'Fluxo de Caixa Desc._premio'!G40,IF(n1_tec="ATJ",'Fluxo de Caixa Desc._premio'!G82,"")) ->  | I17: =IF(n1_tec="HEFA",'Fluxo de Caixa Desc._premio'!H40,IF(n1_tec="ATJ",'Fluxo de Caixa Desc._premio'!H82,"")) ->  | J17: =IF(n1_tec="HEFA",'Fluxo de Caixa Desc._premio'!I40,IF(n1_tec="ATJ",'Fluxo de Caixa Desc._premio'!I82,"")) ->  | K17: =IF(n1_tec="HEFA",'Fluxo de Caixa Desc._premio'!J40,IF(n1_tec="ATJ",'Fluxo de Caixa Desc._premio'!J82,"")) ->  | L17: =IF(n1_tec="HEFA",'Fluxo de Caixa Desc._premio'!K40,IF(n1_tec="ATJ",'Fluxo de Caixa Desc._premio'!K82,"")) ->  | M17: =IF(n1_tec="HEFA",'Fluxo de Caixa Desc._premio'!L40,IF(n1_tec="ATJ",'Fluxo de Caixa Desc._premio'!L82,"")) ->  | N17: =IF(n1_tec="HEFA",'Fluxo de Caixa Desc._premio'!M40,IF(n1_tec="ATJ",'Fluxo de Caixa Desc._premio'!M82,"")) ->  | O17: =IF(n1_tec="HEFA",'Fluxo de Caixa Desc._premio'!N40,IF(n1_tec="ATJ",'Fluxo de Caixa Desc._premio'!N82,"")) ->  | P17: =IF(n1_tec="HEFA",'Fluxo de Caixa Desc._premio'!O40,IF(n1_tec="ATJ",'Fluxo de Caixa Desc._premio'!O82,"")) ->  | Q17: =IF(n1_tec="HEFA",'Fluxo de Caixa Desc._premio'!P40,IF(n1_tec="ATJ",'Fluxo de Caixa Desc._premio'!P82,"")) ->  | R17: =IF(n1_tec="HEFA",'Fluxo de Caixa Desc._premio'!Q40,IF(n1_tec="ATJ",'Fluxo de Caixa Desc._premio'!Q82,"")) ->  | S17: =IF(n1_tec="HEFA",'Fluxo de Caixa Desc._premio'!R40,IF(n1_tec="ATJ",'Fluxo de Caixa Desc._premio'!R82,"")) ->  | T17: =IF(n1_tec="HEFA",'Fluxo de Caixa Desc._premio'!S40,IF(n1_tec="ATJ",'Fluxo de Caixa Desc._premio'!S82,"")) ->  | U17: =IF(n1_tec="HEFA",'Fluxo de Caixa Desc._premio'!T40,IF(n1_tec="ATJ",'Fluxo de Caixa Desc._premio'!T82,"")) ->  | V17: =IF(n1_tec="HEFA",'Fluxo de Caixa Desc._premio'!U40,IF(n1_tec="ATJ",'Fluxo de Caixa Desc._premio'!U82,"")) ->  | W17: =IF(n1_tec="HEFA",'Fluxo de Caixa Desc._premio'!V40,IF(n1_tec="ATJ",'Fluxo de Caixa Desc._premio'!V82,"")) ->  | X17: =IF(n1_tec="HEFA",'Fluxo de Caixa Desc._premio'!W40,IF(n1_tec="ATJ",'Fluxo de Caixa Desc._premio'!W82,"")) ->  | Y17: =IF(n1_tec="HEFA",'Fluxo de Caixa Desc._premio'!X40,IF(n1_tec="ATJ",'Fluxo de Caixa Desc._premio'!X82,"")) ->  | Z17: =IF(n1_tec="HEFA",'Fluxo de Caixa Desc._premio'!Y40,IF(n1_tec="ATJ",'Fluxo de Caixa Desc._premio'!Y82,"")) ->  | AA17: =IF(n1_tec="HEFA",'Fluxo de Caixa Desc._premio'!Z40,IF(n1_tec="ATJ",'Fluxo de Caixa Desc._premio'!Z82,"")) ->  | AB17: =IF(n1_tec="HEFA",'Fluxo de Caixa Desc._premio'!AA40,IF(n1_tec="ATJ",'Fluxo de Caixa Desc._premio'!AA82,"")) ->  | AC17: =IF(n1_tec="HEFA",'Fluxo de Caixa Desc._premio'!AB40,IF(n1_tec="ATJ",'Fluxo de Caixa Desc._premio'!AB82,"")) ->  | AD17: =IF(n1_tec="HEFA",'Fluxo de Caixa Desc._premio'!AC40,IF(n1_tec="ATJ",'Fluxo de Caixa Desc._premio'!AC82,"")) ->  | AE17: =IF(n1_tec="HEFA",'Fluxo de Caixa Desc._premio'!AD40,IF(n1_tec="ATJ",'Fluxo de Caixa Desc._premio'!AD82,"")) ->  | AF17: =IF(n1_tec="HEFA",'Fluxo de Caixa Desc._premio'!AE40,IF(n1_tec="ATJ",'Fluxo de Caixa Desc._premio'!AE82,"")) ->  | AG17: =IF(n1_tec="HEFA",'Fluxo de Caixa Desc._premio'!AF40,IF(n1_tec="ATJ",'Fluxo de Caixa Desc._premio'!AF82,"")) ->  | AH17: =IF(n1_tec="HEFA",'Fluxo de Caixa Desc._premio'!AG40,IF(n1_tec="ATJ",'Fluxo de Caixa Desc._premio'!AG82,"")) ->  | AI17: =IF(n1_tec="HEFA",'Fluxo de Caixa Desc._premio'!AH40,IF(n1_tec="ATJ",'Fluxo de Caixa Desc._premio'!AH82,"")) ->  | AJ17: =IF(n1_tec="HEFA",'Fluxo de Caixa Desc._premio'!AI40,IF(n1_tec="ATJ",'Fluxo de Caixa Desc._premio'!AI82,"")) ->  | AK17: =IF(n1_tec="HEFA",'Fluxo de Caixa Desc._premio'!AJ40,IF(n1_tec="ATJ",'Fluxo de Caixa Desc._premio'!AJ82,"")) ->  | AL17: =IF(n1_tec="HEFA",'Fluxo de Caixa Desc._premio'!AK40,IF(n1_tec="ATJ",'Fluxo de Caixa Desc._premio'!AK82,"")) ->  | AM17: =IF(n1_tec="HEFA",'Fluxo de Caixa Desc._premio'!AL40,IF(n1_tec="ATJ",'Fluxo de Caixa Desc._premio'!AL82,"")) ->  | AN17: =IF(n1_tec="HEFA",'Fluxo de Caixa Desc._premio'!AM40,IF(n1_tec="ATJ",'Fluxo de Caixa Desc._premio'!AM82,"")) ->  | AO17: =IF(n1_tec="HEFA",'Fluxo de Caixa Desc._premio'!AN40,IF(n1_tec="ATJ",'Fluxo de Caixa Desc._premio'!AN82,"")) ->  | AP17: =IF(n1_tec="HEFA",'Fluxo de Caixa Desc._premio'!AO40,IF(n1_tec="ATJ",'Fluxo de Caixa Desc._premio'!AO82,"")) ->  | AQ17: =IF(n1_tec="HEFA",'Fluxo de Caixa Desc._premio'!AP40,IF(n1_tec="ATJ",'Fluxo de Caixa Desc._premio'!AP82,"")) ->  | AR17: =IF(n1_tec="HEFA",'Fluxo de Caixa Desc._premio'!AQ40,IF(n1_tec="ATJ",'Fluxo de Caixa Desc._premio'!AQ82,"")) ->  | AS17: =IF(n1_tec="HEFA",'Fluxo de Caixa Desc._premio'!AR40,IF(n1_tec="ATJ",'Fluxo de Caixa Desc._premio'!AR82,"")) ->  | AT17: =IF(n1_tec="HEFA",'Fluxo de Caixa Desc._premio'!AS40,IF(n1_tec="ATJ",'Fluxo de Caixa Desc._premio'!AS82,"")) ->  | AU17: =IF(n1_tec="HEFA",'Fluxo de Caixa Desc._premio'!AT40,IF(n1_tec="ATJ",'Fluxo de Caixa Desc._premio'!AT82,"")) ->  | AV17: =IF(n1_tec="HEFA",'Fluxo de Caixa Desc._premio'!AU40,IF(n1_tec="ATJ",'Fluxo de Caixa Desc._premio'!AU82,"")) ->  | AW17: =IF(n1_tec="HEFA",'Fluxo de Caixa Desc._premio'!AV40,IF(n1_tec="ATJ",'Fluxo de Caixa Desc._premio'!AV82,"")) -> 
L22: Item (% LCOF*) | N22: =IF(n1_tec<>"",n1_tec,"") -> 
L23: CAPEX | N23: =IF(n1_tec="HEFA",'Fluxo de Caixa Descontado'!B47,IF(n1_tec="ATJ",'Fluxo de Caixa Descontado'!B89,"")) ->  | Q23: Valor presente líquido do projeto (milhões R$) | U23: =IF(n1_tec="HEFA",'Fluxo de Caixa Desc._premio'!B6,IF(n1_tec="ATJ",'Fluxo de Caixa Desc._premio'!B12,"")) -> 
L25: =IF([0]!n1_tec="HEFA",IF('CAPEX e OPEX'!C8=1,"Óleo de Soja","Óleo de Soja + Sebo Bovino"),"Etanol") -> Etanol | N25: =IF(n1_tec="HEFA",'Fluxo de Caixa Descontado'!B48*'Fluxo de Caixa Descontado'!B52,IF(n1_tec="ATJ",'Fluxo de Caixa Descontado'!B90*'Fluxo de Caixa Descontado'!B94,"")) -> 
L27: Hidrogênio | N27: =IF(n1_tec="HEFA",'Fluxo de Caixa Descontado'!B48*'Fluxo de Caixa Descontado'!B53,IF(n1_tec="ATJ",'Fluxo de Caixa Descontado'!B90*'Fluxo de Caixa Descontado'!B95,"")) ->  | Q27: Taxa interna de retorno do projeto | U27: =IF(n1_tec="HEFA",'Fluxo de Caixa Desc._premio'!B7,IF(n1_tec="ATJ",'Fluxo de Caixa Desc._premio'!B13,"")) -> 
L29: Catalisadores | N29: =IF(n1_tec="HEFA",'Fluxo de Caixa Descontado'!B48*'Fluxo de Caixa Descontado'!B54,IF(n1_tec="ATJ",'Fluxo de Caixa Descontado'!B90*'Fluxo de Caixa Descontado'!B96,"")) -> 
L31: Utilidades | N31: =IF(n1_tec="HEFA",'Fluxo de Caixa Descontado'!B48*'Fluxo de Caixa Descontado'!B55,IF(n1_tec="ATJ",'Fluxo de Caixa Descontado'!B90*'Fluxo de Caixa Descontado'!B97,"")) ->  | Q31: Razão TIR / TCMC | U31: =IF(U27<>"",U27/'Parâmetros de Fluxo de Caixa'!B32,"") -> 
L33: OPEX fixo | N33: =IF(n1_tec="HEFA",'Fluxo de Caixa Descontado'!B49,IF(n1_tec="ATJ",'Fluxo de Caixa Descontado'!B91,"")) -> 
L35: Tributos | N35: =IF(n1_tec="HEFA",'Fluxo de Caixa Descontado'!B50,IF(n1_tec="ATJ",'Fluxo de Caixa Descontado'!B92,"")) -> 

Sheet Histórico de Cálculos
B5: Informações: | D5: Entradas: | N5: Resultados Principais: | R5: Todos os resultados :
B6: Data | C6: Hora | D6: Capacidade nominal da planta | E6: Tecnologia | F6: Matéria-prima | G6: % Sebo | H6: CORSIA volume | I6: CORSIA prêmio | J6: ProBioQAV volume | K6: ProBioQAV prêmio | L6: Outros volume | M6: Outros prêmios | N6: MSP | O6: VPL | P6: TIR | Q6: TIR/TCMC | R6: CORSIA preço | S6: CORSIA IC | T6: CORSIA custo redução | U6: ProBioQAV preço | V6: ProBioQAV IC | W6: ProBioQAV custo redução | X6: Outros preço | Y6: Outros IC | Z6: Outros custo redução | AA6: Diesel Verde preço | AB6: Diesel Verde IC | AC6: Diesel Verde custo redução | AD6: bioNafta preço | AE6: bioNafta IC | AF6: bioNafta custo redução | AG6: bioGLP preço | AH6: bioGLP IC | AI6: bioGLP custo redução

Sheet Fluxo de Caixa Descontado (hidden)
A1: Capacidade nominal da Planta (Ml comb. / ano) | B1: 800 | C1: Correlações para CAPEX entre 50 e 1000, inclui todas as frações líquidas (SAF, Diesel, Nafta/Gasolina)
A2: Fator de utilização | B2: 0.9
A3: Capacidade Operacional da Planta (Ml comb. / ano) | B3: =B1*B2 -> 720
A4: Preço mínimo de viabilidade SAF | B4: 11.00230888 | C4: por litro
A6: VPL HEFA | B6: =SUM(B39:AV39) -> 2.991384918e-12
A7: TCMC HEFA | B7: =IRR(B37:X37,'Parâmetros de Fluxo de Caixa'!$B$32) -> 0.1089456
A8: R$ / kg CO2 abatido - CORSIA default | B8: =B4/Listas!P9 -> 14.65065191
A9: R$ / kg CO2 abatido - ProBioQAV | B9: =B4/Listas!P11 -> 6.434914223
A10: R$ / kg CO2 abatido - CORSIA certificação core LCA | B10: =B4/Listas!P12 -> 10.49345848
A12: VPL ATJ | B12: =SUM(B81:AV81) -> 3458.646731
A13: TCMC HEFA | B13: =IRR(B79:X79,'Parâmetros de Fluxo de Caixa'!$B$24) -> 0.2041704383
A14: R$ / kg CO2 abatido - 1G cana CORSIA default | B14: =B4/Listas!Q9 -> 8.552813008
A15: R$ / kg CO2 abatido - 1G milho 2a safra CORSIA default | B15: =B4/Listas!R9 -> 12.36148755
A16: R$ / kg CO2 abatido - 1G cana ProBioQAV | B16: =B4/Listas!Q11 -> 5.776177572
A17: R$ / kg CO2 abatido - 1G milho 2a safra ProBioQAV | B17: =B4/Listas!R11 -> 5.662012437
A18: R$ / kg CO2 abatido - 1G cana CORSIA Certificação core LCA | B18: =B4/Listas!Q12 -> 7.227277206
A19: R$ / kg CO2 abatido - 1G milho 2a safra CORSIA Certificação core LCA | B19: =B4/Listas!R12 -> 6.792209391
A21: HEFA - Fluxo de Caixa
A22: Referencia ano | B22: 0 | C22: =B22+1 -> 1 | D22: =C22+1 -> 2 | E22: 3 | F22: 4 | G22: 5 | H22: 6 | I22: 7 | J22: 8 | K22: 9 | L22: 10 | M22: 11 | N22: 12 | O22: 13 | P22: 14 | Q22: 15 | R22: 16 | S22: 17 | T22: 18 | U22: 19 | V22: 20 | W22: 21 | X22: 22 | Y22: 23 | Z22: 24 | AA22: 25 | AB22: 26 | AC22: 27 | AD22: 28 | AE22: 29 | AF22: 30 | AG22: 31 | AH22: 32 | AI22: 33 | AJ22: 34 | AK22: 35 | AL22: 36 | AM22: 37 | AN22: 38 | AO22: 39 | AP22: 40 | AQ22: 41 | AR22: 42 | AS22: 43 | AT22: =AS22+1 -> 44 | AU22: 45 | AV22: 46
A23: Ano VPL | B23: =IF(B22+1<='Parâmetros de Fluxo de Caixa'!$B$3,'Fluxo de Caixa Descontado'!B22,'Fluxo de Caixa Descontado'!B22+'Parâmetros de Fluxo de Caixa'!$B$4/12) -> 0 | C23: =IF(C22+1<='Parâmetros de Fluxo de Caixa'!$B$3,'Fluxo de Caixa Descontado'!C22,'Fluxo de Caixa Descontado'!C22+'Parâmetros de Fluxo de Caixa'!$B$4/12) -> 1 | D23: =IF(D22+1<='Parâmetros de Fluxo de Caixa'!$B$3,'Fluxo de Caixa Descontado'!D22,'Fluxo de Caixa Descontado'!D22+'Parâmetros de Fluxo de Caixa'!$B$4/12) -> 2 | E23: =IF(E22+1<='Parâmetros de Fluxo de Caixa'!$B$3,'Fluxo de Caixa Descontado'!E22,'Fluxo de Caixa Descontado'!E22+'Parâmetros de Fluxo de Caixa'!$B$4/12) -> 3 | F23: =IF(F22+1<='Parâmetros de Fluxo de Caixa'!$B$3,'Fluxo de Caixa Descontado'!F22,'Fluxo de Caixa Descontado'!F22+'Parâmetros de Fluxo de Caixa'!$B$4/12) -> 4 | G23: =IF(G22+1<='Parâmetros de Fluxo de Caixa'!$B$3,'Fluxo de Caixa Descontado'!G22,'Fluxo de Caixa Descontado'!G22+'Parâmetros de Fluxo de Caixa'!$B$4/12) -> 5 | H23: =IF(H22+1<='Parâmetros de Fluxo de Caixa'!$B$3,'Fluxo de Caixa Descontado'!H22,'Fluxo de Caixa Descontado'!H22+'Parâmetros de Fluxo de Caixa'!$B$4/12) -> 6 | I23: =IF(I22+1<='Parâmetros de Fluxo de Caixa'!$B$3,'Fluxo de Caixa Descontado'!I22,'Fluxo de Caixa Descontado'!I22+'Parâmetros de Fluxo de Caixa'!$B$4/12) -> 7 | J23: =IF(J22+1<='Parâmetros de Fluxo de Caixa'!$B$3,'Fluxo de Caixa Descontado'!J22,'Fluxo de Caixa Descontado'!J22+'Parâmetros de Fluxo de Caixa'!$B$4/12) -> 8 | K23: =IF(K22+1<='Parâmetros de Fluxo de Caixa'!$B$3,'Fluxo de Caixa Descontado'!K22,'Fluxo de Caixa Descontado'!K22+'Parâmetros de Fluxo de Caixa'!$B$4/12) -> 9 | L23: =IF(L22+1<='Parâmetros de Fluxo de Caixa'!$B$3,'Fluxo de Caixa Descontado'!L22,'Fluxo de Caixa Descontado'!L22+'Parâmetros de Fluxo de Caixa'!$B$4/12) -> 10 | M23: =IF(M22+1<='Parâmetros de Fluxo de Caixa'!$B$3,'Fluxo de Caixa Descontado'!M22,'Fluxo de Caixa Descontado'!M22+'Parâmetros de Fluxo de Caixa'!$B$4/12) -> 11 | N23: =IF(N22+1<='Parâmetros de Fluxo de Caixa'!$B$3,'Fluxo de Caixa Descontado'!N22,'Fluxo de Caixa Descontado'!N22+'Parâmetros de Fluxo de Caixa'!$B$4/12) -> 12 | O23: =IF(O22+1<='Parâmetros de Fluxo de Caixa'!$B$3,'Fluxo de Caixa Descontado'!O22,'Fluxo de Caixa Descontado'!O22+'Parâmetros de Fluxo de Caixa'!$B$4/12) -> 13 | P23: =IF(P22+1<='Parâmetros de Fluxo de Caixa'!$B$3,'Fluxo de Caixa Descontado'!P22,'Fluxo de Caixa Descontado'!P22+'Parâmetros de Fluxo de Caixa'!$B$4/12) -> 14 | Q23: =IF(Q22+1<='Parâmetros de Fluxo de Caixa'!$B$3,'Fluxo de Caixa Descontado'!Q22,'Fluxo de Caixa Descontado'!Q22+'Parâmetros de Fluxo de Caixa'!$B$4/12) -> 15 | R23: =IF(R22+1<='Parâmetros de Fluxo de Caixa'!$B$3,'Fluxo de Caixa Descontado'!R22,'Fluxo de Caixa Descontado'!R22+'Parâmetros de Fluxo de Caixa'!$B$4/12) -> 16 | S23: =IF(S22+1<='Parâmetros de Fluxo de Caixa'!$B$3,'Fluxo de Caixa Descontado'!S22,'Fluxo de Caixa Descontado'!S22+'Parâmetros de Fluxo de Caixa'!$B$4/12) -> 17 | T23: =IF(T22+1<='Parâmetros de Fluxo de Caixa'!$B$3,'Fluxo de Caixa Descontado'!T22,'Fluxo de Caixa Descontado'!T22+'Parâmetros de Fluxo de Caixa'!$B$4/12) -> 18 | U23: =IF(U22+1<='Parâmetros de Fluxo de Caixa'!$B$3,'Fluxo de Caixa Descontado'!U22,'Fluxo de Caixa Descontado'!U22+'Parâmetros de Fluxo de Caixa'!$B$4/12) -> 19 | V23: =IF(V22+1<='Parâmetros de Fluxo de Caixa'!$B$3,'Fluxo de Caixa Descontado'!V22,'Fluxo de Caixa Descontado'!V22+'Parâmetros de Fluxo de Caixa'!$B$4/12) -> 20 | W23: =IF(W22+1<='Parâmetros de Fluxo de Caixa'!$B$3,'Fluxo de Caixa Descontado'!W22,'Fluxo de Caixa Descontado'!W22+'Parâmetros de Fluxo de Caixa'!$B$4/12) -> 21 | X23: =IF(X22+1<='Parâmetros de Fluxo de Caixa'!$B$3,'Fluxo de Caixa Descontado'!X22,'Fluxo de Caixa Descontado'!X22+'Parâmetros de Fluxo de Caixa'!$B$4/12) -> 22 | Y23: =IF(Y22+1<='Parâmetros de Fluxo de Caixa'!$B$3,'Fluxo de Caixa Descontado'!Y22,'Fluxo de Caixa Descontado'!Y22+'Parâmetros de Fluxo de Caixa'!$B$4/12) -> 23 | Z23: =IF(Z22+1<='Parâmetros de Fluxo de Caixa'!$B$3,'Fluxo de Caixa Descontado'!Z22,'Fluxo de Caixa Descontado'!Z22+'Parâmetros de Fluxo de Caixa'!$B$4/12) -> 24 | AA23: =IF(AA22+1<='Parâmetros de Fluxo de Caixa'!$B$3,'Fluxo de Caixa Descontado'!AA22,'Fluxo de Caixa Descontado'!AA22+'Parâmetros de Fluxo de Caixa'!$B$4/12) -> 25 | AB23: =IF(AB22+1<='Parâmetros de Fluxo de Caixa'!$B$3,'Fluxo de Caixa Descontado'!AB22,'Fluxo de Caixa Descontado'!AB22+'Parâmetros de Fluxo de Caixa'!$B$4/12) -> 26 | AC23: =IF(AC22+1<='Parâmetros de Fluxo de Caixa'!$B$3,'Fluxo de Caixa Descontado'!AC22,'Fluxo de Caixa Descontado'!AC22+'Parâmetros de Fluxo de Caixa'!$B$4/12) -> 27 | AD23: =IF(AD22+1<='Parâmetros de Fluxo de Caixa'!$B$3,'Fluxo de Caixa Descontado'!AD22,'Fluxo de Caixa Descontado'!AD22+'Parâmetros de Fluxo de Caixa'!$B$4/12) -> 28 | AE23: =IF(AE22+1<='Parâmetros de Fluxo de Caixa'!$B$3,'Fluxo de Caixa Descontado'!AE22,'Fluxo de Caixa Descontado'!AE22+'Parâmetros de Fluxo de Caixa'!$B$4/12) -> 29 | AF23: =IF(AF22+1<='Parâmetros de Fluxo de Caixa'!$B$3,'Fluxo de Caixa Descontado'!AF22,'Fluxo de Caixa Descontado'!AF22+'Parâmetros de Fluxo de Caixa'!$B$4/12) -> 30 | AG23: =IF(AG22+1<='Parâmetros de Fluxo de Caixa'!$B$3,'Fluxo de Caixa Descontado'!AG22,'Fluxo de Caixa Descontado'!AG22+'Parâmetros de Fluxo de Caixa'!$B$4/12) -> 31 | AH23: =IF(AH22+1<='Parâmetros de Fluxo de Caixa'!$B$3,'Fluxo de Caixa Descontado'!AH22,'Fluxo de Caixa Descontado'!AH22+'Parâmetros de Fluxo de Caixa'!$B$4/12) -> 32 | AI23: =IF(AI22+1<='Parâmetros de Fluxo de Caixa'!$B$3,'Fluxo de Caixa Descontado'!AI22,'Fluxo de Caixa Descontado'!AI22+'Parâmetros de Fluxo de Caixa'!$B$4/12) -> 33 | AJ23: =IF(AJ22+1<='Parâmetros de Fluxo de Caixa'!$B$3,'Fluxo de Caixa Descontado'!AJ22,'Fluxo de Caixa Descontado'!AJ22+'Parâmetros de Fluxo de Caixa'!$B$4/12) -> 34 | AK23: =IF(AK22+1<='Parâmetros de Fluxo de Caixa'!$B$3,'Fluxo de Caixa Descontado'!AK22,'Fluxo de Caixa Descontado'!AK22+'Parâmetros de Fluxo de Caixa'!$B$4/12) -> 35 | AL23: =IF(AL22+1<='Parâmetros de Fluxo de Caixa'!$B$3,'Fluxo de Caixa Descontado'!AL22,'Fluxo de Caixa Descontado'!AL22+'Parâmetros de Fluxo de Caixa'!$B$4/12) -> 36 | AM23: =IF(AM22+1<='Parâmetros de Fluxo de Caixa'!$B$3,'Fluxo de Caixa Descontado'!AM22,'Fluxo de Caixa Descontado'!AM22+'Parâmetros de Fluxo de Caixa'!$B$4/12) -> 37 | AN23: =IF(AN22+1<='Parâmetros de Fluxo de Caixa'!$B$3,'Fluxo de Caixa Descontado'!AN22,'Fluxo de Caixa Descontado'!AN22+'Parâmetros de Fluxo de Caixa'!$B$4/12) -> 38 | AO23: =IF(AO22+1<='Parâmetros de Fluxo de Caixa'!$B$3,'Fluxo de Caixa Descontado'!AO22,'Fluxo de Caixa Descontado'!AO22+'Parâmetros de Fluxo de Caixa'!$B$4/12) -> 39 | AP23: =IF(AP22+1<='Parâmetros de Fluxo de Caixa'!$B$3,'Fluxo de Caixa Descontado'!AP22,'Fluxo de Caixa Descontado'!AP22+'Parâmetros de Fluxo de Caixa'!$B$4/12) -> 40 | AQ23: =IF(AQ22+1<='Parâmetros de Fluxo de Caixa'!$B$3,'Fluxo de Caixa Descontado'!AQ22,'Fluxo de Caixa Descontado'!AQ22+'Parâmetros de Fluxo de Caixa'!$B$4/12) -> 41 | AR23: =IF(AR22+1<='Parâmetros de Fluxo de Caixa'!$B$3,'Fluxo de Caixa Descontado'!AR22,'Fluxo de Caixa Descontado'!AR22+'Parâmetros de Fluxo de Caixa'!$B$4/12) -> 42 | AS23: =IF(AS22+1<='Parâmetros de Fluxo de Caixa'!$B$3,'Fluxo de Caixa Descontado'!AS22,'Fluxo de Caixa Descontado'!AS22+'Parâmetros de Fluxo de Caixa'!$B$4/12) -> 43 | AT23: =IF(AT22+1<='Parâmetros de Fluxo de Caixa'!$B$3,'Fluxo de Caixa Descontado'!AT22,'Fluxo de Caixa Descontado'!AT22+'Parâmetros de Fluxo de Caixa'!$B$4/12) -> 44 | AU23: =IF(AU22+1<='Parâmetros de Fluxo de Caixa'!$B$3,'Fluxo de Caixa Descontado'!AU22,'Fluxo de Caixa Descontado'!AU22+'Parâmetros de Fluxo de Caixa'!$B$4/12) -> 45 | AV23: =IF(AV22+1<='Parâmetros de Fluxo de Caixa'!$B$3,'Fluxo de Caixa Descontado'!AV22,'Fluxo de Caixa Descontado'!AV22+'Parâmetros de Fluxo de Caixa'!$B$4/12) -> 46
A24: Ano Projeto | B24: =IF(B23+1<='Parâmetros de Fluxo de Caixa'!$B$12,B23+1,"") -> 1 | C24: =IF(C23+1<='Parâmetros de Fluxo de Caixa'!$B$12,C23+1,"") -> 2 | D24: =IF(D23+1<='Parâmetros de Fluxo de Caixa'!$B$12,D23+1,"") -> 3 | E24: =IF(E23+1<='Parâmetros de Fluxo de Caixa'!$B$12,E23+1,"") -> 4 | F24: =IF(F23+1<='Parâmetros de Fluxo de Caixa'!$B$12,F23+1,"") -> 5 | G24: =IF(G23+1<='Parâmetros de Fluxo de Caixa'!$B$12,G23+1,"") -> 6 | H24: =IF(H23+1<='Parâmetros de Fluxo de Caixa'!$B$12,H23+1,"") -> 7 | I24: =IF(I23+1<='Parâmetros de Fluxo de Caixa'!$B$12,I23+1,"") -> 8 | J24: =IF(J23+1<='Parâmetros de Fluxo de Caixa'!$B$12,J23+1,"") -> 9 | K24: =IF(K23+1<='Parâmetros de Fluxo de Caixa'!$B$12,K23+1,"") -> 10 | L24: =IF(L23+1<='Parâmetros de Fluxo de Caixa'!$B$12,L23+1,"") -> 11 | M24: =IF(M23+1<='Parâmetros de Fluxo de Caixa'!$B$12,M23+1,"") -> 12 | N24: =IF(N23+1<='Parâmetros de Fluxo de Caixa'!$B$12,N23+1,"") -> 13 | O24: =IF(O23+1<='Parâmetros de Fluxo de Caixa'!$B$12,O23+1,"") -> 14 | P24: =IF(P23+1<='Parâmetros de Fluxo de Caixa'!$B$12,P23+1,"") -> 15 | Q24: =IF(Q23+1<='Parâmetros de Fluxo de Caixa'!$B$12,Q23+1,"") -> 16 | R24: =IF(R23+1<='Parâmetros de Fluxo de Caixa'!$B$12,R23+1,"") -> 17 | S24: =IF(S23+1<='Parâmetros de Fluxo de Caixa'!$B$12,S23+1,"") -> 18 | T24: =IF(T23+1<='Parâmetros de Fluxo de Caixa'!$B$12,T23+1,"") -> 19 | U24: =IF(U23+1<='Parâmetros de Fluxo de Caixa'!$B$12,U23+1,"") -> 20 | V24: =IF(V23+1<='Parâmetros de Fluxo de Caixa'!$B$12,V23+1,"") -> 21 | W24: =IF(W23+1<='Parâmetros de Fluxo de Caixa'!$B$12,W23+1,"") -> 22 | X24: =IF(X23+1<='Parâmetros de Fluxo de Caixa'!$B$12,X23+1,"") -> 23 | Y24: =IF(Y23+1<='Parâmetros de Fluxo de Caixa'!$B$12,Y23+1,"") ->  | Z24: =IF(Z23+1<='Parâmetros de Fluxo de Caixa'!$B$12,Z23+1,"") ->  | AA24: =IF(AA23+1<='Parâmetros de Fluxo de Caixa'!$B$12,AA23+1,"") ->  | AB24: =IF(AB23+1<='Parâmetros de Fluxo de Caixa'!$B$12,AB23+1,"") ->  | AC24: =IF(AC23+1<='Parâmetros de Fluxo de Caixa'!$B$12,AC23+1,"") ->  | AD24: =IF(AD23+1<='Parâmetros de Fluxo de Caixa'!$B$12,AD23+1,"") ->  | AE24: =IF(AE23+1<='Parâmetros de Fluxo de Caixa'!$B$12,AE23+1,"") ->  | AF24: =IF(AF23+1<='Parâmetros de Fluxo de Caixa'!$B$12,AF23+1,"") ->  | AG24: =IF(AG23+1<='Parâmetros de Fluxo de Caixa'!$B$12,AG23+1,"") ->  | AH24: =IF(AH23+1<='Parâmetros de Fluxo de Caixa'!$B$12,AH23+1,"") ->  | AI24: =IF(AI23+1<='Parâmetros de Fluxo de Caixa'!$B$12,AI23+1,"") ->  | AJ24: =IF(AJ23+1<='Parâmetros de Fluxo de Caixa'!$B$12,AJ23+1,"") ->  | AK24: =IF(AK23+1<='Parâmetros de Fluxo de Caixa'!$B$12,AK23+1,"") ->  | AL24: =IF(AL23+1<='Parâmetros de Fluxo de Caixa'!$B$12,AL23+1,"") ->  | AM24: =IF(AM23+1<='Parâmetros de Fluxo de Caixa'!$B$12,AM23+1,"") ->  | AN24: =IF(AN23+1<='Parâmetros de Fluxo de Caixa'!$B$12,AN23+1,"") ->  | AO24: =IF(AO23+1<='Parâmetros de Fluxo de Caixa'!$B$12,AO23+1,"") ->  | AP24: =IF(AP23+1<='Parâmetros de Fluxo de Caixa'!$B$12,AP23+1,"") ->  | AQ24: =IF(AQ23+1<='Parâmetros de Fluxo de Caixa'!$B$12,AQ23+1,"") ->  | AR24: =IF(AR23+1<='Parâmetros de Fluxo de Caixa'!$B$12,AR23+1,"") ->  | AS24: =IF(AS23+1<='Parâmetros de Fluxo de Caixa'!$B$12,AS23+1,"") ->  | AT24: =IF(AT23+1<='Parâmetros de Fluxo de Caixa'!$B$12,AT23+1,"") ->  | AU24: =IF(AU23+1<='Parâmetros de Fluxo de Caixa'!$B$12,AU23+1,"") ->  | AV24: =IF(AV23+1<='Parâmetros de Fluxo de Caixa'!$B$12,AV23+1,"") -> 
A25: Cronograma | B25: =IF(B24<='Parâmetros de Fluxo de Caixa'!$B$3,"Construção",IF(B24='Parâmetros de Fluxo de Caixa'!$B$3+1+'Parâmetros de Fluxo de Caixa'!$B$4/12,"Start-up",IF(B24<='Parâmetros de Fluxo de Caixa'!$B$12,"Operação",""))) -> Construção | C25: =IF(C24<='Parâmetros de Fluxo de Caixa'!$B$3,"Construção",IF(C24='Parâmetros de Fluxo de Caixa'!$B$3+1+'Parâmetros de Fluxo de Caixa'!$B$4/12,"Start-up",IF(C24<='Parâmetros de Fluxo de Caixa'!$B$12,"Operação",""))) -> Construção | D25: =IF(D24<='Parâmetros de Fluxo de Caixa'!$B$3,"Construção",IF(D24='Parâmetros de Fluxo de Caixa'!$B$3+1+'Parâmetros de Fluxo de Caixa'!$B$4/12,"Start-up",IF(D24<='Parâmetros de Fluxo de Caixa'!$B$12,"Operação",""))) -> Construção | E25: =IF(E24<='Parâmetros de Fluxo de Caixa'!$B$3,"Construção",IF(E24='Parâmetros de Fluxo de Caixa'!$B$3+1+'Parâmetros de Fluxo de Caixa'!$B$4/12,"Start-up",IF(E24<='Parâmetros de Fluxo de Caixa'!$B$12,"Operação",""))) -> Start-up | F25: =IF(F24<='Parâmetros de Fluxo de Caixa'!$B$3,"Construção",IF(F24='Parâmetros de Fluxo de Caixa'!$B$3+1+'Parâmetros de Fluxo de Caixa'!$B$4/12,"Start-up",IF(F24<='Parâmetros de Fluxo de Caixa'!$B$12,"Operação",""))) -> Operação | G25: =IF(G24<='Parâmetros de Fluxo de Caixa'!$B$3,"Construção",IF(G24='Parâmetros de Fluxo de Caixa'!$B$3+1+'Parâmetros de Fluxo de Caixa'!$B$4/12,"Start-up",IF(G24<='Parâmetros de Fluxo de Caixa'!$B$12,"Operação",""))) -> Operação | H25: =IF(H24<='Parâmetros de Fluxo de Caixa'!$B$3,"Construção",IF(H24='Parâmetros de Fluxo de Caixa'!$B$3+1+'Parâmetros de Fluxo de Caixa'!$B$4/12,"Start-up",IF(H24<='Parâmetros de Fluxo de Caixa'!$B$12,"Operação",""))) -> Operação | I25: =IF(I24<='Parâmetros de Fluxo de Caixa'!$B$3,"Construção",IF(I24='Parâmetros de Fluxo de Caixa'!$B$3+1+'Parâmetros de Fluxo de Caixa'!$B$4/12,"Start-up",IF(I24<='Parâmetros de Fluxo de Caixa'!$B$12,"Operação",""))) -> Operação | J25: =IF(J24<='Parâmetros de Fluxo de Caixa'!$B$3,"Construção",IF(J24='Parâmetros de Fluxo de Caixa'!$B$3+1+'Parâmetros de Fluxo de Caixa'!$B$4/12,"Start-up",IF(J24<='Parâmetros de Fluxo de Caixa'!$B$12,"Operação",""))) -> Operação | K25: =IF(K24<='Parâmetros de Fluxo de Caixa'!$B$3,"Construção",IF(K24='Parâmetros de Fluxo de Caixa'!$B$3+1+'Parâmetros de Fluxo de Caixa'!$B$4/12,"Start-up",IF(K24<='Parâmetros de Fluxo de Caixa'!$B$12,"Operação",""))) -> Operação | L25: =IF(L24<='Parâmetros de Fluxo de Caixa'!$B$3,"Construção",IF(L24='Parâmetros de Fluxo de Caixa'!$B$3+1+'Parâmetros de Fluxo de Caixa'!$B$4/12,"Start-up",IF(L24<='Parâmetros de Fluxo de Caixa'!$B$12,"Operação",""))) -> Operação | M25: =IF(M24<='Parâmetros de Fluxo de Caixa'!$B$3,"Construção",IF(M24='Parâmetros de Fluxo de Caixa'!$B$3+1+'Parâmetros de Fluxo de Caixa'!$B$4/12,"Start-up",IF(M24<='Parâmetros de Fluxo de Caixa'!$B$12,"Operação",""))) -> Operação | N25: =IF(N24<='Parâmetros de Fluxo de Caixa'!$B$3,"Construção",IF(N24='Parâmetros de Fluxo de Caixa'!$B$3+1+'Parâmetros de Fluxo de Caixa'!$B$4/12,"Start-up",IF(N24<='Parâmetros de Fluxo de Caixa'!$B$12,"Operação",""))) -> Operação | O25: =IF(O24<='Parâmetros de Fluxo de Caixa'!$B$3,"Construção",IF(O24='Parâmetros de Fluxo de Caixa'!$B$3+1+'Parâmetros de Fluxo de Caixa'!$B$4/12,"Start-up",IF(O24<='Parâmetros de Fluxo de Caixa'!$B$12,"Operação",""))) -> Operação | P25: =IF(P24<='Parâmetros de Fluxo de Caixa'!$B$3,"Construção",IF(P24='Parâmetros de Fluxo de Caixa'!$B$3+1+'Parâmetros de Fluxo de Caixa'!$B$4/12,"Start-up",IF(P24<='Parâmetros de Fluxo de Caixa'!$B$12,"Operação",""))) -> Operação | Q25: =IF(Q24<='Parâmetros de Fluxo de Caixa'!$B$3,"Construção",IF(Q24='Parâmetros de Fluxo de Caixa'!$B$3+1+'Parâmetros de Fluxo de Caixa'!$B$4/12,"Start-up",IF(Q24<='Parâmetros de Fluxo de Caixa'!$B$12,"Operação",""))) -> Operação | R25: =IF(R24<='Parâmetros de Fluxo de Caixa'!$B$3,"Construção",IF(R24='Parâmetros de Fluxo de Caixa'!$B$3+1+'Parâmetros de Fluxo de Caixa'!$B$4/12,"Start-up",IF(R24<='Parâmetros de Fluxo de Caixa'!$B$12,"Operação",""))) -> Operação | S25: =IF(S24<='Parâmetros de Fluxo de Caixa'!$B$3,"Construção",IF(S24='Parâmetros de Fluxo de Caixa'!$B$3+1+'Parâmetros de Fluxo de Caixa'!$B$4/12,"Start-up",IF(S24<='Parâmetros de Fluxo de Caixa'!$B$12,"Operação",""))) -> Operação | T25: =IF(T24<='Parâmetros de Fluxo de Caixa'!$B$3,"Construção",IF(T24='Parâmetros de Fluxo de Caixa'!$B$3+1+'Parâmetros de Fluxo de Caixa'!$B$4/12,"Start-up",IF(T24<='Parâmetros de Fluxo de Caixa'!$B$12,"Operação",""))) -> Operação | U25: =IF(U24<='Parâmetros de Fluxo de Caixa'!$B$3,"Construção",IF(U24='Parâmetros de Fluxo de Caixa'!$B$3+1+'Parâmetros de Fluxo de Caixa'!$B$4/12,"Start-up",IF(U24<='Parâmetros de Fluxo de Caixa'!$B$12,"Operação",""))) -> Operação | V25: =IF(V24<='Parâmetros de Fluxo de Caixa'!$B$3,"Construção",IF(V24='Parâmetros de Fluxo de Caixa'!$B$3+1+'Parâmetros de Fluxo de Caixa'!$B$4/12,"Start-up",IF(V24<='Parâmetros de Fluxo de Caixa'!$B$12,"Operação",""))) -> Operação | W25: =IF(W24<='Parâmetros de Fluxo de Caixa'!$B$3,"Construção",IF(W24='Parâmetros de Fluxo de Caixa'!$B$3+1+'Parâmetros de Fluxo de Caixa'!$B$4/12,"Start-up",IF(W24<='Parâmetros de Fluxo de Caixa'!$B$12,"Operação",""))) -> Operação | X25: =IF(X24<='Parâmetros de Fluxo de Caixa'!$B$3,"Construção",IF(X24='Parâmetros de Fluxo de Caixa'!$B$3+1+'Parâmetros de Fluxo de Caixa'!$B$4/12,"Start-up",IF(X24<='Parâmetros de Fluxo de Caixa'!$B$12,"Operação",""))) -> Operação | Y25: =IF(Y24<='Parâmetros de Fluxo de Caixa'!$B$3,"Construção",IF(Y24='Parâmetros de Fluxo de Caixa'!$B$3+1+'Parâmetros de Fluxo de Caixa'!$B$4/12,"Start-up",IF(Y24<='Parâmetros de Fluxo de Caixa'!$B$12,"Operação",""))) ->  | Z25: =IF(Z24<='Parâmetros de Fluxo de Caixa'!$B$3,"Construção",IF(Z24='Parâmetros de Fluxo de Caixa'!$B$3+1+'Parâmetros de Fluxo de Caixa'!$B$4/12,"Start-up",IF(Z24<='Parâmetros de Fluxo de Caixa'!$B$12,"Operação",""))) ->  | AA25: =IF(AA24<='Parâmetros de Fluxo de Caixa'!$B$3,"Construção",IF(AA24='Parâmetros de Fluxo de Caixa'!$B$3+1+'Parâmetros de Fluxo de Caixa'!$B$4/12,"Start-up",IF(AA24<='Parâmetros de Fluxo de Caixa'!$B$12,"Operação",""))) ->  | AB25: =IF(AB24<='Parâmetros de Fluxo de Caixa'!$B$3,"Construção",IF(AB24='Parâmetros de Fluxo de Caixa'!$B$3+1+'Parâmetros de Fluxo de Caixa'!$B$4/12,"Start-up",IF(AB24<='Parâmetros de Fluxo de Caixa'!$B$12,"Operação",""))) ->  | AC25: =IF(AC24<='Parâmetros de Fluxo de Caixa'!$B$3,"Construção",IF(AC24='Parâmetros de Fluxo de Caixa'!$B$3+1+'Parâmetros de Fluxo de Caixa'!$B$4/12,"Start-up",IF(AC24<='Parâmetros de Fluxo de Caixa'!$B$12,"Operação",""))) ->  | AD25: =IF(AD24<='Parâmetros de Fluxo de Caixa'!$B$3,"Construção",IF(AD24='Parâmetros de Fluxo de Caixa'!$B$3+1+'Parâmetros de Fluxo de Caixa'!$B$4/12,"Start-up",IF(AD24<='Parâmetros de Fluxo de Caixa'!$B$12,"Operação",""))) ->  | AE25: =IF(AE24<='Parâmetros de Fluxo de Caixa'!$B$3,"Construção",IF(AE24='Parâmetros de Fluxo de Caixa'!$B$3+1+'Parâmetros de Fluxo de Caixa'!$B$4/12,"Start-up",IF(AE24<='Parâmetros de Fluxo de Caixa'!$B$12,"Operação",""))) ->  | AF25: =IF(AF24<='Parâmetros de Fluxo de Caixa'!$B$3,"Construção",IF(AF24='Parâmetros de Fluxo de Caixa'!$B$3+1+'Parâmetros de Fluxo de Caixa'!$B$4/12,"Start-up",IF(AF24<='Parâmetros de Fluxo de Caixa'!$B$12,"Operação",""))) ->  | AG25: =IF(AG24<='Parâmetros de Fluxo de Caixa'!$B$3,"Construção",IF(AG24='Parâmetros de Fluxo de Caixa'!$B$3+1+'Parâmetros de Fluxo de Caixa'!$B$4/12,"Start-up",IF(AG24<='Parâmetros de Fluxo de Caixa'!$B$12,"Operação",""))) ->  | AH25: =IF(AH24<='Parâmetros de Fluxo de Caixa'!$B$3,"Construção",IF(AH24='Parâmetros de Fluxo de Caixa'!$B$3+1+'Parâmetros de Fluxo de Caixa'!$B$4/12,"Start-up",IF(AH24<='Parâmetros de Fluxo de Caixa'!$B$12,"Operação",""))) ->  | AI25: =IF(AI24<='Parâmetros de Fluxo de Caixa'!$B$3,"Construção",IF(AI24='Parâmetros de Fluxo de Caixa'!$B$3+1+'Parâmetros de Fluxo de Caixa'!$B$4/12,"Start-up",IF(AI24<='Parâmetros de Fluxo de Caixa'!$B$12,"Operação",""))) ->  | AJ25: =IF(AJ24<='Parâmetros de Fluxo de Caixa'!$B$3,"Construção",IF(AJ24='Parâmetros de Fluxo de Caixa'!$B$3+1+'Parâmetros de Fluxo de Caixa'!$B$4/12,"Start-up",IF(AJ24<='Parâmetros de Fluxo de Caixa'!$B$12,"Operação",""))) ->  | AK25: =IF(AK24<='Parâmetros de Fluxo de Caixa'!$B$3,"Construção",IF(AK24='Parâmetros de Fluxo de Caixa'!$B$3+1+'Parâmetros de Fluxo de Caixa'!$B$4/12,"Start-up",IF(AK24<='Parâmetros de Fluxo de Caixa'!$B$12,"Operação",""))) ->  | AL25: =IF(AL24<='Parâmetros de Fluxo de Caixa'!$B$3,"Construção",IF(AL24='Parâmetros de Fluxo de Caixa'!$B$3+1+'Parâmetros de Fluxo de Caixa'!$B$4/12,"Start-up",IF(AL24<='Parâmetros de Fluxo de Caixa'!$B$12,"Operação",""))) ->  | AM25: =IF(AM24<='Parâmetros de Fluxo de Caixa'!$B$3,"Construção",IF(AM24='Parâmetros de Fluxo de Caixa'!$B$3+1+'Parâmetros de Fluxo de Caixa'!$B$4/12,"Start-up",IF(AM24<='Parâmetros de Fluxo de Caixa'!$B$12,"Operação",""))) ->  | AN25: =IF(AN24<='Parâmetros de Fluxo de Caixa'!$B$3,"Construção",IF(AN24='Parâmetros de Fluxo de Caixa'!$B$3+1+'Parâmetros de Fluxo de Caixa'!$B$4/12,"Start-up",IF(AN24<='Parâmetros de Fluxo de Caixa'!$B$12,"Operação",""))) ->  | AO25: =IF(AO24<='Parâmetros de Fluxo de Caixa'!$B$3,"Construção",IF(AO24='Parâmetros de Fluxo de Caixa'!$B$3+1+'Parâmetros de Fluxo de Caixa'!$B$4/12,"Start-up",IF(AO24<='Parâmetros de Fluxo de Caixa'!$B$12,"Operação",""))) ->  | AP25: =IF(AP24<='Parâmetros de Fluxo de Caixa'!$B$3,"Construção",IF(AP24='Parâmetros de Fluxo de Caixa'!$B$3+1+'Parâmetros de Fluxo de Caixa'!$B$4/12,"Start-up",IF(AP24<='Parâmetros de Fluxo de Caixa'!$B$12,"Operação",""))) ->  | AQ25: =IF(AQ24<='Parâmetros de Fluxo de Caixa'!$B$3,"Construção",IF(AQ24='Parâmetros de Fluxo de Caixa'!$B$3+1+'Parâmetros de Fluxo de Caixa'!$B$4/12,"Start-up",IF(AQ24<='Parâmetros de Fluxo de Caixa'!$B$12,"Operação",""))) ->  | AR25: =IF(AR24<='Parâmetros de Fluxo de Caixa'!$B$3,"Construção",IF(AR24='Parâmetros de Fluxo de Caixa'!$B$3+1+'Parâmetros de Fluxo de Caixa'!$B$4/12,"Start-up",IF(AR24<='Parâmetros de Fluxo de Caixa'!$B$12,"Operação",""))) ->  | AS25: =IF(AS24<='Parâmetros de Fluxo de Caixa'!$B$3,"Construção",IF(AS24='Parâmetros de Fluxo de Caixa'!$B$3+1+'Parâmetros de Fluxo de Caixa'!$B$4/12,"Start-up",IF(AS24<='Parâmetros de Fluxo de Caixa'!$B$12,"Operação",""))) ->  | AT25: =IF(AT24<='Parâmetros de Fluxo de Caixa'!$B$3,"Construção",IF(AT24='Parâmetros de Fluxo de Caixa'!$B$3+1+'Parâmetros de Fluxo de Caixa'!$B$4/12,"Start-up",IF(AT24<='Parâmetros de Fluxo de Caixa'!$B$12,"Operação",""))) ->  | AU25: =IF(AU24<='Parâmetros de Fluxo de Caixa'!$B$3,"Construção",IF(AU24='Parâmetros de Fluxo de Caixa'!$B$3+1+'Parâmetros de Fluxo de Caixa'!$B$4/12,"Start-up",IF(AU24<='Parâmetros de Fluxo de Caixa'!$B$12,"Operação",""))) ->  | AV25: =IF(AV24<='Parâmetros de Fluxo de Caixa'!$B$3,"Construção",IF(AV24='Parâmetros de Fluxo de Caixa'!$B$3+1+'Parâmetros de Fluxo de Caixa'!$B$4/12,"Start-up",IF(AV24<='Parâmetros de Fluxo de Caixa'!$B$12,"Operação",""))) -> 
A27: Receitas (milhões R$ / ano) | B27: =IF(B25="Construção",0,IF(B25="Start-up",('CAPEX e OPEX'!$C$53*'Fluxo de Caixa Descontado'!$B$3)*(1-'Parâmetros de Fluxo de Caixa'!$B$14)+'Parâmetros de Fluxo de Caixa'!$B$14*'Parâmetros de Fluxo de Caixa'!$B$15*'Fluxo de Caixa Descontado'!C27,IF(B25="Operação",'CAPEX e OPEX'!$C$53*'Fluxo de Caixa Descontado'!$B$3,""))) -> 0 | C27: =IF(C25="Construção",0,IF(C25="Start-up",('CAPEX e OPEX'!$C$53*'Fluxo de Caixa Descontado'!$B$3)*(1-'Parâmetros de Fluxo de Caixa'!$B$14)+'Parâmetros de Fluxo de Caixa'!$B$14*'Parâmetros de Fluxo de Caixa'!$B$15*'Fluxo de Caixa Descontado'!D27,IF(C25="Operação",'CAPEX e OPEX'!$C$53*'Fluxo de Caixa Descontado'!$B$3,""))) -> 0 | D27: =IF(D25="Construção",0,IF(D25="Start-up",('CAPEX e OPEX'!$C$53*'Fluxo de Caixa Descontado'!$B$3)*(1-'Parâmetros de Fluxo de Caixa'!$B$14)+'Parâmetros de Fluxo de Caixa'!$B$14*'Parâmetros de Fluxo de Caixa'!$B$15*'Fluxo de Caixa Descontado'!E27,IF(D25="Operação",'CAPEX e OPEX'!$C$53*'Fluxo de Caixa Descontado'!$B$3,""))) -> 0 | E27: =IF(E25="Construção",0,IF(E25="Start-up",('CAPEX e OPEX'!$C$53*'Fluxo de Caixa Descontado'!$B$3)*(1-'Parâmetros de Fluxo de Caixa'!$B$14)+'Parâmetros de Fluxo de Caixa'!$B$14*'Parâmetros de Fluxo de Caixa'!$B$15*'Fluxo de Caixa Descontado'!F27,IF(E25="Operação",'CAPEX e OPEX'!$C$53*'Fluxo de Caixa Descontado'!$B$3,""))) -> 5233.091553 | F27: =IF(F25="Construção",0,IF(F25="Start-up",('CAPEX e OPEX'!$C$53*'Fluxo de Caixa Descontado'!$B$3)*(1-'Parâmetros de Fluxo de Caixa'!$B$14)+'Parâmetros de Fluxo de Caixa'!$B$14*'Parâmetros de Fluxo de Caixa'!$B$15*'Fluxo de Caixa Descontado'!G27,IF(F25="Operação",'CAPEX e OPEX'!$C$53*'Fluxo de Caixa Descontado'!$B$3,""))) -> 5980.676061 | G27: =IF(G25="Construção",0,IF(G25="Start-up",('CAPEX e OPEX'!$C$53*'Fluxo de Caixa Descontado'!$B$3)*(1-'Parâmetros de Fluxo de Caixa'!$B$14)+'Parâmetros de Fluxo de Caixa'!$B$14*'Parâmetros de Fluxo de Caixa'!$B$15*'Fluxo de Caixa Descontado'!H27,IF(G25="Operação",'CAPEX e OPEX'!$C$53*'Fluxo de Caixa Descontado'!$B$3,""))) -> 5980.676061 | H27: =IF(H25="Construção",0,IF(H25="Start-up",('CAPEX e OPEX'!$C$53*'Fluxo de Caixa Descontado'!$B$3)*(1-'Parâmetros de Fluxo de Caixa'!$B$14)+'Parâmetros de Fluxo de Caixa'!$B$14*'Parâmetros de Fluxo de Caixa'!$B$15*'Fluxo de Caixa Descontado'!I27,IF(H25="Operação",'CAPEX e OPEX'!$C$53*'Fluxo de Caixa Descontado'!$B$3,""))) -> 5980.676061 | I27: =IF(I25="Construção",0,IF(I25="Start-up",('CAPEX e OPEX'!$C$53*'Fluxo de Caixa Descontado'!$B$3)*(1-'Parâmetros de Fluxo de Caixa'!$B$14)+'Parâmetros de Fluxo de Caixa'!$B$14*'Parâmetros de Fluxo de Caixa'!$B$15*'Fluxo de Caixa Descontado'!J27,IF(I25="Operação",'CAPEX e OPEX'!$C$53*'Fluxo de Caixa Descontado'!$B$3,""))) -> 5980.676061 | J27: =IF(J25="Construção",0,IF(J25="Start-up",('CAPEX e OPEX'!$C$53*'Fluxo de Caixa Descontado'!$B$3)*(1-'Parâmetros de Fluxo de Caixa'!$B$14)+'Parâmetros de Fluxo de Caixa'!$B$14*'Parâmetros de Fluxo de Caixa'!$B$15*'Fluxo de Caixa Descontado'!K27,IF(J25="Operação",'CAPEX e OPEX'!$C$53*'Fluxo de Caixa Descontado'!$B$3,""))) -> 5980.676061 | K27: =IF(K25="Construção",0,IF(K25="Start-up",('CAPEX e OPEX'!$C$53*'Fluxo de Caixa Descontado'!$B$3)*(1-'Parâmetros de Fluxo de Caixa'!$B$14)+'Parâmetros de Fluxo de Caixa'!$B$14*'Parâmetros de Fluxo de Caixa'!$B$15*'Fluxo de Caixa Descontado'!L27,IF(K25="Operação",'CAPEX e OPEX'!$C$53*'Fluxo de Caixa Descontado'!$B$3,""))) -> 5980.676061 | L27: =IF(L25="Construção",0,IF(L25="Start-up",('CAPEX e OPEX'!$C$53*'Fluxo de Caixa Descontado'!$B$3)*(1-'Parâmetros de Fluxo de Caixa'!$B$14)+'Parâmetros de Fluxo de Caixa'!$B$14*'Parâmetros de Fluxo de Caixa'!$B$15*'Fluxo de Caixa Descontado'!M27,IF(L25="Operação",'CAPEX e OPEX'!$C$53*'Fluxo de Caixa Descontado'!$B$3,""))) -> 5980.676061 | M27: =IF(M25="Construção",0,IF(M25="Start-up",('CAPEX e OPEX'!$C$53*'Fluxo de Caixa Descontado'!$B$3)*(1-'Parâmetros de Fluxo de Caixa'!$B$14)+'Parâmetros de Fluxo de Caixa'!$B$14*'Parâmetros de Fluxo de Caixa'!$B$15*'Fluxo de Caixa Descontado'!N27,IF(M25="Operação",'CAPEX e OPEX'!$C$53*'Fluxo de Caixa Descontado'!$B$3,""))) -> 5980.676061 | N27: =IF(N25="Construção",0,IF(N25="Start-up",('CAPEX e OPEX'!$C$53*'Fluxo de Caixa Descontado'!$B$3)*(1-'Parâmetros de Fluxo de Caixa'!$B$14)+'Parâmetros de Fluxo de Caixa'!$B$14*'Parâmetros de Fluxo de Caixa'!$B$15*'Fluxo de Caixa Descontado'!O27,IF(N25="Operação",'CAPEX e OPEX'!$C$53*'Fluxo de Caixa Descontado'!$B$3,""))) -> 5980.676061 | O27: =IF(O25="Construção",0,IF(O25="Start-up",('CAPEX e OPEX'!$C$53*'Fluxo de Caixa Descontado'!$B$3)*(1-'Parâmetros de Fluxo de Caixa'!$B$14)+'Parâmetros de Fluxo de Caixa'!$B$14*'Parâmetros de Fluxo de Caixa'!$B$15*'Fluxo de Caixa Descontado'!P27,IF(O25="Operação",'CAPEX e OPEX'!$C$53*'Fluxo de Caixa Descontado'!$B$3,""))) -> 5980.676061 | P27: =IF(P25="Construção",0,IF(P25="Start-up",('CAPEX e OPEX'!$C$53*'Fluxo de Caixa Descontado'!$B$3)*(1-'Parâmetros de Fluxo de Caixa'!$B$14)+'Parâmetros de Fluxo de Caixa'!$B$14*'Parâmetros de Fluxo de Caixa'!$B$15*'Fluxo de Caixa Descontado'!Q27,IF(P25="Operação",'CAPEX e OPEX'!$C$53*'Fluxo de Caixa Descontado'!$B$3,""))) -> 5980.676061 | Q27: =IF(Q25="Construção",0,IF(Q25="Start-up",('CAPEX e OPEX'!$C$53*'Fluxo de Caixa Descontado'!$B$3)*(1-'Parâmetros de Fluxo de Caixa'!$B$14)+'Parâmetros de Fluxo de Caixa'!$B$14*'Parâmetros de Fluxo de Caixa'!$B$15*'Fluxo de Caixa Descontado'!R27,IF(Q25="Operação",'CAPEX e OPEX'!$C$53*'Fluxo de Caixa Descontado'!$B$3,""))) -> 5980.676061 | R27: =IF(R25="Construção",0,IF(R25="Start-up",('CAPEX e OPEX'!$C$53*'Fluxo de Caixa Descontado'!$B$3)*(1-'Parâmetros de Fluxo de Caixa'!$B$14)+'Parâmetros de Fluxo de Caixa'!$B$14*'Parâmetros de Fluxo de Caixa'!$B$15*'Fluxo de Caixa Descontado'!S27,IF(R25="Operação",'CAPEX e OPEX'!$C$53*'Fluxo de Caixa Descontado'!$B$3,""))) -> 5980.676061 | S27: =IF(S25="Construção",0,IF(S25="Start-up",('CAPEX e OPEX'!$C$53*'Fluxo de Caixa Descontado'!$B$3)*(1-'Parâmetros de Fluxo de Caixa'!$B$14)+'Parâmetros de Fluxo de Caixa'!$B$14*'Parâmetros de Fluxo de Caixa'!$B$15*'Fluxo de Caixa Descontado'!T27,IF(S25="Operação",'CAPEX e OPEX'!$C$53*'Fluxo de Caixa Descontado'!$B$3,""))) -> 5980.676061 | T27: =IF(T25="Construção",0,IF(T25="Start-up",('CAPEX e OPEX'!$C$53*'Fluxo de Caixa Descontado'!$B$3)*(1-'Parâmetros de Fluxo de Caixa'!$B$14)+'Parâmetros de Fluxo de Caixa'!$B$14*'Parâmetros de Fluxo de Caixa'!$B$15*'Fluxo de Caixa Descontado'!U27,IF(T25="Operação",'CAPEX e OPEX'!$C$53*'Fluxo de Caixa Descontado'!$B$3,""))) -> 5980.676061 | U27: =IF(U25="Construção",0,IF(U25="Start-up",('CAPEX e OPEX'!$C$53*'Fluxo de Caixa Descontado'!$B$3)*(1-'Parâmetros de Fluxo de Caixa'!$B$14)+'Parâmetros de Fluxo de Caixa'!$B$14*'Parâmetros de Fluxo de Caixa'!$B$15*'Fluxo de Caixa Descontado'!V27,IF(U25="Operação",'CAPEX e OPEX'!$C$53*'Fluxo de Caixa Descontado'!$B$3,""))) -> 5980.676061 | V27: =IF(V25="Construção",0,IF(V25="Start-up",('CAPEX e OPEX'!$C$53*'Fluxo de Caixa Descontado'!$B$3)*(1-'Parâmetros de Fluxo de Caixa'!$B$14)+'Parâmetros de Fluxo de Caixa'!$B$14*'Parâmetros de Fluxo de Caixa'!$B$15*'Fluxo de Caixa Descontado'!W27,IF(V25="Operação",'CAPEX e OPEX'!$C$53*'Fluxo de Caixa Descontado'!$B$3,""))) -> 5980.676061 | W27: =IF(W25="Construção",0,IF(W25="Start-up",('CAPEX e OPEX'!$C$53*'Fluxo de Caixa Descontado'!$B$3)*(1-'Parâmetros de Fluxo de Caixa'!$B$14)+'Parâmetros de Fluxo de Caixa'!$B$14*'Parâmetros de Fluxo de Caixa'!$B$15*'Fluxo de Caixa Descontado'!X27,IF(W25="Operação",'CAPEX e OPEX'!$C$53*'Fluxo de Caixa Descontado'!$B$3,""))) -> 5980.676061 | X27: =IF(X25="Construção",0,IF(X25="Start-up",('CAPEX e OPEX'!$C$53*'Fluxo de Caixa Descontado'!$B$3)*(1-'Parâmetros de Fluxo de Caixa'!$B$14)+'Parâmetros de Fluxo de Caixa'!$B$14*'Parâmetros de Fluxo de Caixa'!$B$15*'Fluxo de Caixa Descontado'!Y27,IF(X25="Operação",'CAPEX e OPEX'!$C$53*'Fluxo de Caixa Descontado'!$B$3,""))) -> 5980.676061 | Y27: =IF(Y25="Construção",0,IF(Y25="Start-up",('CAPEX e OPEX'!$C$53*'Fluxo de Caixa Descontado'!$B$3)*(1-'Parâmetros de Fluxo de Caixa'!$B$14)+'Parâmetros de Fluxo de Caixa'!$B$14*'Parâmetros de Fluxo de Caixa'!$B$15*'Fluxo de Caixa Descontado'!Z27,IF(Y25="Operação",'CAPEX e OPEX'!$C$53*'Fluxo de Caixa Descontado'!$B$3,""))) ->  | Z27: =IF(Z25="Construção",0,IF(Z25="Start-up",('CAPEX e OPEX'!$C$53*'Fluxo de Caixa Descontado'!$B$3)*(1-'Parâmetros de Fluxo de Caixa'!$B$14)+'Parâmetros de Fluxo de Caixa'!$B$14*'Parâmetros de Fluxo de Caixa'!$B$15*'Fluxo de Caixa Descontado'!AA27,IF(Z25="Operação",'CAPEX e OPEX'!$C$53*'Fluxo de Caixa Descontado'!$B$3,""))) ->  | AA27: =IF(AA25="Construção",0,IF(AA25="Start-up",('CAPEX e OPEX'!$C$53*'Fluxo de Caixa Descontado'!$B$3)*(1-'Parâmetros de Fluxo de Caixa'!$B$14)+'Parâmetros de Fluxo de Caixa'!$B$14*'Parâmetros de Fluxo de Caixa'!$B$15*'Fluxo de Caixa Descontado'!AB27,IF(AA25="Operação",'CAPEX e OPEX'!$C$53*'Fluxo de Caixa Descontado'!$B$3,""))) ->  | AB27: =IF(AB25="Construção",0,IF(AB25="Start-up",('CAPEX e OPEX'!$C$53*'Fluxo de Caixa Descontado'!$B$3)*(1-'Parâmetros de Fluxo de Caixa'!$B$14)+'Parâmetros de Fluxo de Caixa'!$B$14*'Parâmetros de Fluxo de Caixa'!$B$15*'Fluxo de Caixa Descontado'!AC27,IF(AB25="Operação",'CAPEX e OPEX'!$C$53*'Fluxo de Caixa Descontado'!$B$3,""))) ->  | AC27: =IF(AC25="Construção",0,IF(AC25="Start-up",('CAPEX e OPEX'!$C$53*'Fluxo de Caixa Descontado'!$B$3)*(1-'Parâmetros de Fluxo de Caixa'!$B$14)+'Parâmetros de Fluxo de Caixa'!$B$14*'Parâmetros de Fluxo de Caixa'!$B$15*'Fluxo de Caixa Descontado'!AD27,IF(AC25="Operação",'CAPEX e OPEX'!$C$53*'Fluxo de Caixa Descontado'!$B$3,""))) ->  | AD27: =IF(AD25="Construção",0,IF(AD25="Start-up",('CAPEX e OPEX'!$C$53*'Fluxo de Caixa Descontado'!$B$3)*(1-'Parâmetros de Fluxo de Caixa'!$B$14)+'Parâmetros de Fluxo de Caixa'!$B$14*'Parâmetros de Fluxo de Caixa'!$B$15*'Fluxo de Caixa Descontado'!AE27,IF(AD25="Operação",'CAPEX e OPEX'!$C$53*'Fluxo de Caixa Descontado'!$B$3,""))) ->  | AE27: =IF(AE25="Construção",0,IF(AE25="Start-up",('CAPEX e OPEX'!$C$53*'Fluxo de Caixa Descontado'!$B$3)*(1-'Parâmetros de Fluxo de Caixa'!$B$14)+'Parâmetros de Fluxo de Caixa'!$B$14*'Parâmetros de Fluxo de Caixa'!$B$15*'Fluxo de Caixa Descontado'!AF27,IF(AE25="Operação",'CAPEX e OPEX'!$C$53*'Fluxo de Caixa Descontado'!$B$3,""))) ->  | AF27: =IF(AF25="Construção",0,IF(AF25="Start-up",('CAPEX e OPEX'!$C$53*'Fluxo de Caixa Descontado'!$B$3)*(1-'Parâmetros de Fluxo de Caixa'!$B$14)+'Parâmetros de Fluxo de Caixa'!$B$14*'Parâmetros de Fluxo de Caixa'!$B$15*'Fluxo de Caixa Descontado'!AG27,IF(AF25="Operação",'CAPEX e OPEX'!$C$53*'Fluxo de Caixa Descontado'!$B$3,""))) ->  | AG27: =IF(AG25="Construção",0,IF(AG25="Start-up",('CAPEX e OPEX'!$C$53*'Fluxo de Caixa Descontado'!$B$3)*(1-'Parâmetros de Fluxo de Caixa'!$B$14)+'Parâmetros de Fluxo de Caixa'!$B$14*'Parâmetros de Fluxo de Caixa'!$B$15*'Fluxo de Caixa Descontado'!AH27,IF(AG25="Operação",'CAPEX e OPEX'!$C$53*'Fluxo de Caixa Descontado'!$B$3,""))) ->  | AH27: =IF(AH25="Construção",0,IF(AH25="Start-up",('CAPEX e OPEX'!$C$53*'Fluxo de Caixa Descontado'!$B$3)*(1-'Parâmetros de Fluxo de Caixa'!$B$14)+'Parâmetros de Fluxo de Caixa'!$B$14*'Parâmetros de Fluxo de Caixa'!$B$15*'Fluxo de Caixa Descontado'!AI27,IF(AH25="Operação",'CAPEX e OPEX'!$C$53*'Fluxo de Caixa Descontado'!$B$3,""))) ->  | AI27: =IF(AI25="Construção",0,IF(AI25="Start-up",('CAPEX e OPEX'!$C$53*'Fluxo de Caixa Descontado'!$B$3)*(1-'Parâmetros de Fluxo de Caixa'!$B$14)+'Parâmetros de Fluxo de Caixa'!$B$14*'Parâmetros de Fluxo de Caixa'!$B$15*'Fluxo de Caixa Descontado'!AJ27,IF(AI25="Operação",'CAPEX e OPEX'!$C$53*'Fluxo de Caixa Descontado'!$B$3,""))) ->  | AJ27: =IF(AJ25="Construção",0,IF(AJ25="Start-up",('CAPEX e OPEX'!$C$53*'Fluxo de Caixa Descontado'!$B$3)*(1-'Parâmetros de Fluxo de Caixa'!$B$14)+'Parâmetros de Fluxo de Caixa'!$B$14*'Parâmetros de Fluxo de Caixa'!$B$15*'Fluxo de Caixa Descontado'!AK27,IF(AJ25="Operação",'CAPEX e OPEX'!$C$53*'Fluxo de Caixa Descontado'!$B$3,""))) ->  | AK27: =IF(AK25="Construção",0,IF(AK25="Start-up",('CAPEX e OPEX'!$C$53*'Fluxo de Caixa Descontado'!$B$3)*(1-'Parâmetros de Fluxo de Caixa'!$B$14)+'Parâmetros de Fluxo de Caixa'!$B$14*'Parâmetros de Fluxo de Caixa'!$B$15*'Fluxo de Caixa Descontado'!AL27,IF(AK25="Operação",'CAPEX e OPEX'!$C$53*'Fluxo de Caixa Descontado'!$B$3,""))) ->  | AL27: =IF(AL25="Construção",0,IF(AL25="Start-up",('CAPEX e OPEX'!$C$53*'Fluxo de Caixa Descontado'!$B$3)*(1-'Parâmetros de Fluxo de Caixa'!$B$14)+'Parâmetros de Fluxo de Caixa'!$B$14*'Parâmetros de Fluxo de Caixa'!$B$15*'Fluxo de Caixa Descontado'!AM27,IF(AL25="Operação",'CAPEX e OPEX'!$C$53*'Fluxo de Caixa Descontado'!$B$3,""))) ->  | AM27: =IF(AM25="Construção",0,IF(AM25="Start-up",('CAPEX e OPEX'!$C$53*'Fluxo de Caixa Descontado'!$B$3)*(1-'Parâmetros de Fluxo de Caixa'!$B$14)+'Parâmetros de Fluxo de Caixa'!$B$14*'Parâmetros de Fluxo de Caixa'!$B$15*'Fluxo de Caixa Descontado'!AN27,IF(AM25="Operação",'CAPEX e OPEX'!$C$53*'Fluxo de Caixa Descontado'!$B$3,""))) ->  | AN27: =IF(AN25="Construção",0,IF(AN25="Start-up",('CAPEX e OPEX'!$C$53*'Fluxo de Caixa Descontado'!$B$3)*(1-'Parâmetros de Fluxo de Caixa'!$B$14)+'Parâmetros de Fluxo de Caixa'!$B$14*'Parâmetros de Fluxo de Caixa'!$B$15*'Fluxo de Caixa Descontado'!AO27,IF(AN25="Operação",'CAPEX e OPEX'!$C$53*'Fluxo de Caixa Descontado'!$B$3,""))) ->  | AO27: =IF(AO25="Construção",0,IF(AO25="Start-up",('CAPEX e OPEX'!$C$53*'Fluxo de Caixa Descontado'!$B$3)*(1-'Parâmetros de Fluxo de Caixa'!$B$14)+'Parâmetros de Fluxo de Caixa'!$B$14*'Parâmetros de Fluxo de Caixa'!$B$15*'Fluxo de Caixa Descontado'!AP27,IF(AO25="Operação",'CAPEX e OPEX'!$C$53*'Fluxo de Caixa Descontado'!$B$3,""))) ->  | AP27: =IF(AP25="Construção",0,IF(AP25="Start-up",('CAPEX e OPEX'!$C$53*'Fluxo de Caixa Descontado'!$B$3)*(1-'Parâmetros de Fluxo de Caixa'!$B$14)+'Parâmetros de Fluxo de Caixa'!$B$14*'Parâmetros de Fluxo de Caixa'!$B$15*'Fluxo de Caixa Descontado'!AQ27,IF(AP25="Operação",'CAPEX e OPEX'!$C$53*'Fluxo de Caixa Descontado'!$B$3,""))) ->  | AQ27: =IF(AQ25="Construção",0,IF(AQ25="Start-up",('CAPEX e OPEX'!$C$53*'Fluxo de Caixa Descontado'!$B$3)*(1-'Parâmetros de Fluxo de Caixa'!$B$14)+'Parâmetros de Fluxo de Caixa'!$B$14*'Parâmetros de Fluxo de Caixa'!$B$15*'Fluxo de Caixa Descontado'!AR27,IF(AQ25="Operação",'CAPEX e OPEX'!$C$53*'Fluxo de Caixa Descontado'!$B$3,""))) ->  | AR27: =IF(AR25="Construção",0,IF(AR25="Start-up",('CAPEX e OPEX'!$C$53*'Fluxo de Caixa Descontado'!$B$3)*(1-'Parâmetros de Fluxo de Caixa'!$B$14)+'Parâmetros de Fluxo de Caixa'!$B$14*'Parâmetros de Fluxo de Caixa'!$B$15*'Fluxo de Caixa Descontado'!AV27,IF(AR25="Operação",'CAPEX e OPEX'!$C$53*'Fluxo de Caixa Descontado'!$B$3,""))) ->  | AS27: =IF(AS25="Construção",0,IF(AS25="Start-up",('CAPEX e OPEX'!$C$53*'Fluxo de Caixa Descontado'!$B$3)*(1-'Parâmetros de Fluxo de Caixa'!$B$14)+'Parâmetros de Fluxo de Caixa'!$B$14*'Parâmetros de Fluxo de Caixa'!$B$15*'Fluxo de Caixa Descontado'!AW27,IF(AS25="Operação",'CAPEX e OPEX'!$C$53*'Fluxo de Caixa Descontado'!$B$3,""))) ->  | AT27: =IF(AT25="Construção",0,IF(AT25="Start-up",('CAPEX e OPEX'!$C$53*'Fluxo de Caixa Descontado'!$B$3)*(1-'Parâmetros de Fluxo de Caixa'!$B$14)+'Parâmetros de Fluxo de Caixa'!$B$14*'Parâmetros de Fluxo de Caixa'!$B$15*'Fluxo de Caixa Descontado'!AX27,IF(AT25="Operação",'CAPEX e OPEX'!$C$53*'Fluxo de Caixa Descontado'!$B$3,""))) ->  | AU27: =IF(AU25="Construção",0,IF(AU25="Start-up",('CAPEX e OPEX'!$C$53*'Fluxo de Caixa Descontado'!$B$3)*(1-'Parâmetros de Fluxo de Caixa'!$B$14)+'Parâmetros de Fluxo de Caixa'!$B$14*'Parâmetros de Fluxo de Caixa'!$B$15*'Fluxo de Caixa Descontado'!AY27,IF(AU25="Operação",'CAPEX e OPEX'!$C$53*'Fluxo de Caixa Descontado'!$B$3,""))) ->  | AV27: =IF(AV25="Construção",0,IF(AV25="Start-up",('CAPEX e OPEX'!$C$53*'Fluxo de Caixa Descontado'!$B$3)*(1-'Parâmetros de Fluxo de Caixa'!$B$14)+'Parâmetros de Fluxo de Caixa'!$B$14*'Parâmetros de Fluxo de Caixa'!$B$15*'Fluxo de Caixa Descontado'!AZ27,IF(AV25="Operação",'CAPEX e OPEX'!$C$53*'Fluxo de Caixa Descontado'!$B$3,""))) -> 
A28: OPEX variável (milhões R$ / ano) | B28: =IF(B25="Construção",0,IF(B25="Start-up",-('CAPEX e OPEX'!$C$52*'Fluxo de Caixa Descontado'!$B$3*(1-'Parâmetros de Fluxo de Caixa'!$B$14)+'Parâmetros de Fluxo de Caixa'!$B$14*'Parâmetros de Fluxo de Caixa'!$B$16*-'Fluxo de Caixa Descontado'!C28),IF(B25="Operação",-('CAPEX e OPEX'!$C$52*'Fluxo de Caixa Descontado'!$B$3),""))) -> 0 | C28: =IF(C25="Construção",0,IF(C25="Start-up",-('CAPEX e OPEX'!$C$52*'Fluxo de Caixa Descontado'!$B$3*(1-'Parâmetros de Fluxo de Caixa'!$B$14)+'Parâmetros de Fluxo de Caixa'!$B$14*'Parâmetros de Fluxo de Caixa'!$B$16*-'Fluxo de Caixa Descontado'!D28),IF(C25="Operação",-('CAPEX e OPEX'!$C$52*'Fluxo de Caixa Descontado'!$B$3),""))) -> 0 | D28: =IF(D25="Construção",0,IF(D25="Start-up",-('CAPEX e OPEX'!$C$52*'Fluxo de Caixa Descontado'!$B$3*(1-'Parâmetros de Fluxo de Caixa'!$B$14)+'Parâmetros de Fluxo de Caixa'!$B$14*'Parâmetros de Fluxo de Caixa'!$B$16*-'Fluxo de Caixa Descontado'!E28),IF(D25="Operação",-('CAPEX e OPEX'!$C$52*'Fluxo de Caixa Descontado'!$B$3),""))) -> 0 | E28: =IF(E25="Construção",0,IF(E25="Start-up",-('CAPEX e OPEX'!$C$52*'Fluxo de Caixa Descontado'!$B$3*(1-'Parâmetros de Fluxo de Caixa'!$B$14)+'Parâmetros de Fluxo de Caixa'!$B$14*'Parâmetros de Fluxo de Caixa'!$B$16*-'Fluxo de Caixa Descontado'!F28),IF(E25="Operação",-('CAPEX e OPEX'!$C$52*'Fluxo de Caixa Descontado'!$B$3),""))) -> -3790.62377 | F28: =IF(F25="Construção",0,IF(F25="Start-up",-('CAPEX e OPEX'!$C$52*'Fluxo de Caixa Descontado'!$B$3*(1-'Parâmetros de Fluxo de Caixa'!$B$14)+'Parâmetros de Fluxo de Caixa'!$B$14*'Parâmetros de Fluxo de Caixa'!$B$16*-'Fluxo de Caixa Descontado'!G28),IF(F25="Operação",-('CAPEX e OPEX'!$C$52*'Fluxo de Caixa Descontado'!$B$3),""))) -> -4332.141451 | G28: =IF(G25="Construção",0,IF(G25="Start-up",-('CAPEX e OPEX'!$C$52*'Fluxo de Caixa Descontado'!$B$3*(1-'Parâmetros de Fluxo de Caixa'!$B$14)+'Parâmetros de Fluxo de Caixa'!$B$14*'Parâmetros de Fluxo de Caixa'!$B$16*-'Fluxo de Caixa Descontado'!H28),IF(G25="Operação",-('CAPEX e OPEX'!$C$52*'Fluxo de Caixa Descontado'!$B$3),""))) -> -4332.141451 | H28: =IF(H25="Construção",0,IF(H25="Start-up",-('CAPEX e OPEX'!$C$52*'Fluxo de Caixa Descontado'!$B$3*(1-'Parâmetros de Fluxo de Caixa'!$B$14)+'Parâmetros de Fluxo de Caixa'!$B$14*'Parâmetros de Fluxo de Caixa'!$B$16*-'Fluxo de Caixa Descontado'!I28),IF(H25="Operação",-('CAPEX e OPEX'!$C$52*'Fluxo de Caixa Descontado'!$B$3),""))) -> -4332.141451 | I28: =IF(I25="Construção",0,IF(I25="Start-up",-('CAPEX e OPEX'!$C$52*'Fluxo de Caixa Descontado'!$B$3*(1-'Parâmetros de Fluxo de Caixa'!$B$14)+'Parâmetros de Fluxo de Caixa'!$B$14*'Parâmetros de Fluxo de Caixa'!$B$16*-'Fluxo de Caixa Descontado'!J28),IF(I25="Operação",-('CAPEX e OPEX'!$C$52*'Fluxo de Caixa Descontado'!$B$3),""))) -> -4332.141451 | J28: =IF(J25="Construção",0,IF(J25="Start-up",-('CAPEX e OPEX'!$C$52*'Fluxo de Caixa Descontado'!$B$3*(1-'Parâmetros de Fluxo de Caixa'!$B$14)+'Parâmetros de Fluxo de Caixa'!$B$14*'Parâmetros de Fluxo de Caixa'!$B$16*-'Fluxo de Caixa Descontado'!K28),IF(J25="Operação",-('CAPEX e OPEX'!$C$52*'Fluxo de Caixa Descontado'!$B$3),""))) -> -4332.141451 | K28: =IF(K25="Construção",0,IF(K25="Start-up",-('CAPEX e OPEX'!$C$52*'Fluxo de Caixa Descontado'!$B$3*(1-'Parâmetros de Fluxo de Caixa'!$B$14)+'Parâmetros de Fluxo de Caixa'!$B$14*'Parâmetros de Fluxo de Caixa'!$B$16*-'Fluxo de Caixa Descontado'!L28),IF(K25="Operação",-('CAPEX e OPEX'!$C$52*'Fluxo de Caixa Descontado'!$B$3),""))) -> -4332.141451 | L28: =IF(L25="Construção",0,IF(L25="Start-up",-('CAPEX e OPEX'!$C$52*'Fluxo de Caixa Descontado'!$B$3*(1-'Parâmetros de Fluxo de Caixa'!$B$14)+'Parâmetros de Fluxo de Caixa'!$B$14*'Parâmetros de Fluxo de Caixa'!$B$16*-'Fluxo de Caixa Descontado'!M28),IF(L25="Operação",-('CAPEX e OPEX'!$C$52*'Fluxo de Caixa Descontado'!$B$3),""))) -> -4332.141451 | M28: =IF(M25="Construção",0,IF(M25="Start-up",-('CAPEX e OPEX'!$C$52*'Fluxo de Caixa Descontado'!$B$3*(1-'Parâmetros de Fluxo de Caixa'!$B$14)+'Parâmetros de Fluxo de Caixa'!$B$14*'Parâmetros de Fluxo de Caixa'!$B$16*-'Fluxo de Caixa Descontado'!N28),IF(M25="Operação",-('CAPEX e OPEX'!$C$52*'Fluxo de Caixa Descontado'!$B$3),""))) -> -4332.141451 | N28: =IF(N25="Construção",0,IF(N25="Start-up",-('CAPEX e OPEX'!$C$52*'Fluxo de Caixa Descontado'!$B$3*(1-'Parâmetros de Fluxo de Caixa'!$B$14)+'Parâmetros de Fluxo de Caixa'!$B$14*'Parâmetros de Fluxo de Caixa'!$B$16*-'Fluxo de Caixa Descontado'!O28),IF(N25="Operação",-('CAPEX e OPEX'!$C$52*'Fluxo de Caixa Descontado'!$B$3),""))) -> -4332.141451 | O28: =IF(O25="Construção",0,IF(O25="Start-up",-('CAPEX e OPEX'!$C$52*'Fluxo de Caixa Descontado'!$B$3*(1-'Parâmetros de Fluxo de Caixa'!$B$14)+'Parâmetros de Fluxo de Caixa'!$B$14*'Parâmetros de Fluxo de Caixa'!$B$16*-'Fluxo de Caixa Descontado'!P28),IF(O25="Operação",-('CAPEX e OPEX'!$C$52*'Fluxo de Caixa Descontado'!$B$3),""))) -> -4332.141451 | P28: =IF(P25="Construção",0,IF(P25="Start-up",-('CAPEX e OPEX'!$C$52*'Fluxo de Caixa Descontado'!$B$3*(1-'Parâmetros de Fluxo de Caixa'!$B$14)+'Parâmetros de Fluxo de Caixa'!$B$14*'Parâmetros de Fluxo de Caixa'!$B$16*-'Fluxo de Caixa Descontado'!Q28),IF(P25="Operação",-('CAPEX e OPEX'!$C$52*'Fluxo de Caixa Descontado'!$B$3),""))) -> -4332.141451 | Q28: =IF(Q25="Construção",0,IF(Q25="Start-up",-('CAPEX e OPEX'!$C$52*'Fluxo de Caixa Descontado'!$B$3*(1-'Parâmetros de Fluxo de Caixa'!$B$14)+'Parâmetros de Fluxo de Caixa'!$B$14*'Parâmetros de Fluxo de Caixa'!$B$16*-'Fluxo de Caixa Descontado'!R28),IF(Q25="Operação",-('CAPEX e OPEX'!$C$52*'Fluxo de Caixa Descontado'!$B$3),""))) -> -4332.141451 | R28: =IF(R25="Construção",0,IF(R25="Start-up",-('CAPEX e OPEX'!$C$52*'Fluxo de Caixa Descontado'!$B$3*(1-'Parâmetros de Fluxo de Caixa'!$B$14)+'Parâmetros de Fluxo de Caixa'!$B$14*'Parâmetros de Fluxo de Caixa'!$B$16*-'Fluxo de Caixa Descontado'!S28),IF(R25="Operação",-('CAPEX e OPEX'!$C$52*'Fluxo de Caixa Descontado'!$B$3),""))) -> -4332.141451 | S28: =IF(S25="Construção",0,IF(S25="Start-up",-('CAPEX e OPEX'!$C$52*'Fluxo de Caixa Descontado'!$B$3*(1-'Parâmetros de Fluxo de Caixa'!$B$14)+'Parâmetros de Fluxo de Caixa'!$B$14*'Parâmetros de Fluxo de Caixa'!$B$16*-'Fluxo de Caixa Descontado'!T28),IF(S25="Operação",-('CAPEX e OPEX'!$C$52*'Fluxo de Caixa Descontado'!$B$3),""))) -> -4332.141451 | T28: =IF(T25="Construção",0,IF(T25="Start-up",-('CAPEX e OPEX'!$C$52*'Fluxo de Caixa Descontado'!$B$3*(1-'Parâmetros de Fluxo de Caixa'!$B$14)+'Parâmetros de Fluxo de Caixa'!$B$14*'Parâmetros de Fluxo de Caixa'!$B$16*-'Fluxo de Caixa Descontado'!U28),IF(T25="Operação",-('CAPEX e OPEX'!$C$52*'Fluxo de Caixa Descontado'!$B$3),""))) -> -4332.141451 | U28: =IF(U25="Construção",0,IF(U25="Start-up",-('CAPEX e OPEX'!$C$52*'Fluxo de Caixa Descontado'!$B$3*(1-'Parâmetros de Fluxo de Caixa'!$B$14)+'Parâmetros de Fluxo de Caixa'!$B$14*'Parâmetros de Fluxo de Caixa'!$B$16*-'Fluxo de Caixa Descontado'!V28),IF(U25="Operação",-('CAPEX e OPEX'!$C$52*'Fluxo de Caixa Descontado'!$B$3),""))) -> -4332.141451 | V28: =IF(V25="Construção",0,IF(V25="Start-up",-('CAPEX e OPEX'!$C$52*'Fluxo de Caixa Descontado'!$B$3*(1-'Parâmetros de Fluxo de Caixa'!$B$14)+'Parâmetros de Fluxo de Caixa'!$B$14*'Parâmetros de Fluxo de Caixa'!$B$16*-'Fluxo de Caixa Descontado'!W28),IF(V25="Operação",-('CAPEX e OPEX'!$C$52*'Fluxo de Caixa Descontado'!$B$3),""))) -> -4332.141451 | W28: =IF(W25="Construção",0,IF(W25="Start-up",-('CAPEX e OPEX'!$C$52*'Fluxo de Caixa Descontado'!$B$3*(1-'Parâmetros de Fluxo de Caixa'!$B$14)+'Parâmetros de Fluxo de Caixa'!$B$14*'Parâmetros de Fluxo de Caixa'!$B$16*-'Fluxo de Caixa Descontado'!X28),IF(W25="Operação",-('CAPEX e OPEX'!$C$52*'Fluxo de Caixa Descontado'!$B$3),""))) -> -4332.141451 | X28: =IF(X25="Construção",0,IF(X25="Start-up",-('CAPEX e OPEX'!$C$52*'Fluxo de Caixa Descontado'!$B$3*(1-'Parâmetros de Fluxo de Caixa'!$B$14)+'Parâmetros de Fluxo de Caixa'!$B$14*'Parâmetros de Fluxo de Caixa'!$B$16*-'Fluxo de Caixa Descontado'!Y28),IF(X25="Operação",-('CAPEX e OPEX'!$C$52*'Fluxo de Caixa Descontado'!$B$3),""))) -> -4332.141451 | Y28: =IF(Y25="Construção",0,IF(Y25="Start-up",-('CAPEX e OPEX'!$C$52*'Fluxo de Caixa Descontado'!$B$3*(1-'Parâmetros de Fluxo de Caixa'!$B$14)+'Parâmetros de Fluxo de Caixa'!$B$14*'Parâmetros de Fluxo de Caixa'!$B$16*-'Fluxo de Caixa Descontado'!Z28),IF(Y25="Operação",-('CAPEX e OPEX'!$C$52*'Fluxo de Caixa Descontado'!$B$3),""))) ->  | Z28: =IF(Z25="Construção",0,IF(Z25="Start-up",-('CAPEX e OPEX'!$C$52*'Fluxo de Caixa Descontado'!$B$3*(1-'Parâmetros de Fluxo de Caixa'!$B$14)+'Parâmetros de Fluxo de Caixa'!$B$14*'Parâmetros de Fluxo de Caixa'!$B$16*-'Fluxo de Caixa Descontado'!AA28),IF(Z25="Operação",-('CAPEX e OPEX'!$C$52*'Fluxo de Caixa Descontado'!$B$3),""))) ->  | AA28: =IF(AA25="Construção",0,IF(AA25="Start-up",-('CAPEX e OPEX'!$C$52*'Fluxo de Caixa Descontado'!$B$3*(1-'Parâmetros de Fluxo de Caixa'!$B$14)+'Parâmetros de Fluxo de Caixa'!$B$14*'Parâmetros de Fluxo de Caixa'!$B$16*-'Fluxo de Caixa Descontado'!AB28),IF(AA25="Operação",-('CAPEX e OPEX'!$C$52*'Fluxo de Caixa Descontado'!$B$3),""))) ->  | AB28: =IF(AB25="Construção",0,IF(AB25="Start-up",-('CAPEX e OPEX'!$C$52*'Fluxo de Caixa Descontado'!$B$3*(1-'Parâmetros de Fluxo de Caixa'!$B$14)+'Parâmetros de Fluxo de Caixa'!$B$14*'Parâmetros de Fluxo de Caixa'!$B$16*-'Fluxo de Caixa Descontado'!AC28),IF(AB25="Operação",-('CAPEX e OPEX'!$C$52*'Fluxo de Caixa Descontado'!$B$3),""))) ->  | AC28: =IF(AC25="Construção",0,IF(AC25="Start-up",-('CAPEX e OPEX'!$C$52*'Fluxo de Caixa Descontado'!$B$3*(1-'Parâmetros de Fluxo de Caixa'!$B$14)+'Parâmetros de Fluxo de Caixa'!$B$14*'Parâmetros de Fluxo de Caixa'!$B$16*-'Fluxo de Caixa Descontado'!AD28),IF(AC25="Operação",-('CAPEX e OPEX'!$C$52*'Fluxo de Caixa Descontado'!$B$3),""))) ->  | AD28: =IF(AD25="Construção",0,IF(AD25="Start-up",-('CAPEX e OPEX'!$C$52*'Fluxo de Caixa Descontado'!$B$3*(1-'Parâmetros de Fluxo de Caixa'!$B$14)+'Parâmetros de Fluxo de Caixa'!$B$14*'Parâmetros de Fluxo de Caixa'!$B$16*-'Fluxo de Caixa Descontado'!AE28),IF(AD25="Operação",-('CAPEX e OPEX'!$C$52*'Fluxo de Caixa Descontado'!$B$3),""))) ->  | AE28: =IF(AE25="Construção",0,IF(AE25="Start-up",-('CAPEX e OPEX'!$C$52*'Fluxo de Caixa Descontado'!$B$3*(1-'Parâmetros de Fluxo de Caixa'!$B$14)+'Parâmetros de Fluxo de Caixa'!$B$14*'Parâmetros de Fluxo de Caixa'!$B$16*-'Fluxo de Caixa Descontado'!AF28),IF(AE25="Operação",-('CAPEX e OPEX'!$C$52*'Fluxo de Caixa Descontado'!$B$3),""))) ->  | AF28: =IF(AF25="Construção",0,IF(AF25="Start-up",-('CAPEX e OPEX'!$C$52*'Fluxo de Caixa Descontado'!$B$3*(1-'Parâmetros de Fluxo de Caixa'!$B$14)+'Parâmetros de Fluxo de Caixa'!$B$14*'Parâmetros de Fluxo de Caixa'!$B$16*-'Fluxo de Caixa Descontado'!AG28),IF(AF25="Operação",-('CAPEX e OPEX'!$C$52*'Fluxo de Caixa Descontado'!$B$3),""))) ->  | AG28: =IF(AG25="Construção",0,IF(AG25="Start-up",-('CAPEX e OPEX'!$C$52*'Fluxo de Caixa Descontado'!$B$3*(1-'Parâmetros de Fluxo de Caixa'!$B$14)+'Parâmetros de Fluxo de Caixa'!$B$14*'Parâmetros de Fluxo de Caixa'!$B$16*-'Fluxo de Caixa Descontado'!AH28),IF(AG25="Operação",-('CAPEX e OPEX'!$C$52*'Fluxo de Caixa Descontado'!$B$3),""))) ->  | AH28: =IF(AH25="Construção",0,IF(AH25="Start-up",-('CAPEX e OPEX'!$C$52*'Fluxo de Caixa Descontado'!$B$3*(1-'Parâmetros de Fluxo de Caixa'!$B$14)+'Parâmetros de Fluxo de Caixa'!$B$14*'Parâmetros de Fluxo de Caixa'!$B$16*-'Fluxo de Caixa Descontado'!AI28),IF(AH25="Operação",-('CAPEX e OPEX'!$C$52*'Fluxo de Caixa Descontado'!$B$3),""))) ->  | AI28: =IF(AI25="Construção",0,IF(AI25="Start-up",-('CAPEX e OPEX'!$C$52*'Fluxo de Caixa Descontado'!$B$3*(1-'Parâmetros de Fluxo de Caixa'!$B$14)+'Parâmetros de Fluxo de Caixa'!$B$14*'Parâmetros de Fluxo de Caixa'!$B$16*-'Fluxo de Caixa Descontado'!AJ28),IF(AI25="Operação",-('CAPEX e OPEX'!$C$52*'Fluxo de Caixa Descontado'!$B$3),""))) ->  | AJ28: =IF(AJ25="Construção",0,IF(AJ25="Start-up",-('CAPEX e OPEX'!$C$52*'Fluxo de Caixa Descontado'!$B$3*(1-'Parâmetros de Fluxo de Caixa'!$B$14)+'Parâmetros de Fluxo de Caixa'!$B$14*'Parâmetros de Fluxo de Caixa'!$B$16*-'Fluxo de Caixa Descontado'!AK28),IF(AJ25="Operação",-('CAPEX e OPEX'!$C$52*'Fluxo de Caixa Descontado'!$B$3),""))) ->  | AK28: =IF(AK25="Construção",0,IF(AK25="Start-up",-('CAPEX e OPEX'!$C$52*'Fluxo de Caixa Descontado'!$B$3*(1-'Parâmetros de Fluxo de Caixa'!$B$14)+'Parâmetros de Fluxo de Caixa'!$B$14*'Parâmetros de Fluxo de Caixa'!$B$16*-'Fluxo de Caixa Descontado'!AL28),IF(AK25="Operação",-('CAPEX e OPEX'!$C$52*'Fluxo de Caixa Descontado'!$B$3),""))) ->  | AL28: =IF(AL25="Construção",0,IF(AL25="Start-up",-('CAPEX e OPEX'!$C$52*'Fluxo de Caixa Descontado'!$B$3*(1-'Parâmetros de Fluxo de Caixa'!$B$14)+'Parâmetros de Fluxo de Caixa'!$B$14*'Parâmetros de Fluxo de Caixa'!$B$16*-'Fluxo de Caixa Descontado'!AM28),IF(AL25="Operação",-('CAPEX e OPEX'!$C$52*'Fluxo de Caixa Descontado'!$B$3),""))) ->  | AM28: =IF(AM25="Construção",0,IF(AM25="Start-up",-('CAPEX e OPEX'!$C$52*'Fluxo de Caixa Descontado'!$B$3*(1-'Parâmetros de Fluxo de Caixa'!$B$14)+'Parâmetros de Fluxo de Caixa'!$B$14*'Parâmetros de Fluxo de Caixa'!$B$16*-'Fluxo de Caixa Descontado'!AN28),IF(AM25="Operação",-('CAPEX e OPEX'!$C$52*'Fluxo de Caixa Descontado'!$B$3),""))) ->  | AN28: =IF(AN25="Construção",0,IF(AN25="Start-up",-('CAPEX e OPEX'!$C$52*'Fluxo de Caixa Descontado'!$B$3*(1-'Parâmetros de Fluxo de Caixa'!$B$14)+'Parâmetros de Fluxo de Caixa'!$B$14*'Parâmetros de Fluxo de Caixa'!$B$16*-'Fluxo de Caixa Descontado'!AO28),IF(AN25="Operação",-('CAPEX e OPEX'!$C$52*'Fluxo de Caixa Descontado'!$B$3),""))) ->  | AO28: =IF(AO25="Construção",0,IF(AO25="Start-up",-('CAPEX e OPEX'!$C$52*'Fluxo de Caixa Descontado'!$B$3*(1-'Parâmetros de Fluxo de Caixa'!$B$14)+'Parâmetros de Fluxo de Caixa'!$B$14*'Parâmetros de Fluxo de Caixa'!$B$16*-'Fluxo de Caixa Descontado'!AP28),IF(AO25="Operação",-('CAPEX e OPEX'!$C$52*'Fluxo de Caixa Descontado'!$B$3),""))) ->  | AP28: =IF(AP25="Construção",0,IF(AP25="Start-up",-('CAPEX e OPEX'!$C$52*'Fluxo de Caixa Descontado'!$B$3*(1-'Parâmetros de Fluxo de Caixa'!$B$14)+'Parâmetros de Fluxo de Caixa'!$B$14*'Parâmetros de Fluxo de Caixa'!$B$16*-'Fluxo de Caixa Descontado'!AQ28),IF(AP25="Operação",-('CAPEX e OPEX'!$C$52*'Fluxo de Caixa Descontado'!$B$3),""))) ->  | AQ28: =IF(AQ25="Construção",0,IF(AQ25="Start-up",-('CAPEX e OPEX'!$C$52*'Fluxo de Caixa Descontado'!$B$3*(1-'Parâmetros de Fluxo de Caixa'!$B$14)+'Parâmetros de Fluxo de Caixa'!$B$14*'Parâmetros de Fluxo de Caixa'!$B$16*-'Fluxo de Caixa Descontado'!AR28),IF(AQ25="Operação",-('CAPEX e OPEX'!$C$52*'Fluxo de Caixa Descontado'!$B$3),""))) ->  | AR28: =IF(AR25="Construção",0,IF(AR25="Start-up",-('CAPEX e OPEX'!$C$52*'Fluxo de Caixa Descontado'!$B$3*(1-'Parâmetros de Fluxo de Caixa'!$B$14)+'Parâmetros de Fluxo de Caixa'!$B$14*'Parâmetros de Fluxo de Caixa'!$B$16*-'Fluxo de Caixa Descontado'!AV28),IF(AR25="Operação",-('CAPEX e OPEX'!$C$52*'Fluxo de Caixa Descontado'!$B$3),""))) ->  | AS28: =IF(AS25="Construção",0,IF(AS25="Start-up",-('CAPEX e OPEX'!$C$52*'Fluxo de Caixa Descontado'!$B$3*(1-'Parâmetros de Fluxo de Caixa'!$B$14)+'Parâmetros de Fluxo de Caixa'!$B$14*'Parâmetros de Fluxo de Caixa'!$B$16*-'Fluxo de Caixa Descontado'!AW28),IF(AS25="Operação",-('CAPEX e OPEX'!$C$52*'Fluxo de Caixa Descontado'!$B$3),""))) ->  | AT28: =IF(AT25="Construção",0,IF(AT25="Start-up",-('CAPEX e OPEX'!$C$52*'Fluxo de Caixa Descontado'!$B$3*(1-'Parâmetros de Fluxo de Caixa'!$B$14)+'Parâmetros de Fluxo de Caixa'!$B$14*'Parâmetros de Fluxo de Caixa'!$B$16*-'Fluxo de Caixa Descontado'!AX28),IF(AT25="Operação",-('CAPEX e OPEX'!$C$52*'Fluxo de Caixa Descontado'!$B$3),""))) ->  | AU28: =IF(AU25="Construção",0,IF(AU25="Start-up",-('CAPEX e OPEX'!$C$52*'Fluxo de Caixa Descontado'!$B$3*(1-'Parâmetros de Fluxo de Caixa'!$B$14)+'Parâmetros de Fluxo de Caixa'!$B$14*'Parâmetros de Fluxo de Caixa'!$B$16*-'Fluxo de Caixa Descontado'!AY28),IF(AU25="Operação",-('CAPEX e OPEX'!$C$52*'Fluxo de Caixa Descontado'!$B$3),""))) ->  | AV28: =IF(AV25="Construção",0,IF(AV25="Start-up",-('CAPEX e OPEX'!$C$52*'Fluxo de Caixa Descontado'!$B$3*(1-'Parâmetros de Fluxo de Caixa'!$B$14)+'Parâmetros de Fluxo de Caixa'!$B$14*'Parâmetros de Fluxo de Caixa'!$B$16*-'Fluxo de Caixa Descontado'!AZ28),IF(AV25="Operação",-('CAPEX e OPEX'!$C$52*'Fluxo de Caixa Descontado'!$B$3),""))) -> 
A29: OPEX fixo (milhões R$ / ano) | B29: =IF(B25="Construção",0,IF(B25="Start-up",-('CAPEX e OPEX'!$C$58*'Fluxo de Caixa Descontado'!$B$3*(1-'Parâmetros de Fluxo de Caixa'!$B$14)+'Parâmetros de Fluxo de Caixa'!$B$14*'Parâmetros de Fluxo de Caixa'!$B$17*(-'Fluxo de Caixa Descontado'!C29)),IF(B25="Operação",-'CAPEX e OPEX'!$C$58*'Fluxo de Caixa Descontado'!$B$3,""))) -> 0 | C29: =IF(C25="Construção",0,IF(C25="Start-up",-('CAPEX e OPEX'!$C$58*'Fluxo de Caixa Descontado'!$B$3*(1-'Parâmetros de Fluxo de Caixa'!$B$14)+'Parâmetros de Fluxo de Caixa'!$B$14*'Parâmetros de Fluxo de Caixa'!$B$17*(-'Fluxo de Caixa Descontado'!D29)),IF(C25="Operação",-'CAPEX e OPEX'!$C$58*'Fluxo de Caixa Descontado'!$B$3,""))) -> 0 | D29: =IF(D25="Construção",0,IF(D25="Start-up",-('CAPEX e OPEX'!$C$58*'Fluxo de Caixa Descontado'!$B$3*(1-'Parâmetros de Fluxo de Caixa'!$B$14)+'Parâmetros de Fluxo de Caixa'!$B$14*'Parâmetros de Fluxo de Caixa'!$B$17*(-'Fluxo de Caixa Descontado'!E29)),IF(D25="Operação",-'CAPEX e OPEX'!$C$58*'Fluxo de Caixa Descontado'!$B$3,""))) -> 0 | E29: =IF(E25="Construção",0,IF(E25="Start-up",-('CAPEX e OPEX'!$C$58*'Fluxo de Caixa Descontado'!$B$3*(1-'Parâmetros de Fluxo de Caixa'!$B$14)+'Parâmetros de Fluxo de Caixa'!$B$14*'Parâmetros de Fluxo de Caixa'!$B$17*(-'Fluxo de Caixa Descontado'!F29)),IF(E25="Operação",-'CAPEX e OPEX'!$C$58*'Fluxo de Caixa Descontado'!$B$3,""))) -> -302.8559214 | F29: =IF(F25="Construção",0,IF(F25="Start-up",-('CAPEX e OPEX'!$C$58*'Fluxo de Caixa Descontado'!$B$3*(1-'Parâmetros de Fluxo de Caixa'!$B$14)+'Parâmetros de Fluxo de Caixa'!$B$14*'Parâmetros de Fluxo de Caixa'!$B$17*(-'Fluxo de Caixa Descontado'!G29)),IF(F25="Operação",-'CAPEX e OPEX'!$C$58*'Fluxo de Caixa Descontado'!$B$3,""))) -> -302.8559214 | G29: =IF(G25="Construção",0,IF(G25="Start-up",-('CAPEX e OPEX'!$C$58*'Fluxo de Caixa Descontado'!$B$3*(1-'Parâmetros de Fluxo de Caixa'!$B$14)+'Parâmetros de Fluxo de Caixa'!$B$14*'Parâmetros de Fluxo de Caixa'!$B$17*(-'Fluxo de Caixa Descontado'!H29)),IF(G25="Operação",-'CAPEX e OPEX'!$C$58*'Fluxo de Caixa Descontado'!$B$3,""))) -> -302.8559214 | H29: =IF(H25="Construção",0,IF(H25="Start-up",-('CAPEX e OPEX'!$C$58*'Fluxo de Caixa Descontado'!$B$3*(1-'Parâmetros de Fluxo de Caixa'!$B$14)+'Parâmetros de Fluxo de Caixa'!$B$14*'Parâmetros de Fluxo de Caixa'!$B$17*(-'Fluxo de Caixa Descontado'!I29)),IF(H25="Operação",-'CAPEX e OPEX'!$C$58*'Fluxo de Caixa Descontado'!$B$3,""))) -> -302.8559214 | I29: =IF(I25="Construção",0,IF(I25="Start-up",-('CAPEX e OPEX'!$C$58*'Fluxo de Caixa Descontado'!$B$3*(1-'Parâmetros de Fluxo de Caixa'!$B$14)+'Parâmetros de Fluxo de Caixa'!$B$14*'Parâmetros de Fluxo de Caixa'!$B$17*(-'Fluxo de Caixa Descontado'!J29)),IF(I25="Operação",-'CAPEX e OPEX'!$C$58*'Fluxo de Caixa Descontado'!$B$3,""))) -> -302.8559214 | J29: =IF(J25="Construção",0,IF(J25="Start-up",-('CAPEX e OPEX'!$C$58*'Fluxo de Caixa Descontado'!$B$3*(1-'Parâmetros de Fluxo de Caixa'!$B$14)+'Parâmetros de Fluxo de Caixa'!$B$14*'Parâmetros de Fluxo de Caixa'!$B$17*(-'Fluxo de Caixa Descontado'!K29)),IF(J25="Operação",-'CAPEX e OPEX'!$C$58*'Fluxo de Caixa Descontado'!$B$3,""))) -> -302.8559214 | K29: =IF(K25="Construção",0,IF(K25="Start-up",-('CAPEX e OPEX'!$C$58*'Fluxo de Caixa Descontado'!$B$3*(1-'Parâmetros de Fluxo de Caixa'!$B$14)+'Parâmetros de Fluxo de Caixa'!$B$14*'Parâmetros de Fluxo de Caixa'!$B$17*(-'Fluxo de Caixa Descontado'!L29)),IF(K25="Operação",-'CAPEX e OPEX'!$C$58*'Fluxo de Caixa Descontado'!$B$3,""))) -> -302.8559214 | L29: =IF(L25="Construção",0,IF(L25="Start-up",-('CAPEX e OPEX'!$C$58*'Fluxo de Caixa Descontado'!$B$3*(1-'Parâmetros de Fluxo de Caixa'!$B$14)+'Parâmetros de Fluxo de Caixa'!$B$14*'Parâmetros de Fluxo de Caixa'!$B$17*(-'Fluxo de Caixa Descontado'!M29)),IF(L25="Operação",-'CAPEX e OPEX'!$C$58*'Fluxo de Caixa Descontado'!$B$3,""))) -> -302.8559214 | M29: =IF(M25="Construção",0,IF(M25="Start-up",-('CAPEX e OPEX'!$C$58*'Fluxo de Caixa Descontado'!$B$3*(1-'Parâmetros de Fluxo de Caixa'!$B$14)+'Parâmetros de Fluxo de Caixa'!$B$14*'Parâmetros de Fluxo de Caixa'!$B$17*(-'Fluxo de Caixa Descontado'!N29)),IF(M25="Operação",-'CAPEX e OPEX'!$C$58*'Fluxo de Caixa Descontado'!$B$3,""))) -> -302.8559214 | N29: =IF(N25="Construção",0,IF(N25="Start-up",-('CAPEX e OPEX'!$C$58*'Fluxo de Caixa Descontado'!$B$3*(1-'Parâmetros de Fluxo de Caixa'!$B$14)+'Parâmetros de Fluxo de Caixa'!$B$14*'Parâmetros de Fluxo de Caixa'!$B$17*(-'Fluxo de Caixa Descontado'!O29)),IF(N25="Operação",-'CAPEX e OPEX'!$C$58*'Fluxo de Caixa Descontado'!$B$3,""))) -> -302.8559214 | O29: =IF(O25="Construção",0,IF(O25="Start-up",-('CAPEX e OPEX'!$C$58*'Fluxo de Caixa Descontado'!$B$3*(1-'Parâmetros de Fluxo de Caixa'!$B$14)+'Parâmetros de Fluxo de Caixa'!$B$14*'Parâmetros de Fluxo de Caixa'!$B$17*(-'Fluxo de Caixa Descontado'!P29)),IF(O25="Operação",-'CAPEX e OPEX'!$C$58*'Fluxo de Caixa Descontado'!$B$3,""))) -> -302.8559214 | P29: =IF(P25="Construção",0,IF(P25="Start-up",-('CAPEX e OPEX'!$C$58*'Fluxo de Caixa Descontado'!$B$3*(1-'Parâmetros de Fluxo de Caixa'!$B$14)+'Parâmetros de Fluxo de Caixa'!$B$14*'Parâmetros de Fluxo de Caixa'!$B$17*(-'Fluxo de Caixa Descontado'!Q29)),IF(P25="Operação",-'CAPEX e OPEX'!$C$58*'Fluxo de Caixa Descontado'!$B$3,""))) -> -302.8559214 | Q29: =IF(Q25="Construção",0,IF(Q25="Start-up",-('CAPEX e OPEX'!$C$58*'Fluxo de Caixa Descontado'!$B$3*(1-'Parâmetros de Fluxo de Caixa'!$B$14)+'Parâmetros de Fluxo de Caixa'!$B$14*'Parâmetros de Fluxo de Caixa'!$B$17*(-'Fluxo de Caixa Descontado'!R29)),IF(Q25="Operação",-'CAPEX e OPEX'!$C$58*'Fluxo de Caixa Descontado'!$B$3,""))) -> -302.8559214 | R29: =IF(R25="Construção",0,IF(R25="Start-up",-('CAPEX e OPEX'!$C$58*'Fluxo de Caixa Descontado'!$B$3*(1-'Parâmetros de Fluxo de Caixa'!$B$14)+'Parâmetros de Fluxo de Caixa'!$B$14*'Parâmetros de Fluxo de Caixa'!$B$17*(-'Fluxo de Caixa Descontado'!S29)),IF(R25="Operação",-'CAPEX e OPEX'!$C$58*'Fluxo de Caixa Descontado'!$B$3,""))) -> -302.8559214 | S29: =IF(S25="Construção",0,IF(S25="Start-up",-('CAPEX e OPEX'!$C$58*'Fluxo de Caixa Descontado'!$B$3*(1-'Parâmetros de Fluxo de Caixa'!$B$14)+'Parâmetros de Fluxo de Caixa'!$B$14*'Parâmetros de Fluxo de Caixa'!$B$17*(-'Fluxo de Caixa Descontado'!T29)),IF(S25="Operação",-'CAPEX e OPEX'!$C$58*'Fluxo de Caixa Descontado'!$B$3,""))) -> -302.8559214 | T29: =IF(T25="Construção",0,IF(T25="Start-up",-('CAPEX e OPEX'!$C$58*'Fluxo de Caixa Descontado'!$B$3*(1-'Parâmetros de Fluxo de Caixa'!$B$14)+'Parâmetros de Fluxo de Caixa'!$B$14*'Parâmetros de Fluxo de Caixa'!$B$17*(-'Fluxo de Caixa Descontado'!U29)),IF(T25="Operação",-'CAPEX e OPEX'!$C$58*'Fluxo de Caixa Descontado'!$B$3,""))) -> -302.8559214 | U29: =IF(U25="Construção",0,IF(U25="Start-up",-('CAPEX e OPEX'!$C$58*'Fluxo de Caixa Descontado'!$B$3*(1-'Parâmetros de Fluxo de Caixa'!$B$14)+'Parâmetros de Fluxo de Caixa'!$B$14*'Parâmetros de Fluxo de Caixa'!$B$17*(-'Fluxo de Caixa Descontado'!V29)),IF(U25="Operação",-'CAPEX e OPEX'!$C$58*'Fluxo de Caixa Descontado'!$B$3,""))) -> -302.8559214 | V29: =IF(V25="Construção",0,IF(V25="Start-up",-('CAPEX e OPEX'!$C$58*'Fluxo de Caixa Descontado'!$B$3*(1-'Parâmetros de Fluxo de Caixa'!$B$14)+'Parâmetros de Fluxo de Caixa'!$B$14*'Parâmetros de Fluxo de Caixa'!$B$17*(-'Fluxo de Caixa Descontado'!W29)),IF(V25="Operação",-'CAPEX e OPEX'!$C$58*'Fluxo de Caixa Descontado'!$B$3,""))) -> -302.8559214 | W29: =IF(W25="Construção",0,IF(W25="Start-up",-('CAPEX e OPEX'!$C$58*'Fluxo de Caixa Descontado'!$B$3*(1-'Parâmetros de Fluxo de Caixa'!$B$14)+'Parâmetros de Fluxo de Caixa'!$B$14*'Parâmetros de Fluxo de Caixa'!$B$17*(-'Fluxo de Caixa Descontado'!X29)),IF(W25="Operação",-'CAPEX e OPEX'!$C$58*'Fluxo de Caixa Descontado'!$B$3,""))) -> -302.8559214 | X29: =IF(X25="Construção",0,IF(X25="Start-up",-('CAPEX e OPEX'!$C$58*'Fluxo de Caixa Descontado'!$B$3*(1-'Parâmetros de Fluxo de Caixa'!$B$14)+'Parâmetros de Fluxo de Caixa'!$B$14*'Parâmetros de Fluxo de Caixa'!$B$17*(-'Fluxo de Caixa Descontado'!Y29)),IF(X25="Operação",-'CAPEX e OPEX'!$C$58*'Fluxo de Caixa Descontado'!$B$3,""))) -> -302.8559214 | Y29: =IF(Y25="Construção",0,IF(Y25="Start-up",-('CAPEX e OPEX'!$C$58*'Fluxo de Caixa Descontado'!$B$3*(1-'Parâmetros de Fluxo de Caixa'!$B$14)+'Parâmetros de Fluxo de Caixa'!$B$14*'Parâmetros de Fluxo de Caixa'!$B$17*(-'Fluxo de Caixa Descontado'!Z29)),IF(Y25="Operação",-'CAPEX e OPEX'!$C$58*'Fluxo de Caixa Descontado'!$B$3,""))) ->  | Z29: =IF(Z25="Construção",0,IF(Z25="Start-up",-('CAPEX e OPEX'!$C$58*'Fluxo de Caixa Descontado'!$B$3*(1-'Parâmetros de Fluxo de Caixa'!$B$14)+'Parâmetros de Fluxo de Caixa'!$B$14*'Parâmetros de Fluxo de Caixa'!$B$17*(-'Fluxo de Caixa Descontado'!AA29)),IF(Z25="Operação",-'CAPEX e OPEX'!$C$58*'Fluxo de Caixa Descontado'!$B$3,""))) ->  | AA29: =IF(AA25="Construção",0,IF(AA25="Start-up",-('CAPEX e OPEX'!$C$58*'Fluxo de Caixa Descontado'!$B$3*(1-'Parâmetros de Fluxo de Caixa'!$B$14)+'Parâmetros de Fluxo de Caixa'!$B$14*'Parâmetros de Fluxo de Caixa'!$B$17*(-'Fluxo de Caixa Descontado'!AB29)),IF(AA25="Operação",-'CAPEX e OPEX'!$C$58*'Fluxo de Caixa Descontado'!$B$3,""))) ->  | AB29: =IF(AB25="Construção",0,IF(AB25="Start-up",-('CAPEX e OPEX'!$C$58*'Fluxo de Caixa Descontado'!$B$3*(1-'Parâmetros de Fluxo de Caixa'!$B$14)+'Parâmetros de Fluxo de Caixa'!$B$14*'Parâmetros de Fluxo de Caixa'!$B$17*(-'Fluxo de Caixa Descontado'!AC29)),IF(AB25="Operação",-'CAPEX e OPEX'!$C$58*'Fluxo de Caixa Descontado'!$B$3,""))) ->  | AC29: =IF(AC25="Construção",0,IF(AC25="Start-up",-('CAPEX e OPEX'!$C$58*'Fluxo de Caixa Descontado'!$B$3*(1-'Parâmetros de Fluxo de Caixa'!$B$14)+'Parâmetros de Fluxo de Caixa'!$B$14*'Parâmetros de Fluxo de Caixa'!$B$17*(-'Fluxo de Caixa Descontado'!AD29)),IF(AC25="Operação",-'CAPEX e OPEX'!$C$58*'Fluxo de Caixa Descontado'!$B$3,""))) ->  | AD29: =IF(AD25="Construção",0,IF(AD25="Start-up",-('CAPEX e OPEX'!$C$58*'Fluxo de Caixa Descontado'!$B$3*(1-'Parâmetros de Fluxo de Caixa'!$B$14)+'Parâmetros de Fluxo de Caixa'!$B$14*'Parâmetros de Fluxo de Caixa'!$B$17*(-'Fluxo de Caixa Descontado'!AE29)),IF(AD25="Operação",-'CAPEX e OPEX'!$C$58*'Fluxo de Caixa Descontado'!$B$3,""))) ->  | AE29: =IF(AE25="Construção",0,IF(AE25="Start-up",-('CAPEX e OPEX'!$C$58*'Fluxo de Caixa Descontado'!$B$3*(1-'Parâmetros de Fluxo de Caixa'!$B$14)+'Parâmetros de Fluxo de Caixa'!$B$14*'Parâmetros de Fluxo de Caixa'!$B$17*(-'Fluxo de Caixa Descontado'!AF29)),IF(AE25="Operação",-'CAPEX e OPEX'!$C$58*'Fluxo de Caixa Descontado'!$B$3,""))) ->  | AF29: =IF(AF25="Construção",0,IF(AF25="Start-up",-('CAPEX e OPEX'!$C$58*'Fluxo de Caixa Descontado'!$B$3*(1-'Parâmetros de Fluxo de Caixa'!$B$14)+'Parâmetros de Fluxo de Caixa'!$B$14*'Parâmetros de Fluxo de Caixa'!$B$17*(-'Fluxo de Caixa Descontado'!AG29)),IF(AF25="Operação",-'CAPEX e OPEX'!$C$58*'Fluxo de Caixa Descontado'!$B$3,""))) ->  | AG29: =IF(AG25="Construção",0,IF(AG25="Start-up",-('CAPEX e OPEX'!$C$58*'Fluxo de Caixa Descontado'!$B$3*(1-'Parâmetros de Fluxo de Caixa'!$B$14)+'Parâmetros de Fluxo de Caixa'!$B$14*'Parâmetros de Fluxo de Caixa'!$B$17*(-'Fluxo de Caixa Descontado'!AH29)),IF(AG25="Operação",-'CAPEX e OPEX'!$C$58*'Fluxo de Caixa Descontado'!$B$3,""))) ->  | AH29: =IF(AH25="Construção",0,IF(AH25="Start-up",-('CAPEX e OPEX'!$C$58*'Fluxo de Caixa Descontado'!$B$3*(1-'Parâmetros de Fluxo de Caixa'!$B$14)+'Parâmetros de Fluxo de Caixa'!$B$14*'Parâmetros de Fluxo de Caixa'!$B$17*(-'Fluxo de Caixa Descontado'!AI29)),IF(AH25="Operação",-'CAPEX e OPEX'!$C$58*'Fluxo de Caixa Descontado'!$B$3,""))) ->  | AI29: =IF(AI25="Construção",0,IF(AI25="Start-up",-('CAPEX e OPEX'!$C$58*'Fluxo de Caixa Descontado'!$B$3*(1-'Parâmetros de Fluxo de Caixa'!$B$14)+'Parâmetros de Fluxo de Caixa'!$B$14*'Parâmetros de Fluxo de Caixa'!$B$17*(-'Fluxo de Caixa Descontado'!AJ29)),IF(AI25="Operação",-'CAPEX e OPEX'!$C$58*'Fluxo de Caixa Descontado'!$B$3,""))) ->  | AJ29: =IF(AJ25="Construção",0,IF(AJ25="Start-up",-('CAPEX e OPEX'!$C$58*'Fluxo de Caixa Descontado'!$B$3*(1-'Parâmetros de Fluxo de Caixa'!$B$14)+'Parâmetros de Fluxo de Caixa'!$B$14*'Parâmetros de Fluxo de Caixa'!$B$17*(-'Fluxo de Caixa Descontado'!AK29)),IF(AJ25="Operação",-'CAPEX e OPEX'!$C$58*'Fluxo de Caixa Descontado'!$B$3,""))) ->  | AK29: =IF(AK25="Construção",0,IF(AK25="Start-up",-('CAPEX e OPEX'!$C$58*'Fluxo de Caixa Descontado'!$B$3*(1-'Parâmetros de Fluxo de Caixa'!$B$14)+'Parâmetros de Fluxo de Caixa'!$B$14*'Parâmetros de Fluxo de Caixa'!$B$17*(-'Fluxo de Caixa Descontado'!AL29)),IF(AK25="Operação",-'CAPEX e OPEX'!$C$58*'Fluxo de Caixa Descontado'!$B$3,""))) ->  | AL29: =IF(AL25="Construção",0,IF(AL25="Start-up",-('CAPEX e OPEX'!$C$58*'Fluxo de Caixa Descontado'!$B$3*(1-'Parâmetros de Fluxo de Caixa'!$B$14)+'Parâmetros de Fluxo de Caixa'!$B$14*'Parâmetros de Fluxo de Caixa'!$B$17*(-'Fluxo de Caixa Descontado'!AM29)),IF(AL25="Operação",-'CAPEX e OPEX'!$C$58*'Fluxo de Caixa Descontado'!$B$3,""))) ->  | AM29: =IF(AM25="Construção",0,IF(AM25="Start-up",-('CAPEX e OPEX'!$C$58*'Fluxo de Caixa Descontado'!$B$3*(1-'Parâmetros de Fluxo de Caixa'!$B$14)+'Parâmetros de Fluxo de Caixa'!$B$14*'Parâmetros de Fluxo de Caixa'!$B$17*(-'Fluxo de Caixa Descontado'!AN29)),IF(AM25="Operação",-'CAPEX e OPEX'!$C$58*'Fluxo de Caixa Descontado'!$B$3,""))) ->  | AN29: =IF(AN25="Construção",0,IF(AN25="Start-up",-('CAPEX e OPEX'!$C$58*'Fluxo de Caixa Descontado'!$B$3*(1-'Parâmetros de Fluxo de Caixa'!$B$14)+'Parâmetros de Fluxo de Caixa'!$B$14*'Parâmetros de Fluxo de Caixa'!$B$17*(-'Fluxo de Caixa Descontado'!AO29)),IF(AN25="Operação",-'CAPEX e OPEX'!$C$58*'Fluxo de Caixa Descontado'!$B$3,""))) ->  | AO29: =IF(AO25="Construção",0,IF(AO25="Start-up",-('CAPEX e OPEX'!$C$58*'Fluxo de Caixa Descontado'!$B$3*(1-'Parâmetros de Fluxo de Caixa'!$B$14)+'Parâmetros de Fluxo de Caixa'!$B$14*'Parâmetros de Fluxo de Caixa'!$B$17*(-'Fluxo de Caixa Descontado'!AP29)),IF(AO25="Operação",-'CAPEX e OPEX'!$C$58*'Fluxo de Caixa Descontado'!$B$3,""))) ->  | AP29: =IF(AP25="Construção",0,IF(AP25="Start-up",-('CAPEX e OPEX'!$C$58*'Fluxo de Caixa Descontado'!$B$3*(1-'Parâmetros de Fluxo de Caixa'!$B$14)+'Parâmetros de Fluxo de Caixa'!$B$14*'Parâmetros de Fluxo de Caixa'!$B$17*(-'Fluxo de Caixa Descontado'!AQ29)),IF(AP25="Operação",-'CAPEX e OPEX'!$C$58*'Fluxo de Caixa Descontado'!$B$3,""))) ->  | AQ29: =IF(AQ25="Construção",0,IF(AQ25="Start-up",-('CAPEX e OPEX'!$C$58*'Fluxo de Caixa Descontado'!$B$3*(1-'Parâmetros de Fluxo de Caixa'!$B$14)+'Parâmetros de Fluxo de Caixa'!$B$14*'Parâmetros de Fluxo de Caixa'!$B$17*(-'Fluxo de Caixa Descontado'!AR29)),IF(AQ25="Operação",-'CAPEX e OPEX'!$C$58*'Fluxo de Caixa Descontado'!$B$3,""))) ->  | AR29: =IF(AR25="Construção",0,IF(AR25="Start-up",-('CAPEX e OPEX'!$C$58*'Fluxo de Caixa Descontado'!$B$3*(1-'Parâmetros de Fluxo de Caixa'!$B$14)+'Parâmetros de Fluxo de Caixa'!$B$14*'Parâmetros de Fluxo de Caixa'!$B$17*(-'Fluxo de Caixa Descontado'!AV29)),IF(AR25="Operação",-'CAPEX e OPEX'!$C$58*'Fluxo de Caixa Descontado'!$B$3,""))) ->  | AS29: =IF(AS25="Construção",0,IF(AS25="Start-up",-('CAPEX e OPEX'!$C$58*'Fluxo de Caixa Descontado'!$B$3*(1-'Parâmetros de Fluxo de Caixa'!$B$14)+'Parâmetros de Fluxo de Caixa'!$B$14*'Parâmetros de Fluxo de Caixa'!$B$17*(-'Fluxo de Caixa Descontado'!AW29)),IF(AS25="Operação",-'CAPEX e OPEX'!$C$58*'Fluxo de Caixa Descontado'!$B$3,""))) ->  | AT29: =IF(AT25="Construção",0,IF(AT25="Start-up",-('CAPEX e OPEX'!$C$58*'Fluxo de Caixa Descontado'!$B$3*(1-'Parâmetros de Fluxo de Caixa'!$B$14)+'Parâmetros de Fluxo de Caixa'!$B$14*'Parâmetros de Fluxo de Caixa'!$B$17*(-'Fluxo de Caixa Descontado'!AX29)),IF(AT25="Operação",-'CAPEX e OPEX'!$C$58*'Fluxo de Caixa Descontado'!$B$3,""))) ->  | AU29: =IF(AU25="Construção",0,IF(AU25="Start-up",-('CAPEX e OPEX'!$C$58*'Fluxo de Caixa Descontado'!$B$3*(1-'Parâmetros de Fluxo de Caixa'!$B$14)+'Parâmetros de Fluxo de Caixa'!$B$14*'Parâmetros de Fluxo de Caixa'!$B$17*(-'Fluxo de Caixa Descontado'!AY29)),IF(AU25="Operação",-'CAPEX e OPEX'!$C$58*'Fluxo de Caixa Descontado'!$B$3,""))) ->  | AV29: =IF(AV25="Construção",0,IF(AV25="Start-up",-('CAPEX e OPEX'!$C$58*'Fluxo de Caixa Descontado'!$B$3*(1-'Parâmetros de Fluxo de Caixa'!$B$14)+'Parâmetros de Fluxo de Caixa'!$B$14*'Parâmetros de Fluxo de Caixa'!$B$17*(-'Fluxo de Caixa Descontado'!AZ29)),IF(AV25="Operação",-'CAPEX e OPEX'!$C$58*'Fluxo de Caixa Descontado'!$B$3,""))) -> 
A30: Custo de Capital Equity (milhões R$ / ano) | B30: =IF(B25="Construção",-('Parâmetros de Fluxo de Caixa'!$B$6*'Parâmetros de Fluxo de Caixa'!$B$23*'CAPEX e OPEX'!C3/10^6),0) -> -149.0982998 | C30: =IF(C25="Construção",-('Parâmetros de Fluxo de Caixa'!$B$7*'Parâmetros de Fluxo de Caixa'!$B$23*'CAPEX e OPEX'!C3/10^6),0) -> -1118.237248 | D30: =IF(D25="Construção",-('Parâmetros de Fluxo de Caixa'!$B$8*'Parâmetros de Fluxo de Caixa'!$B$23*'CAPEX e OPEX'!C3/10^6),0) -> -596.3931991 | E30: =IF(E25="Construção",-('Parâmetros de Fluxo de Caixa'!$B$9*'Parâmetros de Fluxo de Caixa'!$B$23*'CAPEX e OPEX'!C3/10^6),0) -> 0 | F30: =IF(F25="Construção",-('Parâmetros de Fluxo de Caixa'!$B$10*'Parâmetros de Fluxo de Caixa'!$B$23*'CAPEX e OPEX'!C3/10^6),0) -> 0 | G30: =IF(G25="Start-up",0,IF(G25="Operação",0,"")) -> 0 | H30: 0 | I30: 0 | J30: 0 | K30: 0 | L30: 0 | M30: 0 | N30: 0 | O30: 0 | P30: 0 | Q30: 0 | R30: 0 | S30: 0 | T30: 0 | U30: 0 | V30: 0 | W30: 0 | X30: 0 | AS30: =IF(AS25="Start-up",0,IF(AS25="Operação",0,"")) ->  | AT30: =IF(AT25="Start-up",0,IF(AT25="Operação",0,"")) ->  | AU30: =IF(AU25="Start-up",0,IF(AU25="Operação",0,"")) -> 
A31: Custo de Capital Financiado (milhões R$ / ano) | B31: =IF(B25="Construção",-('Parâmetros de Fluxo de Caixa'!$B$6*'Parâmetros de Fluxo de Caixa'!$B$18*'CAPEX e OPEX'!C3/10^6),0) -> -223.6474497 | C31: =IF(C25="Construção",-('Parâmetros de Fluxo de Caixa'!$B$7*'Parâmetros de Fluxo de Caixa'!$B$18*'CAPEX e OPEX'!C3/10^6),0) -> -1677.355872 | D31: =IF(D25="Construção",-('Parâmetros de Fluxo de Caixa'!$B$8*'Parâmetros de Fluxo de Caixa'!$B$18*'CAPEX e OPEX'!C3/10^6),0) -> -894.5897986 | E31: =IF(E25="Construção",-('Parâmetros de Fluxo de Caixa'!$B$9*'Parâmetros de Fluxo de Caixa'!$B$18*'CAPEX e OPEX'!C3/10^6),0) -> 0 | F31: =IF(F25="Construção",-('Parâmetros de Fluxo de Caixa'!$B$10*'Parâmetros de Fluxo de Caixa'!$B$18*'CAPEX e OPEX'!C3/10^6),0) -> 0 | G31: =IF(G25="Start-up",0,IF(G25="Operação",0,"")) -> 0 | H31: 0 | I31: 0 | J31: 0 | K31: 0 | L31: 0 | M31: 0 | N31: 0 | O31: 0 | P31: 0 | Q31: 0 | R31: 0 | S31: 0 | T31: 0 | U31: 0 | V31: 0 | W31: 0 | X31: 0 | AS31: =IF(AS25="Start-up",0,IF(AS25="Operação",0,"")) ->  | AT31: =IF(AT25="Start-up",0,IF(AT25="Operação",0,"")) ->  | AU31: =IF(AU25="Start-up",0,IF(AU25="Operação",0,"")) -> 
A32: Depreciação | B32: =IF(B25="Construção",0,IF(B24>'Parâmetros de Fluxo de Caixa'!$B$12,"",IF(B24<='Parâmetros de Fluxo de Caixa'!$B$26+'Parâmetros de Fluxo de Caixa'!$B$3+'Parâmetros de Fluxo de Caixa'!$B$4/12,-(SUM($B$30:$D$31)-SUM($B$30:$D$31)*'Parâmetros de Fluxo de Caixa'!$B$27)/'Parâmetros de Fluxo de Caixa'!$B$26,0))) -> 0 | C32: =IF(C25="Construção",0,IF(C24>'Parâmetros de Fluxo de Caixa'!$B$12,"",IF(C24<='Parâmetros de Fluxo de Caixa'!$B$26+'Parâmetros de Fluxo de Caixa'!$B$3+'Parâmetros de Fluxo de Caixa'!$B$4/12,-(SUM($B$30:$D$31)-SUM($B$30:$D$31)*'Parâmetros de Fluxo de Caixa'!$B$27)/'Parâmetros de Fluxo de Caixa'!$B$26,0))) -> 0 | D32: =IF(D25="Construção",0,IF(D24>'Parâmetros de Fluxo de Caixa'!$B$12,"",IF(D24<='Parâmetros de Fluxo de Caixa'!$B$26+'Parâmetros de Fluxo de Caixa'!$B$3+'Parâmetros de Fluxo de Caixa'!$B$4/12,-(SUM($B$30:$D$31)-SUM($B$30:$D$31)*'Parâmetros de Fluxo de Caixa'!$B$27)/'Parâmetros de Fluxo de Caixa'!$B$26,0))) -> 0 | E32: =IF(E25="Construção",0,IF(E24>'Parâmetros de Fluxo de Caixa'!$B$12,"",IF(E24<='Parâmetros de Fluxo de Caixa'!$B$26+'Parâmetros de Fluxo de Caixa'!$B$3+'Parâmetros de Fluxo de Caixa'!$B$4/12,-(SUM($B$30:$D$31)-SUM($B$30:$D$31)*'Parâmetros de Fluxo de Caixa'!$B$27)/'Parâmetros de Fluxo de Caixa'!$B$26,0))) -> 465.9321868 | F32: =IF(F25="Construção",0,IF(F24>'Parâmetros de Fluxo de Caixa'!$B$12,"",IF(F24<='Parâmetros de Fluxo de Caixa'!$B$26+'Parâmetros de Fluxo de Caixa'!$B$3+'Parâmetros de Fluxo de Caixa'!$B$4/12,-(SUM($B$30:$D$31)-SUM($B$30:$D$31)*'Parâmetros de Fluxo de Caixa'!$B$27)/'Parâmetros de Fluxo de Caixa'!$B$26,0))) -> 465.9321868 | G32: =IF(G25="Construção",0,IF(G24>'Parâmetros de Fluxo de Caixa'!$B$12,"",IF(G24<='Parâmetros de Fluxo de Caixa'!$B$26+'Parâmetros de Fluxo de Caixa'!$B$3+'Parâmetros de Fluxo de Caixa'!$B$4/12,-(SUM($B$30:$D$31)-SUM($B$30:$D$31)*'Parâmetros de Fluxo de Caixa'!$B$27)/'Parâmetros de Fluxo de Caixa'!$B$26,0))) -> 465.9321868 | H32: =IF(H25="Construção",0,IF(H24>'Parâmetros de Fluxo de Caixa'!$B$12,"",IF(H24<='Parâmetros de Fluxo de Caixa'!$B$26+'Parâmetros de Fluxo de Caixa'!$B$3+'Parâmetros de Fluxo de Caixa'!$B$4/12,-(SUM($B$30:$D$31)-SUM($B$30:$D$31)*'Parâmetros de Fluxo de Caixa'!$B$27)/'Parâmetros de Fluxo de Caixa'!$B$26,0))) -> 465.9321868 | I32: =IF(I25="Construção",0,IF(I24>'Parâmetros de Fluxo de Caixa'!$B$12,"",IF(I24<='Parâmetros de Fluxo de Caixa'!$B$26+'Parâmetros de Fluxo de Caixa'!$B$3+'Parâmetros de Fluxo de Caixa'!$B$4/12,-(SUM($B$30:$D$31)-SUM($B$30:$D$31)*'Parâmetros de Fluxo de Caixa'!$B$27)/'Parâmetros de Fluxo de Caixa'!$B$26,0))) -> 465.9321868 | J32: =IF(J25="Construção",0,IF(J24>'Parâmetros de Fluxo de Caixa'!$B$12,"",IF(J24<='Parâmetros de Fluxo de Caixa'!$B$26+'Parâmetros de Fluxo de Caixa'!$B$3+'Parâmetros de Fluxo de Caixa'!$B$4/12,-(SUM($B$30:$D$31)-SUM($B$30:$D$31)*'Parâmetros de Fluxo de Caixa'!$B$27)/'Parâmetros de Fluxo de Caixa'!$B$26,0))) -> 465.9321868 | K32: =IF(K25="Construção",0,IF(K24>'Parâmetros de Fluxo de Caixa'!$B$12,"",IF(K24<='Parâmetros de Fluxo de Caixa'!$B$26+'Parâmetros de Fluxo de Caixa'!$B$3+'Parâmetros de Fluxo de Caixa'!$B$4/12,-(SUM($B$30:$D$31)-SUM($B$30:$D$31)*'Parâmetros de Fluxo de Caixa'!$B$27)/'Parâmetros de Fluxo de Caixa'!$B$26,0))) -> 465.9321868 | L32: =IF(L25="Construção",0,IF(L24>'Parâmetros de Fluxo de Caixa'!$B$12,"",IF(L24<='Parâmetros de Fluxo de Caixa'!$B$26+'Parâmetros de Fluxo de Caixa'!$B$3+'Parâmetros de Fluxo de Caixa'!$B$4/12,-(SUM($B$30:$D$31)-SUM($B$30:$D$31)*'Parâmetros de Fluxo de Caixa'!$B$27)/'Parâmetros de Fluxo de Caixa'!$B$26,0))) -> 465.9321868 | M32: =IF(M25="Construção",0,IF(M24>'Parâmetros de Fluxo de Caixa'!$B$12,"",IF(M24<='Parâmetros de Fluxo de Caixa'!$B$26+'Parâmetros de Fluxo de Caixa'!$B$3+'Parâmetros de Fluxo de Caixa'!$B$4/12,-(SUM($B$30:$D$31)-SUM($B$30:$D$31)*'Parâmetros de Fluxo de Caixa'!$B$27)/'Parâmetros de Fluxo de Caixa'!$B$26,0))) -> 465.9321868 | N32: =IF(N25="Construção",0,IF(N24>'Parâmetros de Fluxo de Caixa'!$B$12,"",IF(N24<='Parâmetros de Fluxo de Caixa'!$B$26+'Parâmetros de Fluxo de Caixa'!$B$3+'Parâmetros de Fluxo de Caixa'!$B$4/12,-(SUM($B$30:$D$31)-SUM($B$30:$D$31)*'Parâmetros de Fluxo de Caixa'!$B$27)/'Parâmetros de Fluxo de Caixa'!$B$26,0))) -> 465.9321868 | O32: =IF(O25="Construção",0,IF(O24>'Parâmetros de Fluxo de Caixa'!$B$12,"",IF(O24<='Parâmetros de Fluxo de Caixa'!$B$26+'Parâmetros de Fluxo de Caixa'!$B$3+'Parâmetros de Fluxo de Caixa'!$B$4/12,-(SUM($B$30:$D$31)-SUM($B$30:$D$31)*'Parâmetros de Fluxo de Caixa'!$B$27)/'Parâmetros de Fluxo de Caixa'!$B$26,0))) -> 0 | P32: =IF(P25="Construção",0,IF(P24>'Parâmetros de Fluxo de Caixa'!$B$12,"",IF(P24<='Parâmetros de Fluxo de Caixa'!$B$26+'Parâmetros de Fluxo de Caixa'!$B$3+'Parâmetros de Fluxo de Caixa'!$B$4/12,-(SUM($B$30:$D$31)-SUM($B$30:$D$31)*'Parâmetros de Fluxo de Caixa'!$B$27)/'Parâmetros de Fluxo de Caixa'!$B$26,0))) -> 0 | Q32: =IF(Q25="Construção",0,IF(Q24>'Parâmetros de Fluxo de Caixa'!$B$12,"",IF(Q24<='Parâmetros de Fluxo de Caixa'!$B$26+'Parâmetros de Fluxo de Caixa'!$B$3+'Parâmetros de Fluxo de Caixa'!$B$4/12,-(SUM($B$30:$D$31)-SUM($B$30:$D$31)*'Parâmetros de Fluxo de Caixa'!$B$27)/'Parâmetros de Fluxo de Caixa'!$B$26,0))) -> 0 | R32: =IF(R25="Construção",0,IF(R24>'Parâmetros de Fluxo de Caixa'!$B$12,"",IF(R24<='Parâmetros de Fluxo de Caixa'!$B$26+'Parâmetros de Fluxo de Caixa'!$B$3+'Parâmetros de Fluxo de Caixa'!$B$4/12,-(SUM($B$30:$D$31)-SUM($B$30:$D$31)*'Parâmetros de Fluxo de Caixa'!$B$27)/'Parâmetros de Fluxo de Caixa'!$B$26,0))) -> 0 | S32: =IF(S25="Construção",0,IF(S24>'Parâmetros de Fluxo de Caixa'!$B$12,"",IF(S24<='Parâmetros de Fluxo de Caixa'!$B$26+'Parâmetros de Fluxo de Caixa'!$B$3+'Parâmetros de Fluxo de Caixa'!$B$4/12,-(SUM($B$30:$D$31)-SUM($B$30:$D$31)*'Parâmetros de Fluxo de Caixa'!$B$27)/'Parâmetros de Fluxo de Caixa'!$B$26,0))) -> 0 | T32: =IF(T25="Construção",0,IF(T24>'Parâmetros de Fluxo de Caixa'!$B$12,"",IF(T24<='Parâmetros de Fluxo de Caixa'!$B$26+'Parâmetros de Fluxo de Caixa'!$B$3+'Parâmetros de Fluxo de Caixa'!$B$4/12,-(SUM($B$30:$D$31)-SUM($B$30:$D$31)*'Parâmetros de Fluxo de Caixa'!$B$27)/'Parâmetros de Fluxo de Caixa'!$B$26,0))) -> 0 | U32: =IF(U25="Construção",0,IF(U24>'Parâmetros de Fluxo de Caixa'!$B$12,"",IF(U24<='Parâmetros de Fluxo de Caixa'!$B$26+'Parâmetros de Fluxo de Caixa'!$B$3+'Parâmetros de Fluxo de Caixa'!$B$4/12,-(SUM($B$30:$D$31)-SUM($B$30:$D$31)*'Parâmetros de Fluxo de Caixa'!$B$27)/'Parâmetros de Fluxo de Caixa'!$B$26,0))) -> 0 | V32: =IF(V25="Construção",0,IF(V24>'Parâmetros de Fluxo de Caixa'!$B$12,"",IF(V24<='Parâmetros de Fluxo de Caixa'!$B$26+'Parâmetros de Fluxo de Caixa'!$B$3+'Parâmetros de Fluxo de Caixa'!$B$4/12,-(SUM($B$30:$D$31)-SUM($B$30:$D$31)*'Parâmetros de Fluxo de Caixa'!$B$27)/'Parâmetros de Fluxo de Caixa'!$B$26,0))) -> 0 | W32: =IF(W25="Construção",0,IF(W24>'Parâmetros de Fluxo de Caixa'!$B$12,"",IF(W24<='Parâmetros de Fluxo de Caixa'!$B$26+'Parâmetros de Fluxo de Caixa'!$B$3+'Parâmetros de Fluxo de Caixa'!$B$4/12,-(SUM($B$30:$D$31)-SUM($B$30:$D$31)*'Parâmetros de Fluxo de Caixa'!$B$27)/'Parâmetros de Fluxo de Caixa'!$B$26,0))) -> 0 | X32: =IF(X25="Construção",0,IF(X24>'Parâmetros de Fluxo de Caixa'!$B$12,"",IF(X24<='Parâmetros de Fluxo de Caixa'!$B$26+'Parâmetros de Fluxo de Caixa'!$B$3+'Parâmetros de Fluxo de Caixa'!$B$4/12,-(SUM($B$30:$D$31)-SUM($B$30:$D$31)*'Parâmetros de Fluxo de Caixa'!$B$27)/'Parâmetros de Fluxo de Caixa'!$B$26,0))) -> 0 | Y32: =IF(Y25="Construção",0,IF(Y24>'Parâmetros de Fluxo de Caixa'!$B$12,"",IF(Y24<='Parâmetros de Fluxo de Caixa'!$B$26+'Parâmetros de Fluxo de Caixa'!$B$3+'Parâmetros de Fluxo de Caixa'!$B$4/12,-(SUM($B$30:$D$31)-SUM($B$30:$D$31)*'Parâmetros de Fluxo de Caixa'!$B$27)/'Parâmetros de Fluxo de Caixa'!$B$26,0))) ->  | Z32: =IF(Z25="Construção",0,IF(Z24>'Parâmetros de Fluxo de Caixa'!$B$12,"",IF(Z24<='Parâmetros de Fluxo de Caixa'!$B$26+'Parâmetros de Fluxo de Caixa'!$B$3+'Parâmetros de Fluxo de Caixa'!$B$4/12,-(SUM($B$30:$D$31)-SUM($B$30:$D$31)*'Parâmetros de Fluxo de Caixa'!$B$27)/'Parâmetros de Fluxo de Caixa'!$B$26,0))) ->  | AA32: =IF(AA25="Construção",0,IF(AA24>'Parâmetros de Fluxo de Caixa'!$B$12,"",IF(AA24<='Parâmetros de Fluxo de Caixa'!$B$26+'Parâmetros de Fluxo de Caixa'!$B$3+'Parâmetros de Fluxo de Caixa'!$B$4/12,-(SUM($B$30:$D$31)-SUM($B$30:$D$31)*'Parâmetros de Fluxo de Caixa'!$B$27)/'Parâmetros de Fluxo de Caixa'!$B$26,0))) ->  | AB32: =IF(AB25="Construção",0,IF(AB24>'Parâmetros de Fluxo de Caixa'!$B$12,"",IF(AB24<='Parâmetros de Fluxo de Caixa'!$B$26+'Parâmetros de Fluxo de Caixa'!$B$3+'Parâmetros de Fluxo de Caixa'!$B$4/12,-(SUM($B$30:$D$31)-SUM($B$30:$D$31)*'Parâmetros de Fluxo de Caixa'!$B$27)/'Parâmetros de Fluxo de Caixa'!$B$26,0))) ->  | AC32: =IF(AC25="Construção",0,IF(AC24>'Parâmetros de Fluxo de Caixa'!$B$12,"",IF(AC24<='Parâmetros de Fluxo de Caixa'!$B$26+'Parâmetros de Fluxo de Caixa'!$B$3+'Parâmetros de Fluxo de Caixa'!$B$4/12,-(SUM($B$30:$D$31)-SUM($B$30:$D$31)*'Parâmetros de Fluxo de Caixa'!$B$27)/'Parâmetros de Fluxo de Caixa'!$B$26,0))) ->  | AD32: =IF(AD25="Construção",0,IF(AD24>'Parâmetros de Fluxo de Caixa'!$B$12,"",IF(AD24<='Parâmetros de Fluxo de Caixa'!$B$26+'Parâmetros de Fluxo de Caixa'!$B$3+'Parâmetros de Fluxo de Caixa'!$B$4/12,-(SUM($B$30:$D$31)-SUM($B$30:$D$31)*'Parâmetros de Fluxo de Caixa'!$B$27)/'Parâmetros de Fluxo de Caixa'!$B$26,0))) ->  | AE32: =IF(AE25="Construção",0,IF(AE24>'Parâmetros de Fluxo de Caixa'!$B$12,"",IF(AE24<='Parâmetros de Fluxo de Caixa'!$B$26+'Parâmetros de Fluxo de Caixa'!$B$3+'Parâmetros de Fluxo de Caixa'!$B$4/12,-(SUM($B$30:$D$31)-SUM($B$30:$D$31)*'Parâmetros de Fluxo de Caixa'!$B$27)/'Parâmetros de Fluxo de Caixa'!$B$26,0))) ->  | AF32: =IF(AF25="Construção",0,IF(AF24>'Parâmetros de Fluxo de Caixa'!$B$12,"",IF(AF24<='Parâmetros de Fluxo de Caixa'!$B$26+'Parâmetros de Fluxo de Caixa'!$B$3+'Parâmetros de Fluxo de Caixa'!$B$4/12,-(SUM($B$30:$D$31)-SUM($B$30:$D$31)*'Parâmetros de Fluxo de Caixa'!$B$27)/'Parâmetros de Fluxo de Caixa'!$B$26,0))) ->  | AG32: =IF(AG25="Construção",0,IF(AG24>'Parâmetros de Fluxo de Caixa'!$B$12,"",IF(AG24<='Parâmetros de Fluxo de Caixa'!$B$26+'Parâmetros de Fluxo de Caixa'!$B$3+'Parâmetros de Fluxo de Caixa'!$B$4/12,-(SUM($B$30:$D$31)-SUM($B$30:$D$31)*'Parâmetros de Fluxo de Caixa'!$B$27)/'Parâmetros de Fluxo de Caixa'!$B$26,0))) ->  | AH32: =IF(AH25="Construção",0,IF(AH24>'Parâmetros de Fluxo de Caixa'!$B$12,"",IF(AH24<='Parâmetros de Fluxo de Caixa'!$B$26+'Parâmetros de Fluxo de Caixa'!$B$3+'Parâmetros de Fluxo de Caixa'!$B$4/12,-(SUM($B$30:$D$31)-SUM($B$30:$D$31)*'Parâmetros de Fluxo de Caixa'!$B$27)/'Parâmetros de Fluxo de Caixa'!$B$26,0))) ->  | AI32: =IF(AI25="Construção",0,IF(AI24>'Parâmetros de Fluxo de Caixa'!$B$12,"",IF(AI24<='Parâmetros de Fluxo de Caixa'!$B$26+'Parâmetros de Fluxo de Caixa'!$B$3+'Parâmetros de Fluxo de Caixa'!$B$4/12,-(SUM($B$30:$D$31)-SUM($B$30:$D$31)*'Parâmetros de Fluxo de Caixa'!$B$27)/'Parâmetros de Fluxo de Caixa'!$B$26,0))) ->  | AJ32: =IF(AJ25="Construção",0,IF(AJ24>'Parâmetros de Fluxo de Caixa'!$B$12,"",IF(AJ24<='Parâmetros de Fluxo de Caixa'!$B$26+'Parâmetros de Fluxo de Caixa'!$B$3+'Parâmetros de Fluxo de Caixa'!$B$4/12,-(SUM($B$30:$D$31)-SUM($B$30:$D$31)*'Parâmetros de Fluxo de Caixa'!$B$27)/'Parâmetros de Fluxo de Caixa'!$B$26,0))) ->  | AK32: =IF(AK25="Construção",0,IF(AK24>'Parâmetros de Fluxo de Caixa'!$B$12,"",IF(AK24<='Parâmetros de Fluxo de Caixa'!$B$26+'Parâmetros de Fluxo de Caixa'!$B$3+'Parâmetros de Fluxo de Caixa'!$B$4/12,-(SUM($B$30:$D$31)-SUM($B$30:$D$31)*'Parâmetros de Fluxo de Caixa'!$B$27)/'Parâmetros de Fluxo de Caixa'!$B$26,0))) ->  | AL32: =IF(AL25="Construção",0,IF(AL24>'Parâmetros de Fluxo de Caixa'!$B$12,"",IF(AL24<='Parâmetros de Fluxo de Caixa'!$B$26+'Parâmetros de Fluxo de Caixa'!$B$3+'Parâmetros de Fluxo de Caixa'!$B$4/12,-(SUM($B$30:$D$31)-SUM($B$30:$D$31)*'Parâmetros de Fluxo de Caixa'!$B$27)/'Parâmetros de Fluxo de Caixa'!$B$26,0))) ->  | AM32: =IF(AM25="Construção",0,IF(AM24>'Parâmetros de Fluxo de Caixa'!$B$12,"",IF(AM24<='Parâmetros de Fluxo de Caixa'!$B$26+'Parâmetros de Fluxo de Caixa'!$B$3+'Parâmetros de Fluxo de Caixa'!$B$4/12,-(SUM($B$30:$D$31)-SUM($B$30:$D$31)*'Parâmetros de Fluxo de Caixa'!$B$27)/'Parâmetros de Fluxo de Caixa'!$B$26,0))) ->  | AN32: =IF(AN25="Construção",0,IF(AN24>'Parâmetros de Fluxo de Caixa'!$B$12,"",IF(AN24<='Parâmetros de Fluxo de Caixa'!$B$26+'Parâmetros de Fluxo de Caixa'!$B$3+'Parâmetros de Fluxo de Caixa'!$B$4/12,-(SUM($B$30:$D$31)-SUM($B$30:$D$31)*'Parâmetros de Fluxo de Caixa'!$B$27)/'Parâmetros de Fluxo de Caixa'!$B$26,0))) ->  | AO32: =IF(AO25="Construção",0,IF(AO24>'Parâmetros de Fluxo de Caixa'!$B$12,"",IF(AO24<='Parâmetros de Fluxo de Caixa'!$B$26+'Parâmetros de Fluxo de Caixa'!$B$3+'Parâmetros de Fluxo de Caixa'!$B$4/12,-(SUM($B$30:$D$31)-SUM($B$30:$D$31)*'Parâmetros de Fluxo de Caixa'!$B$27)/'Parâmetros de Fluxo de Caixa'!$B$26,0))) ->  | AP32: =IF(AP25="Construção",0,IF(AP24>'Parâmetros de Fluxo de Caixa'!$B$12,"",IF(AP24<='Parâmetros de Fluxo de Caixa'!$B$26+'Parâmetros de Fluxo de Caixa'!$B$3+'Parâmetros de Fluxo de Caixa'!$B$4/12,-(SUM($B$30:$D$31)-SUM($B$30:$D$31)*'Parâmetros de Fluxo de Caixa'!$B$27)/'Parâmetros de Fluxo de Caixa'!$B$26,0))) ->  | AQ32: =IF(AQ25="Construção",0,IF(AQ24>'Parâmetros de Fluxo de Caixa'!$B$12,"",IF(AQ24<='Parâmetros de Fluxo de Caixa'!$B$26+'Parâmetros de Fluxo de Caixa'!$B$3+'Parâmetros de Fluxo de Caixa'!$B$4/12,-(SUM($B$30:$D$31)-SUM($B$30:$D$31)*'Parâmetros de Fluxo de Caixa'!$B$27)/'Parâmetros de Fluxo de Caixa'!$B$26,0))) ->  | AR32: =IF(AR25="Construção",0,IF(AR24>'Parâmetros de Fluxo de Caixa'!$B$12,"",IF(AR24<='Parâmetros de Fluxo de Caixa'!$B$26+'Parâmetros de Fluxo de Caixa'!$B$3+'Parâmetros de Fluxo de Caixa'!$B$4/12,-(SUM($B$30:$D$31)-SUM($B$30:$D$31)*'Parâmetros de Fluxo de Caixa'!$B$27)/'Parâmetros de Fluxo de Caixa'!$B$26,0))) ->  | AS32: =IF(AS25="Construção",0,IF(AS24>'Parâmetros de Fluxo de Caixa'!$B$12,"",IF(AS24<='Parâmetros de Fluxo de Caixa'!$B$26+'Parâmetros de Fluxo de Caixa'!$B$3+'Parâmetros de Fluxo de Caixa'!$B$4/12,-(SUM($B$30:$D$31)-SUM($B$30:$D$31)*'Parâmetros de Fluxo de Caixa'!$B$27)/'Parâmetros de Fluxo de Caixa'!$B$26,0))) ->  | AT32: =IF(AT25="Construção",0,IF(AT24>'Parâmetros de Fluxo de Caixa'!$B$12,"",IF(AT24<='Parâmetros de Fluxo de Caixa'!$B$26+'Parâmetros de Fluxo de Caixa'!$B$3+'Parâmetros de Fluxo de Caixa'!$B$4/12,-(SUM($B$30:$D$31)-SUM($B$30:$D$31)*'Parâmetros de Fluxo de Caixa'!$B$27)/'Parâmetros de Fluxo de Caixa'!$B$26,0))) ->  | AU32: =IF(AU25="Construção",0,IF(AU24>'Parâmetros de Fluxo de Caixa'!$B$12,"",IF(AU24<='Parâmetros de Fluxo de Caixa'!$B$26+'Parâmetros de Fluxo de Caixa'!$B$3+'Parâmetros de Fluxo de Caixa'!$B$4/12,-(SUM($B$30:$D$31)-SUM($B$30:$D$31)*'Parâmetros de Fluxo de Caixa'!$B$27)/'Parâmetros de Fluxo de Caixa'!$B$26,0))) ->  | AV32: =IF(AV25="Construção",0,IF(AV24>'Parâmetros de Fluxo de Caixa'!$B$12,"",IF(AV24<='Parâmetros de Fluxo de Caixa'!$B$26+'Parâmetros de Fluxo de Caixa'!$B$3+'Parâmetros de Fluxo de Caixa'!$B$4/12,-(SUM($B$30:$D$31)-SUM($B$30:$D$31)*'Parâmetros de Fluxo de Caixa'!$B$27)/'Parâmetros de Fluxo de Caixa'!$B$26,0))) -> 
A33: PIS e COFINS | B33: =IF(B25="Construção",0,IF(OR(B25="Start-up",B25="Operação"),IF(B27>0,-B27*'Parâmetros de Fluxo de Caixa'!$B$29,0),"")) -> 0 | C33: =IF(C25="Construção",0,IF(OR(C25="Start-up",C25="Operação"),IF(C27>0,-C27*'Parâmetros de Fluxo de Caixa'!$B$29,0),"")) -> 0 | D33: =IF(D25="Construção",0,IF(OR(D25="Start-up",D25="Operação"),IF(D27>0,-D27*'Parâmetros de Fluxo de Caixa'!$B$29,0),"")) -> 0 | E33: =IF(E25="Construção",0,IF(OR(E25="Start-up",E25="Operação"),IF(E27>0,-E27*'Parâmetros de Fluxo de Caixa'!$B$29,0),"")) -> -484.0609687 | F33: =IF(F25="Construção",0,IF(OR(F25="Start-up",F25="Operação"),IF(F27>0,-F27*'Parâmetros de Fluxo de Caixa'!$B$29,0),"")) -> -553.2125356 | G33: =IF(G25="Construção",0,IF(OR(G25="Start-up",G25="Operação"),IF(G27>0,-G27*'Parâmetros de Fluxo de Caixa'!$B$29,0),"")) -> -553.2125356 | H33: =IF(H25="Construção",0,IF(OR(H25="Start-up",H25="Operação"),IF(H27>0,-H27*'Parâmetros de Fluxo de Caixa'!$B$29,0),"")) -> -553.2125356 | I33: =IF(I25="Construção",0,IF(OR(I25="Start-up",I25="Operação"),IF(I27>0,-I27*'Parâmetros de Fluxo de Caixa'!$B$29,0),"")) -> -553.2125356 | J33: =IF(J25="Construção",0,IF(OR(J25="Start-up",J25="Operação"),IF(J27>0,-J27*'Parâmetros de Fluxo de Caixa'!$B$29,0),"")) -> -553.2125356 | K33: =IF(K25="Construção",0,IF(OR(K25="Start-up",K25="Operação"),IF(K27>0,-K27*'Parâmetros de Fluxo de Caixa'!$B$29,0),"")) -> -553.2125356 | L33: =IF(L25="Construção",0,IF(OR(L25="Start-up",L25="Operação"),IF(L27>0,-L27*'Parâmetros de Fluxo de Caixa'!$B$29,0),"")) -> -553.2125356 | M33: =IF(M25="Construção",0,IF(OR(M25="Start-up",M25="Operação"),IF(M27>0,-M27*'Parâmetros de Fluxo de Caixa'!$B$29,0),"")) -> -553.2125356 | N33: =IF(N25="Construção",0,IF(OR(N25="Start-up",N25="Operação"),IF(N27>0,-N27*'Parâmetros de Fluxo de Caixa'!$B$29,0),"")) -> -553.2125356 | O33: =IF(O25="Construção",0,IF(OR(O25="Start-up",O25="Operação"),IF(O27>0,-O27*'Parâmetros de Fluxo de Caixa'!$B$29,0),"")) -> -553.2125356 | P33: =IF(P25="Construção",0,IF(OR(P25="Start-up",P25="Operação"),IF(P27>0,-P27*'Parâmetros de Fluxo de Caixa'!$B$29,0),"")) -> -553.2125356 | Q33: =IF(Q25="Construção",0,IF(OR(Q25="Start-up",Q25="Operação"),IF(Q27>0,-Q27*'Parâmetros de Fluxo de Caixa'!$B$29,0),"")) -> -553.2125356 | R33: =IF(R25="Construção",0,IF(OR(R25="Start-up",R25="Operação"),IF(R27>0,-R27*'Parâmetros de Fluxo de Caixa'!$B$29,0),"")) -> -553.2125356 | S33: =IF(S25="Construção",0,IF(OR(S25="Start-up",S25="Operação"),IF(S27>0,-S27*'Parâmetros de Fluxo de Caixa'!$B$29,0),"")) -> -553.2125356 | T33: =IF(T25="Construção",0,IF(OR(T25="Start-up",T25="Operação"),IF(T27>0,-T27*'Parâmetros de Fluxo de Caixa'!$B$29,0),"")) -> -553.2125356 | U33: =IF(U25="Construção",0,IF(OR(U25="Start-up",U25="Operação"),IF(U27>0,-U27*'Parâmetros de Fluxo de Caixa'!$B$29,0),"")) -> -553.2125356 | V33: =IF(V25="Construção",0,IF(OR(V25="Start-up",V25="Operação"),IF(V27>0,-V27*'Parâmetros de Fluxo de Caixa'!$B$29,0),"")) -> -553.2125356 | W33: =IF(W25="Construção",0,IF(OR(W25="Start-up",W25="Operação"),IF(W27>0,-W27*'Parâmetros de Fluxo de Caixa'!$B$29,0),"")) -> -553.2125356 | X33: =IF(X25="Construção",0,IF(OR(X25="Start-up",X25="Operação"),IF(X27>0,-X27*'Parâmetros de Fluxo de Caixa'!$B$29,0),"")) -> -553.2125356 | Y33: =IF(Y25="Construção",0,IF(OR(Y25="Start-up",Y25="Operação"),IF(Y27>0,-Y27*'Parâmetros de Fluxo de Caixa'!$B$29,0),"")) ->  | Z33: =IF(Z25="Construção",0,IF(OR(Z25="Start-up",Z25="Operação"),IF(Z27>0,-Z27*'Parâmetros de Fluxo de Caixa'!$B$29,0),"")) ->  | AA33: =IF(AA25="Construção",0,IF(OR(AA25="Start-up",AA25="Operação"),IF(AA27>0,-AA27*'Parâmetros de Fluxo de Caixa'!$B$29,0),"")) ->  | AB33: =IF(AB25="Construção",0,IF(OR(AB25="Start-up",AB25="Operação"),IF(AB27>0,-AB27*'Parâmetros de Fluxo de Caixa'!$B$29,0),"")) ->  | AC33: =IF(AC25="Construção",0,IF(OR(AC25="Start-up",AC25="Operação"),IF(AC27>0,-AC27*'Parâmetros de Fluxo de Caixa'!$B$29,0),"")) ->  | AD33: =IF(AD25="Construção",0,IF(OR(AD25="Start-up",AD25="Operação"),IF(AD27>0,-AD27*'Parâmetros de Fluxo de Caixa'!$B$29,0),"")) ->  | AE33: =IF(AE25="Construção",0,IF(OR(AE25="Start-up",AE25="Operação"),IF(AE27>0,-AE27*'Parâmetros de Fluxo de Caixa'!$B$29,0),"")) ->  | AF33: =IF(AF25="Construção",0,IF(OR(AF25="Start-up",AF25="Operação"),IF(AF27>0,-AF27*'Parâmetros de Fluxo de Caixa'!$B$29,0),"")) ->  | AG33: =IF(AG25="Construção",0,IF(OR(AG25="Start-up",AG25="Operação"),IF(AG27>0,-AG27*'Parâmetros de Fluxo de Caixa'!$B$29,0),"")) ->  | AH33: =IF(AH25="Construção",0,IF(OR(AH25="Start-up",AH25="Operação"),IF(AH27>0,-AH27*'Parâmetros de Fluxo de Caixa'!$B$29,0),"")) ->  | AI33: =IF(AI25="Construção",0,IF(OR(AI25="Start-up",AI25="Operação"),IF(AI27>0,-AI27*'Parâmetros de Fluxo de Caixa'!$B$29,0),"")) ->  | AJ33: =IF(AJ25="Construção",0,IF(OR(AJ25="Start-up",AJ25="Operação"),IF(AJ27>0,-AJ27*'Parâmetros de Fluxo de Caixa'!$B$29,0),"")) ->  | AK33: =IF(AK25="Construção",0,IF(OR(AK25="Start-up",AK25="Operação"),IF(AK27>0,-AK27*'Parâmetros de Fluxo de Caixa'!$B$29,0),"")) ->  | AL33: =IF(AL25="Construção",0,IF(OR(AL25="Start-up",AL25="Operação"),IF(AL27>0,-AL27*'Parâmetros de Fluxo de Caixa'!$B$29,0),"")) ->  | AM33: =IF(AM25="Construção",0,IF(OR(AM25="Start-up",AM25="Operação"),IF(AM27>0,-AM27*'Parâmetros de Fluxo de Caixa'!$B$29,0),"")) ->  | AN33: =IF(AN25="Construção",0,IF(OR(AN25="Start-up",AN25="Operação"),IF(AN27>0,-AN27*'Parâmetros de Fluxo de Caixa'!$B$29,0),"")) ->  | AO33: =IF(AO25="Construção",0,IF(OR(AO25="Start-up",AO25="Operação"),IF(AO27>0,-AO27*'Parâmetros de Fluxo de Caixa'!$B$29,0),"")) ->  | AP33: =IF(AP25="Construção",0,IF(OR(AP25="Start-up",AP25="Operação"),IF(AP27>0,-AP27*'Parâmetros de Fluxo de Caixa'!$B$29,0),"")) ->  | AQ33: =IF(AQ25="Construção",0,IF(OR(AQ25="Start-up",AQ25="Operação"),IF(AQ27>0,-AQ27*'Parâmetros de Fluxo de Caixa'!$B$29,0),"")) ->  | AR33: =IF(AR25="Construção",0,IF(OR(AR25="Start-up",AR25="Operação"),IF(AR27>0,-AR27*'Parâmetros de Fluxo de Caixa'!$B$29,0),"")) ->  | AS33: =IF(AS25="Construção",0,IF(OR(AS25="Start-up",AS25="Operação"),IF(AS27>0,-AS27*'Parâmetros de Fluxo de Caixa'!$B$29,0),"")) ->  | AT33: =IF(AT25="Construção",0,IF(OR(AT25="Start-up",AT25="Operação"),IF(AT27>0,-AT27*'Parâmetros de Fluxo de Caixa'!$B$29,0),"")) ->  | AU33: =IF(AU25="Construção",0,IF(OR(AU25="Start-up",AU25="Operação"),IF(AU27>0,-AU27*'Parâmetros de Fluxo de Caixa'!$B$29,0),"")) ->  | AV33: =IF(AV25="Construção",0,IF(OR(AV25="Start-up",AV25="Operação"),IF(AV27>0,-AV27*'Parâmetros de Fluxo de Caixa'!$B$29,0),"")) -> 
A34: EBITDA | B34: =IF(B25="Construção",0,IF(OR(B25="Start-up",B25="Operação"),B27+B28+B29,"")) -> 0 | C34: =IF(C25="Construção",0,IF(OR(C25="Start-up",C25="Operação"),C27+C28+C29,"")) -> 0 | D34: 0 | E34: 1139.611862 | F34: 1345.678688 | G34: 1345.678688 | H34: 1345.678688 | I34: 1345.678688 | J34: 1345.678688 | K34: 1345.678688 | L34: 1345.678688 | M34: 1345.678688 | N34: 1345.678688 | O34: 1345.678688 | P34: 1345.678688 | Q34: 1345.678688 | R34: 1345.678688 | S34: 1345.678688 | T34: 1345.678688 | U34: 1345.678688 | V34: 1345.678688 | W34: 1345.678688 | X34: 1345.678688 | AS34: =IF(AS25="Construção",0,IF(OR(AS25="Start-up",AS25="Operação"),AS27+AS28+AS29,"")) ->  | AT34: =IF(AT25="Construção",0,IF(OR(AT25="Start-up",AT25="Operação"),AT27+AT28+AT29,"")) ->  | AU34: =IF(AU25="Construção",0,IF(OR(AU25="Start-up",AU25="Operação"),AU27+AU28+AU29,"")) -> 
A35: IR e CSLL | B35: =IF(B25="Construção",0,IF(OR(B25="Start-up",B25="Operação"),IF((B34-B32+B33)>0,-(B34-B32+B33)*'Parâmetros de Fluxo de Caixa'!$B$28,0),"")) -> 0 | C35: =IF(C25="Construção",0,IF(OR(C25="Start-up",C25="Operação"),IF((C34-C32+C33)>0,-(C34-C32+C33)*'Parâmetros de Fluxo de Caixa'!$B$28,0),"")) -> 0 | D35: =IF(D25="Construção",0,IF(OR(D25="Start-up",D25="Operação"),IF((D34-D32+D33)>0,-(D34-D32+D33)*'Parâmetros de Fluxo de Caixa'!$B$28,0),"")) -> 0 | E35: =IF(E25="Construção",0,IF(OR(E25="Start-up",E25="Operação"),IF((E34-E32+E33)>0,-(E34-E32+E33)*'Parâmetros de Fluxo de Caixa'!$B$28,0),"")) -> -64.47036031 | F35: =IF(F25="Construção",0,IF(OR(F25="Start-up",F25="Operação"),IF((F34-F32+F33)>0,-(F34-F32+F33)*'Parâmetros de Fluxo de Caixa'!$B$28,0),"")) -> -111.0215485 | G35: =IF(G25="Construção",0,IF(OR(G25="Start-up",G25="Operação"),IF((G34-G32+G33)>0,-(G34-G32+G33)*'Parâmetros de Fluxo de Caixa'!$B$28,0),"")) -> -111.0215485 | H35: =IF(H25="Construção",0,IF(OR(H25="Start-up",H25="Operação"),IF((H34-H32+H33)>0,-(H34-H32+H33)*'Parâmetros de Fluxo de Caixa'!$B$28,0),"")) -> -111.0215485 | I35: =IF(I25="Construção",0,IF(OR(I25="Start-up",I25="Operação"),IF((I34-I32+I33)>0,-(I34-I32+I33)*'Parâmetros de Fluxo de Caixa'!$B$28,0),"")) -> -111.0215485 | J35: =IF(J25="Construção",0,IF(OR(J25="Start-up",J25="Operação"),IF((J34-J32+J33)>0,-(J34-J32+J33)*'Parâmetros de Fluxo de Caixa'!$B$28,0),"")) -> -111.0215485 | K35: =IF(K25="Construção",0,IF(OR(K25="Start-up",K25="Operação"),IF((K34-K32+K33)>0,-(K34-K32+K33)*'Parâmetros de Fluxo de Caixa'!$B$28,0),"")) -> -111.0215485 | L35: =IF(L25="Construção",0,IF(OR(L25="Start-up",L25="Operação"),IF((L34-L32+L33)>0,-(L34-L32+L33)*'Parâmetros de Fluxo de Caixa'!$B$28,0),"")) -> -111.0215485 | M35: =IF(M25="Construção",0,IF(OR(M25="Start-up",M25="Operação"),IF((M34-M32+M33)>0,-(M34-M32+M33)*'Parâmetros de Fluxo de Caixa'!$B$28,0),"")) -> -111.0215485 | N35: =IF(N25="Construção",0,IF(OR(N25="Start-up",N25="Operação"),IF((N34-N32+N33)>0,-(N34-N32+N33)*'Parâmetros de Fluxo de Caixa'!$B$28,0),"")) -> -111.0215485 | O35: =IF(O25="Construção",0,IF(OR(O25="Start-up",O25="Operação"),IF((O34-O32+O33)>0,-(O34-O32+O33)*'Parâmetros de Fluxo de Caixa'!$B$28,0),"")) -> -269.438492 | P35: =IF(P25="Construção",0,IF(OR(P25="Start-up",P25="Operação"),IF((P34-P32+P33)>0,-(P34-P32+P33)*'Parâmetros de Fluxo de Caixa'!$B$28,0),"")) -> -269.438492 | Q35: =IF(Q25="Construção",0,IF(OR(Q25="Start-up",Q25="Operação"),IF((Q34-Q32+Q33)>0,-(Q34-Q32+Q33)*'Parâmetros de Fluxo de Caixa'!$B$28,0),"")) -> -269.438492 | R35: =IF(R25="Construção",0,IF(OR(R25="Start-up",R25="Operação"),IF((R34-R32+R33)>0,-(R34-R32+R33)*'Parâmetros de Fluxo de Caixa'!$B$28,0),"")) -> -269.438492 | S35: =IF(S25="Construção",0,IF(OR(S25="Start-up",S25="Operação"),IF((S34-S32+S33)>0,-(S34-S32+S33)*'Parâmetros de Fluxo de Caixa'!$B$28,0),"")) -> -269.438492 | T35: =IF(T25="Construção",0,IF(OR(T25="Start-up",T25="Operação"),IF((T34-T32+T33)>0,-(T34-T32+T33)*'Parâmetros de Fluxo de Caixa'!$B$28,0),"")) -> -269.438492 | U35: =IF(U25="Construção",0,IF(OR(U25="Start-up",U25="Operação"),IF((U34-U32+U33)>0,-(U34-U32+U33)*'Parâmetros de Fluxo de Caixa'!$B$28,0),"")) -> -269.438492 | V35: =IF(V25="Construção",0,IF(OR(V25="Start-up",V25="Operação"),IF((V34-V32+V33)>0,-(V34-V32+V33)*'Parâmetros de Fluxo de Caixa'!$B$28,0),"")) -> -269.438492 | W35: =IF(W25="Construção",0,IF(OR(W25="Start-up",W25="Operação"),IF((W34-W32+W33)>0,-(W34-W32+W33)*'Parâmetros de Fluxo de Caixa'!$B$28,0),"")) -> -269.438492 | X35: =IF(X25="Construção",0,IF(OR(X25="Start-up",X25="Operação"),IF((X34-X32+X33)>0,-(X34-X32+X33)*'Parâmetros de Fluxo de Caixa'!$B$28,0),"")) -> -269.438492 | Y35: =IF(Y25="Construção",0,IF(OR(Y25="Start-up",Y25="Operação"),IF((Y34-Y32+Y33)>0,-(Y34-Y32+Y33)*'Parâmetros de Fluxo de Caixa'!$B$28,0),"")) ->  | Z35: =IF(Z25="Construção",0,IF(OR(Z25="Start-up",Z25="Operação"),IF((Z34-Z32+Z33)>0,-(Z34-Z32+Z33)*'Parâmetros de Fluxo de Caixa'!$B$28,0),"")) ->  | AA35: =IF(AA25="Construção",0,IF(OR(AA25="Start-up",AA25="Operação"),IF((AA34-AA32+AA33)>0,-(AA34-AA32+AA33)*'Parâmetros de Fluxo de Caixa'!$B$28,0),"")) ->  | AB35: =IF(AB25="Construção",0,IF(OR(AB25="Start-up",AB25="Operação"),IF((AB34-AB32+AB33)>0,-(AB34-AB32+AB33)*'Parâmetros de Fluxo de Caixa'!$B$28,0),"")) ->  | AC35: =IF(AC25="Construção",0,IF(OR(AC25="Start-up",AC25="Operação"),IF((AC34-AC32+AC33)>0,-(AC34-AC32+AC33)*'Parâmetros de Fluxo de Caixa'!$B$28,0),"")) ->  | AD35: =IF(AD25="Construção",0,IF(OR(AD25="Start-up",AD25="Operação"),IF((AD34-AD32+AD33)>0,-(AD34-AD32+AD33)*'Parâmetros de Fluxo de Caixa'!$B$28,0),"")) ->  | AE35: =IF(AE25="Construção",0,IF(OR(AE25="Start-up",AE25="Operação"),IF((AE34-AE32+AE33)>0,-(AE34-AE32+AE33)*'Parâmetros de Fluxo de Caixa'!$B$28,0),"")) ->  | AF35: =IF(AF25="Construção",0,IF(OR(AF25="Start-up",AF25="Operação"),IF((AF34-AF32+AF33)>0,-(AF34-AF32+AF33)*'Parâmetros de Fluxo de Caixa'!$B$28,0),"")) ->  | AG35: =IF(AG25="Construção",0,IF(OR(AG25="Start-up",AG25="Operação"),IF((AG34-AG32+AG33)>0,-(AG34-AG32+AG33)*'Parâmetros de Fluxo de Caixa'!$B$28,0),"")) ->  | AH35: =IF(AH25="Construção",0,IF(OR(AH25="Start-up",AH25="Operação"),IF((AH34-AH32+AH33)>0,-(AH34-AH32+AH33)*'Parâmetros de Fluxo de Caixa'!$B$28,0),"")) ->  | AI35: =IF(AI25="Construção",0,IF(OR(AI25="Start-up",AI25="Operação"),IF((AI34-AI32+AI33)>0,-(AI34-AI32+AI33)*'Parâmetros de Fluxo de Caixa'!$B$28,0),"")) ->  | AJ35: =IF(AJ25="Construção",0,IF(OR(AJ25="Start-up",AJ25="Operação"),IF((AJ34-AJ32+AJ33)>0,-(AJ34-AJ32+AJ33)*'Parâmetros de Fluxo de Caixa'!$B$28,0),"")) ->  | AK35: =IF(AK25="Construção",0,IF(OR(AK25="Start-up",AK25="Operação"),IF((AK34-AK32+AK33)>0,-(AK34-AK32+AK33)*'Parâmetros de Fluxo de Caixa'!$B$28,0),"")) ->  | AL35: =IF(AL25="Construção",0,IF(OR(AL25="Start-up",AL25="Operação"),IF((AL34-AL32+AL33)>0,-(AL34-AL32+AL33)*'Parâmetros de Fluxo de Caixa'!$B$28,0),"")) ->  | AM35: =IF(AM25="Construção",0,IF(OR(AM25="Start-up",AM25="Operação"),IF((AM34-AM32+AM33)>0,-(AM34-AM32+AM33)*'Parâmetros de Fluxo de Caixa'!$B$28,0),"")) ->  | AN35: =IF(AN25="Construção",0,IF(OR(AN25="Start-up",AN25="Operação"),IF((AN34-AN32+AN33)>0,-(AN34-AN32+AN33)*'Parâmetros de Fluxo de Caixa'!$B$28,0),"")) ->  | AO35: =IF(AO25="Construção",0,IF(OR(AO25="Start-up",AO25="Operação"),IF((AO34-AO32+AO33)>0,-(AO34-AO32+AO33)*'Parâmetros de Fluxo de Caixa'!$B$28,0),"")) ->  | AP35: =IF(AP25="Construção",0,IF(OR(AP25="Start-up",AP25="Operação"),IF((AP34-AP32+AP33)>0,-(AP34-AP32+AP33)*'Parâmetros de Fluxo de Caixa'!$B$28,0),"")) ->  | AQ35: =IF(AQ25="Construção",0,IF(OR(AQ25="Start-up",AQ25="Operação"),IF((AQ34-AQ32+AQ33)>0,-(AQ34-AQ32+AQ33)*'Parâmetros de Fluxo de Caixa'!$B$28,0),"")) ->  | AR35: =IF(AR25="Construção",0,IF(OR(AR25="Start-up",AR25="Operação"),IF((AR34-AR32+AR33)>0,-(AR34-AR32+AR33)*'Parâmetros de Fluxo de Caixa'!$B$28,0),"")) ->  | AS35: =IF(AS25="Construção",0,IF(OR(AS25="Start-up",AS25="Operação"),IF((AS34-AS32+AS33)>0,-(AS34-AS32+AS33)*'Parâmetros de Fluxo de Caixa'!$B$28,0),"")) ->  | AT35: =IF(AT25="Construção",0,IF(OR(AT25="Start-up",AT25="Operação"),IF((AT34-AT32+AT33)>0,-(AT34-AT32+AT33)*'Parâmetros de Fluxo de Caixa'!$B$28,0),"")) ->  | AU35: =IF(AU25="Construção",0,IF(OR(AU25="Start-up",AU25="Operação"),IF((AU34-AU32+AU33)>0,-(AU34-AU32+AU33)*'Parâmetros de Fluxo de Caixa'!$B$28,0),"")) ->  | AV35: =IF(AV25="Construção",0,IF(OR(AV25="Start-up",AV25="Operação"),IF((AV34-AV32+AV33)>0,-(AV34-AV32+AV33)*'Parâmetros de Fluxo de Caixa'!$B$28,0),"")) -> 
A36: Venda de infraestrutura residual | B36: =IF('Fluxo de Caixa Descontado'!B25<>"",IF(AND(B25="Operação",C25=""),'Parâmetros de Fluxo de Caixa'!$B$27*'CAPEX e OPEX'!$C$3/10^6,0),"") -> 0 | C36: =IF('Fluxo de Caixa Descontado'!C25<>"",IF(AND(C25="Operação",D25=""),'Parâmetros de Fluxo de Caixa'!$B$27*'CAPEX e OPEX'!$C$3/10^6,0),"") -> 0 | D36: =IF('Fluxo de Caixa Descontado'!D25<>"",IF(AND(D25="Operação",E25=""),'Parâmetros de Fluxo de Caixa'!$B$27*'CAPEX e OPEX'!$C$3/10^6,0),"") -> 0 | E36: =IF('Fluxo de Caixa Descontado'!E25<>"",IF(AND(E25="Operação",F25=""),'Parâmetros de Fluxo de Caixa'!$B$27*'CAPEX e OPEX'!$C$3/10^6,0),"") -> 0 | F36: =IF('Fluxo de Caixa Descontado'!F25<>"",IF(AND(F25="Operação",G25=""),'Parâmetros de Fluxo de Caixa'!$B$27*'CAPEX e OPEX'!$C$3/10^6,0),"") -> 0 | G36: =IF('Fluxo de Caixa Descontado'!G25<>"",IF(AND(G25="Operação",H25=""),'Parâmetros de Fluxo de Caixa'!$B$27*'CAPEX e OPEX'!$C$3/10^6,0),"") -> 0 | H36: =IF('Fluxo de Caixa Descontado'!H25<>"",IF(AND(H25="Operação",I25=""),'Parâmetros de Fluxo de Caixa'!$B$27*'CAPEX e OPEX'!$C$3/10^6,0),"") -> 0 | I36: =IF('Fluxo de Caixa Descontado'!I25<>"",IF(AND(I25="Operação",J25=""),'Parâmetros de Fluxo de Caixa'!$B$27*'CAPEX e OPEX'!$C$3/10^6,0),"") -> 0 | J36: =IF('Fluxo de Caixa Descontado'!J25<>"",IF(AND(J25="Operação",K25=""),'Parâmetros de Fluxo de Caixa'!$B$27*'CAPEX e OPEX'!$C$3/10^6,0),"") -> 0 | K36: =IF('Fluxo de Caixa Descontado'!K25<>"",IF(AND(K25="Operação",L25=""),'Parâmetros de Fluxo de Caixa'!$B$27*'CAPEX e OPEX'!$C$3/10^6,0),"") -> 0 | L36: =IF('Fluxo de Caixa Descontado'!L25<>"",IF(AND(L25="Operação",M25=""),'Parâmetros de Fluxo de Caixa'!$B$27*'CAPEX e OPEX'!$C$3/10^6,0),"") -> 0 | M36: =IF('Fluxo de Caixa Descontado'!M25<>"",IF(AND(M25="Operação",N25=""),'Parâmetros de Fluxo de Caixa'!$B$27*'CAPEX e OPEX'!$C$3/10^6,0),"") -> 0 | N36: =IF('Fluxo de Caixa Descontado'!N25<>"",IF(AND(N25="Operação",O25=""),'Parâmetros de Fluxo de Caixa'!$B$27*'CAPEX e OPEX'!$C$3/10^6,0),"") -> 0 | O36: =IF('Fluxo de Caixa Descontado'!O25<>"",IF(AND(O25="Operação",P25=""),'Parâmetros de Fluxo de Caixa'!$B$27*'CAPEX e OPEX'!$C$3/10^6,0),"") -> 0 | P36: =IF('Fluxo de Caixa Descontado'!P25<>"",IF(AND(P25="Operação",Q25=""),'Parâmetros de Fluxo de Caixa'!$B$27*'CAPEX e OPEX'!$C$3/10^6,0),"") -> 0 | Q36: =IF('Fluxo de Caixa Descontado'!Q25<>"",IF(AND(Q25="Operação",R25=""),'Parâmetros de Fluxo de Caixa'!$B$27*'CAPEX e OPEX'!$C$3/10^6,0),"") -> 0 | R36: =IF('Fluxo de Caixa Descontado'!R25<>"",IF(AND(R25="Operação",S25=""),'Parâmetros de Fluxo de Caixa'!$B$27*'CAPEX e OPEX'!$C$3/10^6,0),"") -> 0 | S36: =IF('Fluxo de Caixa Descontado'!S25<>"",IF(AND(S25="Operação",T25=""),'Parâmetros de Fluxo de Caixa'!$B$27*'CAPEX e OPEX'!$C$3/10^6,0),"") -> 0 | T36: =IF('Fluxo de Caixa Descontado'!T25<>"",IF(AND(T25="Operação",U25=""),'Parâmetros de Fluxo de Caixa'!$B$27*'CAPEX e OPEX'!$C$3/10^6,0),"") -> 0 | U36: =IF('Fluxo de Caixa Descontado'!U25<>"",IF(AND(U25="Operação",V25=""),'Parâmetros de Fluxo de Caixa'!$B$27*'CAPEX e OPEX'!$C$3/10^6,0),"") -> 0 | V36: =IF('Fluxo de Caixa Descontado'!V25<>"",IF(AND(V25="Operação",W25=""),'Parâmetros de Fluxo de Caixa'!$B$27*'CAPEX e OPEX'!$C$3/10^6,0),"") -> 0 | W36: =IF('Fluxo de Caixa Descontado'!W25<>"",IF(AND(W25="Operação",X25=""),'Parâmetros de Fluxo de Caixa'!$B$27*'CAPEX e OPEX'!$C$3/10^6,0),"") -> 0 | X36: =IF('Fluxo de Caixa Descontado'!X25<>"",IF(AND(X25="Operação",Y25=""),'Parâmetros de Fluxo de Caixa'!$B$27*'CAPEX e OPEX'!$C$3/10^6,0),"") -> 0 | Y36: =IF('Fluxo de Caixa Descontado'!Y25<>"",IF(AND(Y25="Operação",Z25=""),'Parâmetros de Fluxo de Caixa'!$B$27*'CAPEX e OPEX'!$C$3/10^6,0),"") ->  | Z36: =IF('Fluxo de Caixa Descontado'!Z25<>"",IF(AND(Z25="Operação",AA25=""),'Parâmetros de Fluxo de Caixa'!$B$27*'CAPEX e OPEX'!$C$3/10^6,0),"") ->  | AA36: =IF('Fluxo de Caixa Descontado'!AA25<>"",IF(AND(AA25="Operação",AB25=""),'Parâmetros de Fluxo de Caixa'!$B$27*'CAPEX e OPEX'!$C$3/10^6,0),"") ->  | AB36: =IF('Fluxo de Caixa Descontado'!AB25<>"",IF(AND(AB25="Operação",AC25=""),'Parâmetros de Fluxo de Caixa'!$B$27*'CAPEX e OPEX'!$C$3/10^6,0),"") ->  | AC36: =IF('Fluxo de Caixa Descontado'!AC25<>"",IF(AND(AC25="Operação",AD25=""),'Parâmetros de Fluxo de Caixa'!$B$27*'CAPEX e OPEX'!$C$3/10^6,0),"") ->  | AD36: =IF('Fluxo de Caixa Descontado'!AD25<>"",IF(AND(AD25="Operação",AE25=""),'Parâmetros de Fluxo de Caixa'!$B$27*'CAPEX e OPEX'!$C$3/10^6,0),"") ->  | AE36: =IF('Fluxo de Caixa Descontado'!AE25<>"",IF(AND(AE25="Operação",AF25=""),'Parâmetros de Fluxo de Caixa'!$B$27*'CAPEX e OPEX'!$C$3/10^6,0),"") ->  | AF36: =IF('Fluxo de Caixa Descontado'!AF25<>"",IF(AND(AF25="Operação",AG25=""),'Parâmetros de Fluxo de Caixa'!$B$27*'CAPEX e OPEX'!$C$3/10^6,0),"") ->  | AG36: =IF('Fluxo de Caixa Descontado'!AG25<>"",IF(AND(AG25="Operação",AH25=""),'Parâmetros de Fluxo de Caixa'!$B$27*'CAPEX e OPEX'!$C$3/10^6,0),"") ->  | AH36: =IF('Fluxo de Caixa Descontado'!AH25<>"",IF(AND(AH25="Operação",AI25=""),'Parâmetros de Fluxo de Caixa'!$B$27*'CAPEX e OPEX'!$C$3/10^6,0),"") ->  | AI36: =IF('Fluxo de Caixa Descontado'!AI25<>"",IF(AND(AI25="Operação",AJ25=""),'Parâmetros de Fluxo de Caixa'!$B$27*'CAPEX e OPEX'!$C$3/10^6,0),"") ->  | AJ36: =IF('Fluxo de Caixa Descontado'!AJ25<>"",IF(AND(AJ25="Operação",AK25=""),'Parâmetros de Fluxo de Caixa'!$B$27*'CAPEX e OPEX'!$C$3/10^6,0),"") ->  | AK36: =IF('Fluxo de Caixa Descontado'!AK25<>"",IF(AND(AK25="Operação",AL25=""),'Parâmetros de Fluxo de Caixa'!$B$27*'CAPEX e OPEX'!$C$3/10^6,0),"") ->  | AL36: =IF('Fluxo de Caixa Descontado'!AL25<>"",IF(AND(AL25="Operação",AM25=""),'Parâmetros de Fluxo de Caixa'!$B$27*'CAPEX e OPEX'!$C$3/10^6,0),"") ->  | AM36: =IF('Fluxo de Caixa Descontado'!AM25<>"",IF(AND(AM25="Operação",AN25=""),'Parâmetros de Fluxo de Caixa'!$B$27*'CAPEX e OPEX'!$C$3/10^6,0),"") ->  | AN36: =IF('Fluxo de Caixa Descontado'!AN25<>"",IF(AND(AN25="Operação",AO25=""),'Parâmetros de Fluxo de Caixa'!$B$27*'CAPEX e OPEX'!$C$3/10^6,0),"") ->  | AO36: =IF('Fluxo de Caixa Descontado'!AO25<>"",IF(AND(AO25="Operação",AP25=""),'Parâmetros de Fluxo de Caixa'!$B$27*'CAPEX e OPEX'!$C$3/10^6,0),"") ->  | AP36: =IF('Fluxo de Caixa Descontado'!AP25<>"",IF(AND(AP25="Operação",AQ25=""),'Parâmetros de Fluxo de Caixa'!$B$27*'CAPEX e OPEX'!$C$3/10^6,0),"") ->  | AQ36: =IF('Fluxo de Caixa Descontado'!AQ25<>"",IF(AND(AQ25="Operação",AR25=""),'Parâmetros de Fluxo de Caixa'!$B$27*'CAPEX e OPEX'!$C$3/10^6,0),"") ->  | AR36: =IF('Fluxo de Caixa Descontado'!AR25<>"",IF(AND(AR25="Operação",AS25=""),'Parâmetros de Fluxo de Caixa'!$B$27*'CAPEX e OPEX'!$C$3/10^6,0),"") ->  | AS36: =IF('Fluxo de Caixa Descontado'!AS25<>"",IF(AND(AS25="Operação",AT25=""),'Parâmetros de Fluxo de Caixa'!$B$27*'CAPEX e OPEX'!$C$3/10^6,0),"") ->  | AT36: =IF('Fluxo de Caixa Descontado'!AT25<>"",IF(AND(AT25="Operação",AU25=""),'Parâmetros de Fluxo de Caixa'!$B$27*'CAPEX e OPEX'!$C$3/10^6,0),"") ->  | AU36: =IF('Fluxo de Caixa Descontado'!AU25<>"",IF(AND(AU25="Operação",AV25=""),'Parâmetros de Fluxo de Caixa'!$B$27*'CAPEX e OPEX'!$C$3/10^6,0),"") ->  | AV36: =IF('Fluxo de Caixa Descontado'!AV25<>"",IF(AND(AV25="Operação",AW25=""),'Parâmetros de Fluxo de Caixa'!$B$27*'CAPEX e OPEX'!$C$3/10^6,0),"") -> 
A37: Fluxo de Caixa Livre | B37: =IF(OR(B25="Construção",B25="Start-up",B25="Operação"),B27+B28+B29+B30+B31+B35+B36+B33,"") -> -372.7457494 | C37: -2795.593121 | D37: -1490.982998 | E37: 591.0805332 | F37: 681.4446044 | G37: 681.4446044 | H37: 681.4446044 | I37: 681.4446044 | J37: 681.4446044 | K37: 681.4446044 | L37: 681.4446044 | M37: 681.4446044 | N37: 681.4446044 | O37: 523.0276609 | P37: 523.0276609 | Q37: 523.0276609 | R37: 523.0276609 | S37: 523.0276609 | T37: 523.0276609 | U37: 523.0276609 | V37: 523.0276609 | W37: 523.0276609 | X37: 523.0276609
A38: Fluxo de Caixa Livre Acumulado | B38: =IF(OR(B25="Construção",B25="Start-up",B25="Operação"),SUM($B$37:B37),"") -> -372.7457494 | C38: =IF(OR(C25="Construção",C25="Start-up",C25="Operação"),SUM($B$37:C37),"") -> -3168.33887 | D38: =IF(OR(D25="Construção",D25="Start-up",D25="Operação"),SUM($B$37:D37),"") -> -4659.321868 | E38: =IF(OR(E25="Construção",E25="Start-up",E25="Operação"),SUM($B$37:E37),"") -> -4068.241334 | F38: =IF(OR(F25="Construção",F25="Start-up",F25="Operação"),SUM($B$37:F37),"") -> -3386.79673 | G38: =IF(OR(G25="Construção",G25="Start-up",G25="Operação"),SUM($B$37:G37),"") -> -2705.352126 | H38: =IF(OR(H25="Construção",H25="Start-up",H25="Operação"),SUM($B$37:H37),"") -> -2023.907521 | I38: =IF(OR(I25="Construção",I25="Start-up",I25="Operação"),SUM($B$37:I37),"") -> -1342.462917 | J38: =IF(OR(J25="Construção",J25="Start-up",J25="Operação"),SUM($B$37:J37),"") -> -661.0183126 | K38: =IF(OR(K25="Construção",K25="Start-up",K25="Operação"),SUM($B$37:K37),"") -> 20.42629176 | L38: =IF(OR(L25="Construção",L25="Start-up",L25="Operação"),SUM($B$37:L37),"") -> 701.8708961 | M38: =IF(OR(M25="Construção",M25="Start-up",M25="Operação"),SUM($B$37:M37),"") -> 1383.3155 | N38: =IF(OR(N25="Construção",N25="Start-up",N25="Operação"),SUM($B$37:N37),"") -> 2064.760105 | O38: =IF(OR(O25="Construção",O25="Start-up",O25="Operação"),SUM($B$37:O37),"") -> 2587.787766 | P38: =IF(OR(P25="Construção",P25="Start-up",P25="Operação"),SUM($B$37:P37),"") -> 3110.815427 | Q38: =IF(OR(Q25="Construção",Q25="Start-up",Q25="Operação"),SUM($B$37:Q37),"") -> 3633.843087 | R38: =IF(OR(R25="Construção",R25="Start-up",R25="Operação"),SUM($B$37:R37),"") -> 4156.870748 | S38: =IF(OR(S25="Construção",S25="Start-up",S25="Operação"),SUM($B$37:S37),"") -> 4679.898409 | T38: =IF(OR(T25="Construção",T25="Start-up",T25="Operação"),SUM($B$37:T37),"") -> 5202.92607 | U38: =IF(OR(U25="Construção",U25="Start-up",U25="Operação"),SUM($B$37:U37),"") -> 5725.953731 | V38: =IF(OR(V25="Construção",V25="Start-up",V25="Operação"),SUM($B$37:V37),"") -> 6248.981392 | W38: =IF(OR(W25="Construção",W25="Start-up",W25="Operação"),SUM($B$37:W37),"") -> 6772.009053 | X38: =IF(OR(X25="Construção",X25="Start-up",X25="Operação"),SUM($B$37:X37),"") -> 7295.036714 | Y38: =IF(OR(Y25="Construção",Y25="Start-up",Y25="Operação"),SUM($B$37:Y37),"") ->  | Z38: =IF(OR(Z25="Construção",Z25="Start-up",Z25="Operação"),SUM($B$37:Z37),"") ->  | AA38: =IF(OR(AA25="Construção",AA25="Start-up",AA25="Operação"),SUM($B$37:AA37),"") ->  | AB38: =IF(OR(AB25="Construção",AB25="Start-up",AB25="Operação"),SUM($B$37:AB37),"") ->  | AC38: =IF(OR(AC25="Construção",AC25="Start-up",AC25="Operação"),SUM($B$37:AC37),"") ->  | AD38: =IF(OR(AD25="Construção",AD25="Start-up",AD25="Operação"),SUM($B$37:AD37),"") ->  | AE38: =IF(OR(AE25="Construção",AE25="Start-up",AE25="Operação"),SUM($B$37:AE37),"") ->  | AF38: =IF(OR(AF25="Construção",AF25="Start-up",AF25="Operação"),SUM($B$37:AF37),"") ->  | AG38: =IF(OR(AG25="Construção",AG25="Start-up",AG25="Operação"),SUM($B$37:AG37),"") ->  | AH38: =IF(OR(AH25="Construção",AH25="Start-up",AH25="Operação"),SUM($B$37:AH37),"") ->  | AI38: =IF(OR(AI25="Construção",AI25="Start-up",AI25="Operação"),SUM($B$37:AI37),"") ->  | AJ38: =IF(OR(AJ25="Construção",AJ25="Start-up",AJ25="Operação"),SUM($B$37:AJ37),"") ->  | AK38: =IF(OR(AK25="Construção",AK25="Start-up",AK25="Operação"),SUM($B$37:AK37),"") ->  | AL38: =IF(OR(AL25="Construção",AL25="Start-up",AL25="Operação"),SUM($B$37:AL37),"") ->  | AM38: =IF(OR(AM25="Construção",AM25="Start-up",AM25="Operação"),SUM($B$37:AM37),"") ->  | AN38: =IF(OR(AN25="Construção",AN25="Start-up",AN25="Operação"),SUM($B$37:AN37),"") ->  | AO38: =IF(OR(AO25="Construção",AO25="Start-up",AO25="Operação"),SUM($B$37:AO37),"") ->  | AP38: =IF(OR(AP25="Construção",AP25="Start-up",AP25="Operação"),SUM($B$37:AP37),"") ->  | AQ38: =IF(OR(AQ25="Construção",AQ25="Start-up",AQ25="Operação"),SUM($B$37:AQ37),"") ->  | AR38: =IF(OR(AR25="Construção",AR25="Start-up",AR25="Operação"),SUM($B$37:AR37),"") ->  | AS38: =IF(OR(AS25="Construção",AS25="Start-up",AS25="Operação"),SUM($B$37:AS37),"") ->  | AT38: =IF(OR(AT25="Construção",AT25="Start-up",AT25="Operação"),SUM($B$37:AT37),"") ->  | AU38: =IF(OR(AU25="Construção",AU25="Start-up",AU25="Operação"),SUM($B$37:AU37),"") ->  | AV38: =IF(OR(AV25="Construção",AV25="Start-up",AV25="Operação"),SUM($B$37:AV37),"") -> 
A39: Fluxo de Caixa Descontado | B39: =IF(OR(B25="Construção",B25="Start-up",B25="Operação"),B37/(1+'Parâmetros de Fluxo de Caixa'!$B$32)^B24,"") -> -336.1262711 | C39: =IF(OR(C25="Construção",C25="Start-up",C25="Operação"),C37/(1+'Parâmetros de Fluxo de Caixa'!$B$32)^C24,"") -> -2273.282868 | D39: =IF(OR(D25="Construção",D25="Start-up",D25="Operação"),D37/(1+'Parâmetros de Fluxo de Caixa'!$B$32)^D24,"") -> -1093.306587 | E39: =IF(OR(E25="Construção",E25="Start-up",E25="Operação"),E37/(1+'Parâmetros de Fluxo de Caixa'!$B$32)^E24,"") -> 390.8460148 | F39: =IF(OR(F25="Construção",F25="Start-up",F25="Operação"),F37/(1+'Parâmetros de Fluxo de Caixa'!$B$32)^F24,"") -> 406.330429 | G39: =IF(OR(G25="Construção",G25="Start-up",G25="Operação"),G37/(1+'Parâmetros de Fluxo de Caixa'!$B$32)^G24,"") -> 366.4115075 | H39: =IF(OR(H25="Construção",H25="Start-up",H25="Operação"),H37/(1+'Parâmetros de Fluxo de Caixa'!$B$32)^H24,"") -> 330.414321 | I39: =IF(OR(I25="Construção",I25="Start-up",I25="Operação"),I37/(1+'Parâmetros de Fluxo de Caixa'!$B$32)^I24,"") -> 297.9535886 | J39: =IF(OR(J25="Construção",J25="Start-up",J25="Operação"),J37/(1+'Parâmetros de Fluxo de Caixa'!$B$32)^J24,"") -> 268.6818799 | K39: =IF(OR(K25="Construção",K25="Start-up",K25="Operação"),K37/(1+'Parâmetros de Fluxo de Caixa'!$B$32)^K24,"") -> 242.2858975 | L39: =IF(OR(L25="Construção",L25="Start-up",L25="Operação"),L37/(1+'Parâmetros de Fluxo de Caixa'!$B$32)^L24,"") -> 218.4831226 | M39: =IF(OR(M25="Construção",M25="Start-up",M25="Operação"),M37/(1+'Parâmetros de Fluxo de Caixa'!$B$32)^M24,"") -> 197.0187921 | N39: =IF(OR(N25="Construção",N25="Start-up",N25="Operação"),N37/(1+'Parâmetros de Fluxo de Caixa'!$B$32)^N24,"") -> 177.6631713 | O39: =IF(OR(O25="Construção",O25="Start-up",O25="Operação"),O37/(1+'Parâmetros de Fluxo de Caixa'!$B$32)^O24,"") -> 122.9649304 | P39: =IF(OR(P25="Construção",P25="Start-up",P25="Operação"),P37/(1+'Parâmetros de Fluxo de Caixa'!$B$32)^P24,"") -> 110.8845469 | Q39: =IF(OR(Q25="Construção",Q25="Start-up",Q25="Operação"),Q37/(1+'Parâmetros de Fluxo de Caixa'!$B$32)^Q24,"") -> 99.99097062 | R39: =IF(OR(R25="Construção",R25="Start-up",R25="Operação"),R37/(1+'Parâmetros de Fluxo de Caixa'!$B$32)^R24,"") -> 90.16760661 | S39: =IF(OR(S25="Construção",S25="Start-up",S25="Operação"),S37/(1+'Parâmetros de Fluxo de Caixa'!$B$32)^S24,"") -> 81.30931456 | T39: =IF(OR(T25="Construção",T25="Start-up",T25="Operação"),T37/(1+'Parâmetros de Fluxo de Caixa'!$B$32)^T24,"") -> 73.32128335 | U39: =IF(OR(U25="Construção",U25="Start-up",U25="Operação"),U37/(1+'Parâmetros de Fluxo de Caixa'!$B$32)^U24,"") -> 66.11801638 | V39: =IF(OR(V25="Construção",V25="Start-up",V25="Operação"),V37/(1+'Parâmetros de Fluxo de Caixa'!$B$32)^V24,"") -> 59.62241645 | W39: =IF(OR(W25="Construção",W25="Start-up",W25="Operação"),W37/(1+'Parâmetros de Fluxo de Caixa'!$B$32)^W24,"") -> 53.76496056 | X39: =IF(OR(X25="Construção",X25="Start-up",X25="Operação"),X37/(1+'Parâmetros de Fluxo de Caixa'!$B$32)^X24,"") -> 48.48295585 | Y39: =IF(OR(Y25="Construção",Y25="Start-up",Y25="Operação"),Y37/(1+'Parâmetros de Fluxo de Caixa'!$B$32)^Y24,"") ->  | Z39: =IF(OR(Z25="Construção",Z25="Start-up",Z25="Operação"),Z37/(1+'Parâmetros de Fluxo de Caixa'!$B$32)^Z24,"") ->  | AA39: =IF(OR(AA25="Construção",AA25="Start-up",AA25="Operação"),AA37/(1+'Parâmetros de Fluxo de Caixa'!$B$32)^AA24,"") ->  | AB39: =IF(OR(AB25="Construção",AB25="Start-up",AB25="Operação"),AB37/(1+'Parâmetros de Fluxo de Caixa'!$B$32)^AB24,"") ->  | AC39: =IF(OR(AC25="Construção",AC25="Start-up",AC25="Operação"),AC37/(1+'Parâmetros de Fluxo de Caixa'!$B$32)^AC24,"") ->  | AD39: =IF(OR(AD25="Construção",AD25="Start-up",AD25="Operação"),AD37/(1+'Parâmetros de Fluxo de Caixa'!$B$32)^AD24,"") ->  | AE39: =IF(OR(AE25="Construção",AE25="Start-up",AE25="Operação"),AE37/(1+'Parâmetros de Fluxo de Caixa'!$B$32)^AE24,"") ->  | AF39: =IF(OR(AF25="Construção",AF25="Start-up",AF25="Operação"),AF37/(1+'Parâmetros de Fluxo de Caixa'!$B$32)^AF24,"") ->  | AG39: =IF(OR(AG25="Construção",AG25="Start-up",AG25="Operação"),AG37/(1+'Parâmetros de Fluxo de Caixa'!$B$32)^AG24,"") ->  | AH39: =IF(OR(AH25="Construção",AH25="Start-up",AH25="Operação"),AH37/(1+'Parâmetros de Fluxo de Caixa'!$B$32)^AH24,"") ->  | AI39: =IF(OR(AI25="Construção",AI25="Start-up",AI25="Operação"),AI37/(1+'Parâmetros de Fluxo de Caixa'!$B$32)^AI24,"") ->  | AJ39: =IF(OR(AJ25="Construção",AJ25="Start-up",AJ25="Operação"),AJ37/(1+'Parâmetros de Fluxo de Caixa'!$B$32)^AJ24,"") ->  | AK39: =IF(OR(AK25="Construção",AK25="Start-up",AK25="Operação"),AK37/(1+'Parâmetros de Fluxo de Caixa'!$B$32)^AK24,"") ->  | AL39: =IF(OR(AL25="Construção",AL25="Start-up",AL25="Operação"),AL37/(1+'Parâmetros de Fluxo de Caixa'!$B$32)^AL24,"") ->  | AM39: =IF(OR(AM25="Construção",AM25="Start-up",AM25="Operação"),AM37/(1+'Parâmetros de Fluxo de Caixa'!$B$32)^AM24,"") ->  | AN39: =IF(OR(AN25="Construção",AN25="Start-up",AN25="Operação"),AN37/(1+'Parâmetros de Fluxo de Caixa'!$B$32)^AN24,"") ->  | AO39: =IF(OR(AO25="Construção",AO25="Start-up",AO25="Operação"),AO37/(1+'Parâmetros de Fluxo de Caixa'!$B$32)^AO24,"") ->  | AP39: =IF(OR(AP25="Construção",AP25="Start-up",AP25="Operação"),AP37/(1+'Parâmetros de Fluxo de Caixa'!$B$32)^AP24,"") ->  | AQ39: =IF(OR(AQ25="Construção",AQ25="Start-up",AQ25="Operação"),AQ37/(1+'Parâmetros de Fluxo de Caixa'!$B$32)^AQ24,"") ->  | AR39: =IF(OR(AR25="Construção",AR25="Start-up",AR25="Operação"),AR37/(1+'Parâmetros de Fluxo de Caixa'!$B$32)^AR24,"") ->  | AS39: =IF(OR(AS25="Construção",AS25="Start-up",AS25="Operação"),AS37/(1+'Parâmetros de Fluxo de Caixa'!$B$32)^AS24,"") ->  | AT39: =IF(OR(AT25="Construção",AT25="Start-up",AT25="Operação"),AT37/(1+'Parâmetros de Fluxo de Caixa'!$B$32)^AT24,"") ->  | AU39: =IF(OR(AU25="Construção",AU25="Start-up",AU25="Operação"),AU37/(1+'Parâmetros de Fluxo de Caixa'!$B$32)^AU24,"") ->  | AV39: =IF(OR(AV25="Construção",AV25="Start-up",AV25="Operação"),AV37/(1+'Parâmetros de Fluxo de Caixa'!$B$32)^AV24,"") -> 
A40: Fluxo de Caixa Descontado Acumulado | B40: =IF(OR(B25="Construção",B25="Start-up",B25="Operação"),SUM($B$39:B39),"") -> -336.1262711 | C40: =IF(OR(C25="Construção",C25="Start-up",C25="Operação"),SUM($B$39:C39),"") -> -2609.409139 | D40: =IF(OR(D25="Construção",D25="Start-up",D25="Operação"),SUM($B$39:D39),"") -> -3702.715726 | E40: =IF(OR(E25="Construção",E25="Start-up",E25="Operação"),SUM($B$39:E39),"") -> -3311.869711 | F40: =IF(OR(F25="Construção",F25="Start-up",F25="Operação"),SUM($B$39:F39),"") -> -2905.539282 | G40: =IF(OR(G25="Construção",G25="Start-up",G25="Operação"),SUM($B$39:G39),"") -> -2539.127775 | H40: =IF(OR(H25="Construção",H25="Start-up",H25="Operação"),SUM($B$39:H39),"") -> -2208.713454 | I40: =IF(OR(I25="Construção",I25="Start-up",I25="Operação"),SUM($B$39:I39),"") -> -1910.759865 | J40: =IF(OR(J25="Construção",J25="Start-up",J25="Operação"),SUM($B$39:J39),"") -> -1642.077985 | K40: =IF(OR(K25="Construção",K25="Start-up",K25="Operação"),SUM($B$39:K39),"") -> -1399.792088 | L40: =IF(OR(L25="Construção",L25="Start-up",L25="Operação"),SUM($B$39:L39),"") -> -1181.308965 | M40: =IF(OR(M25="Construção",M25="Start-up",M25="Operação"),SUM($B$39:M39),"") -> -984.290173 | N40: =IF(OR(N25="Construção",N25="Start-up",N25="Operação"),SUM($B$39:N39),"") -> -806.6270017 | O40: =IF(OR(O25="Construção",O25="Start-up",O25="Operação"),SUM($B$39:O39),"") -> -683.6620713 | P40: =IF(OR(P25="Construção",P25="Start-up",P25="Operação"),SUM($B$39:P39),"") -> -572.7775244 | Q40: =IF(OR(Q25="Construção",Q25="Start-up",Q25="Operação"),SUM($B$39:Q39),"") -> -472.7865538 | R40: =IF(OR(R25="Construção",R25="Start-up",R25="Operação"),SUM($B$39:R39),"") -> -382.6189471 | S40: =IF(OR(S25="Construção",S25="Start-up",S25="Operação"),SUM($B$39:S39),"") -> -301.3096326 | T40: =IF(OR(T25="Construção",T25="Start-up",T25="Operação"),SUM($B$39:T39),"") -> -227.9883492 | U40: =IF(OR(U25="Construção",U25="Start-up",U25="Operação"),SUM($B$39:U39),"") -> -161.8703329 | V40: =IF(OR(V25="Construção",V25="Start-up",V25="Operação"),SUM($B$39:V39),"") -> -102.2479164 | W40: =IF(OR(W25="Construção",W25="Start-up",W25="Operação"),SUM($B$39:W39),"") -> -48.48295585 | X40: =IF(OR(X25="Construção",X25="Start-up",X25="Operação"),SUM($B$39:X39),"") -> 2.991384918e-12 | Y40: =IF(OR(Y25="Construção",Y25="Start-up",Y25="Operação"),SUM($B$39:Y39),"") ->  | Z40: =IF(OR(Z25="Construção",Z25="Start-up",Z25="Operação"),SUM($B$39:Z39),"") ->  | AA40: =IF(OR(AA25="Construção",AA25="Start-up",AA25="Operação"),SUM($B$39:AA39),"") ->  | AB40: =IF(OR(AB25="Construção",AB25="Start-up",AB25="Operação"),SUM($B$39:AB39),"") ->  | AC40: =IF(OR(AC25="Construção",AC25="Start-up",AC25="Operação"),SUM($B$39:AC39),"") ->  | AD40: =IF(OR(AD25="Construção",AD25="Start-up",AD25="Operação"),SUM($B$39:AD39),"") ->  | AE40: =IF(OR(AE25="Construção",AE25="Start-up",AE25="Operação"),SUM($B$39:AE39),"") ->  | AF40: =IF(OR(AF25="Construção",AF25="Start-up",AF25="Operação"),SUM($B$39:AF39),"") ->  | AG40: =IF(OR(AG25="Construção",AG25="Start-up",AG25="Operação"),SUM($B$39:AG39),"") ->  | AH40: =IF(OR(AH25="Construção",AH25="Start-up",AH25="Operação"),SUM($B$39:AH39),"") ->  | AI40: =IF(OR(AI25="Construção",AI25="Start-up",AI25="Operação"),SUM($B$39:AI39),"") ->  | AJ40: =IF(OR(AJ25="Construção",AJ25="Start-up",AJ25="Operação"),SUM($B$39:AJ39),"") ->  | AK40: =IF(OR(AK25="Construção",AK25="Start-up",AK25="Operação"),SUM($B$39:AK39),"") ->  | AL40: =IF(OR(AL25="Construção",AL25="Start-up",AL25="Operação"),SUM($B$39:AL39),"") ->  | AM40: =IF(OR(AM25="Construção",AM25="Start-up",AM25="Operação"),SUM($B$39:AM39),"") ->  | AN40: =IF(OR(AN25="Construção",AN25="Start-up",AN25="Operação"),SUM($B$39:AN39),"") ->  | AO40: =IF(OR(AO25="Construção",AO25="Start-up",AO25="Operação"),SUM($B$39:AO39),"") ->  | AP40: =IF(OR(AP25="Construção",AP25="Start-up",AP25="Operação"),SUM($B$39:AP39),"") ->  | AQ40: =IF(OR(AQ25="Construção",AQ25="Start-up",AQ25="Operação"),SUM($B$39:AQ39),"") ->  | AR40: =IF(OR(AR25="Construção",AR25="Start-up",AR25="Operação"),SUM($B$39:AR39),"") ->  | AS40: =IF(OR(AS25="Construção",AS25="Start-up",AS25="Operação"),SUM($B$39:AS39),"") ->  | AT40: =IF(OR(AT25="Construção",AT25="Start-up",AT25="Operação"),SUM($B$39:AT39),"") ->  | AU40: =IF(OR(AU25="Construção",AU25="Start-up",AU25="Operação"),SUM($B$39:AU39),"") ->  | AV40: =IF(OR(AV25="Construção",AV25="Start-up",AV25="Operação"),SUM($B$39:AV39),"") -> 
A41: Custo CAPEX descontado | B41: =IF(OR(B25="Construção",B25="Start-up",B25="Operação"),(B30+B31+B36)/((1+'Parâmetros de Fluxo de Caixa'!$B$32)^'Fluxo de Caixa Descontado'!B23),"") -> -372.7457494 | C41: =IF(OR(C25="Construção",C25="Start-up",C25="Operação"),(C30+C31+C36)/((1+'Parâmetros de Fluxo de Caixa'!$B$32)^'Fluxo de Caixa Descontado'!C23),"") -> -2520.947033 | D41: =IF(OR(D25="Construção",D25="Start-up",D25="Operação"),(D30+D31+D36)/((1+'Parâmetros de Fluxo de Caixa'!$B$32)^'Fluxo de Caixa Descontado'!D23),"") -> -1212.417529 | E41: =IF(OR(E25="Construção",E25="Start-up",E25="Operação"),(E30+E31+E36)/((1+'Parâmetros de Fluxo de Caixa'!$B$32)^'Fluxo de Caixa Descontado'!E23),"") -> 0 | F41: =IF(OR(F25="Construção",F25="Start-up",F25="Operação"),(F30+F31+F36)/((1+'Parâmetros de Fluxo de Caixa'!$B$32)^'Fluxo de Caixa Descontado'!F23),"") -> 0 | G41: =IF(OR(G25="Construção",G25="Start-up",G25="Operação"),(G30+G31+G36)/((1+'Parâmetros de Fluxo de Caixa'!$B$32)^'Fluxo de Caixa Descontado'!G23),"") -> 0 | H41: =IF(OR(H25="Construção",H25="Start-up",H25="Operação"),(H30+H31+H36)/((1+'Parâmetros de Fluxo de Caixa'!$B$32)^'Fluxo de Caixa Descontado'!H23),"") -> 0 | I41: =IF(OR(I25="Construção",I25="Start-up",I25="Operação"),(I30+I31+I36)/((1+'Parâmetros de Fluxo de Caixa'!$B$32)^'Fluxo de Caixa Descontado'!I23),"") -> 0 | J41: =IF(OR(J25="Construção",J25="Start-up",J25="Operação"),(J30+J31+J36)/((1+'Parâmetros de Fluxo de Caixa'!$B$32)^'Fluxo de Caixa Descontado'!J23),"") -> 0 | K41: =IF(OR(K25="Construção",K25="Start-up",K25="Operação"),(K30+K31+K36)/((1+'Parâmetros de Fluxo de Caixa'!$B$32)^'Fluxo de Caixa Descontado'!K23),"") -> 0 | L41: =IF(OR(L25="Construção",L25="Start-up",L25="Operação"),(L30+L31+L36)/((1+'Parâmetros de Fluxo de Caixa'!$B$32)^'Fluxo de Caixa Descontado'!L23),"") -> 0 | M41: =IF(OR(M25="Construção",M25="Start-up",M25="Operação"),(M30+M31+M36)/((1+'Parâmetros de Fluxo de Caixa'!$B$32)^'Fluxo de Caixa Descontado'!M23),"") -> 0 | N41: =IF(OR(N25="Construção",N25="Start-up",N25="Operação"),(N30+N31+N36)/((1+'Parâmetros de Fluxo de Caixa'!$B$32)^'Fluxo de Caixa Descontado'!N23),"") -> 0 | O41: =IF(OR(O25="Construção",O25="Start-up",O25="Operação"),(O30+O31+O36)/((1+'Parâmetros de Fluxo de Caixa'!$B$32)^'Fluxo de Caixa Descontado'!O23),"") -> 0 | P41: =IF(OR(P25="Construção",P25="Start-up",P25="Operação"),(P30+P31+P36)/((1+'Parâmetros de Fluxo de Caixa'!$B$32)^'Fluxo de Caixa Descontado'!P23),"") -> 0 | Q41: =IF(OR(Q25="Construção",Q25="Start-up",Q25="Operação"),(Q30+Q31+Q36)/((1+'Parâmetros de Fluxo de Caixa'!$B$32)^'Fluxo de Caixa Descontado'!Q23),"") -> 0 | R41: =IF(OR(R25="Construção",R25="Start-up",R25="Operação"),(R30+R31+R36)/((1+'Parâmetros de Fluxo de Caixa'!$B$32)^'Fluxo de Caixa Descontado'!R23),"") -> 0 | S41: =IF(OR(S25="Construção",S25="Start-up",S25="Operação"),(S30+S31+S36)/((1+'Parâmetros de Fluxo de Caixa'!$B$32)^'Fluxo de Caixa Descontado'!S23),"") -> 0 | T41: =IF(OR(T25="Construção",T25="Start-up",T25="Operação"),(T30+T31+T36)/((1+'Parâmetros de Fluxo de Caixa'!$B$32)^'Fluxo de Caixa Descontado'!T23),"") -> 0 | U41: =IF(OR(U25="Construção",U25="Start-up",U25="Operação"),(U30+U31+U36)/((1+'Parâmetros de Fluxo de Caixa'!$B$32)^'Fluxo de Caixa Descontado'!U23),"") -> 0 | V41: =IF(OR(V25="Construção",V25="Start-up",V25="Operação"),(V30+V31+V36)/((1+'Parâmetros de Fluxo de Caixa'!$B$32)^'Fluxo de Caixa Descontado'!V23),"") -> 0 | W41: =IF(OR(W25="Construção",W25="Start-up",W25="Operação"),(W30+W31+W36)/((1+'Parâmetros de Fluxo de Caixa'!$B$32)^'Fluxo de Caixa Descontado'!W23),"") -> 0 | X41: =IF(OR(X25="Construção",X25="Start-up",X25="Operação"),(X30+X31+X36)/((1+'Parâmetros de Fluxo de Caixa'!$B$32)^'Fluxo de Caixa Descontado'!X23),"") -> 0 | Y41: =IF(OR(Y25="Construção",Y25="Start-up",Y25="Operação"),(Y30+Y31+Y36)/((1+'Parâmetros de Fluxo de Caixa'!$B$32)^'Fluxo de Caixa Descontado'!Y23),"") ->  | Z41: =IF(OR(Z25="Construção",Z25="Start-up",Z25="Operação"),(Z30+Z31+Z36)/((1+'Parâmetros de Fluxo de Caixa'!$B$32)^'Fluxo de Caixa Descontado'!Z23),"") ->  | AA41: =IF(OR(AA25="Construção",AA25="Start-up",AA25="Operação"),(AA30+AA31+AA36)/((1+'Parâmetros de Fluxo de Caixa'!$B$32)^'Fluxo de Caixa Descontado'!AA23),"") ->  | AB41: =IF(OR(AB25="Construção",AB25="Start-up",AB25="Operação"),(AB30+AB31+AB36)/((1+'Parâmetros de Fluxo de Caixa'!$B$32)^'Fluxo de Caixa Descontado'!AB23),"") ->  | AC41: =IF(OR(AC25="Construção",AC25="Start-up",AC25="Operação"),(AC30+AC31+AC36)/((1+'Parâmetros de Fluxo de Caixa'!$B$32)^'Fluxo de Caixa Descontado'!AC23),"") ->  | AD41: =IF(OR(AD25="Construção",AD25="Start-up",AD25="Operação"),(AD30+AD31+AD36)/((1+'Parâmetros de Fluxo de Caixa'!$B$32)^'Fluxo de Caixa Descontado'!AD23),"") ->  | AE41: =IF(OR(AE25="Construção",AE25="Start-up",AE25="Operação"),(AE30+AE31+AE36)/((1+'Parâmetros de Fluxo de Caixa'!$B$32)^'Fluxo de Caixa Descontado'!AE23),"") ->  | AF41: =IF(OR(AF25="Construção",AF25="Start-up",AF25="Operação"),(AF30+AF31+AF36)/((1+'Parâmetros de Fluxo de Caixa'!$B$32)^'Fluxo de Caixa Descontado'!AF23),"") ->  | AG41: =IF(OR(AG25="Construção",AG25="Start-up",AG25="Operação"),(AG30+AG31+AG36)/((1+'Parâmetros de Fluxo de Caixa'!$B$32)^'Fluxo de Caixa Descontado'!AG23),"") ->  | AH41: =IF(OR(AH25="Construção",AH25="Start-up",AH25="Operação"),(AH30+AH31+AH36)/((1+'Parâmetros de Fluxo de Caixa'!$B$32)^'Fluxo de Caixa Descontado'!AH23),"") ->  | AI41: =IF(OR(AI25="Construção",AI25="Start-up",AI25="Operação"),(AI30+AI31+AI36)/((1+'Parâmetros de Fluxo de Caixa'!$B$32)^'Fluxo de Caixa Descontado'!AI23),"") ->  | AJ41: =IF(OR(AJ25="Construção",AJ25="Start-up",AJ25="Operação"),(AJ30+AJ31+AJ36)/((1+'Parâmetros de Fluxo de Caixa'!$B$32)^'Fluxo de Caixa Descontado'!AJ23),"") ->  | AK41: =IF(OR(AK25="Construção",AK25="Start-up",AK25="Operação"),(AK30+AK31+AK36)/((1+'Parâmetros de Fluxo de Caixa'!$B$32)^'Fluxo de Caixa Descontado'!AK23),"") ->  | AL41: =IF(OR(AL25="Construção",AL25="Start-up",AL25="Operação"),(AL30+AL31+AL36)/((1+'Parâmetros de Fluxo de Caixa'!$B$32)^'Fluxo de Caixa Descontado'!AL23),"") ->  | AM41: =IF(OR(AM25="Construção",AM25="Start-up",AM25="Operação"),(AM30+AM31+AM36)/((1+'Parâmetros de Fluxo de Caixa'!$B$32)^'Fluxo de Caixa Descontado'!AM23),"") ->  | AN41: =IF(OR(AN25="Construção",AN25="Start-up",AN25="Operação"),(AN30+AN31+AN36)/((1+'Parâmetros de Fluxo de Caixa'!$B$32)^'Fluxo de Caixa Descontado'!AN23),"") ->  | AO41: =IF(OR(AO25="Construção",AO25="Start-up",AO25="Operação"),(AO30+AO31+AO36)/((1+'Parâmetros de Fluxo de Caixa'!$B$32)^'Fluxo de Caixa Descontado'!AO23),"") ->  | AP41: =IF(OR(AP25="Construção",AP25="Start-up",AP25="Operação"),(AP30+AP31+AP36)/((1+'Parâmetros de Fluxo de Caixa'!$B$32)^'Fluxo de Caixa Descontado'!AP23),"") ->  | AQ41: =IF(OR(AQ25="Construção",AQ25="Start-up",AQ25="Operação"),(AQ30+AQ31+AQ36)/((1+'Parâmetros de Fluxo de Caixa'!$B$32)^'Fluxo de Caixa Descontado'!AQ23),"") ->  | AR41: =IF(OR(AR25="Construção",AR25="Start-up",AR25="Operação"),(AR30+AR31+AR36)/((1+'Parâmetros de Fluxo de Caixa'!$B$32)^'Fluxo de Caixa Descontado'!AR23),"") ->  | AS41: =IF(OR(AS25="Construção",AS25="Start-up",AS25="Operação"),(AS30+AS31+AS36)/((1+'Parâmetros de Fluxo de Caixa'!$B$32)^'Fluxo de Caixa Descontado'!AS23),"") ->  | AT41: =IF(OR(AT25="Construção",AT25="Start-up",AT25="Operação"),(AT30+AT31+AT36)/((1+'Parâmetros de Fluxo de Caixa'!$B$32)^'Fluxo de Caixa Descontado'!AT23),"") ->  | AU41: =IF(OR(AU25="Construção",AU25="Start-up",AU25="Operação"),(AU30+AU31+AU36)/((1+'Parâmetros de Fluxo de Caixa'!$B$32)^'Fluxo de Caixa Descontado'!AU23),"") ->  | AV41: =IF(OR(AV25="Construção",AV25="Start-up",AV25="Operação"),(AV30+AV31+AV36)/((1+'Parâmetros de Fluxo de Caixa'!$B$32)^'Fluxo de Caixa Descontado'!AV23),"") -> 
A42: Custo OPEX variável descontado | B42: =IF(OR(B25="Construção",B25="Start-up",B25="Operação"),(B28)/((1+'Parâmetros de Fluxo de Caixa'!$B$32)^'Fluxo de Caixa Descontado'!B23),"") -> 0 | C42: =IF(OR(C25="Construção",C25="Start-up",C25="Operação"),(C28)/((1+'Parâmetros de Fluxo de Caixa'!$B$32)^'Fluxo de Caixa Descontado'!C23),"") -> 0 | D42: =IF(OR(D25="Construção",D25="Start-up",D25="Operação"),(D28)/((1+'Parâmetros de Fluxo de Caixa'!$B$32)^'Fluxo de Caixa Descontado'!D23),"") -> 0 | E42: =IF(OR(E25="Construção",E25="Start-up",E25="Operação"),(E28)/((1+'Parâmetros de Fluxo de Caixa'!$B$32)^'Fluxo de Caixa Descontado'!E23),"") -> -2779.584974 | F42: =IF(OR(F25="Construção",F25="Start-up",F25="Operação"),(F28)/((1+'Parâmetros de Fluxo de Caixa'!$B$32)^'Fluxo de Caixa Descontado'!F23),"") -> -2864.584649 | G42: =IF(OR(G25="Construção",G25="Start-up",G25="Operação"),(G28)/((1+'Parâmetros de Fluxo de Caixa'!$B$32)^'Fluxo de Caixa Descontado'!G23),"") -> -2583.160661 | H42: =IF(OR(H25="Construção",H25="Start-up",H25="Operação"),(H28)/((1+'Parâmetros de Fluxo de Caixa'!$B$32)^'Fluxo de Caixa Descontado'!H23),"") -> -2329.384472 | I42: =IF(OR(I25="Construção",I25="Start-up",I25="Operação"),(I28)/((1+'Parâmetros de Fluxo de Caixa'!$B$32)^'Fluxo de Caixa Descontado'!I23),"") -> -2100.539893 | J42: =IF(OR(J25="Construção",J25="Start-up",J25="Operação"),(J28)/((1+'Parâmetros de Fluxo de Caixa'!$B$32)^'Fluxo de Caixa Descontado'!J23),"") -> -1894.17758 | K42: =IF(OR(K25="Construção",K25="Start-up",K25="Operação"),(K28)/((1+'Parâmetros de Fluxo de Caixa'!$B$32)^'Fluxo de Caixa Descontado'!K23),"") -> -1708.088819 | L42: =IF(OR(L25="Construção",L25="Start-up",L25="Operação"),(L28)/((1+'Parâmetros de Fluxo de Caixa'!$B$32)^'Fluxo de Caixa Descontado'!L23),"") -> -1540.281885 | M42: =IF(OR(M25="Construção",M25="Start-up",M25="Operação"),(M28)/((1+'Parâmetros de Fluxo de Caixa'!$B$32)^'Fluxo de Caixa Descontado'!M23),"") -> -1388.960725 | N42: =IF(OR(N25="Construção",N25="Start-up",N25="Operação"),(N28)/((1+'Parâmetros de Fluxo de Caixa'!$B$32)^'Fluxo de Caixa Descontado'!N23),"") -> -1252.505736 | O42: =IF(OR(O25="Construção",O25="Start-up",O25="Operação"),(O28)/((1+'Parâmetros de Fluxo de Caixa'!$B$32)^'Fluxo de Caixa Descontado'!O23),"") -> -1129.456428 | P42: =IF(OR(P25="Construção",P25="Start-up",P25="Operação"),(P28)/((1+'Parâmetros de Fluxo de Caixa'!$B$32)^'Fluxo de Caixa Descontado'!P23),"") -> -1018.495793 | Q42: =IF(OR(Q25="Construção",Q25="Start-up",Q25="Operação"),(Q28)/((1+'Parâmetros de Fluxo de Caixa'!$B$32)^'Fluxo de Caixa Descontado'!Q23),"") -> -918.4362088 | R42: =IF(OR(R25="Construção",R25="Start-up",R25="Operação"),(R28)/((1+'Parâmetros de Fluxo de Caixa'!$B$32)^'Fluxo de Caixa Descontado'!R23),"") -> -828.2067297 | S42: =IF(OR(S25="Construção",S25="Start-up",S25="Operação"),(S28)/((1+'Parâmetros de Fluxo de Caixa'!$B$32)^'Fluxo de Caixa Descontado'!S23),"") -> -746.8416212 | T42: =IF(OR(T25="Construção",T25="Start-up",T25="Operação"),(T28)/((1+'Parâmetros de Fluxo de Caixa'!$B$32)^'Fluxo de Caixa Descontado'!T23),"") -> -673.4700252 | U42: =IF(OR(U25="Construção",U25="Start-up",U25="Operação"),(U28)/((1+'Parâmetros de Fluxo de Caixa'!$B$32)^'Fluxo de Caixa Descontado'!U23),"") -> -607.306639 | V42: =IF(OR(V25="Construção",V25="Start-up",V25="Operação"),(V28)/((1+'Parâmetros de Fluxo de Caixa'!$B$32)^'Fluxo de Caixa Descontado'!V23),"") -> -547.64331 | W42: =IF(OR(W25="Construção",W25="Start-up",W25="Operação"),(W28)/((1+'Parâmetros de Fluxo de Caixa'!$B$32)^'Fluxo de Caixa Descontado'!W23),"") -> -493.8414563 | X42: =IF(OR(X25="Construção",X25="Start-up",X25="Operação"),(X28)/((1+'Parâmetros de Fluxo de Caixa'!$B$32)^'Fluxo de Caixa Descontado'!X23),"") -> -445.3252317 | Y42: =IF(OR(Y25="Construção",Y25="Start-up",Y25="Operação"),(Y28)/((1+'Parâmetros de Fluxo de Caixa'!$B$32)^'Fluxo de Caixa Descontado'!Y23),"") ->  | Z42: =IF(OR(Z25="Construção",Z25="Start-up",Z25="Operação"),(Z28)/((1+'Parâmetros de Fluxo de Caixa'!$B$32)^'Fluxo de Caixa Descontado'!Z23),"") ->  | AA42: =IF(OR(AA25="Construção",AA25="Start-up",AA25="Operação"),(AA28)/((1+'Parâmetros de Fluxo de Caixa'!$B$32)^'Fluxo de Caixa Descontado'!AA23),"") ->  | AB42: =IF(OR(AB25="Construção",AB25="Start-up",AB25="Operação"),(AB28)/((1+'Parâmetros de Fluxo de Caixa'!$B$32)^'Fluxo de Caixa Descontado'!AB23),"") ->  | AC42: =IF(OR(AC25="Construção",AC25="Start-up",AC25="Operação"),(AC28)/((1+'Parâmetros de Fluxo de Caixa'!$B$32)^'Fluxo de Caixa Descontado'!AC23),"") ->  | AD42: =IF(OR(AD25="Construção",AD25="Start-up",AD25="Operação"),(AD28)/((1+'Parâmetros de Fluxo de Caixa'!$B$32)^'Fluxo de Caixa Descontado'!AD23),"") ->  | AE42: =IF(OR(AE25="Construção",AE25="Start-up",AE25="Operação"),(AE28)/((1+'Parâmetros de Fluxo de Caixa'!$B$32)^'Fluxo de Caixa Descontado'!AE23),"") ->  | AF42: =IF(OR(AF25="Construção",AF25="Start-up",AF25="Operação"),(AF28)/((1+'Parâmetros de Fluxo de Caixa'!$B$32)^'Fluxo de Caixa Descontado'!AF23),"") ->  | AG42: =IF(OR(AG25="Construção",AG25="Start-up",AG25="Operação"),(AG28)/((1+'Parâmetros de Fluxo de Caixa'!$B$32)^'Fluxo de Caixa Descontado'!AG23),"") ->  | AH42: =IF(OR(AH25="Construção",AH25="Start-up",AH25="Operação"),(AH28)/((1+'Parâmetros de Fluxo de Caixa'!$B$32)^'Fluxo de Caixa Descontado'!AH23),"") ->  | AI42: =IF(OR(AI25="Construção",AI25="Start-up",AI25="Operação"),(AI28)/((1+'Parâmetros de Fluxo de Caixa'!$B$32)^'Fluxo de Caixa Descontado'!AI23),"") ->  | AJ42: =IF(OR(AJ25="Construção",AJ25="Start-up",AJ25="Operação"),(AJ28)/((1+'Parâmetros de Fluxo de Caixa'!$B$32)^'Fluxo de Caixa Descontado'!AJ23),"") ->  | AK42: =IF(OR(AK25="Construção",AK25="Start-up",AK25="Operação"),(AK28)/((1+'Parâmetros de Fluxo de Caixa'!$B$32)^'Fluxo de Caixa Descontado'!AK23),"") ->  | AL42: =IF(OR(AL25="Construção",AL25="Start-up",AL25="Operação"),(AL28)/((1+'Parâmetros de Fluxo de Caixa'!$B$32)^'Fluxo de Caixa Descontado'!AL23),"") ->  | AM42: =IF(OR(AM25="Construção",AM25="Start-up",AM25="Operação"),(AM28)/((1+'Parâmetros de Fluxo de Caixa'!$B$32)^'Fluxo de Caixa Descontado'!AM23),"") ->  | AN42: =IF(OR(AN25="Construção",AN25="Start-up",AN25="Operação"),(AN28)/((1+'Parâmetros de Fluxo de Caixa'!$B$32)^'Fluxo de Caixa Descontado'!AN23),"") ->  | AO42: =IF(OR(AO25="Construção",AO25="Start-up",AO25="Operação"),(AO28)/((1+'Parâmetros de Fluxo de Caixa'!$B$32)^'Fluxo de Caixa Descontado'!AO23),"") ->  | AP42: =IF(OR(AP25="Construção",AP25="Start-up",AP25="Operação"),(AP28)/((1+'Parâmetros de Fluxo de Caixa'!$B$32)^'Fluxo de Caixa Descontado'!AP23),"") ->  | AQ42: =IF(OR(AQ25="Construção",AQ25="Start-up",AQ25="Operação"),(AQ28)/((1+'Parâmetros de Fluxo de Caixa'!$B$32)^'Fluxo de Caixa Descontado'!AQ23),"") ->  | AR42: =IF(OR(AR25="Construção",AR25="Start-up",AR25="Operação"),(AR28)/((1+'Parâmetros de Fluxo de Caixa'!$B$32)^'Fluxo de Caixa Descontado'!AR23),"") ->  | AS42: =IF(OR(AS25="Construção",AS25="Start-up",AS25="Operação"),(AS28)/((1+'Parâmetros de Fluxo de Caixa'!$B$32)^'Fluxo de Caixa Descontado'!AS23),"") ->  | AT42: =IF(OR(AT25="Construção",AT25="Start-up",AT25="Operação"),(AT28)/((1+'Parâmetros de Fluxo de Caixa'!$B$32)^'Fluxo de Caixa Descontado'!AT23),"") ->  | AU42: =IF(OR(AU25="Construção",AU25="Start-up",AU25="Operação"),(AU28)/((1+'Parâmetros de Fluxo de Caixa'!$B$32)^'Fluxo de Caixa Descontado'!AU23),"") ->  | AV42: =IF(OR(AV25="Construção",AV25="Start-up",AV25="Operação"),(AV28)/((1+'Parâmetros de Fluxo de Caixa'!$B$32)^'Fluxo de Caixa Descontado'!AV23),"") -> 
A43: Custo OPEX fixo descontado | B43: =IF(OR(B25="Construção",B25="Start-up",B25="Operação"),(B29)/((1+'Parâmetros de Fluxo de Caixa'!$B$32)^'Fluxo de Caixa Descontado'!B23),"") -> 0 | C43: =IF(OR(C25="Construção",C25="Start-up",C25="Operação"),(C29)/((1+'Parâmetros de Fluxo de Caixa'!$B$32)^'Fluxo de Caixa Descontado'!C23),"") -> 0 | D43: =IF(OR(D25="Construção",D25="Start-up",D25="Operação"),(D29)/((1+'Parâmetros de Fluxo de Caixa'!$B$32)^'Fluxo de Caixa Descontado'!D23),"") -> 0 | E43: =IF(OR(E25="Construção",E25="Start-up",E25="Operação"),(E29)/((1+'Parâmetros de Fluxo de Caixa'!$B$32)^'Fluxo de Caixa Descontado'!E23),"") -> -222.0779005 | F43: =IF(OR(F25="Construção",F25="Start-up",F25="Operação"),(F29)/((1+'Parâmetros de Fluxo de Caixa'!$B$32)^'Fluxo de Caixa Descontado'!F23),"") -> -200.26041 | G43: =IF(OR(G25="Construção",G25="Start-up",G25="Operação"),(G29)/((1+'Parâmetros de Fluxo de Caixa'!$B$32)^'Fluxo de Caixa Descontado'!G23),"") -> -180.5863245 | H43: =IF(OR(H25="Construção",H25="Start-up",H25="Operação"),(H29)/((1+'Parâmetros de Fluxo de Caixa'!$B$32)^'Fluxo de Caixa Descontado'!H23),"") -> -162.8450706 | I43: =IF(OR(I25="Construção",I25="Start-up",I25="Operação"),(I29)/((1+'Parâmetros de Fluxo de Caixa'!$B$32)^'Fluxo de Caixa Descontado'!I23),"") -> -146.846762 | J43: =IF(OR(J25="Construção",J25="Start-up",J25="Operação"),(J29)/((1+'Parâmetros de Fluxo de Caixa'!$B$32)^'Fluxo de Caixa Descontado'!J23),"") -> -132.4201674 | K43: =IF(OR(K25="Construção",K25="Start-up",K25="Operação"),(K29)/((1+'Parâmetros de Fluxo de Caixa'!$B$32)^'Fluxo de Caixa Descontado'!K23),"") -> -119.4108777 | L43: =IF(OR(L25="Construção",L25="Start-up",L25="Operação"),(L29)/((1+'Parâmetros de Fluxo de Caixa'!$B$32)^'Fluxo de Caixa Descontado'!L23),"") -> -107.6796533 | M43: =IF(OR(M25="Construção",M25="Start-up",M25="Operação"),(M29)/((1+'Parâmetros de Fluxo de Caixa'!$B$32)^'Fluxo de Caixa Descontado'!M23),"") -> -97.10093378 | N43: =IF(OR(N25="Construção",N25="Start-up",N25="Operação"),(N29)/((1+'Parâmetros de Fluxo de Caixa'!$B$32)^'Fluxo de Caixa Descontado'!N23),"") -> -87.56149425 | O43: =IF(OR(O25="Construção",O25="Start-up",O25="Operação"),(O29)/((1+'Parâmetros de Fluxo de Caixa'!$B$32)^'Fluxo de Caixa Descontado'!O23),"") -> -78.95923321 | P43: =IF(OR(P25="Construção",P25="Start-up",P25="Operação"),(P29)/((1+'Parâmetros de Fluxo de Caixa'!$B$32)^'Fluxo de Caixa Descontado'!P23),"") -> -71.20207989 | Q43: =IF(OR(Q25="Construção",Q25="Start-up",Q25="Operação"),(Q29)/((1+'Parâmetros de Fluxo de Caixa'!$B$32)^'Fluxo de Caixa Descontado'!Q23),"") -> -64.2070088 | R43: =IF(OR(R25="Construção",R25="Start-up",R25="Operação"),(R29)/((1+'Parâmetros de Fluxo de Caixa'!$B$32)^'Fluxo de Caixa Descontado'!R23),"") -> -57.89915105 | S43: =IF(OR(S25="Construção",S25="Start-up",S25="Operação"),(S29)/((1+'Parâmetros de Fluxo de Caixa'!$B$32)^'Fluxo de Caixa Descontado'!S23),"") -> -52.21099308 | T43: =IF(OR(T25="Construção",T25="Start-up",T25="Operação"),(T29)/((1+'Parâmetros de Fluxo de Caixa'!$B$32)^'Fluxo de Caixa Descontado'!T23),"") -> -47.08165403 | U43: =IF(OR(U25="Construção",U25="Start-up",U25="Operação"),(U29)/((1+'Parâmetros de Fluxo de Caixa'!$B$32)^'Fluxo de Caixa Descontado'!U23),"") -> -42.45623413 | V43: =IF(OR(V25="Construção",V25="Start-up",V25="Operação"),(V29)/((1+'Parâmetros de Fluxo de Caixa'!$B$32)^'Fluxo de Caixa Descontado'!V23),"") -> -38.28522709 | W43: =IF(OR(W25="Construção",W25="Start-up",W25="Operação"),(W29)/((1+'Parâmetros de Fluxo de Caixa'!$B$32)^'Fluxo de Caixa Descontado'!W23),"") -> -34.52399026 | X43: =IF(OR(X25="Construção",X25="Start-up",X25="Operação"),(X29)/((1+'Parâmetros de Fluxo de Caixa'!$B$32)^'Fluxo de Caixa Descontado'!X23),"") -> -31.13226678 | Y43: =IF(OR(Y25="Construção",Y25="Start-up",Y25="Operação"),(Y29)/((1+'Parâmetros de Fluxo de Caixa'!$B$32)^'Fluxo de Caixa Descontado'!Y23),"") ->  | Z43: =IF(OR(Z25="Construção",Z25="Start-up",Z25="Operação"),(Z29)/((1+'Parâmetros de Fluxo de Caixa'!$B$32)^'Fluxo de Caixa Descontado'!Z23),"") ->  | AA43: =IF(OR(AA25="Construção",AA25="Start-up",AA25="Operação"),(AA29)/((1+'Parâmetros de Fluxo de Caixa'!$B$32)^'Fluxo de Caixa Descontado'!AA23),"") ->  | AB43: =IF(OR(AB25="Construção",AB25="Start-up",AB25="Operação"),(AB29)/((1+'Parâmetros de Fluxo de Caixa'!$B$32)^'Fluxo de Caixa Descontado'!AB23),"") ->  | AC43: =IF(OR(AC25="Construção",AC25="Start-up",AC25="Operação"),(AC29)/((1+'Parâmetros de Fluxo de Caixa'!$B$32)^'Fluxo de Caixa Descontado'!AC23),"") ->  | AD43: =IF(OR(AD25="Construção",AD25="Start-up",AD25="Operação"),(AD29)/((1+'Parâmetros de Fluxo de Caixa'!$B$32)^'Fluxo de Caixa Descontado'!AD23),"") ->  | AE43: =IF(OR(AE25="Construção",AE25="Start-up",AE25="Operação"),(AE29)/((1+'Parâmetros de Fluxo de Caixa'!$B$32)^'Fluxo de Caixa Descontado'!AE23),"") ->  | AF43: =IF(OR(AF25="Construção",AF25="Start-up",AF25="Operação"),(AF29)/((1+'Parâmetros de Fluxo de Caixa'!$B$32)^'Fluxo de Caixa Descontado'!AF23),"") ->  | AG43: =IF(OR(AG25="Construção",AG25="Start-up",AG25="Operação"),(AG29)/((1+'Parâmetros de Fluxo de Caixa'!$B$32)^'Fluxo de Caixa Descontado'!AG23),"") ->  | AH43: =IF(OR(AH25="Construção",AH25="Start-up",AH25="Operação"),(AH29)/((1+'Parâmetros de Fluxo de Caixa'!$B$32)^'Fluxo de Caixa Descontado'!AH23),"") ->  | AI43: =IF(OR(AI25="Construção",AI25="Start-up",AI25="Operação"),(AI29)/((1+'Parâmetros de Fluxo de Caixa'!$B$32)^'Fluxo de Caixa Descontado'!AI23),"") ->  | AJ43: =IF(OR(AJ25="Construção",AJ25="Start-up",AJ25="Operação"),(AJ29)/((1+'Parâmetros de Fluxo de Caixa'!$B$32)^'Fluxo de Caixa Descontado'!AJ23),"") ->  | AK43: =IF(OR(AK25="Construção",AK25="Start-up",AK25="Operação"),(AK29)/((1+'Parâmetros de Fluxo de Caixa'!$B$32)^'Fluxo de Caixa Descontado'!AK23),"") ->  | AL43: =IF(OR(AL25="Construção",AL25="Start-up",AL25="Operação"),(AL29)/((1+'Parâmetros de Fluxo de Caixa'!$B$32)^'Fluxo de Caixa Descontado'!AL23),"") ->  | AM43: =IF(OR(AM25="Construção",AM25="Start-up",AM25="Operação"),(AM29)/((1+'Parâmetros de Fluxo de Caixa'!$B$32)^'Fluxo de Caixa Descontado'!AM23),"") ->  | AN43: =IF(OR(AN25="Construção",AN25="Start-up",AN25="Operação"),(AN29)/((1+'Parâmetros de Fluxo de Caixa'!$B$32)^'Fluxo de Caixa Descontado'!AN23),"") ->  | AO43: =IF(OR(AO25="Construção",AO25="Start-up",AO25="Operação"),(AO29)/((1+'Parâmetros de Fluxo de Caixa'!$B$32)^'Fluxo de Caixa Descontado'!AO23),"") ->  | AP43: =IF(OR(AP25="Construção",AP25="Start-up",AP25="Operação"),(AP29)/((1+'Parâmetros de Fluxo de Caixa'!$B$32)^'Fluxo de Caixa Descontado'!AP23),"") ->  | AQ43: =IF(OR(AQ25="Construção",AQ25="Start-up",AQ25="Operação"),(AQ29)/((1+'Parâmetros de Fluxo de Caixa'!$B$32)^'Fluxo de Caixa Descontado'!AQ23),"") ->  | AR43: =IF(OR(AR25="Construção",AR25="Start-up",AR25="Operação"),(AR29)/((1+'Parâmetros de Fluxo de Caixa'!$B$32)^'Fluxo de Caixa Descontado'!AR23),"") ->  | AS43: =IF(OR(AS25="Construção",AS25="Start-up",AS25="Operação"),(AS29)/((1+'Parâmetros de Fluxo de Caixa'!$B$32)^'Fluxo de Caixa Descontado'!AS23),"") ->  | AT43: =IF(OR(AT25="Construção",AT25="Start-up",AT25="Operação"),(AT29)/((1+'Parâmetros de Fluxo de Caixa'!$B$32)^'Fluxo de Caixa Descontado'!AT23),"") ->  | AU43: =IF(OR(AU25="Construção",AU25="Start-up",AU25="Operação"),(AU29)/((1+'Parâmetros de Fluxo de Caixa'!$B$32)^'Fluxo de Caixa Descontado'!AU23),"") ->  | AV43: =IF(OR(AV25="Construção",AV25="Start-up",AV25="Operação"),(AV29)/((1+'Parâmetros de Fluxo de Caixa'!$B$32)^'Fluxo de Caixa Descontado'!AV23),"") -> 
A44: Tributos descontado | B44: =IF(OR(B25="Construção",B25="Start-up",B25="Operação"),(B35+B33)/((1+'Parâmetros de Fluxo de Caixa'!$B$32)^'Fluxo de Caixa Descontado'!B23),"") -> 0 | C44: =IF(OR(C25="Construção",C25="Start-up",C25="Operação"),(C35+C33)/((1+'Parâmetros de Fluxo de Caixa'!$B$32)^'Fluxo de Caixa Descontado'!C23),"") -> 0 | D44: =IF(OR(D25="Construção",D25="Start-up",D25="Operação"),(D35+D33)/((1+'Parâmetros de Fluxo de Caixa'!$B$32)^'Fluxo de Caixa Descontado'!D23),"") -> 0 | E44: =IF(OR(E25="Construção",E25="Start-up",E25="Operação"),(E35+E33)/((1+'Parâmetros de Fluxo de Caixa'!$B$32)^'Fluxo de Caixa Descontado'!E23),"") -> -402.2265286 | F44: =IF(OR(F25="Construção",F25="Start-up",F25="Operação"),(F35+F33)/((1+'Parâmetros de Fluxo de Caixa'!$B$32)^'Fluxo de Caixa Descontado'!F23),"") -> -439.2180592 | G44: =IF(OR(G25="Construção",G25="Start-up",G25="Operação"),(G35+G33)/((1+'Parâmetros de Fluxo de Caixa'!$B$32)^'Fluxo de Caixa Descontado'!G23),"") -> -396.0681743 | H44: =IF(OR(H25="Construção",H25="Start-up",H25="Operação"),(H35+H33)/((1+'Parâmetros de Fluxo de Caixa'!$B$32)^'Fluxo de Caixa Descontado'!H23),"") -> -357.1574425 | I44: =IF(OR(I25="Construção",I25="Start-up",I25="Operação"),(I35+I33)/((1+'Parâmetros de Fluxo de Caixa'!$B$32)^'Fluxo de Caixa Descontado'!I23),"") -> -322.0693986 | J44: =IF(OR(J25="Construção",J25="Start-up",J25="Operação"),(J35+J33)/((1+'Parâmetros de Fluxo de Caixa'!$B$32)^'Fluxo de Caixa Descontado'!J23),"") -> -290.4284922 | K44: =IF(OR(K25="Construção",K25="Start-up",K25="Operação"),(K35+K33)/((1+'Parâmetros de Fluxo de Caixa'!$B$32)^'Fluxo de Caixa Descontado'!K23),"") -> -261.896068 | L44: =IF(OR(L25="Construção",L25="Start-up",L25="Operação"),(L35+L33)/((1+'Parâmetros de Fluxo de Caixa'!$B$32)^'Fluxo de Caixa Descontado'!L23),"") -> -236.1667407 | M44: =IF(OR(M25="Construção",M25="Start-up",M25="Operação"),(M35+M33)/((1+'Parâmetros de Fluxo de Caixa'!$B$32)^'Fluxo de Caixa Descontado'!M23),"") -> -212.9651272 | N44: =IF(OR(N25="Construção",N25="Start-up",N25="Operação"),(N35+N33)/((1+'Parâmetros de Fluxo de Caixa'!$B$32)^'Fluxo de Caixa Descontado'!N23),"") -> -192.0428984 | O44: =IF(OR(O25="Construção",O25="Start-up",O25="Operação"),(O35+O33)/((1+'Parâmetros de Fluxo de Caixa'!$B$32)^'Fluxo de Caixa Descontado'!O23),"") -> -214.4778746 | P44: =IF(OR(P25="Construção",P25="Start-up",P25="Operação"),(P35+P33)/((1+'Parâmetros de Fluxo de Caixa'!$B$32)^'Fluxo de Caixa Descontado'!P23),"") -> -193.4070297 | Q44: =IF(OR(Q25="Construção",Q25="Start-up",Q25="Operação"),(Q35+Q33)/((1+'Parâmetros de Fluxo de Caixa'!$B$32)^'Fluxo de Caixa Descontado'!Q23),"") -> -174.4062375 | R44: =IF(OR(R25="Construção",R25="Start-up",R25="Operação"),(R35+R33)/((1+'Parâmetros de Fluxo de Caixa'!$B$32)^'Fluxo de Caixa Descontado'!R23),"") -> -157.2721309 | S44: =IF(OR(S25="Construção",S25="Start-up",S25="Operação"),(S35+S33)/((1+'Parâmetros de Fluxo de Caixa'!$B$32)^'Fluxo de Caixa Descontado'!S23),"") -> -141.8213219 | T44: =IF(OR(T25="Construção",T25="Start-up",T25="Operação"),(T35+T33)/((1+'Parâmetros de Fluxo de Caixa'!$B$32)^'Fluxo de Caixa Descontado'!T23),"") -> -127.8884391 | U44: =IF(OR(U25="Construção",U25="Start-up",U25="Operação"),(U35+U33)/((1+'Parâmetros de Fluxo de Caixa'!$B$32)^'Fluxo de Caixa Descontado'!U23),"") -> -115.3243578 | V44: =IF(OR(V25="Construção",V25="Start-up",V25="Operação"),(V35+V33)/((1+'Parâmetros de Fluxo de Caixa'!$B$32)^'Fluxo de Caixa Descontado'!V23),"") -> -103.9946033 | W44: =IF(OR(W25="Construção",W25="Start-up",W25="Operação"),(W35+W33)/((1+'Parâmetros de Fluxo de Caixa'!$B$32)^'Fluxo de Caixa Descontado'!W23),"") -> -93.77791239 | X44: =IF(OR(X25="Construção",X25="Start-up",X25="Operação"),(X35+X33)/((1+'Parâmetros de Fluxo de Caixa'!$B$32)^'Fluxo de Caixa Descontado'!X23),"") -> -84.56493483 | Y44: =IF(OR(Y25="Construção",Y25="Start-up",Y25="Operação"),(Y35+Y33)/((1+'Parâmetros de Fluxo de Caixa'!$B$32)^'Fluxo de Caixa Descontado'!Y23),"") ->  | Z44: =IF(OR(Z25="Construção",Z25="Start-up",Z25="Operação"),(Z35+Z33)/((1+'Parâmetros de Fluxo de Caixa'!$B$32)^'Fluxo de Caixa Descontado'!Z23),"") ->  | AA44: =IF(OR(AA25="Construção",AA25="Start-up",AA25="Operação"),(AA35+AA33)/((1+'Parâmetros de Fluxo de Caixa'!$B$32)^'Fluxo de Caixa Descontado'!AA23),"") ->  | AB44: =IF(OR(AB25="Construção",AB25="Start-up",AB25="Operação"),(AB35+AB33)/((1+'Parâmetros de Fluxo de Caixa'!$B$32)^'Fluxo de Caixa Descontado'!AB23),"") ->  | AC44: =IF(OR(AC25="Construção",AC25="Start-up",AC25="Operação"),(AC35+AC33)/((1+'Parâmetros de Fluxo de Caixa'!$B$32)^'Fluxo de Caixa Descontado'!AC23),"") ->  | AD44: =IF(OR(AD25="Construção",AD25="Start-up",AD25="Operação"),(AD35+AD33)/((1+'Parâmetros de Fluxo de Caixa'!$B$32)^'Fluxo de Caixa Descontado'!AD23),"") ->  | AE44: =IF(OR(AE25="Construção",AE25="Start-up",AE25="Operação"),(AE35+AE33)/((1+'Parâmetros de Fluxo de Caixa'!$B$32)^'Fluxo de Caixa Descontado'!AE23),"") ->  | AF44: =IF(OR(AF25="Construção",AF25="Start-up",AF25="Operação"),(AF35+AF33)/((1+'Parâmetros de Fluxo de Caixa'!$B$32)^'Fluxo de Caixa Descontado'!AF23),"") ->  | AG44: =IF(OR(AG25="Construção",AG25="Start-up",AG25="Operação"),(AG35+AG33)/((1+'Parâmetros de Fluxo de Caixa'!$B$32)^'Fluxo de Caixa Descontado'!AG23),"") ->  | AH44: =IF(OR(AH25="Construção",AH25="Start-up",AH25="Operação"),(AH35+AH33)/((1+'Parâmetros de Fluxo de Caixa'!$B$32)^'Fluxo de Caixa Descontado'!AH23),"") ->  | AI44: =IF(OR(AI25="Construção",AI25="Start-up",AI25="Operação"),(AI35+AI33)/((1+'Parâmetros de Fluxo de Caixa'!$B$32)^'Fluxo de Caixa Descontado'!AI23),"") ->  | AJ44: =IF(OR(AJ25="Construção",AJ25="Start-up",AJ25="Operação"),(AJ35+AJ33)/((1+'Parâmetros de Fluxo de Caixa'!$B$32)^'Fluxo de Caixa Descontado'!AJ23),"") ->  | AK44: =IF(OR(AK25="Construção",AK25="Start-up",AK25="Operação"),(AK35+AK33)/((1+'Parâmetros de Fluxo de Caixa'!$B$32)^'Fluxo de Caixa Descontado'!AK23),"") ->  | AL44: =IF(OR(AL25="Construção",AL25="Start-up",AL25="Operação"),(AL35+AL33)/((1+'Parâmetros de Fluxo de Caixa'!$B$32)^'Fluxo de Caixa Descontado'!AL23),"") ->  | AM44: =IF(OR(AM25="Construção",AM25="Start-up",AM25="Operação"),(AM35+AM33)/((1+'Parâmetros de Fluxo de Caixa'!$B$32)^'Fluxo de Caixa Descontado'!AM23),"") ->  | AN44: =IF(OR(AN25="Construção",AN25="Start-up",AN25="Operação"),(AN35+AN33)/((1+'Parâmetros de Fluxo de Caixa'!$B$32)^'Fluxo de Caixa Descontado'!AN23),"") ->  | AO44: =IF(OR(AO25="Construção",AO25="Start-up",AO25="Operação"),(AO35+AO33)/((1+'Parâmetros de Fluxo de Caixa'!$B$32)^'Fluxo de Caixa Descontado'!AO23),"") ->  | AP44: =IF(OR(AP25="Construção",AP25="Start-up",AP25="Operação"),(AP35+AP33)/((1+'Parâmetros de Fluxo de Caixa'!$B$32)^'Fluxo de Caixa Descontado'!AP23),"") ->  | AQ44: =IF(OR(AQ25="Construção",AQ25="Start-up",AQ25="Operação"),(AQ35+AQ33)/((1+'Parâmetros de Fluxo de Caixa'!$B$32)^'Fluxo de Caixa Descontado'!AQ23),"") ->  | AR44: =IF(OR(AR25="Construção",AR25="Start-up",AR25="Operação"),(AR35+AR33)/((1+'Parâmetros de Fluxo de Caixa'!$B$32)^'Fluxo de Caixa Descontado'!AR23),"") ->  | AS44: =IF(OR(AS25="Construção",AS25="Start-up",AS25="Operação"),(AS35+AS33)/((1+'Parâmetros de Fluxo de Caixa'!$B$32)^'Fluxo de Caixa Descontado'!AS23),"") ->  | AT44: =IF(OR(AT25="Construção",AT25="Start-up",AT25="Operação"),(AT35+AT33)/((1+'Parâmetros de Fluxo de Caixa'!$B$32)^'Fluxo de Caixa Descontado'!AT23),"") ->  | AU44: =IF(OR(AU25="Construção",AU25="Start-up",AU25="Operação"),(AU35+AU33)/((1+'Parâmetros de Fluxo de Caixa'!$B$32)^'Fluxo de Caixa Descontado'!AU23),"") ->  | AV44: =IF(OR(AV25="Construção",AV25="Start-up",AV25="Operação"),(AV35+AV33)/((1+'Parâmetros de Fluxo de Caixa'!$B$32)^'Fluxo de Caixa Descontado'!AV23),"") -> 
A45: Receitas decontadas | B45: =IF(OR(B25="Construção",B25="Start-up",B25="Operação"),(B27)/((1+'Parâmetros de Fluxo de Caixa'!$B$32)^'Fluxo de Caixa Descontado'!B23),"") -> 0 | C45: =IF(OR(C25="Construção",C25="Start-up",C25="Operação"),(C27)/((1+'Parâmetros de Fluxo de Caixa'!$B$32)^'Fluxo de Caixa Descontado'!C23),"") -> 0 | D45: =IF(OR(D25="Construção",D25="Start-up",D25="Operação"),(D27)/((1+'Parâmetros de Fluxo de Caixa'!$B$32)^'Fluxo de Caixa Descontado'!D23),"") -> 0 | E45: =IF(OR(E25="Construção",E25="Start-up",E25="Operação"),(E27)/((1+'Parâmetros de Fluxo de Caixa'!$B$32)^'Fluxo de Caixa Descontado'!E23),"") -> 3837.316372 | F45: =IF(OR(F25="Construção",F25="Start-up",F25="Operação"),(F27)/((1+'Parâmetros de Fluxo de Caixa'!$B$32)^'Fluxo de Caixa Descontado'!F23),"") -> 3954.661459 | G45: =IF(OR(G25="Construção",G25="Start-up",G25="Operação"),(G27)/((1+'Parâmetros de Fluxo de Caixa'!$B$32)^'Fluxo de Caixa Descontado'!G23),"") -> 3566.145588 | H45: =IF(OR(H25="Construção",H25="Start-up",H25="Operação"),(H27)/((1+'Parâmetros de Fluxo de Caixa'!$B$32)^'Fluxo de Caixa Descontado'!H23),"") -> 3215.798492 | I45: =IF(OR(I25="Construção",I25="Start-up",I25="Operação"),(I27)/((1+'Parâmetros de Fluxo de Caixa'!$B$32)^'Fluxo de Caixa Descontado'!I23),"") -> 2899.870374 | J45: =IF(OR(J25="Construção",J25="Start-up",J25="Operação"),(J27)/((1+'Parâmetros de Fluxo de Caixa'!$B$32)^'Fluxo de Caixa Descontado'!J23),"") -> 2614.979828 | K45: =IF(OR(K25="Construção",K25="Start-up",K25="Operação"),(K27)/((1+'Parâmetros de Fluxo de Caixa'!$B$32)^'Fluxo de Caixa Descontado'!K23),"") -> 2358.077644 | L45: =IF(OR(L25="Construção",L25="Start-up",L25="Operação"),(L27)/((1+'Parâmetros de Fluxo de Caixa'!$B$32)^'Fluxo de Caixa Descontado'!L23),"") -> 2126.414176 | M45: =IF(OR(M25="Construção",M25="Start-up",M25="Operação"),(M27)/((1+'Parâmetros de Fluxo de Caixa'!$B$32)^'Fluxo de Caixa Descontado'!M23),"") -> 1917.509909 | N45: =IF(OR(N25="Construção",N25="Start-up",N25="Operação"),(N27)/((1+'Parâmetros de Fluxo de Caixa'!$B$32)^'Fluxo de Caixa Descontado'!N23),"") -> 1729.128921 | O45: =IF(OR(O25="Construção",O25="Start-up",O25="Operação"),(O27)/((1+'Parâmetros de Fluxo de Caixa'!$B$32)^'Fluxo de Caixa Descontado'!O23),"") -> 1559.254954 | P45: =IF(OR(P25="Construção",P25="Start-up",P25="Operação"),(P27)/((1+'Parâmetros de Fluxo de Caixa'!$B$32)^'Fluxo de Caixa Descontado'!P23),"") -> 1406.069833 | Q45: =IF(OR(Q25="Construção",Q25="Start-up",Q25="Operação"),(Q27)/((1+'Parâmetros de Fluxo de Caixa'!$B$32)^'Fluxo de Caixa Descontado'!Q23),"") -> 1267.934002 | R45: =IF(OR(R25="Construção",R25="Start-up",R25="Operação"),(R27)/((1+'Parâmetros de Fluxo de Caixa'!$B$32)^'Fluxo de Caixa Descontado'!R23),"") -> 1143.368982 | S45: =IF(OR(S25="Construção",S25="Start-up",S25="Operação"),(S27)/((1+'Parâmetros de Fluxo de Caixa'!$B$32)^'Fluxo de Caixa Descontado'!S23),"") -> 1031.041543 | T45: =IF(OR(T25="Construção",T25="Start-up",T25="Operação"),(T27)/((1+'Parâmetros de Fluxo de Caixa'!$B$32)^'Fluxo de Caixa Descontado'!T23),"") -> 929.7494329 | U45: =IF(OR(U25="Construção",U25="Start-up",U25="Operação"),(U27)/((1+'Parâmetros de Fluxo de Caixa'!$B$32)^'Fluxo de Caixa Descontado'!U23),"") -> 838.4085143 | V45: =IF(OR(V25="Construção",V25="Start-up",V25="Operação"),(V27)/((1+'Parâmetros de Fluxo de Caixa'!$B$32)^'Fluxo de Caixa Descontado'!V23),"") -> 756.0411568 | W45: =IF(OR(W25="Construção",W25="Start-up",W25="Operação"),(W27)/((1+'Parâmetros de Fluxo de Caixa'!$B$32)^'Fluxo de Caixa Descontado'!W23),"") -> 681.7657754 | X45: =IF(OR(X25="Construção",X25="Start-up",X25="Operação"),(X27)/((1+'Parâmetros de Fluxo de Caixa'!$B$32)^'Fluxo de Caixa Descontado'!X23),"") -> 614.7873939 | Y45: =IF(OR(Y25="Construção",Y25="Start-up",Y25="Operação"),(Y27)/((1+'Parâmetros de Fluxo de Caixa'!$B$32)^'Fluxo de Caixa Descontado'!Y23),"") ->  | Z45: =IF(OR(Z25="Construção",Z25="Start-up",Z25="Operação"),(Z27)/((1+'Parâmetros de Fluxo de Caixa'!$B$32)^'Fluxo de Caixa Descontado'!Z23),"") ->  | AA45: =IF(OR(AA25="Construção",AA25="Start-up",AA25="Operação"),(AA27)/((1+'Parâmetros de Fluxo de Caixa'!$B$32)^'Fluxo de Caixa Descontado'!AA23),"") ->  | AB45: =IF(OR(AB25="Construção",AB25="Start-up",AB25="Operação"),(AB27)/((1+'Parâmetros de Fluxo de Caixa'!$B$32)^'Fluxo de Caixa Descontado'!AB23),"") ->  | AC45: =IF(OR(AC25="Construção",AC25="Start-up",AC25="Operação"),(AC27)/((1+'Parâmetros de Fluxo de Caixa'!$B$32)^'Fluxo de Caixa Descontado'!AC23),"") ->  | AD45: =IF(OR(AD25="Construção",AD25="Start-up",AD25="Operação"),(AD27)/((1+'Parâmetros de Fluxo de Caixa'!$B$32)^'Fluxo de Caixa Descontado'!AD23),"") ->  | AE45: =IF(OR(AE25="Construção",AE25="Start-up",AE25="Operação"),(AE27)/((1+'Parâmetros de Fluxo de Caixa'!$B$32)^'Fluxo de Caixa Descontado'!AE23),"") ->  | AF45: =IF(OR(AF25="Construção",AF25="Start-up",AF25="Operação"),(AF27)/((1+'Parâmetros de Fluxo de Caixa'!$B$32)^'Fluxo de Caixa Descontado'!AF23),"") ->  | AG45: =IF(OR(AG25="Construção",AG25="Start-up",AG25="Operação"),(AG27)/((1+'Parâmetros de Fluxo de Caixa'!$B$32)^'Fluxo de Caixa Descontado'!AG23),"") ->  | AH45: =IF(OR(AH25="Construção",AH25="Start-up",AH25="Operação"),(AH27)/((1+'Parâmetros de Fluxo de Caixa'!$B$32)^'Fluxo de Caixa Descontado'!AH23),"") ->  | AI45: =IF(OR(AI25="Construção",AI25="Start-up",AI25="Operação"),(AI27)/((1+'Parâmetros de Fluxo de Caixa'!$B$32)^'Fluxo de Caixa Descontado'!AI23),"") ->  | AJ45: =IF(OR(AJ25="Construção",AJ25="Start-up",AJ25="Operação"),(AJ27)/((1+'Parâmetros de Fluxo de Caixa'!$B$32)^'Fluxo de Caixa Descontado'!AJ23),"") ->  | AK45: =IF(OR(AK25="Construção",AK25="Start-up",AK25="Operação"),(AK27)/((1+'Parâmetros de Fluxo de Caixa'!$B$32)^'Fluxo de Caixa Descontado'!AK23),"") ->  | AL45: =IF(OR(AL25="Construção",AL25="Start-up",AL25="Operação"),(AL27)/((1+'Parâmetros de Fluxo de Caixa'!$B$32)^'Fluxo de Caixa Descontado'!AL23),"") ->  | AM45: =IF(OR(AM25="Construção",AM25="Start-up",AM25="Operação"),(AM27)/((1+'Parâmetros de Fluxo de Caixa'!$B$32)^'Fluxo de Caixa Descontado'!AM23),"") ->  | AN45: =IF(OR(AN25="Construção",AN25="Start-up",AN25="Operação"),(AN27)/((1+'Parâmetros de Fluxo de Caixa'!$B$32)^'Fluxo de Caixa Descontado'!AN23),"") ->  | AO45: =IF(OR(AO25="Construção",AO25="Start-up",AO25="Operação"),(AO27)/((1+'Parâmetros de Fluxo de Caixa'!$B$32)^'Fluxo de Caixa Descontado'!AO23),"") ->  | AP45: =IF(OR(AP25="Construção",AP25="Start-up",AP25="Operação"),(AP27)/((1+'Parâmetros de Fluxo de Caixa'!$B$32)^'Fluxo de Caixa Descontado'!AP23),"") ->  | AQ45: =IF(OR(AQ25="Construção",AQ25="Start-up",AQ25="Operação"),(AQ27)/((1+'Parâmetros de Fluxo de Caixa'!$B$32)^'Fluxo de Caixa Descontado'!AQ23),"") ->  | AR45: =IF(OR(AR25="Construção",AR25="Start-up",AR25="Operação"),(AR27)/((1+'Parâmetros de Fluxo de Caixa'!$B$32)^'Fluxo de Caixa Descontado'!AR23),"") ->  | AS45: =IF(OR(AS25="Construção",AS25="Start-up",AS25="Operação"),(AS27)/((1+'Parâmetros de Fluxo de Caixa'!$B$32)^'Fluxo de Caixa Descontado'!AS23),"") ->  | AT45: =IF(OR(AT25="Construção",AT25="Start-up",AT25="Operação"),(AT27)/((1+'Parâmetros de Fluxo de Caixa'!$B$32)^'Fluxo de Caixa Descontado'!AT23),"") ->  | AU45: =IF(OR(AU25="Construção",AU25="Start-up",AU25="Operação"),(AU27)/((1+'Parâmetros de Fluxo de Caixa'!$B$32)^'Fluxo de Caixa Descontado'!AU23),"") ->  | AV45: =IF(OR(AV25="Construção",AV25="Start-up",AV25="Operação"),(AV27)/((1+'Parâmetros de Fluxo de Caixa'!$B$32)^'Fluxo de Caixa Descontado'!AV23),"") -> 
A47: CAPEX (% LCOF) | B47: =SUM(B41:AV41)/(SUM($B$41:$AV$44)) -> 0.1067955595
A48: OPEX Variável (% LCOF) | B48: =SUM(B42:AV42)/(SUM($B$41:$AV$44)) -> 0.7243564786
A49: OPEX Fixo (% LCOF) | B49: =SUM(B43:AV43)/(SUM($B$41:$AV$44)) -> 0.05136107921
A50: Tributos (% LCOF) | B50: =SUM(B44:AV44)/(SUM($B$41:$AV$44)) -> 0.1174868827
A52: % OPEX Variável - Óleo de Soja | B52: ='CAPEX e OPEX'!C36*'CAPEX e OPEX'!C15/'CAPEX e OPEX'!$C$52 -> 0.8579696406 | C52: =B52*$B$48 -> 0.6214758676 | D52: Discriminação preço
A53: % OPEX Variável - Hidrogênio | B53: ='CAPEX e OPEX'!C38*'CAPEX e OPEX'!C18/'CAPEX e OPEX'!$C$52 -> 0.05821317573 | C53: =B53*$B$48 -> 0.04216709098 | D53: CAPEX | E53: Óleo | F53: H2 | G53: Catalisadores | H53: Utilidades | I53: OPEX fixo | J53: Tributos | K53: Diesel Verde | L53: Nafta | M53: GLP
A54: % OPEX Variável - Catalisadores | B54: ='CAPEX e OPEX'!C19*'CAPEX e OPEX'!C39/'CAPEX e OPEX'!C52 -> 0.0269316618 | C54: 0.0195081237 | D54: =$B$4/B57*B47 -> 1.367730075 | E54: =$B$4/B57*B48*B52 -> 7.95923762 | F54: =$B$4/B57*B48*B53 -> 0.5400336753 | G54: =$B$4/B57*B48*B54 -> 0.2498404205 | H54: =$B$4/B57*B48*B55 -> 0.5277172579 | I54: =$B$4/B57*B49 -> 0.6577810261 | J54: =$B$4/B57*B50 -> 1.504653785 | K54: =-$B$4/B57*B58 -> -0.2944858615 | L54: =-$B$4/B57*B59 -> -1.348835996 | M54: =-$B$4/B57*B60 -> -0.1613631222
A55: % OPEX Variável - Utilidades | B55: =1-SUM(B52:B54) -> 0.05688552191 | C55: 0.04120539634
A57: % Receita - SAF | B57: ='CAPEX e OPEX'!C47*'CAPEX e OPEX'!C29/'CAPEX e OPEX'!C53 -> 0.8590859807
A58: % Receita - Diesel | B58: ='CAPEX e OPEX'!C48*'CAPEX e OPEX'!C30/'CAPEX e OPEX'!C53 -> 0.02299414403
A59: % Receita - Nafta | B59: ='CAPEX e OPEX'!C49*'CAPEX e OPEX'!C31/'CAPEX e OPEX'!C53 -> 0.1053202657
A60: % Receita - GLP | B60: ='CAPEX e OPEX'!C50*'CAPEX e OPEX'!C32/'CAPEX e OPEX'!C53 -> 0.01259960955
A63: ATJ - Fluxo de Caixa
A64: Referencia ano | B64: 0 | C64: =B64+1 -> 1 | D64: =C64+1 -> 2 | E64: 3 | F64: =E64+1 -> 4 | G64: 5 | H64: 6 | I64: 7 | J64: 8 | K64: 9 | L64: 10 | M64: 11 | N64: 12 | O64: 13 | P64: 14 | Q64: 15 | R64: 16 | S64: 17 | T64: 18 | U64: 19 | V64: 20 | W64: 21 | X64: 22 | Y64: 23 | Z64: 24 | AA64: 25 | AB64: 26 | AC64: 27 | AD64: 28 | AE64: 29 | AF64: 30 | AG64: 31 | AH64: 32 | AI64: 33 | AJ64: 34 | AK64: 35 | AL64: 36 | AM64: 37 | AN64: 38 | AO64: 39 | AP64: 40 | AQ64: 41 | AR64: 42 | AS64: 43 | AT64: 44 | AU64: 45 | AV64: 46
A65: Ano VPL | B65: =IF(B64+1<='Parâmetros de Fluxo de Caixa'!$B$3,'Fluxo de Caixa Descontado'!B64,'Fluxo de Caixa Descontado'!B64+'Parâmetros de Fluxo de Caixa'!$B$4/12) -> 0 | C65: =IF(C64+1<='Parâmetros de Fluxo de Caixa'!$B$3,'Fluxo de Caixa Descontado'!C64,'Fluxo de Caixa Descontado'!C64+'Parâmetros de Fluxo de Caixa'!$B$4/12) -> 1 | D65: =IF(D64+1<='Parâmetros de Fluxo de Caixa'!$B$3,'Fluxo de Caixa Descontado'!D64,'Fluxo de Caixa Descontado'!D64+'Parâmetros de Fluxo de Caixa'!$B$4/12) -> 2 | E65: =IF(E64+1<='Parâmetros de Fluxo de Caixa'!$B$3,'Fluxo de Caixa Descontado'!E64,'Fluxo de Caixa Descontado'!E64+'Parâmetros de Fluxo de Caixa'!$B$4/12) -> 3 | F65: =IF(F64+1<='Parâmetros de Fluxo de Caixa'!$B$3,'Fluxo de Caixa Descontado'!F64,'Fluxo de Caixa Descontado'!F64+'Parâmetros de Fluxo de Caixa'!$B$4/12) -> 4 | G65: =IF(G64+1<='Parâmetros de Fluxo de Caixa'!$B$3,'Fluxo de Caixa Descontado'!G64,'Fluxo de Caixa Descontado'!G64+'Parâmetros de Fluxo de Caixa'!$B$4/12) -> 5 | H65: =IF(H64+1<='Parâmetros de Fluxo de Caixa'!$B$3,'Fluxo de Caixa Descontado'!H64,'Fluxo de Caixa Descontado'!H64+'Parâmetros de Fluxo de Caixa'!$B$4/12) -> 6 | I65: =IF(I64+1<='Parâmetros de Fluxo de Caixa'!$B$3,'Fluxo de Caixa Descontado'!I64,'Fluxo de Caixa Descontado'!I64+'Parâmetros de Fluxo de Caixa'!$B$4/12) -> 7 | J65: =IF(J64+1<='Parâmetros de Fluxo de Caixa'!$B$3,'Fluxo de Caixa Descontado'!J64,'Fluxo de Caixa Descontado'!J64+'Parâmetros de Fluxo de Caixa'!$B$4/12) -> 8 | K65: =IF(K64+1<='Parâmetros de Fluxo de Caixa'!$B$3,'Fluxo de Caixa Descontado'!K64,'Fluxo de Caixa Descontado'!K64+'Parâmetros de Fluxo de Caixa'!$B$4/12) -> 9 | L65: =IF(L64+1<='Parâmetros de Fluxo de Caixa'!$B$3,'Fluxo de Caixa Descontado'!L64,'Fluxo de Caixa Descontado'!L64+'Parâmetros de Fluxo de Caixa'!$B$4/12) -> 10 | M65: =IF(M64+1<='Parâmetros de Fluxo de Caixa'!$B$3,'Fluxo de Caixa Descontado'!M64,'Fluxo de Caixa Descontado'!M64+'Parâmetros de Fluxo de Caixa'!$B$4/12) -> 11 | N65: =IF(N64+1<='Parâmetros de Fluxo de Caixa'!$B$3,'Fluxo de Caixa Descontado'!N64,'Fluxo de Caixa Descontado'!N64+'Parâmetros de Fluxo de Caixa'!$B$4/12) -> 12 | O65: =IF(O64+1<='Parâmetros de Fluxo de Caixa'!$B$3,'Fluxo de Caixa Descontado'!O64,'Fluxo de Caixa Descontado'!O64+'Parâmetros de Fluxo de Caixa'!$B$4/12) -> 13 | P65: =IF(P64+1<='Parâmetros de Fluxo de Caixa'!$B$3,'Fluxo de Caixa Descontado'!P64,'Fluxo de Caixa Descontado'!P64+'Parâmetros de Fluxo de Caixa'!$B$4/12) -> 14 | Q65: =IF(Q64+1<='Parâmetros de Fluxo de Caixa'!$B$3,'Fluxo de Caixa Descontado'!Q64,'Fluxo de Caixa Descontado'!Q64+'Parâmetros de Fluxo de Caixa'!$B$4/12) -> 15 | R65: =IF(R64+1<='Parâmetros de Fluxo de Caixa'!$B$3,'Fluxo de Caixa Descontado'!R64,'Fluxo de Caixa Descontado'!R64+'Parâmetros de Fluxo de Caixa'!$B$4/12) -> 16 | S65: =IF(S64+1<='Parâmetros de Fluxo de Caixa'!$B$3,'Fluxo de Caixa Descontado'!S64,'Fluxo de Caixa Descontado'!S64+'Parâmetros de Fluxo de Caixa'!$B$4/12) -> 17 | T65: =IF(T64+1<='Parâmetros de Fluxo de Caixa'!$B$3,'Fluxo de Caixa Descontado'!T64,'Fluxo de Caixa Descontado'!T64+'Parâmetros de Fluxo de Caixa'!$B$4/12) -> 18 | U65: =IF(U64+1<='Parâmetros de Fluxo de Caixa'!$B$3,'Fluxo de Caixa Descontado'!U64,'Fluxo de Caixa Descontado'!U64+'Parâmetros de Fluxo de Caixa'!$B$4/12) -> 19 | V65: =IF(V64+1<='Parâmetros de Fluxo de Caixa'!$B$3,'Fluxo de Caixa Descontado'!V64,'Fluxo de Caixa Descontado'!V64+'Parâmetros de Fluxo de Caixa'!$B$4/12) -> 20 | W65: =IF(W64+1<='Parâmetros de Fluxo de Caixa'!$B$3,'Fluxo de Caixa Descontado'!W64,'Fluxo de Caixa Descontado'!W64+'Parâmetros de Fluxo de Caixa'!$B$4/12) -> 21 | X65: =IF(X64+1<='Parâmetros de Fluxo de Caixa'!$B$3,'Fluxo de Caixa Descontado'!X64,'Fluxo de Caixa Descontado'!X64+'Parâmetros de Fluxo de Caixa'!$B$4/12) -> 22 | Y65: =IF(Y64+1<='Parâmetros de Fluxo de Caixa'!$B$3,'Fluxo de Caixa Descontado'!Y64,'Fluxo de Caixa Descontado'!Y64+'Parâmetros de Fluxo de Caixa'!$B$4/12) -> 23 | Z65: =IF(Z64+1<='Parâmetros de Fluxo de Caixa'!$B$3,'Fluxo de Caixa Descontado'!Z64,'Fluxo de Caixa Descontado'!Z64+'Parâmetros de Fluxo de Caixa'!$B$4/12) -> 24 | AA65: =IF(AA64+1<='Parâmetros de Fluxo de Caixa'!$B$3,'Fluxo de Caixa Descontado'!AA64,'Fluxo de Caixa Descontado'!AA64+'Parâmetros de Fluxo de Caixa'!$B$4/12) -> 25 | AB65: =IF(AB64+1<='Parâmetros de Fluxo de Caixa'!$B$3,'Fluxo de Caixa Descontado'!AB64,'Fluxo de Caixa Descontado'!AB64+'Parâmetros de Fluxo de Caixa'!$B$4/12) -> 26 | AC65: =IF(AC64+1<='Parâmetros de Fluxo de Caixa'!$B$3,'Fluxo de Caixa Descontado'!AC64,'Fluxo de Caixa Descontado'!AC64+'Parâmetros de Fluxo de Caixa'!$B$4/12) -> 27 | AD65: =IF(AD64+1<='Parâmetros de Fluxo de Caixa'!$B$3,'Fluxo de Caixa Descontado'!AD64,'Fluxo de Caixa Descontado'!AD64+'Parâmetros de Fluxo de Caixa'!$B$4/12) -> 28 | AE65: =IF(AE64+1<='Parâmetros de Fluxo de Caixa'!$B$3,'Fluxo de Caixa Descontado'!AE64,'Fluxo de Caixa Descontado'!AE64+'Parâmetros de Fluxo de Caixa'!$B$4/12) -> 29 | AF65: =IF(AF64+1<='Parâmetros de Fluxo de Caixa'!$B$3,'Fluxo de Caixa Descontado'!AF64,'Fluxo de Caixa Descontado'!AF64+'Parâmetros de Fluxo de Caixa'!$B$4/12) -> 30 | AG65: =IF(AG64+1<='Parâmetros de Fluxo de Caixa'!$B$3,'Fluxo de Caixa Descontado'!AG64,'Fluxo de Caixa Descontado'!AG64+'Parâmetros de Fluxo de Caixa'!$B$4/12) -> 31 | AH65: =IF(AH64+1<='Parâmetros de Fluxo de Caixa'!$B$3,'Fluxo de Caixa Descontado'!AH64,'Fluxo de Caixa Descontado'!AH64+'Parâmetros de Fluxo de Caixa'!$B$4/12) -> 32 | AI65: =IF(AI64+1<='Parâmetros de Fluxo de Caixa'!$B$3,'Fluxo de Caixa Descontado'!AI64,'Fluxo de Caixa Descontado'!AI64+'Parâmetros de Fluxo de Caixa'!$B$4/12) -> 33 | AJ65: =IF(AJ64+1<='Parâmetros de Fluxo de Caixa'!$B$3,'Fluxo de Caixa Descontado'!AJ64,'Fluxo de Caixa Descontado'!AJ64+'Parâmetros de Fluxo de Caixa'!$B$4/12) -> 34 | AK65: =IF(AK64+1<='Parâmetros de Fluxo de Caixa'!$B$3,'Fluxo de Caixa Descontado'!AK64,'Fluxo de Caixa Descontado'!AK64+'Parâmetros de Fluxo de Caixa'!$B$4/12) -> 35 | AL65: =IF(AL64+1<='Parâmetros de Fluxo de Caixa'!$B$3,'Fluxo de Caixa Descontado'!AL64,'Fluxo de Caixa Descontado'!AL64+'Parâmetros de Fluxo de Caixa'!$B$4/12) -> 36 | AM65: =IF(AM64+1<='Parâmetros de Fluxo de Caixa'!$B$3,'Fluxo de Caixa Descontado'!AM64,'Fluxo de Caixa Descontado'!AM64+'Parâmetros de Fluxo de Caixa'!$B$4/12) -> 37 | AN65: =IF(AN64+1<='Parâmetros de Fluxo de Caixa'!$B$3,'Fluxo de Caixa Descontado'!AN64,'Fluxo de Caixa Descontado'!AN64+'Parâmetros de Fluxo de Caixa'!$B$4/12) -> 38 | AO65: =IF(AO64+1<='Parâmetros de Fluxo de Caixa'!$B$3,'Fluxo de Caixa Descontado'!AO64,'Fluxo de Caixa Descontado'!AO64+'Parâmetros de Fluxo de Caixa'!$B$4/12) -> 39 | AP65: =IF(AP64+1<='Parâmetros de Fluxo de Caixa'!$B$3,'Fluxo de Caixa Descontado'!AP64,'Fluxo de Caixa Descontado'!AP64+'Parâmetros de Fluxo de Caixa'!$B$4/12) -> 40 | AQ65: =IF(AQ64+1<='Parâmetros de Fluxo de Caixa'!$B$3,'Fluxo de Caixa Descontado'!AQ64,'Fluxo de Caixa Descontado'!AQ64+'Parâmetros de Fluxo de Caixa'!$B$4/12) -> 41 | AR65: =IF(AR64+1<='Parâmetros de Fluxo de Caixa'!$B$3,'Fluxo de Caixa Descontado'!AR64,'Fluxo de Caixa Descontado'!AR64+'Parâmetros de Fluxo de Caixa'!$B$4/12) -> 42 | AS65: =IF(AS64+1<='Parâmetros de Fluxo de Caixa'!$B$3,'Fluxo de Caixa Descontado'!AS64,'Fluxo de Caixa Descontado'!AS64+'Parâmetros de Fluxo de Caixa'!$B$4/12) -> 43 | AT65: =IF(AT64+1<='Parâmetros de Fluxo de Caixa'!$B$3,'Fluxo de Caixa Descontado'!AT64,'Fluxo de Caixa Descontado'!AT64+'Parâmetros de Fluxo de Caixa'!$B$4/12) -> 44 | AU65: =IF(AU64+1<='Parâmetros de Fluxo de Caixa'!$B$3,'Fluxo de Caixa Descontado'!AU64,'Fluxo de Caixa Descontado'!AU64+'Parâmetros de Fluxo de Caixa'!$B$4/12) -> 45 | AV65: =IF(AV64+1<='Parâmetros de Fluxo de Caixa'!$B$3,'Fluxo de Caixa Descontado'!AV64,'Fluxo de Caixa Descontado'!AV64+'Parâmetros de Fluxo de Caixa'!$B$4/12) -> 46
A66: Ano Projeto | B66: =IF(B65+1<='Parâmetros de Fluxo de Caixa'!$B$12,B65+1,"") -> 1 | C66: =IF(C65+1<='Parâmetros de Fluxo de Caixa'!$B$12,C65+1,"") -> 2 | D66: =IF(D65+1<='Parâmetros de Fluxo de Caixa'!$B$12,D65+1,"") -> 3 | E66: =IF(E65+1<='Parâmetros de Fluxo de Caixa'!$B$12,E65+1,"") -> 4 | F66: =IF(F65+1<='Parâmetros de Fluxo de Caixa'!$B$12,F65+1,"") -> 5 | G66: =IF(G65+1<='Parâmetros de Fluxo de Caixa'!$B$12,G65+1,"") -> 6 | H66: =IF(H65+1<='Parâmetros de Fluxo de Caixa'!$B$12,H65+1,"") -> 7 | I66: =IF(I65+1<='Parâmetros de Fluxo de Caixa'!$B$12,I65+1,"") -> 8 | J66: =IF(J65+1<='Parâmetros de Fluxo de Caixa'!$B$12,J65+1,"") -> 9 | K66: =IF(K65+1<='Parâmetros de Fluxo de Caixa'!$B$12,K65+1,"") -> 10 | L66: =IF(L65+1<='Parâmetros de Fluxo de Caixa'!$B$12,L65+1,"") -> 11 | M66: =IF(M65+1<='Parâmetros de Fluxo de Caixa'!$B$12,M65+1,"") -> 12 | N66: =IF(N65+1<='Parâmetros de Fluxo de Caixa'!$B$12,N65+1,"") -> 13 | O66: =IF(O65+1<='Parâmetros de Fluxo de Caixa'!$B$12,O65+1,"") -> 14 | P66: =IF(P65+1<='Parâmetros de Fluxo de Caixa'!$B$12,P65+1,"") -> 15 | Q66: =IF(Q65+1<='Parâmetros de Fluxo de Caixa'!$B$12,Q65+1,"") -> 16 | R66: =IF(R65+1<='Parâmetros de Fluxo de Caixa'!$B$12,R65+1,"") -> 17 | S66: =IF(S65+1<='Parâmetros de Fluxo de Caixa'!$B$12,S65+1,"") -> 18 | T66: =IF(T65+1<='Parâmetros de Fluxo de Caixa'!$B$12,T65+1,"") -> 19 | U66: =IF(U65+1<='Parâmetros de Fluxo de Caixa'!$B$12,U65+1,"") -> 20 | V66: =IF(V65+1<='Parâmetros de Fluxo de Caixa'!$B$12,V65+1,"") -> 21 | W66: =IF(W65+1<='Parâmetros de Fluxo de Caixa'!$B$12,W65+1,"") -> 22 | X66: =IF(X65+1<='Parâmetros de Fluxo de Caixa'!$B$12,X65+1,"") -> 23 | Y66: =IF(Y65+1<='Parâmetros de Fluxo de Caixa'!$B$12,Y65+1,"") ->  | Z66: =IF(Z65+1<='Parâmetros de Fluxo de Caixa'!$B$12,Z65+1,"") ->  | AA66: =IF(AA65+1<='Parâmetros de Fluxo de Caixa'!$B$12,AA65+1,"") ->  | AB66: =IF(AB65+1<='Parâmetros de Fluxo de Caixa'!$B$12,AB65+1,"") ->  | AC66: =IF(AC65+1<='Parâmetros de Fluxo de Caixa'!$B$12,AC65+1,"") ->  | AD66: =IF(AD65+1<='Parâmetros de Fluxo de Caixa'!$B$12,AD65+1,"") ->  | AE66: =IF(AE65+1<='Parâmetros de Fluxo de Caixa'!$B$12,AE65+1,"") ->  | AF66: =IF(AF65+1<='Parâmetros de Fluxo de Caixa'!$B$12,AF65+1,"") ->  | AG66: =IF(AG65+1<='Parâmetros de Fluxo de Caixa'!$B$12,AG65+1,"") ->  | AH66: =IF(AH65+1<='Parâmetros de Fluxo de Caixa'!$B$12,AH65+1,"") ->  | AI66: =IF(AI65+1<='Parâmetros de Fluxo de Caixa'!$B$12,AI65+1,"") ->  | AJ66: =IF(AJ65+1<='Parâmetros de Fluxo de Caixa'!$B$12,AJ65+1,"") ->  | AK66: =IF(AK65+1<='Parâmetros de Fluxo de Caixa'!$B$12,AK65+1,"") ->  | AL66: =IF(AL65+1<='Parâmetros de Fluxo de Caixa'!$B$12,AL65+1,"") ->  | AM66: =IF(AM65+1<='Parâmetros de Fluxo de Caixa'!$B$12,AM65+1,"") ->  | AN66: =IF(AN65+1<='Parâmetros de Fluxo de Caixa'!$B$12,AN65+1,"") ->  | AO66: =IF(AO65+1<='Parâmetros de Fluxo de Caixa'!$B$12,AO65+1,"") ->  | AP66: =IF(AP65+1<='Parâmetros de Fluxo de Caixa'!$B$12,AP65+1,"") ->  | AQ66: =IF(AQ65+1<='Parâmetros de Fluxo de Caixa'!$B$12,AQ65+1,"") ->  | AR66: =IF(AR65+1<='Parâmetros de Fluxo de Caixa'!$B$12,AR65+1,"") ->  | AS66: =IF(AS65+1<='Parâmetros de Fluxo de Caixa'!$B$12,AS65+1,"") ->  | AT66: =IF(AT65+1<='Parâmetros de Fluxo de Caixa'!$B$12,AT65+1,"") ->  | AU66: =IF(AU65+1<='Parâmetros de Fluxo de Caixa'!$B$12,AU65+1,"") ->  | AV66: =IF(AV65+1<='Parâmetros de Fluxo de Caixa'!$B$12,AV65+1,"") -> 
A67: Cronograma | B67: =IF(B66<='Parâmetros de Fluxo de Caixa'!$B$3,"Construção",IF(B66='Parâmetros de Fluxo de Caixa'!$B$3+1+'Parâmetros de Fluxo de Caixa'!$B$4/12,"Start-up",IF(B66<='Parâmetros de Fluxo de Caixa'!$B$12,"Operação",""))) -> Construção | C67: =IF(C66<='Parâmetros de Fluxo de Caixa'!$B$3,"Construção",IF(C66='Parâmetros de Fluxo de Caixa'!$B$3+1+'Parâmetros de Fluxo de Caixa'!$B$4/12,"Start-up",IF(C66<='Parâmetros de Fluxo de Caixa'!$B$12,"Operação",""))) -> Construção | D67: =IF(D66<='Parâmetros de Fluxo de Caixa'!$B$3,"Construção",IF(D66='Parâmetros de Fluxo de Caixa'!$B$3+1+'Parâmetros de Fluxo de Caixa'!$B$4/12,"Start-up",IF(D66<='Parâmetros de Fluxo de Caixa'!$B$12,"Operação",""))) -> Construção | E67: =IF(E66<='Parâmetros de Fluxo de Caixa'!$B$3,"Construção",IF(E66='Parâmetros de Fluxo de Caixa'!$B$3+1+'Parâmetros de Fluxo de Caixa'!$B$4/12,"Start-up",IF(E66<='Parâmetros de Fluxo de Caixa'!$B$12,"Operação",""))) -> Start-up | F67: =IF(F66<='Parâmetros de Fluxo de Caixa'!$B$3,"Construção",IF(F66='Parâmetros de Fluxo de Caixa'!$B$3+1+'Parâmetros de Fluxo de Caixa'!$B$4/12,"Start-up",IF(F66<='Parâmetros de Fluxo de Caixa'!$B$12,"Operação",""))) -> Operação | G67: =IF(G66<='Parâmetros de Fluxo de Caixa'!$B$3,"Construção",IF(G66='Parâmetros de Fluxo de Caixa'!$B$3+1+'Parâmetros de Fluxo de Caixa'!$B$4/12,"Start-up",IF(G66<='Parâmetros de Fluxo de Caixa'!$B$12,"Operação",""))) -> Operação | H67: =IF(H66<='Parâmetros de Fluxo de Caixa'!$B$3,"Construção",IF(H66='Parâmetros de Fluxo de Caixa'!$B$3+1+'Parâmetros de Fluxo de Caixa'!$B$4/12,"Start-up",IF(H66<='Parâmetros de Fluxo de Caixa'!$B$12,"Operação",""))) -> Operação | I67: =IF(I66<='Parâmetros de Fluxo de Caixa'!$B$3,"Construção",IF(I66='Parâmetros de Fluxo de Caixa'!$B$3+1+'Parâmetros de Fluxo de Caixa'!$B$4/12,"Start-up",IF(I66<='Parâmetros de Fluxo de Caixa'!$B$12,"Operação",""))) -> Operação | J67: =IF(J66<='Parâmetros de Fluxo de Caixa'!$B$3,"Construção",IF(J66='Parâmetros de Fluxo de Caixa'!$B$3+1+'Parâmetros de Fluxo de Caixa'!$B$4/12,"Start-up",IF(J66<='Parâmetros de Fluxo de Caixa'!$B$12,"Operação",""))) -> Operação | K67: =IF(K66<='Parâmetros de Fluxo de Caixa'!$B$3,"Construção",IF(K66='Parâmetros de Fluxo de Caixa'!$B$3+1+'Parâmetros de Fluxo de Caixa'!$B$4/12,"Start-up",IF(K66<='Parâmetros de Fluxo de Caixa'!$B$12,"Operação",""))) -> Operação | L67: =IF(L66<='Parâmetros de Fluxo de Caixa'!$B$3,"Construção",IF(L66='Parâmetros de Fluxo de Caixa'!$B$3+1+'Parâmetros de Fluxo de Caixa'!$B$4/12,"Start-up",IF(L66<='Parâmetros de Fluxo de Caixa'!$B$12,"Operação",""))) -> Operação | M67: =IF(M66<='Parâmetros de Fluxo de Caixa'!$B$3,"Construção",IF(M66='Parâmetros de Fluxo de Caixa'!$B$3+1+'Parâmetros de Fluxo de Caixa'!$B$4/12,"Start-up",IF(M66<='Parâmetros de Fluxo de Caixa'!$B$12,"Operação",""))) -> Operação | N67: =IF(N66<='Parâmetros de Fluxo de Caixa'!$B$3,"Construção",IF(N66='Parâmetros de Fluxo de Caixa'!$B$3+1+'Parâmetros de Fluxo de Caixa'!$B$4/12,"Start-up",IF(N66<='Parâmetros de Fluxo de Caixa'!$B$12,"Operação",""))) -> Operação | O67: =IF(O66<='Parâmetros de Fluxo de Caixa'!$B$3,"Construção",IF(O66='Parâmetros de Fluxo de Caixa'!$B$3+1+'Parâmetros de Fluxo de Caixa'!$B$4/12,"Start-up",IF(O66<='Parâmetros de Fluxo de Caixa'!$B$12,"Operação",""))) -> Operação | P67: =IF(P66<='Parâmetros de Fluxo de Caixa'!$B$3,"Construção",IF(P66='Parâmetros de Fluxo de Caixa'!$B$3+1+'Parâmetros de Fluxo de Caixa'!$B$4/12,"Start-up",IF(P66<='Parâmetros de Fluxo de Caixa'!$B$12,"Operação",""))) -> Operação | Q67: =IF(Q66<='Parâmetros de Fluxo de Caixa'!$B$3,"Construção",IF(Q66='Parâmetros de Fluxo de Caixa'!$B$3+1+'Parâmetros de Fluxo de Caixa'!$B$4/12,"Start-up",IF(Q66<='Parâmetros de Fluxo de Caixa'!$B$12,"Operação",""))) -> Operação | R67: =IF(R66<='Parâmetros de Fluxo de Caixa'!$B$3,"Construção",IF(R66='Parâmetros de Fluxo de Caixa'!$B$3+1+'Parâmetros de Fluxo de Caixa'!$B$4/12,"Start-up",IF(R66<='Parâmetros de Fluxo de Caixa'!$B$12,"Operação",""))) -> Operação | S67: =IF(S66<='Parâmetros de Fluxo de Caixa'!$B$3,"Construção",IF(S66='Parâmetros de Fluxo de Caixa'!$B$3+1+'Parâmetros de Fluxo de Caixa'!$B$4/12,"Start-up",IF(S66<='Parâmetros de Fluxo de Caixa'!$B$12,"Operação",""))) -> Operação | T67: =IF(T66<='Parâmetros de Fluxo de Caixa'!$B$3,"Construção",IF(T66='Parâmetros de Fluxo de Caixa'!$B$3+1+'Parâmetros de Fluxo de Caixa'!$B$4/12,"Start-up",IF(T66<='Parâmetros de Fluxo de Caixa'!$B$12,"Operação",""))) -> Operação | U67: =IF(U66<='Parâmetros de Fluxo de Caixa'!$B$3,"Construção",IF(U66='Parâmetros de Fluxo de Caixa'!$B$3+1+'Parâmetros de Fluxo de Caixa'!$B$4/12,"Start-up",IF(U66<='Parâmetros de Fluxo de Caixa'!$B$12,"Operação",""))) -> Operação | V67: =IF(V66<='Parâmetros de Fluxo de Caixa'!$B$3,"Construção",IF(V66='Parâmetros de Fluxo de Caixa'!$B$3+1+'Parâmetros de Fluxo de Caixa'!$B$4/12,"Start-up",IF(V66<='Parâmetros de Fluxo de Caixa'!$B$12,"Operação",""))) -> Operação | W67: =IF(W66<='Parâmetros de Fluxo de Caixa'!$B$3,"Construção",IF(W66='Parâmetros de Fluxo de Caixa'!$B$3+1+'Parâmetros de Fluxo de Caixa'!$B$4/12,"Start-up",IF(W66<='Parâmetros de Fluxo de Caixa'!$B$12,"Operação",""))) -> Operação | X67: =IF(X66<='Parâmetros de Fluxo de Caixa'!$B$3,"Construção",IF(X66='Parâmetros de Fluxo de Caixa'!$B$3+1+'Parâmetros de Fluxo de Caixa'!$B$4/12,"Start-up",IF(X66<='Parâmetros de Fluxo de Caixa'!$B$12,"Operação",""))) -> Operação | Y67: =IF(Y66<='Parâmetros de Fluxo de Caixa'!$B$3,"Construção",IF(Y66='Parâmetros de Fluxo de Caixa'!$B$3+1+'Parâmetros de Fluxo de Caixa'!$B$4/12,"Start-up",IF(Y66<='Parâmetros de Fluxo de Caixa'!$B$12,"Operação",""))) ->  | Z67: =IF(Z66<='Parâmetros de Fluxo de Caixa'!$B$3,"Construção",IF(Z66='Parâmetros de Fluxo de Caixa'!$B$3+1+'Parâmetros de Fluxo de Caixa'!$B$4/12,"Start-up",IF(Z66<='Parâmetros de Fluxo de Caixa'!$B$12,"Operação",""))) ->  | AA67: =IF(AA66<='Parâmetros de Fluxo de Caixa'!$B$3,"Construção",IF(AA66='Parâmetros de Fluxo de Caixa'!$B$3+1+'Parâmetros de Fluxo de Caixa'!$B$4/12,"Start-up",IF(AA66<='Parâmetros de Fluxo de Caixa'!$B$12,"Operação",""))) ->  | AB67: =IF(AB66<='Parâmetros de Fluxo de Caixa'!$B$3,"Construção",IF(AB66='Parâmetros de Fluxo de Caixa'!$B$3+1+'Parâmetros de Fluxo de Caixa'!$B$4/12,"Start-up",IF(AB66<='Parâmetros de Fluxo de Caixa'!$B$12,"Operação",""))) ->  | AC67: =IF(AC66<='Parâmetros de Fluxo de Caixa'!$B$3,"Construção",IF(AC66='Parâmetros de Fluxo de Caixa'!$B$3+1+'Parâmetros de Fluxo de Caixa'!$B$4/12,"Start-up",IF(AC66<='Parâmetros de Fluxo de Caixa'!$B$12,"Operação",""))) ->  | AD67: =IF(AD66<='Parâmetros de Fluxo de Caixa'!$B$3,"Construção",IF(AD66='Parâmetros de Fluxo de Caixa'!$B$3+1+'Parâmetros de Fluxo de Caixa'!$B$4/12,"Start-up",IF(AD66<='Parâmetros de Fluxo de Caixa'!$B$12,"Operação",""))) ->  | AE67: =IF(AE66<='Parâmetros de Fluxo de Caixa'!$B$3,"Construção",IF(AE66='Parâmetros de Fluxo de Caixa'!$B$3+1+'Parâmetros de Fluxo de Caixa'!$B$4/12,"Start-up",IF(AE66<='Parâmetros de Fluxo de Caixa'!$B$12,"Operação",""))) ->  | AF67: =IF(AF66<='Parâmetros de Fluxo de Caixa'!$B$3,"Construção",IF(AF66='Parâmetros de Fluxo de Caixa'!$B$3+1+'Parâmetros de Fluxo de Caixa'!$B$4/12,"Start-up",IF(AF66<='Parâmetros de Fluxo de Caixa'!$B$12,"Operação",""))) ->  | AG67: =IF(AG66<='Parâmetros de Fluxo de Caixa'!$B$3,"Construção",IF(AG66='Parâmetros de Fluxo de Caixa'!$B$3+1+'Parâmetros de Fluxo de Caixa'!$B$4/12,"Start-up",IF(AG66<='Parâmetros de Fluxo de Caixa'!$B$12,"Operação",""))) ->  | AH67: =IF(AH66<='Parâmetros de Fluxo de Caixa'!$B$3,"Construção",IF(AH66='Parâmetros de Fluxo de Caixa'!$B$3+1+'Parâmetros de Fluxo de Caixa'!$B$4/12,"Start-up",IF(AH66<='Parâmetros de Fluxo de Caixa'!$B$12,"Operação",""))) ->  | AI67: =IF(AI66<='Parâmetros de Fluxo de Caixa'!$B$3,"Construção",IF(AI66='Parâmetros de Fluxo de Caixa'!$B$3+1+'Parâmetros de Fluxo de Caixa'!$B$4/12,"Start-up",IF(AI66<='Parâmetros de Fluxo de Caixa'!$B$12,"Operação",""))) ->  | AJ67: =IF(AJ66<='Parâmetros de Fluxo de Caixa'!$B$3,"Construção",IF(AJ66='Parâmetros de Fluxo de Caixa'!$B$3+1+'Parâmetros de Fluxo de Caixa'!$B$4/12,"Start-up",IF(AJ66<='Parâmetros de Fluxo de Caixa'!$B$12,"Operação",""))) ->  | AK67: =IF(AK66<='Parâmetros de Fluxo de Caixa'!$B$3,"Construção",IF(AK66='Parâmetros de Fluxo de Caixa'!$B$3+1+'Parâmetros de Fluxo de Caixa'!$B$4/12,"Start-up",IF(AK66<='Parâmetros de Fluxo de Caixa'!$B$12,"Operação",""))) ->  | AL67: =IF(AL66<='Parâmetros de Fluxo de Caixa'!$B$3,"Construção",IF(AL66='Parâmetros de Fluxo de Caixa'!$B$3+1+'Parâmetros de Fluxo de Caixa'!$B$4/12,"Start-up",IF(AL66<='Parâmetros de Fluxo de Caixa'!$B$12,"Operação",""))) ->  | AM67: =IF(AM66<='Parâmetros de Fluxo de Caixa'!$B$3,"Construção",IF(AM66='Parâmetros de Fluxo de Caixa'!$B$3+1+'Parâmetros de Fluxo de Caixa'!$B$4/12,"Start-up",IF(AM66<='Parâmetros de Fluxo de Caixa'!$B$12,"Operação",""))) ->  | AN67: =IF(AN66<='Parâmetros de Fluxo de Caixa'!$B$3,"Construção",IF(AN66='Parâmetros de Fluxo de Caixa'!$B$3+1+'Parâmetros de Fluxo de Caixa'!$B$4/12,"Start-up",IF(AN66<='Parâmetros de Fluxo de Caixa'!$B$12,"Operação",""))) ->  | AO67: =IF(AO66<='Parâmetros de Fluxo de Caixa'!$B$3,"Construção",IF(AO66='Parâmetros de Fluxo de Caixa'!$B$3+1+'Parâmetros de Fluxo de Caixa'!$B$4/12,"Start-up",IF(AO66<='Parâmetros de Fluxo de Caixa'!$B$12,"Operação",""))) ->  | AP67: =IF(AP66<='Parâmetros de Fluxo de Caixa'!$B$3,"Construção",IF(AP66='Parâmetros de Fluxo de Caixa'!$B$3+1+'Parâmetros de Fluxo de Caixa'!$B$4/12,"Start-up",IF(AP66<='Parâmetros de Fluxo de Caixa'!$B$12,"Operação",""))) ->  | AQ67: =IF(AQ66<='Parâmetros de Fluxo de Caixa'!$B$3,"Construção",IF(AQ66='Parâmetros de Fluxo de Caixa'!$B$3+1+'Parâmetros de Fluxo de Caixa'!$B$4/12,"Start-up",IF(AQ66<='Parâmetros de Fluxo de Caixa'!$B$12,"Operação",""))) ->  | AR67: =IF(AR66<='Parâmetros de Fluxo de Caixa'!$B$3,"Construção",IF(AR66='Parâmetros de Fluxo de Caixa'!$B$3+1+'Parâmetros de Fluxo de Caixa'!$B$4/12,"Start-up",IF(AR66<='Parâmetros de Fluxo de Caixa'!$B$12,"Operação",""))) ->  | AS67: =IF(AS66<='Parâmetros de Fluxo de Caixa'!$B$3,"Construção",IF(AS66='Parâmetros de Fluxo de Caixa'!$B$3+1+'Parâmetros de Fluxo de Caixa'!$B$4/12,"Start-up",IF(AS66<='Parâmetros de Fluxo de Caixa'!$B$12,"Operação",""))) ->  | AT67: =IF(AT66<='Parâmetros de Fluxo de Caixa'!$B$3,"Construção",IF(AT66='Parâmetros de Fluxo de Caixa'!$B$3+1+'Parâmetros de Fluxo de Caixa'!$B$4/12,"Start-up",IF(AT66<='Parâmetros de Fluxo de Caixa'!$B$12,"Operação",""))) ->  | AU67: =IF(AU66<='Parâmetros de Fluxo de Caixa'!$B$3,"Construção",IF(AU66='Parâmetros de Fluxo de Caixa'!$B$3+1+'Parâmetros de Fluxo de Caixa'!$B$4/12,"Start-up",IF(AU66<='Parâmetros de Fluxo de Caixa'!$B$12,"Operação",""))) ->  | AV67: =IF(AV66<='Parâmetros de Fluxo de Caixa'!$B$3,"Construção",IF(AV66='Parâmetros de Fluxo de Caixa'!$B$3+1+'Parâmetros de Fluxo de Caixa'!$B$4/12,"Start-up",IF(AV66<='Parâmetros de Fluxo de Caixa'!$B$12,"Operação",""))) -> 
A69: Receitas (milhões R$ / ano) | B69: =IF(B67="Construção",0,IF(B67="Start-up",('CAPEX e OPEX'!$D$53*'Fluxo de Caixa Descontado'!$B$3)*(1-'Parâmetros de Fluxo de Caixa'!$B$14)+'Parâmetros de Fluxo de Caixa'!$B$14*'Parâmetros de Fluxo de Caixa'!$B$15*'Fluxo de Caixa Descontado'!F69,IF(B67="Operação",'CAPEX e OPEX'!$D$53*'Fluxo de Caixa Descontado'!$B$3,""))) -> 0 | C69: =IF(C67="Construção",0,IF(C67="Start-up",('CAPEX e OPEX'!$D$53*'Fluxo de Caixa Descontado'!$B$3)*(1-'Parâmetros de Fluxo de Caixa'!$B$14)+'Parâmetros de Fluxo de Caixa'!$B$14*'Parâmetros de Fluxo de Caixa'!$B$15*'Fluxo de Caixa Descontado'!G69,IF(C67="Operação",'CAPEX e OPEX'!$D$53*'Fluxo de Caixa Descontado'!$B$3,""))) -> 0 | D69: =IF(D67="Construção",0,IF(D67="Start-up",('CAPEX e OPEX'!$D$53*'Fluxo de Caixa Descontado'!$B$3)*(1-'Parâmetros de Fluxo de Caixa'!$B$14)+'Parâmetros de Fluxo de Caixa'!$B$14*'Parâmetros de Fluxo de Caixa'!$B$15*'Fluxo de Caixa Descontado'!H69,IF(D67="Operação",'CAPEX e OPEX'!$D$53*'Fluxo de Caixa Descontado'!$B$3,""))) -> 0 | E69: =IF(E67="Construção",0,IF(E67="Start-up",('CAPEX e OPEX'!$D$53*'Fluxo de Caixa Descontado'!$B$3)*(1-'Parâmetros de Fluxo de Caixa'!$B$14)+'Parâmetros de Fluxo de Caixa'!$B$14*'Parâmetros de Fluxo de Caixa'!$B$15*'Fluxo de Caixa Descontado'!I69,IF(E67="Operação",'CAPEX e OPEX'!$D$53*'Fluxo de Caixa Descontado'!$B$3,""))) -> 5714.092034 | F69: =IF(F67="Construção",0,IF(F67="Start-up",('CAPEX e OPEX'!$D$53*'Fluxo de Caixa Descontado'!$B$3)*(1-'Parâmetros de Fluxo de Caixa'!$B$14)+'Parâmetros de Fluxo de Caixa'!$B$14*'Parâmetros de Fluxo de Caixa'!$B$15*'Fluxo de Caixa Descontado'!J69,IF(F67="Operação",'CAPEX e OPEX'!$D$53*'Fluxo de Caixa Descontado'!$B$3,""))) -> 6530.390896 | G69: =IF(G67="Construção",0,IF(G67="Start-up",('CAPEX e OPEX'!$D$53*'Fluxo de Caixa Descontado'!$B$3)*(1-'Parâmetros de Fluxo de Caixa'!$B$14)+'Parâmetros de Fluxo de Caixa'!$B$14*'Parâmetros de Fluxo de Caixa'!$B$15*'Fluxo de Caixa Descontado'!K69,IF(G67="Operação",'CAPEX e OPEX'!$D$53*'Fluxo de Caixa Descontado'!$B$3,""))) -> 6530.390896 | H69: =IF(H67="Construção",0,IF(H67="Start-up",('CAPEX e OPEX'!$D$53*'Fluxo de Caixa Descontado'!$B$3)*(1-'Parâmetros de Fluxo de Caixa'!$B$14)+'Parâmetros de Fluxo de Caixa'!$B$14*'Parâmetros de Fluxo de Caixa'!$B$15*'Fluxo de Caixa Descontado'!L69,IF(H67="Operação",'CAPEX e OPEX'!$D$53*'Fluxo de Caixa Descontado'!$B$3,""))) -> 6530.390896 | I69: =IF(I67="Construção",0,IF(I67="Start-up",('CAPEX e OPEX'!$D$53*'Fluxo de Caixa Descontado'!$B$3)*(1-'Parâmetros de Fluxo de Caixa'!$B$14)+'Parâmetros de Fluxo de Caixa'!$B$14*'Parâmetros de Fluxo de Caixa'!$B$15*'Fluxo de Caixa Descontado'!M69,IF(I67="Operação",'CAPEX e OPEX'!$D$53*'Fluxo de Caixa Descontado'!$B$3,""))) -> 6530.390896 | J69: =IF(J67="Construção",0,IF(J67="Start-up",('CAPEX e OPEX'!$D$53*'Fluxo de Caixa Descontado'!$B$3)*(1-'Parâmetros de Fluxo de Caixa'!$B$14)+'Parâmetros de Fluxo de Caixa'!$B$14*'Parâmetros de Fluxo de Caixa'!$B$15*'Fluxo de Caixa Descontado'!N69,IF(J67="Operação",'CAPEX e OPEX'!$D$53*'Fluxo de Caixa Descontado'!$B$3,""))) -> 6530.390896 | K69: =IF(K67="Construção",0,IF(K67="Start-up",('CAPEX e OPEX'!$D$53*'Fluxo de Caixa Descontado'!$B$3)*(1-'Parâmetros de Fluxo de Caixa'!$B$14)+'Parâmetros de Fluxo de Caixa'!$B$14*'Parâmetros de Fluxo de Caixa'!$B$15*'Fluxo de Caixa Descontado'!O69,IF(K67="Operação",'CAPEX e OPEX'!$D$53*'Fluxo de Caixa Descontado'!$B$3,""))) -> 6530.390896 | L69: =IF(L67="Construção",0,IF(L67="Start-up",('CAPEX e OPEX'!$D$53*'Fluxo de Caixa Descontado'!$B$3)*(1-'Parâmetros de Fluxo de Caixa'!$B$14)+'Parâmetros de Fluxo de Caixa'!$B$14*'Parâmetros de Fluxo de Caixa'!$B$15*'Fluxo de Caixa Descontado'!P69,IF(L67="Operação",'CAPEX e OPEX'!$D$53*'Fluxo de Caixa Descontado'!$B$3,""))) -> 6530.390896 | M69: =IF(M67="Construção",0,IF(M67="Start-up",('CAPEX e OPEX'!$D$53*'Fluxo de Caixa Descontado'!$B$3)*(1-'Parâmetros de Fluxo de Caixa'!$B$14)+'Parâmetros de Fluxo de Caixa'!$B$14*'Parâmetros de Fluxo de Caixa'!$B$15*'Fluxo de Caixa Descontado'!Q69,IF(M67="Operação",'CAPEX e OPEX'!$D$53*'Fluxo de Caixa Descontado'!$B$3,""))) -> 6530.390896 | N69: =IF(N67="Construção",0,IF(N67="Start-up",('CAPEX e OPEX'!$D$53*'Fluxo de Caixa Descontado'!$B$3)*(1-'Parâmetros de Fluxo de Caixa'!$B$14)+'Parâmetros de Fluxo de Caixa'!$B$14*'Parâmetros de Fluxo de Caixa'!$B$15*'Fluxo de Caixa Descontado'!R69,IF(N67="Operação",'CAPEX e OPEX'!$D$53*'Fluxo de Caixa Descontado'!$B$3,""))) -> 6530.390896 | O69: =IF(O67="Construção",0,IF(O67="Start-up",('CAPEX e OPEX'!$D$53*'Fluxo de Caixa Descontado'!$B$3)*(1-'Parâmetros de Fluxo de Caixa'!$B$14)+'Parâmetros de Fluxo de Caixa'!$B$14*'Parâmetros de Fluxo de Caixa'!$B$15*'Fluxo de Caixa Descontado'!S69,IF(O67="Operação",'CAPEX e OPEX'!$D$53*'Fluxo de Caixa Descontado'!$B$3,""))) -> 6530.390896 | P69: =IF(P67="Construção",0,IF(P67="Start-up",('CAPEX e OPEX'!$D$53*'Fluxo de Caixa Descontado'!$B$3)*(1-'Parâmetros de Fluxo de Caixa'!$B$14)+'Parâmetros de Fluxo de Caixa'!$B$14*'Parâmetros de Fluxo de Caixa'!$B$15*'Fluxo de Caixa Descontado'!T69,IF(P67="Operação",'CAPEX e OPEX'!$D$53*'Fluxo de Caixa Descontado'!$B$3,""))) -> 6530.390896 | Q69: =IF(Q67="Construção",0,IF(Q67="Start-up",('CAPEX e OPEX'!$D$53*'Fluxo de Caixa Descontado'!$B$3)*(1-'Parâmetros de Fluxo de Caixa'!$B$14)+'Parâmetros de Fluxo de Caixa'!$B$14*'Parâmetros de Fluxo de Caixa'!$B$15*'Fluxo de Caixa Descontado'!U69,IF(Q67="Operação",'CAPEX e OPEX'!$D$53*'Fluxo de Caixa Descontado'!$B$3,""))) -> 6530.390896 | R69: =IF(R67="Construção",0,IF(R67="Start-up",('CAPEX e OPEX'!$D$53*'Fluxo de Caixa Descontado'!$B$3)*(1-'Parâmetros de Fluxo de Caixa'!$B$14)+'Parâmetros de Fluxo de Caixa'!$B$14*'Parâmetros de Fluxo de Caixa'!$B$15*'Fluxo de Caixa Descontado'!V69,IF(R67="Operação",'CAPEX e OPEX'!$D$53*'Fluxo de Caixa Descontado'!$B$3,""))) -> 6530.390896 | S69: =IF(S67="Construção",0,IF(S67="Start-up",('CAPEX e OPEX'!$D$53*'Fluxo de Caixa Descontado'!$B$3)*(1-'Parâmetros de Fluxo de Caixa'!$B$14)+'Parâmetros de Fluxo de Caixa'!$B$14*'Parâmetros de Fluxo de Caixa'!$B$15*'Fluxo de Caixa Descontado'!W69,IF(S67="Operação",'CAPEX e OPEX'!$D$53*'Fluxo de Caixa Descontado'!$B$3,""))) -> 6530.390896 | T69: =IF(T67="Construção",0,IF(T67="Start-up",('CAPEX e OPEX'!$D$53*'Fluxo de Caixa Descontado'!$B$3)*(1-'Parâmetros de Fluxo de Caixa'!$B$14)+'Parâmetros de Fluxo de Caixa'!$B$14*'Parâmetros de Fluxo de Caixa'!$B$15*'Fluxo de Caixa Descontado'!X69,IF(T67="Operação",'CAPEX e OPEX'!$D$53*'Fluxo de Caixa Descontado'!$B$3,""))) -> 6530.390896 | U69: =IF(U67="Construção",0,IF(U67="Start-up",('CAPEX e OPEX'!$D$53*'Fluxo de Caixa Descontado'!$B$3)*(1-'Parâmetros de Fluxo de Caixa'!$B$14)+'Parâmetros de Fluxo de Caixa'!$B$14*'Parâmetros de Fluxo de Caixa'!$B$15*'Fluxo de Caixa Descontado'!Y69,IF(U67="Operação",'CAPEX e OPEX'!$D$53*'Fluxo de Caixa Descontado'!$B$3,""))) -> 6530.390896 | V69: =IF(V67="Construção",0,IF(V67="Start-up",('CAPEX e OPEX'!$D$53*'Fluxo de Caixa Descontado'!$B$3)*(1-'Parâmetros de Fluxo de Caixa'!$B$14)+'Parâmetros de Fluxo de Caixa'!$B$14*'Parâmetros de Fluxo de Caixa'!$B$15*'Fluxo de Caixa Descontado'!Z69,IF(V67="Operação",'CAPEX e OPEX'!$D$53*'Fluxo de Caixa Descontado'!$B$3,""))) -> 6530.390896 | W69: =IF(W67="Construção",0,IF(W67="Start-up",('CAPEX e OPEX'!$D$53*'Fluxo de Caixa Descontado'!$B$3)*(1-'Parâmetros de Fluxo de Caixa'!$B$14)+'Parâmetros de Fluxo de Caixa'!$B$14*'Parâmetros de Fluxo de Caixa'!$B$15*'Fluxo de Caixa Descontado'!AA69,IF(W67="Operação",'CAPEX e OPEX'!$D$53*'Fluxo de Caixa Descontado'!$B$3,""))) -> 6530.390896 | X69: =IF(X67="Construção",0,IF(X67="Start-up",('CAPEX e OPEX'!$D$53*'Fluxo de Caixa Descontado'!$B$3)*(1-'Parâmetros de Fluxo de Caixa'!$B$14)+'Parâmetros de Fluxo de Caixa'!$B$14*'Parâmetros de Fluxo de Caixa'!$B$15*'Fluxo de Caixa Descontado'!AB69,IF(X67="Operação",'CAPEX e OPEX'!$D$53*'Fluxo de Caixa Descontado'!$B$3,""))) -> 6530.390896 | Y69: =IF(Y67="Construção",0,IF(Y67="Start-up",('CAPEX e OPEX'!$D$53*'Fluxo de Caixa Descontado'!$B$3)*(1-'Parâmetros de Fluxo de Caixa'!$B$14)+'Parâmetros de Fluxo de Caixa'!$B$14*'Parâmetros de Fluxo de Caixa'!$B$15*'Fluxo de Caixa Descontado'!AC69,IF(Y67="Operação",'CAPEX e OPEX'!$D$53*'Fluxo de Caixa Descontado'!$B$3,""))) ->  | Z69: =IF(Z67="Construção",0,IF(Z67="Start-up",('CAPEX e OPEX'!$D$53*'Fluxo de Caixa Descontado'!$B$3)*(1-'Parâmetros de Fluxo de Caixa'!$B$14)+'Parâmetros de Fluxo de Caixa'!$B$14*'Parâmetros de Fluxo de Caixa'!$B$15*'Fluxo de Caixa Descontado'!AD69,IF(Z67="Operação",'CAPEX e OPEX'!$D$53*'Fluxo de Caixa Descontado'!$B$3,""))) ->  | AA69: =IF(AA67="Construção",0,IF(AA67="Start-up",('CAPEX e OPEX'!$D$53*'Fluxo de Caixa Descontado'!$B$3)*(1-'Parâmetros de Fluxo de Caixa'!$B$14)+'Parâmetros de Fluxo de Caixa'!$B$14*'Parâmetros de Fluxo de Caixa'!$B$15*'Fluxo de Caixa Descontado'!AE69,IF(AA67="Operação",'CAPEX e OPEX'!$D$53*'Fluxo de Caixa Descontado'!$B$3,""))) ->  | AB69: =IF(AB67="Construção",0,IF(AB67="Start-up",('CAPEX e OPEX'!$D$53*'Fluxo de Caixa Descontado'!$B$3)*(1-'Parâmetros de Fluxo de Caixa'!$B$14)+'Parâmetros de Fluxo de Caixa'!$B$14*'Parâmetros de Fluxo de Caixa'!$B$15*'Fluxo de Caixa Descontado'!AF69,IF(AB67="Operação",'CAPEX e OPEX'!$D$53*'Fluxo de Caixa Descontado'!$B$3,""))) ->  | AC69: =IF(AC67="Construção",0,IF(AC67="Start-up",('CAPEX e OPEX'!$D$53*'Fluxo de Caixa Descontado'!$B$3)*(1-'Parâmetros de Fluxo de Caixa'!$B$14)+'Parâmetros de Fluxo de Caixa'!$B$14*'Parâmetros de Fluxo de Caixa'!$B$15*'Fluxo de Caixa Descontado'!AG69,IF(AC67="Operação",'CAPEX e OPEX'!$D$53*'Fluxo de Caixa Descontado'!$B$3,""))) ->  | AD69: =IF(AD67="Construção",0,IF(AD67="Start-up",('CAPEX e OPEX'!$D$53*'Fluxo de Caixa Descontado'!$B$3)*(1-'Parâmetros de Fluxo de Caixa'!$B$14)+'Parâmetros de Fluxo de Caixa'!$B$14*'Parâmetros de Fluxo de Caixa'!$B$15*'Fluxo de Caixa Descontado'!AH69,IF(AD67="Operação",'CAPEX e OPEX'!$D$53*'Fluxo de Caixa Descontado'!$B$3,""))) ->  | AE69: =IF(AE67="Construção",0,IF(AE67="Start-up",('CAPEX e OPEX'!$D$53*'Fluxo de Caixa Descontado'!$B$3)*(1-'Parâmetros de Fluxo de Caixa'!$B$14)+'Parâmetros de Fluxo de Caixa'!$B$14*'Parâmetros de Fluxo de Caixa'!$B$15*'Fluxo de Caixa Descontado'!AI69,IF(AE67="Operação",'CAPEX e OPEX'!$D$53*'Fluxo de Caixa Descontado'!$B$3,""))) ->  | AF69: =IF(AF67="Construção",0,IF(AF67="Start-up",('CAPEX e OPEX'!$D$53*'Fluxo de Caixa Descontado'!$B$3)*(1-'Parâmetros de Fluxo de Caixa'!$B$14)+'Parâmetros de Fluxo de Caixa'!$B$14*'Parâmetros de Fluxo de Caixa'!$B$15*'Fluxo de Caixa Descontado'!AJ69,IF(AF67="Operação",'CAPEX e OPEX'!$D$53*'Fluxo de Caixa Descontado'!$B$3,""))) ->  | AG69: =IF(AG67="Construção",0,IF(AG67="Start-up",('CAPEX e OPEX'!$D$53*'Fluxo de Caixa Descontado'!$B$3)*(1-'Parâmetros de Fluxo de Caixa'!$B$14)+'Parâmetros de Fluxo de Caixa'!$B$14*'Parâmetros de Fluxo de Caixa'!$B$15*'Fluxo de Caixa Descontado'!AK69,IF(AG67="Operação",'CAPEX e OPEX'!$D$53*'Fluxo de Caixa Descontado'!$B$3,""))) ->  | AH69: =IF(AH67="Construção",0,IF(AH67="Start-up",('CAPEX e OPEX'!$D$53*'Fluxo de Caixa Descontado'!$B$3)*(1-'Parâmetros de Fluxo de Caixa'!$B$14)+'Parâmetros de Fluxo de Caixa'!$B$14*'Parâmetros de Fluxo de Caixa'!$B$15*'Fluxo de Caixa Descontado'!AL69,IF(AH67="Operação",'CAPEX e OPEX'!$D$53*'Fluxo de Caixa Descontado'!$B$3,""))) ->  | AI69: =IF(AI67="Construção",0,IF(AI67="Start-up",('CAPEX e OPEX'!$D$53*'Fluxo de Caixa Descontado'!$B$3)*(1-'Parâmetros de Fluxo de Caixa'!$B$14)+'Parâmetros de Fluxo de Caixa'!$B$14*'Parâmetros de Fluxo de Caixa'!$B$15*'Fluxo de Caixa Descontado'!AM69,IF(AI67="Operação",'CAPEX e OPEX'!$D$53*'Fluxo de Caixa Descontado'!$B$3,""))) ->  | AJ69: =IF(AJ67="Construção",0,IF(AJ67="Start-up",('CAPEX e OPEX'!$D$53*'Fluxo de Caixa Descontado'!$B$3)*(1-'Parâmetros de Fluxo de Caixa'!$B$14)+'Parâmetros de Fluxo de Caixa'!$B$14*'Parâmetros de Fluxo de Caixa'!$B$15*'Fluxo de Caixa Descontado'!AN69,IF(AJ67="Operação",'CAPEX e OPEX'!$D$53*'Fluxo de Caixa Descontado'!$B$3,""))) ->  | AK69: =IF(AK67="Construção",0,IF(AK67="Start-up",('CAPEX e OPEX'!$D$53*'Fluxo de Caixa Descontado'!$B$3)*(1-'Parâmetros de Fluxo de Caixa'!$B$14)+'Parâmetros de Fluxo de Caixa'!$B$14*'Parâmetros de Fluxo de Caixa'!$B$15*'Fluxo de Caixa Descontado'!AO69,IF(AK67="Operação",'CAPEX e OPEX'!$D$53*'Fluxo de Caixa Descontado'!$B$3,""))) ->  | AL69: =IF(AL67="Construção",0,IF(AL67="Start-up",('CAPEX e OPEX'!$D$53*'Fluxo de Caixa Descontado'!$B$3)*(1-'Parâmetros de Fluxo de Caixa'!$B$14)+'Parâmetros de Fluxo de Caixa'!$B$14*'Parâmetros de Fluxo de Caixa'!$B$15*'Fluxo de Caixa Descontado'!AP69,IF(AL67="Operação",'CAPEX e OPEX'!$D$53*'Fluxo de Caixa Descontado'!$B$3,""))) ->  | AM69: =IF(AM67="Construção",0,IF(AM67="Start-up",('CAPEX e OPEX'!$D$53*'Fluxo de Caixa Descontado'!$B$3)*(1-'Parâmetros de Fluxo de Caixa'!$B$14)+'Parâmetros de Fluxo de Caixa'!$B$14*'Parâmetros de Fluxo de Caixa'!$B$15*'Fluxo de Caixa Descontado'!AQ69,IF(AM67="Operação",'CAPEX e OPEX'!$D$53*'Fluxo de Caixa Descontado'!$B$3,""))) ->  | AN69: =IF(AN67="Construção",0,IF(AN67="Start-up",('CAPEX e OPEX'!$D$53*'Fluxo de Caixa Descontado'!$B$3)*(1-'Parâmetros de Fluxo de Caixa'!$B$14)+'Parâmetros de Fluxo de Caixa'!$B$14*'Parâmetros de Fluxo de Caixa'!$B$15*'Fluxo de Caixa Descontado'!AR69,IF(AN67="Operação",'CAPEX e OPEX'!$D$53*'Fluxo de Caixa Descontado'!$B$3,""))) ->  | AO69: =IF(AO67="Construção",0,IF(AO67="Start-up",('CAPEX e OPEX'!$D$53*'Fluxo de Caixa Descontado'!$B$3)*(1-'Parâmetros de Fluxo de Caixa'!$B$14)+'Parâmetros de Fluxo de Caixa'!$B$14*'Parâmetros de Fluxo de Caixa'!$B$15*'Fluxo de Caixa Descontado'!AV69,IF(AO67="Operação",'CAPEX e OPEX'!$D$53*'Fluxo de Caixa Descontado'!$B$3,""))) ->  | AP69: =IF(AP67="Construção",0,IF(AP67="Start-up",('CAPEX e OPEX'!$D$53*'Fluxo de Caixa Descontado'!$B$3)*(1-'Parâmetros de Fluxo de Caixa'!$B$14)+'Parâmetros de Fluxo de Caixa'!$B$14*'Parâmetros de Fluxo de Caixa'!$B$15*'Fluxo de Caixa Descontado'!AW69,IF(AP67="Operação",'CAPEX e OPEX'!$D$53*'Fluxo de Caixa Descontado'!$B$3,""))) ->  | AQ69: =IF(AQ67="Construção",0,IF(AQ67="Start-up",('CAPEX e OPEX'!$D$53*'Fluxo de Caixa Descontado'!$B$3)*(1-'Parâmetros de Fluxo de Caixa'!$B$14)+'Parâmetros de Fluxo de Caixa'!$B$14*'Parâmetros de Fluxo de Caixa'!$B$15*'Fluxo de Caixa Descontado'!AX69,IF(AQ67="Operação",'CAPEX e OPEX'!$D$53*'Fluxo de Caixa Descontado'!$B$3,""))) ->  | AR69: =IF(AR67="Construção",0,IF(AR67="Start-up",('CAPEX e OPEX'!$D$53*'Fluxo de Caixa Descontado'!$B$3)*(1-'Parâmetros de Fluxo de Caixa'!$B$14)+'Parâmetros de Fluxo de Caixa'!$B$14*'Parâmetros de Fluxo de Caixa'!$B$15*'Fluxo de Caixa Descontado'!AY69,IF(AR67="Operação",'CAPEX e OPEX'!$D$53*'Fluxo de Caixa Descontado'!$B$3,""))) ->  | AS69: =IF(AS67="Construção",0,IF(AS67="Start-up",('CAPEX e OPEX'!$D$53*'Fluxo de Caixa Descontado'!$B$3)*(1-'Parâmetros de Fluxo de Caixa'!$B$14)+'Parâmetros de Fluxo de Caixa'!$B$14*'Parâmetros de Fluxo de Caixa'!$B$15*'Fluxo de Caixa Descontado'!AZ69,IF(AS67="Operação",'CAPEX e OPEX'!$D$53*'Fluxo de Caixa Descontado'!$B$3,""))) ->  | AT69: =IF(AT67="Construção",0,IF(AT67="Start-up",('CAPEX e OPEX'!$D$53*'Fluxo de Caixa Descontado'!$B$3)*(1-'Parâmetros de Fluxo de Caixa'!$B$14)+'Parâmetros de Fluxo de Caixa'!$B$14*'Parâmetros de Fluxo de Caixa'!$B$15*'Fluxo de Caixa Descontado'!BA69,IF(AT67="Operação",'CAPEX e OPEX'!$D$53*'Fluxo de Caixa Descontado'!$B$3,""))) ->  | AU69: =IF(AU67="Construção",0,IF(AU67="Start-up",('CAPEX e OPEX'!$D$53*'Fluxo de Caixa Descontado'!$B$3)*(1-'Parâmetros de Fluxo de Caixa'!$B$14)+'Parâmetros de Fluxo de Caixa'!$B$14*'Parâmetros de Fluxo de Caixa'!$B$15*'Fluxo de Caixa Descontado'!BB69,IF(AU67="Operação",'CAPEX e OPEX'!$D$53*'Fluxo de Caixa Descontado'!$B$3,""))) ->  | AV69: =IF(AV67="Construção",0,IF(AV67="Start-up",('CAPEX e OPEX'!$D$53*'Fluxo de Caixa Descontado'!$B$3)*(1-'Parâmetros de Fluxo de Caixa'!$B$14)+'Parâmetros de Fluxo de Caixa'!$B$14*'Parâmetros de Fluxo de Caixa'!$B$15*'Fluxo de Caixa Descontado'!BC69,IF(AV67="Operação",'CAPEX e OPEX'!$D$53*'Fluxo de Caixa Descontado'!$B$3,""))) -> 
